Workbook

Sheet C
C1: Contenidos
A3: Información
A5: Título | B5: Modelo de costos de red móvil
A6: Objetivo | B6: Calcular mediante la metodología LRAIC+ el costo por minuto de provisión del servicio mayorista de interconexión
A8: Versión | B8: Workbook Version
A9: Estatus | B9: Approved for release
B10: Under construction
B11: Work in progress
B12: Ready for review
B13: Approved for release
A14: Autor | B14: Analysys Mason - GPRC_OSIPTEL
A17: Contenidos
A19: Hoja | B19: Descripción | F19: Estatus
A20: INFORMACIÓN GENERAL
A21: C | B21: Hoja de contenidos | F21: Approved for release
A22: S | B22: Guía de estilo | F22: Approved for release
A23: MÓDULO DE CONTROL (M_C)
A24: Control | B24: Permite la definición de operadores y escenarios distintos | F24: Approved for release
A25: Lists | B25: Incluye un conjunto de listas con información necesaria para la ejecución del modelo (p.ej. nombres de los servicios, definición de los geotipos, bandas de espectro) | F25: Approved for release
A26: MÓDULO DE MERCADO (M_M)
A27: Traffic | B27: Contiene los datos de tráfico de los operadores reales del mercado para los servicios modelados | F27: Approved for release
A28: Demand | B28: Calcula el tráfico desagregado por tecnología de red de acceso de cada servicio modelado para el operador y año seleccionados | F28: Approved for release
A29: MÓDULO DE COSTEO DE RED (M_C_R)
A30: NetworkDemand | B30: Modela la carga pico de la red del operador modelado en el año seleccionado | F30: Approved for release
A31: NwDesignInputs | B31: Contiene datos de entrada y parámetros para el diseño radio (p.ej. radio de celda, espectro usado para cobertura y capacidad), tecnologías de acceso (p.ej. capacidad de las tecnologías, S-RAN), tecnologías de acceso a última milla (p.ej. capacidades enlaces dedicados, fibra propia) | F31: Approved for release
A32: UtilisationFactors | B32: Define los factores de utilización de los activos de red del operador | F32: Approved for release
A33: NetworkDesign | B33: Efectúa el dimensionamiento de todos los niveles de red (p.ej. emplazamientos S-RAN, sitios por tecnología, dimensionamiento de última milla, red de agregación, red de transmisión, core) | F33: Approved for release
A34: ErlangTables | B34: Contiene las tablas Erlang que permiten calcular la capacidad en Erlangs de ciertos activos a partir del número de canales disponibles en las tecnologías 2G y 3G y la probabilidad de bloqueo | F34: Approved for release
A35: AssetsInputs | B35: Define para cada elemento de red la información sobre inversión, opex, tendencias de costos, categoría de costos o factores de enrutamiento asociados, entre otros | F35: Approved for release
A36: TotalNetwork | B36: Calcula los costos totales de red sin anualizar a partir del volumen de activos y sus precios unitarios (inversión) y operacionales (opex) | F36: Approved for release
A37: Annualization | B37: Para cada elemento de red anualiza la inversión utilizando el método seleccionado en el módulo de Control y lo agrega al opex para cada activo | F37: Approved for release
A38: Erlang Tables | B38: Tablas que permiten calcular una capacidad en base a un número de canales en un sector y una probabilidad de bloqueo | F38: Approved for release
A39: MÓDULO DE COSTEO DE LOS SERVICIOS (M_C_S)
A40: RouteingFactors | B40: Contiene el conjunto de parámetros que describen la carga de red generada en cada elemento de red por los servicios modelados | F40: Approved for release
A41: LRAIC+ | B41: Calcula para todos los servicios modelados el costo por unidad de red LRAIC y LRAIC+ | F41: Approved for release
A42: Results | B42: Calcula los resultados específicos del servicio de interconexión de llamadas móviles en base a los costos unitarios incrementales obtenidos para este servicio en cada una de las tecnologías de red de acceso (i.e. 2G, 3G y 4G) y para cada una de sus variantes (i.e. entrante desde fijo y entrante desde móvil) | F42: Approved for release

Sheet S
D1: Style guidelines
A3: NB Use Window Unfreeze Panes (on each worksheet) to have row 1 scroll with the rest of the worksheet
A4: NB Consider using Insert > Header & Footer > Sheet > Rows to repeat at top: $1:$1 to include row 1 at the top of all printed pages
A6: Input cell styles
A7: Use these styles to identify inputs to a model
A8: NB These styles change most aspects of a cell's formatting (all except Number and Alignment)
B10: Input Parameter | C10: 100 | D10: unlocked | E10: An input to the model that it is expected the user will change (change at will)
B12: Input Parameter | C12: 250 | D12: unlocked | E12: Consider using Data Validation to ensure that only acceptable values are entered
B13: Minimum | C13: 100
B14: Maximum | C14: 300
B16: Input Parameter | C16: 300 | D16: unlocked | E16: If a parameter can take only one of a small number of values, consider using Data Validation Allow List with In-cell dropdown selected
B17: Acceptable values | C17: 100
C18: 200
C19: 300
B21: Input Data | C21: 100 | D21: unlocked | E21: A piece of real data (only change if you have better data)
B23: Input Estimate | C23: 100 | D23: unlocked | E23: An estimate used in the absence of real data (only change if you have a better estimate, or real data )
B25: Input Calculation | C25: 100 | D25: locked | E25: An input to the model that has been calculated from other inputs (e.g. interpolated input values)
B27: Input Link | C27: 100 | D27: locked | E27: An input to this part of the model, which is linked to a source on this worksheet within this workbook
B29: Input Link (different Worksheet) | C29: 100 | D29: locked | E29: An input to this part of the model, which is linked to a source on another worksheet within this workbook
B31: Input Link (different Workbook) | C31: 100 | D31: locked | E31: An input to this part of the model, which is linked to a source on a worksheet in a different workbook
A33: Other cell styles
A34: Use these styles to identify the role of other cells in a model
A35: NB These styles change a variety of different aspects of a cell's formatting (as appropriate to the context)
B37: Calculation | C37: 100 | D37: locked | E37: A calculation of the model
B39: Total | C39: 123.45 | E39: A total (use if not part of a "Sub-total row" or a "Total row" in a table - see below)
B41: Checksum | C41: 0 | D41: locked | E41: A side calculation intended solely to cross check a result (and which therefore should not be referenced anywhere else in the model)
B43: Checksum | C43: 0.1 | D43: locked | E43: Consider using Conditional Formatting (on Home tab) to highlight unacceptable results of cross-check calculations (e.g. non-zero)
B45: Output | C45: 100 | E45: A key result from this part of the model (in particular one that will be used elsewhere in the model)
B47: Name | C47: Name | D47: locked | E47: An Excel Name applying to one or more adjacent cells – use Create from Selection (on Formulas tab) to actually create the Excel Names
B49: Note | C49: Note | E49: A note (NB smaller than standard font size)
B51: Highlight | C51: 100 | E51: A cell that is special in some way
B53: Unhighlight | C53: 100 | E53: And one that isn't anymore
A55: Number styles
A56: Use these styles to consistently format numbers (and dates)
A57: NB All number styles use the decimal symbol and digit grouping symbol (thousands separator) defined under Regional Options in Control Panel. So if you want to change them do it there, and not here in Excel !
A58: NB Most number styles leave space for a ')' to the right of the number, but only the Currency styles actually use '(…)' for negatives
C60: Number | D60: Number (2dp) | E60: Percentage | F60: Percentage (2dp) | G60: Currency | H60: Currency (2dp) | I60: Comma | J60: Percent
B61: Positive | C61: 1234.56 | D61: 123.45 | E61: 0.1234 | F61: 0.1234 | G61: 1234.56 | H61: 123.45 | I61: 1234.56 | J61: 0.1234
B62: Negative | C62: -1234.56 | D62: -123.45 | E62: -0.1234 | F62: -0.1234 | G62: -1234.56 | H62: -123.45 | I62: -1234.56 | J62: -0.1234
B63: Zero | C63: 0 | D63: 0 | E63: 0 | F63: 0 | G63: 0 | H63: 0 | I63: 0 | J63: 0
B64: Text | C64: Text | D64: Text | E64: Text | F64: Text | G64: Text | H64: Text | I64: Text | J64: Text
C66: Currency EUR | D66: Currency EUR (2dp) | E66: Currency Euro | F66: Currency Euro (2dp)
B67: Positive | C67: 1234.56 | D67: 123.45 | E67: 1234.56 | F67: 123.45
B68: Negative | C68: -1234.56 | D68: -123.45 | E68: -1234.56 | F68: -123.45
B69: Zero | C69: 0 | D69: 0 | E69: 0 | F69: 0
B70: Text | C70: Text | D70: Text | E70: Text | F70: Text
C72: Currency USD | D72: Currency USD (2dp) | E72: Currency Dollar | F72: Currency Dollar (2dp)
B73: Positive | C73: 1234.56 | D73: 123.45 | E73: 1234.56 | F73: 123.45
B74: Negative | C74: -1234.56 | D74: -123.45 | E74: -1234.56 | F74: -123.45
B75: Zero | C75: 0 | D75: 0 | E75: 0 | F75: 0
B76: Text | C76: Text | D76: Text | E76: Text | F76: Text
C78: Currency GBP | D78: Currency GBP (2dp) | E78: Currency Pound | F78: Currency Pound (2dp)
B79: Positive | C79: 1234.56 | D79: 123.45 | E79: 1234.56 | F79: 123.45
B80: Negative | C80: -1234.56 | D80: -123.45 | E80: -1234.56 | F80: -123.45
B81: Zero | C81: 0 | D81: 0 | E81: 0 | F81: 0
B82: Text | C82: Text | D82: Text | E82: Text | F82: Text
C84: Date | D84: Date (Month) | E84: Date (Year)
B85: Date | C85: 2002-12-01 | D85: 2002-12-01 | E85: 2002-12-01
A87: Heading styles
A88: Use these styles to format headings
A89: NB These styles change only the font used in a cell
B91: H0 | C91: Sheet title | E91: Heading level 0
B93: H1 | C93: Title | E93: Heading level 1
B95: H2 | C95: Title | E95: Heading level 2
B97: H3 | C97: Title | E97: Heading level 3
B99: H4 | C99: Title | E99: Heading level 4
A101: Table styles
A102: Use these styles to consistently format tables
A103: NB These styles change a variety of different aspects of cell formatting (as appropriate to the context)
A105: A simple table
B106: Column label (left aligned) | C106: Column label | D106: Column label | E106: Column label | F106: Column label
B107: Row label
B108: Row label
B109: Row label
B110: (Table finish row)
A112: A more complex table
D113: Column label (no wrap) | F113: Column label (no wrap)
B114: Column label (left aligned) | C114: Column label (not bold) | D114: Column label | E114: Column label | F114: Column label | G114: Column label
B115: Row label | D115: (Table unshading) | F115: (Table shading)
B116: Row label (indent)
B117: Sub-total row
B118: Total row
A121: Examples of use
A122: NB To avoid having spurious names in this template the names shown below have not actually been created
A124: Number of subscribers (year end)
B125: Service | C125: Units | D125: Notes | E125: 2000 | F125: 2001 | G125: 2002 | H125: 2003 | I125: Subscribers.Year End.By Service
B126: Dial-up | C126: Subscribers | D126: Linear interpolation | E126: 1000000 | F126: =E126+($H126-$E126)/3 -> 1000000 | G126: 1000000 | H126: 1000000
B127: ADSL | C127: Subscribers | D127: Linear interpolation | E127: 100000 | F127: 133333.3333 | G127: 166666.6667 | H127: 200000
B128: Cable Modem | C128: Subscribers | D128: Linear interpolation | E128: 50000 | F128: 100000 | G128: 150000 | H128: 200000
B129: Total | C129: Subscribers | E129: =SUM(E126:E128) -> 1150000 | F129: =SUM(F126:F128) -> 1233333.333 | G129: =SUM(G126:G128) -> 1316666.667 | H129: =SUM(H126:H128) -> 1400000
A131: Number of subscribers (year end)
B132: Service | C132: Units | D132: Notes | E132: 2000 | F132: 2001 | G132: 2002 | H132: 2003
B133: Dial-up | C133: Subscribers | D133: From above | E133: =$E$126:$H$128 -> 1000000 | F133: 1000000 | G133: 1000000 | H133: 1000000
B134: ADSL | C134: Subscribers | D134: From above | E134: 100000 | F134: 133333.3333 | G134: 166666.6667 | H134: 200000
B135: Cable Modem | C135: Subscribers | D135: From Cable_modem.xls | E135: 50000 | F135: 100000 | G135: 150000 | H135: 200000
B136: Total | C136: Subscribers | E136: =SUM(E133:E135) -> 1150000 | F136: =SUM(F133:F135) -> 1233333.333 | G136: =SUM(G133:G135) -> 1316666.667 | H136: =SUM(H133:H135) -> 1400000
A139: Number of subscribers (simple year average)
B140: Service | C140: Units | D140: Notes | E140: 2000 | F140: 2001 | G140: 2002 | H140: 2003
B141: Dial-up | C141: Subscribers | F141: =(F133+E133)/2 -> 1000000 | G141: 1000000 | H141: 1000000
B142: ADSL | C142: Subscribers | F142: 116666.6667 | G142: 150000 | H142: 183333.3333
B143: Cable Modem | C143: Subscribers | F143: 75000 | G143: 125000 | H143: 175000
B144: Total | C144: Subscribers | F144: =SUM(F141:F143) -> 1191666.667 | G144: =SUM(G141:G143) -> 1275000 | H144: =SUM(H141:H143) -> 1358333.333 | I144: Subscribers.Year Average.Total

Sheet M_C -->
D1: Módulo de control →

Sheet Control
E1: Control y datos de entrada
K2: 1 | L2: =1+K2 -> 2 | M2: =1+L2 -> 3 | N2: Scenario.number
G3: Escenario calculado | K3: =K20&", "&K24 -> Hipotético, Anualidad simple | L3: Spare, Anualidad simple | M3: Spare, Anualidad simple | N3: Scenario.list
A7: DATOS DE ENTRADA Y SELECCIÓN DEL ESCENARIO
C9: Escenario seleccionado | G9: Hipotético, Anualidad simple | H9: CTRL.scenario.selected
C11: Ajustes para el cálculo
D12: WACC nominal | G12: =INDEX(K12:M12,,MATCH(CTRL.scenario.selected,Scenario.list,0)) -> 0.1081 | H12: CTRL.WACC | K12: 0.1081 | L12: =K12 -> 0.1081 | M12: =L12 -> 0.1081
D13: Overhead por costos comunes
D14: Total | G14: =INDEX(K14:M14,,MATCH(CTRL.scenario.selected,Scenario.list,0)) -> 0.05 | H14: CTRL.common.costs.markup | K14: =K15/SUM(Annual.cost.by.element)+K16 -> 0.05 | L14: =L15/SUM(Annual.cost.by.element)+L16 -> 0.05 | M14: 0.05
D15: Parte fija | K15: 0 | L15: =K15 -> 0 | M15: =L15 -> 0
D16: Parte variable | K16: 0.05 | L16: =K16 -> 0.05 | M16: =L16 -> 0.05
C20: Operador | G20: =INDEX(K20:M20,,MATCH(CTRL.scenario.selected,Scenario.list,0)) -> Hipotético | H20: CTRL.operator.selected | K20: Hipotético | L20: Spare | M20: Spare | N20: Operator.by.scenario
C22: Año para el cálculo | G22: =INDEX(K22:M22,,MATCH(CTRL.scenario.selected,Scenario.list,0)) -> 2015/2016 | H22: CTRL.year.selected | K22: 2015/2016 | L22: =K22 -> 2015/2016 | M22: =L22 -> 2015/2016
C24: Metodología de depreciación utilizada | G24: =INDEX(K24:M24,,MATCH(CTRL.scenario.selected,Scenario.list,0)) -> Anualidad simple | H24: CTRL.depreciation.selected | K24: Anualidad simple | L24: Anualidad simple | M24: Anualidad simple
C26: Proxy de la depreciación lineal para estimar el Net Book Value (NBV)
D27: Edad media de los activos / vida útil | G27: =INDEX(K27:M27,,MATCH(CTRL.scenario.selected,Scenario.list,0)) -> 0.5 | H27: CTRL.NBV.assumption | K27: 0.5 | L27: 0.5 | M27: 0.5
A34: PARÁMETROS
B36: Parámetros que pueden ser modificados desde la hoja de control
C38: Factor de reuso del espectro para GSM | G38: =INDEX(K38:M38,,MATCH(CTRL.scenario.selected,Scenario.list,0)) -> 9 | K38: 9 | L38: 9 | M38: 9
G39: GSM.reuse.factor.used
C40: Probabilidad de bloqueo GSM | G40: =INDEX(K40:M40,,MATCH(CTRL.scenario.selected,Scenario.list,0)) -> 0.02 | K40: 0.02 | L40: 0.02 | M40: 0.02
G41: GSM.Blocking.Rate.Used
C42: Número mínimo de TRX por sector | G42: =INDEX(K42:M42,,MATCH(CTRL.scenario.selected,Scenario.list,0)) -> 1 | K42: 1 | L42: 1 | M42: 1
G43: Minimum.TRX.per.sector
C44: Factor de utilización para los activos radio
D45: BTS físicas, en TRXs | G45: =INDEX(K45:M45,,MATCH(CTRL.scenario.selected,Scenario.list,0)) -> 0.8 | K45: 0.8 | L45: 0.8 | M45: 0.8
D46: TRX, en Erlangs | G46: =INDEX(K46:M46,,MATCH(CTRL.scenario.selected,Scenario.list,0)) -> 0.8 | K46: 0.8 | L46: 0.8 | M46: 0.8
G47: Utilisation.radio.assets
C48: Protocolo de transmisión para el acceso de última milla (LMA)
E49: =Type.of.radio.sites -> 2G sites | G49: =INDEX(K49:M49,,MATCH(CTRL.scenario.selected,Scenario.list,0)) -> ATM / SDH / PDH | K49: ATM / SDH / PDH | L49: ATM / SDH / PDH | M49: ATM / SDH / PDH
E50: 3G sites | G50: =INDEX(K50:M50,,MATCH(CTRL.scenario.selected,Scenario.list,0)) -> Ethernet | K50: Ethernet | L50: Ethernet | M50: Ethernet
E51: 4G sites | G51: =INDEX(K51:M51,,MATCH(CTRL.scenario.selected,Scenario.list,0)) -> Ethernet | K51: Ethernet | L51: Ethernet | M51: Ethernet
E52: Multi-technologies sites | G52: =INDEX(K52:M52,,MATCH(CTRL.scenario.selected,Scenario.list,0)) -> Ethernet | K52: Ethernet | L52: Ethernet | M52: Ethernet
G53: LMA.transmission.protocol.used
C54: Tecnología de backhaul (hub a core) | G54: =INDEX(K54:M54,,MATCH(CTRL.scenario.selected,Scenario.list,0)) -> Dark fibre | K54: Dark fibre | L54: Dark fibre | M54: Dark fibre
G55: Backhaul.technology.used
C56: Protocolo de transmisión para el backhaul | G56: =INDEX(K56:M56,,MATCH(CTRL.scenario.selected,Scenario.list,0)) -> Ethernet | K56: Ethernet | L56: Ethernet | M56: Ethernet
G57: Backhaul.transmission.protocol.used
C58: Tecnología de los anillos del core | G58: =INDEX(K58:M58,,MATCH(CTRL.scenario.selected,Scenario.list,0)) -> Dark fibre | K58: Dark fibre | L58: Dark fibre | M58: Dark fibre
G59: Core.ring.technology.used
C60: Protocolo de transmisión de los anillos del core | G60: =INDEX(K60:M60,,MATCH(CTRL.scenario.selected,Scenario.list,0)) -> Ethernet | K60: Ethernet | L60: Ethernet | M60: Ethernet
G61: Core.ring.transmission.protocol.used
C63: Capacidad BSC | G63: =INDEX(K63:M63,,MATCH(CTRL.scenario.selected,Scenario.list,0)) -> 4200 | K63: 4200 | L63: 4200 | M63: 4200
G64: BSC.capacity.used
C65: Capacidad RNC | G65: =INDEX(K65:M65,,MATCH(CTRL.scenario.selected,Scenario.list,0)) -> 2600 | K65: 2600 | L65: 2600 | M65: 2600
G66: RNC.capacity.used
C68: Inversión para la cesión del espectro de las bandas en uso | G68: =INDEX(K68:M68,,MATCH(CTRL.scenario.selected,Scenario.list,0)) -> 0 | H68: Fijado a cero | K68: 0 | L68: 0 | M68: 0
G69: Spectrum.Fee
B71: Parámetros automáticamente seleccionados en la elección del operador
C73: Frecuencia usada para desplegar cobertura
D75: GSM
E76: =Geotypes -> Muy denso | G76: =INDEX(K76:M76,,MATCH(CTRL.scenario.selected,Scenario.list,0)) -> 850 | K76: =INDEX($K779:$M788,,MATCH(K$20,Operators.list,0)) -> 850 | L76: =INDEX($K779:$M788,,MATCH(L$20,Operators.list,0)) -> Spare | M76: =INDEX($K779:$M788,,MATCH(M$20,Operators.list,0)) -> Spare
E77: Denso | G77: 850 | K77: 850 | L77: Spare | M77: Spare
E78: Poco denso | G78: 850 | K78: 850 | L78: Spare | M78: Spare
E79: Otro | G79: 850 | K79: 850 | L79: Spare | M79: Spare
E80: Microceldas | G80: 850 | K80: 850 | L80: Spare | M80: Spare
E81: spare | G81: Spare | K81: Spare | L81: Spare | M81: Spare
E82: spare | G82: Spare | K82: Spare | L82: Spare | M82: Spare
E83: spare | G83: Spare | K83: Spare | L83: Spare | M83: Spare
E84: spare | G84: Spare | K84: Spare | L84: Spare | M84: Spare
E85: spare | G85: Spare | K85: Spare | L85: Spare | M85: Spare
D86: UMTS | G86: CTRL.spectrum.coverage.GSM
E87: =Geotypes -> Muy denso | G87: =INDEX(K87:M87,,MATCH(CTRL.scenario.selected,Scenario.list,0)) -> 850 | K87: =INDEX($K790:$M799,,MATCH(K$20,Operators.list,0)) -> 850 | L87: =INDEX($K790:$M799,,MATCH(L$20,Operators.list,0)) -> Spare | M87: =INDEX($K790:$M799,,MATCH(M$20,Operators.list,0)) -> Spare
E88: Denso | G88: 850 | K88: 850 | L88: Spare | M88: Spare
E89: Poco denso | G89: 850 | K89: 850 | L89: Spare | M89: Spare
E90: Otro | G90: 850 | K90: 850 | L90: Spare | M90: Spare
E91: Microceldas | G91: 850 | K91: 850 | L91: Spare | M91: Spare
E92: spare | G92: Spare | K92: Spare | L92: Spare | M92: Spare
E93: spare | G93: Spare | K93: Spare | L93: Spare | M93: Spare
E94: spare | G94: Spare | K94: Spare | L94: Spare | M94: Spare
E95: spare | G95: Spare | K95: Spare | L95: Spare | M95: Spare
E96: spare | G96: Spare | K96: Spare | L96: Spare | M96: Spare
D97: LTE | G97: CTRL.spectrum.coverage.UMTS
E98: =Geotypes -> Muy denso | G98: =INDEX(K98:M98,,MATCH(CTRL.scenario.selected,Scenario.list,0)) -> 1700/2100 (AWS) | K98: =INDEX($K801:$M810,,MATCH(K$20,Operators.list,0)) -> 1700/2100 (AWS) | L98: =INDEX($K801:$M810,,MATCH(L$20,Operators.list,0)) -> Spare | M98: =INDEX($K801:$M810,,MATCH(M$20,Operators.list,0)) -> Spare
E99: Denso | G99: 1700/2100 (AWS) | K99: 1700/2100 (AWS) | L99: Spare | M99: Spare
E100: Poco denso | G100: 1700/2100 (AWS) | K100: 1700/2100 (AWS) | L100: Spare | M100: Spare
E101: Otro | G101: 1700/2100 (AWS) | K101: 1700/2100 (AWS) | L101: Spare | M101: Spare
E102: Microceldas | G102: 1700/2100 (AWS) | K102: 1700/2100 (AWS) | L102: Spare | M102: Spare
E103: spare | G103: 1700/2100 (AWS) | K103: 1700/2100 (AWS) | L103: Spare | M103: Spare
E104: spare | G104: 1700/2100 (AWS) | K104: 1700/2100 (AWS) | L104: Spare | M104: Spare
E105: spare | G105: 1700/2100 (AWS) | K105: 1700/2100 (AWS) | L105: Spare | M105: Spare
E106: spare | G106: 1700/2100 (AWS) | K106: 1700/2100 (AWS) | L106: Spare | M106: Spare
E107: spare | G107: 1700/2100 (AWS) | K107: 1700/2100 (AWS) | L107: Spare | M107: Spare
C108: Frecuencias usadas para desplegar capacidad | G108: CTRL.spectrum.coverage.LTE
D110: GSM
E111: =Geotypes -> Muy denso | G111: =INDEX(K111:M111,,MATCH(CTRL.scenario.selected,Scenario.list,0)) -> 1900 | K111: =INDEX($K817:$M826,,MATCH(K$20,Operators.list,0)) -> 1900 | L111: =INDEX($K817:$M826,,MATCH(L$20,Operators.list,0)) -> Spare | M111: =INDEX($K817:$M826,,MATCH(M$20,Operators.list,0)) -> Spare
E112: Denso | G112: 1900 | K112: 1900 | L112: Spare | M112: Spare
E113: Poco denso | G113: 1900 | K113: 1900 | L113: Spare | M113: Spare
E114: Otro | G114: 1900 | K114: 1900 | L114: Spare | M114: Spare
E115: Microceldas | G115: 1900 | K115: 1900 | L115: Spare | M115: Spare
E116: spare | G116: Spare | K116: Spare | L116: Spare | M116: Spare
E117: spare | G117: Spare | K117: Spare | L117: Spare | M117: Spare
E118: spare | G118: Spare | K118: Spare | L118: Spare | M118: Spare
E119: spare | G119: Spare | K119: Spare | L119: Spare | M119: Spare
E120: spare | G120: Spare | K120: Spare | L120: Spare | M120: Spare
D121: UMTS | G121: CTRL.spectrum.capacity.GSM
E122: =Geotypes -> Muy denso | G122: =INDEX(K122:M122,,MATCH(CTRL.scenario.selected,Scenario.list,0)) -> 1900 | K122: =INDEX($K828:$M837,,MATCH(K$20,Operators.list,0)) -> 1900 | L122: =INDEX($K828:$M837,,MATCH(L$20,Operators.list,0)) -> Spare | M122: =INDEX($K828:$M837,,MATCH(M$20,Operators.list,0)) -> Spare
E123: Denso | G123: 1900 | K123: 1900 | L123: Spare | M123: Spare
E124: Poco denso | G124: 1900 | K124: 1900 | L124: Spare | M124: Spare
E125: Otro | G125: 1900 | K125: 1900 | L125: Spare | M125: Spare
E126: Microceldas | G126: 1900 | K126: 1900 | L126: Spare | M126: Spare
E127: spare | G127: Spare | K127: Spare | L127: Spare | M127: Spare
E128: spare | G128: Spare | K128: Spare | L128: Spare | M128: Spare
E129: spare | G129: Spare | K129: Spare | L129: Spare | M129: Spare
E130: spare | G130: Spare | K130: Spare | L130: Spare | M130: Spare
E131: spare | G131: Spare | K131: Spare | L131: Spare | M131: Spare
D132: LTE | G132: CTRL.spectrum.capacity.UMTS
D133: Primera banda de capacidad
E134: =Geotypes -> Muy denso | G134: =INDEX(K134:M134,,MATCH(CTRL.scenario.selected,Scenario.list,0)) -> Spare | K134: =INDEX($K840:$M849,,MATCH(K$20,Operators.list,0)) -> Spare | L134: =INDEX($K840:$M849,,MATCH(L$20,Operators.list,0)) -> Spare | M134: =INDEX($K840:$M849,,MATCH(M$20,Operators.list,0)) -> Spare
E135: Denso | G135: Spare | K135: Spare | L135: Spare | M135: Spare
E136: Poco denso | G136: Spare | K136: Spare | L136: Spare | M136: Spare
E137: Otro | G137: Spare | K137: Spare | L137: Spare | M137: Spare
E138: Microceldas | G138: Spare | K138: Spare | L138: Spare | M138: Spare
E139: spare | G139: Spare | K139: Spare | L139: Spare | M139: Spare
E140: spare | G140: Spare | K140: Spare | L140: Spare | M140: Spare
E141: spare | G141: Spare | K141: Spare | L141: Spare | M141: Spare
E142: spare | G142: Spare | K142: Spare | L142: Spare | M142: Spare
E143: spare | G143: Spare | K143: Spare | L143: Spare | M143: Spare
D144: Segunda banda de capacidad | G144: CTRL.spectrum.capacity.LTE.first.band
E145: =Geotypes -> Muy denso | G145: =INDEX(K145:M145,,MATCH(CTRL.scenario.selected,Scenario.list,0)) -> Spare | K145: =INDEX($K851:$M860,,MATCH(K$20,Operators.list,0)) -> Spare | L145: =INDEX($K851:$M860,,MATCH(L$20,Operators.list,0)) -> Spare | M145: =INDEX($K851:$M860,,MATCH(M$20,Operators.list,0)) -> Spare
E146: Denso | G146: Spare | K146: Spare | L146: Spare | M146: Spare
E147: Poco denso | G147: Spare | K147: Spare | L147: Spare | M147: Spare
E148: Otro | G148: Spare | K148: Spare | L148: Spare | M148: Spare
E149: Microceldas | G149: Spare | K149: Spare | L149: Spare | M149: Spare
E150: spare | G150: Spare | K150: Spare | L150: Spare | M150: Spare
E151: spare | G151: Spare | K151: Spare | L151: Spare | M151: Spare
E152: spare | G152: Spare | K152: Spare | L152: Spare | M152: Spare
E153: spare | G153: Spare | K153: Spare | L153: Spare | M153: Spare
E154: spare | G154: Spare | K154: Spare | L154: Spare | M154: Spare
D155: Tercera banda de capacidad | G155: CTRL.spectrum.capacity.LTE.second.band
E156: =Geotypes -> Muy denso | G156: =INDEX(K156:M156,,MATCH(CTRL.scenario.selected,Scenario.list,0)) -> Spare | K156: =INDEX($K862:$M871,,MATCH(K$20,Operators.list,0)) -> Spare | L156: =INDEX($K862:$M871,,MATCH(L$20,Operators.list,0)) -> Spare | M156: =INDEX($K862:$M871,,MATCH(M$20,Operators.list,0)) -> Spare
E157: Denso | G157: Spare | K157: Spare | L157: Spare | M157: Spare
E158: Poco denso | G158: Spare | K158: Spare | L158: Spare | M158: Spare
E159: Otro | G159: Spare | K159: Spare | L159: Spare | M159: Spare
E160: Microceldas | G160: Spare | K160: Spare | L160: Spare | M160: Spare
E161: spare | G161: Spare | K161: Spare | L161: Spare | M161: Spare
E162: spare | G162: Spare | K162: Spare | L162: Spare | M162: Spare
E163: spare | G163: Spare | K163: Spare | L163: Spare | M163: Spare
E164: spare | G164: Spare | K164: Spare | L164: Spare | M164: Spare
E165: spare | G165: Spare | K165: Spare | L165: Spare | M165: Spare
D166: Cuarta banda de capacidad | G166: CTRL.spectrum.capacity.LTE.third.band
E167: =Geotypes -> Muy denso | G167: =INDEX(K167:M167,,MATCH(CTRL.scenario.selected,Scenario.list,0)) -> Spare | K167: =INDEX($K873:$M882,,MATCH(K$20,Operators.list,0)) -> Spare | L167: =INDEX($K873:$M882,,MATCH(L$20,Operators.list,0)) -> Spare | M167: =INDEX($K873:$M882,,MATCH(M$20,Operators.list,0)) -> Spare
E168: Denso | G168: Spare | K168: Spare | L168: Spare | M168: Spare
E169: Poco denso | G169: Spare | K169: Spare | L169: Spare | M169: Spare
E170: Otro | G170: Spare | K170: Spare | L170: Spare | M170: Spare
E171: Microceldas | G171: Spare | K171: Spare | L171: Spare | M171: Spare
E172: spare | G172: Spare | K172: Spare | L172: Spare | M172: Spare
E173: spare | G173: Spare | K173: Spare | L173: Spare | M173: Spare
E174: spare | G174: Spare | K174: Spare | L174: Spare | M174: Spare
E175: spare | G175: Spare | K175: Spare | L175: Spare | M175: Spare
E176: spare | G176: Spare | K176: Spare | L176: Spare | M176: Spare
G177: CTRL.spectrum.capacity.LTE.fourth.band
C178: Asignación de espectro
C192: 1 | D192: =INDEX(Frequencies2,C192,)&" MHz banda (2 veces X MHz)" -> 850 MHz banda (2 veces X MHz)
E193: =Geotypes -> Muy denso | G193: =INDEX(K193:M193,,MATCH(CTRL.scenario.selected,Scenario.list,0)) -> 12.5 | K193: =INDEX($K899:$M908,,MATCH(K$20,Operators.list,0)) -> 12.5 | L193: =INDEX($K899:$M908,,MATCH(L$20,Operators.list,0)) -> 0 | M193: =INDEX($K899:$M908,,MATCH(M$20,Operators.list,0)) -> 0
E194: Denso | G194: 12.5 | K194: 12.5 | L194: 0 | M194: 0
E195: Poco denso | G195: 12.5 | K195: 12.5 | L195: 0 | M195: 0
E196: Otro | G196: 12.5 | K196: 12.5 | L196: 0 | M196: 0
E197: Microceldas | G197: 12.5 | K197: 12.5 | L197: 0 | M197: 0
E198: spare | G198: 0 | K198: 0 | L198: 0 | M198: 0
E199: spare | G199: 0 | K199: 0 | L199: 0 | M199: 0
E200: spare | G200: 0 | K200: 0 | L200: 0 | M200: 0
E201: spare | G201: 0 | K201: 0 | L201: 0 | M201: 0
E202: spare | G202: 0 | K202: 0 | L202: 0 | M202: 0
G203: CTRL.spectrum.available.second.band
D204: de los cuales usados para 2G (2 veces X MHz)
E205: =Geotypes -> Muy denso | G205: =INDEX(K205:M205,,MATCH(CTRL.scenario.selected,Scenario.list,0)) -> 5 | K205: =INDEX($K911:$M920,,MATCH(K$20,Operators.list,0)) -> 5 | L205: =INDEX($K911:$M920,,MATCH(L$20,Operators.list,0)) -> 0 | M205: =INDEX($K911:$M920,,MATCH(M$20,Operators.list,0)) -> 0
E206: Denso | G206: 5 | K206: 5 | L206: 0 | M206: 0
E207: Poco denso | G207: 5 | K207: 5 | L207: 0 | M207: 0
E208: Otro | G208: 5 | K208: 5 | L208: 0 | M208: 0
E209: Microceldas | G209: 5 | K209: 5 | L209: 0 | M209: 0
E210: spare | G210: 0 | K210: 0 | L210: 0 | M210: 0
E211: spare | G211: 0 | K211: 0 | L211: 0 | M211: 0
E212: spare | G212: 0 | K212: 0 | L212: 0 | M212: 0
E213: spare | G213: 0 | K213: 0 | L213: 0 | M213: 0
E214: spare | G214: 0 | K214: 0 | L214: 0 | M214: 0
G215: CTRL.spectrum.second.band.used.for.2G
D216: de los cuales usados para 3G (2 veces X MHz)
E217: =Geotypes -> Muy denso | G217: =INDEX(K217:M217,,MATCH(CTRL.scenario.selected,Scenario.list,0)) -> 7.5 | K217: =INDEX($K923:$M932,,MATCH(K$20,Operators.list,0)) -> 7.5 | L217: =INDEX($K923:$M932,,MATCH(L$20,Operators.list,0)) -> 0 | M217: =INDEX($K923:$M932,,MATCH(M$20,Operators.list,0)) -> 0
E218: Denso | G218: 7.5 | K218: 7.5 | L218: 0 | M218: 0
E219: Poco denso | G219: 7.5 | K219: 7.5 | L219: 0 | M219: 0
E220: Otro | G220: 7.5 | K220: 7.5 | L220: 0 | M220: 0
E221: Microceldas | G221: 7.5 | K221: 7.5 | L221: 0 | M221: 0
E222: spare | G222: 0 | K222: 0 | L222: 0 | M222: 0
E223: spare | G223: 0 | K223: 0 | L223: 0 | M223: 0
E224: spare | G224: 0 | K224: 0 | L224: 0 | M224: 0
E225: spare | G225: 0 | K225: 0 | L225: 0 | M225: 0
E226: spare | G226: 0 | K226: 0 | L226: 0 | M226: 0
G227: CTRL.spectrum.second.band.used.for.3G
C228: 2 | D228: =INDEX(Frequencies2,C228,)&" MHz banda (2 veces X MHz)" -> 900 MHz banda (2 veces X MHz)
E229: =Geotypes -> Muy denso | G229: =INDEX(K229:M229,,MATCH(CTRL.scenario.selected,Scenario.list,0)) -> 0 | K229: =INDEX($K938:$M947,,MATCH(K$20,Operators.list,0)) -> 0 | L229: =INDEX($K938:$M947,,MATCH(L$20,Operators.list,0)) -> 0 | M229: =INDEX($K938:$M947,,MATCH(M$20,Operators.list,0)) -> 0
E230: Denso | G230: 0 | K230: 0 | L230: 0 | M230: 0
E231: Poco denso | G231: 0 | K231: 0 | L231: 0 | M231: 0
E232: Otro | G232: 0 | K232: 0 | L232: 0 | M232: 0
E233: Microceldas | G233: 0 | K233: 0 | L233: 0 | M233: 0
E234: spare | G234: 0 | K234: 0 | L234: 0 | M234: 0
E235: spare | G235: 0 | K235: 0 | L235: 0 | M235: 0
E236: spare | G236: 0 | K236: 0 | L236: 0 | M236: 0
E237: spare | G237: 0 | K237: 0 | L237: 0 | M237: 0
E238: spare | G238: 0 | K238: 0 | L238: 0 | M238: 0
... 1085 more rows

Sheet Lists
E1: Listas
B4: Geotipos | C4: Área | D4: Proporción del área total | E4: Población | F4: Proporción de la población total | H4: Nodos core | I4: Población | J4: Distribución del tráfico de voz | K4: Distribución del tráfico de datos | O4: Tecnologías radio | Q4: Unidades | S4: Servicios en el mercado | T4: Unidades | V4: Servicios de red | W4: Unidades para el diseño de red | X4: Tráfico de interconexión de voz | Z4: Lista de servicios por tecnología | AA4: Unidades | AC4: Metodologías de depreciación | AG4: Operadores | AI4: Booleano | AK4: Años
C5: =SUM(C6:C15) -> 1286457.425 | D5: 1 | E5: 27734855 | F5: 1 | I5: =SUM(I6:I45) -> 27734855 | J5: =SUM(J6:J45) -> 1 | K5: =SUM(K6:K45) -> 1 | O5: GSM | Q5: 1000 | S5: Tráfico de voz on-net | T5: minutos | V5: 2G - Tráfico de voz on-net | W5: minutos | X5: 0 | Z5: =V5:W18 -> 2G - Tráfico de voz on-net | AA5: minutos | AC5: Anualidad lineal | AG5: Hipotético | AH5: Operator.generic | AI5: TRUE | AK5: 2015/2016
B6: Muy denso | C6: 5720.351973 | D6: =C6:C15/C5 -> 0.004446592528 | E6: 12953544 | F6: =E6:E15/E5 -> 0.4670492779 | H6: Abancay | I6: 410233 | J6: =$I6:$I45/$I5 -> 0.01479124373 | K6: =$I6:$I45/$I5 -> 0.01479124373 | O6: UMTS | Q6: Thousand | S6: Tráfico de voz saliente a fijo | T6: minutos | V6: 2G - Tráfico de voz saliente a fijo | W6: minutos | X6: 1 | Z6: 2G - Tráfico de voz saliente a fijo | AA6: minutos | AC6: Anualidad simple | AG6: Spare | AI6: FALSE | AK6: 2016/2017
B7: Denso | C7: 119575.7529 | D7: 0.09294963872 | E7: 8834944 | F7: 0.3185502142 | H7: Arequipa | I7: 1161421 | J7: 0.04187586342 | K7: 0.04187586342 | O7: HSPA | S7: Tráfico de voz saliente a móvil | T7: minutos | V7: 2G - Tráfico de voz saliente a móvil | W7: minutos | X7: 1 | Z7: 2G - Tráfico de voz saliente a móvil | AA7: minutos | AC7: Anualidad inclinada | AG7: Spare | AI7: boolean | AK7: 2017/2018
B8: Poco denso | C8: 605558.3275 | D8: 0.4707177368 | E8: 5471899 | F8: 0.1972932254 | H8: Ayacucho | I8: 667614 | J8: 0.02407129945 | K8: 0.02407129945 | O8: LTE | Q8: 1024 | S8: Tráfico de voz saliente a internacional | T8: minutos | V8: 2G - Tráfico de voz saliente a internacional | W8: minutos | X8: 1 | Z8: 2G - Tráfico de voz saliente a internacional | AA8: minutos | AC8: Depreciation.methodologies | AG8: Operators.list | AK8: 2018/2019
B9: Otro | C9: 555602.9925 | D9: 0.431886032 | E9: 474468 | F9: 0.01710728252 | H9: Cajamarca | I9: 1391217 | J9: 0.05016132228 | K9: 0.05016132228 | O9: Radio.technologies | Q9: Kbits.per.Mbits | S9: Tráfico de voz entrante desde fijo | T9: minutos | V9: 2G - Tráfico de voz entrante desde fijo | W9: minutos | X9: 1 | Z9: 2G - Tráfico de voz entrante desde fijo | AA9: minutos | AK9: 2019/2020
B10: Microceldas | C10: 0 | D10: 0 | E10: 0 | F10: 0 | H10: Callao | I10: 886436 | J10: 0.0319610829 | K10: 0.0319610829 | S10: Tráfico de voz entrante desde móvil | T10: minutos | V10: 2G - Tráfico de voz entrante desde móvil | W10: minutos | X10: 1 | Z10: 2G - Tráfico de voz entrante desde móvil | AA10: minutos | AK10: Years
B11: spare | C11: 0 | D11: 0 | E11: 0 | F11: 0 | H11: Cerro de Pasco | I11: 283137 | J11: 0.0102087067 | K11: 0.0102087067 | Q11: 8 | S11: Tráfico de voz entrante desde internacional | T11: minutos | V11: 2G - Tráfico de voz entrante desde internacional | W11: minutos | X11: 1 | Z11: 2G - Tráfico de voz entrante desde internacional | AA11: minutos
B12: spare | C12: 0 | D12: 0 | E12: 0 | F12: 0 | H12: Chachapoyas | I12: 381448 | J12: 0.01375338 | K12: 0.01375338 | O12: Tipo de sites radio | Q12: Bits.per.byte | S12: spare | T12: spare | V12: 3G - Tráfico de voz on-net | W12: minutos | X12: 0 | Z12: 3G - Tráfico de voz on-net | AA12: minutos
B13: spare | C13: 0 | D13: 0 | E13: 0 | F13: 0 | H13: Chiclayo | I13: 1121901 | J13: 0.0404509416 | K13: 0.0404509416 | M13: Frecuencias | O13: 2G sites | S13: spare | T13: spare | V13: 3G - Tráfico de voz saliente a fijo | W13: minutos | X13: 1 | Z13: 3G - Tráfico de voz saliente a fijo | AA13: minutos
B14: spare | C14: 0 | D14: 0 | E14: 0 | F14: 0 | H14: Cusco | I14: 1197393 | J14: 0.04317285957 | K14: 0.04317285957 | M14: 850 | O14: 3G sites | Q14: 0.0001 | S14: SMSs on-net | T14: SMS | V14: 3G - Tráfico de voz saliente a móvil | W14: minutos | X14: 1 | Z14: 3G - Tráfico de voz saliente a móvil | AA14: minutos
B15: spare | C15: 0 | D15: 0 | E15: 0 | F15: 0 | H15: Huancavelica | I15: 455730 | J15: 0.01643167055 | K15: 0.01643167055 | M15: 900 | O15: 4G sites | Q15: epsilon | S15: SMS salientes | T15: SMS | V15: 3G - Tráfico de voz saliente a internacional | W15: minutos | X15: 1 | Z15: 3G - Tráfico de voz saliente a internacional | AA15: minutos
B16: Geotypes | C16: Geotypes.area | H16: Huancayo | I16: 1196922 | J16: 0.04315587732 | K16: 0.04315587732 | M16: 1900 | O16: Multi-technologies sites | S16: SMS entrantes | T16: SMS | V16: 3G - Tráfico de voz entrante desde fijo | W16: minutos | X16: 1 | Z16: 3G - Tráfico de voz entrante desde fijo | AA16: minutos
H17: Huaraz | I17: 1068237 | J17: 0.03851604777 | K17: 0.03851604777 | M17: 1700/2100 (AWS) | O17: Type.of.radio.sites | Q17: 60 | S17: spare | T17: spare | V17: 3G - Tráfico de voz entrante desde móvil | W17: minutos | X17: 1 | Z17: 3G - Tráfico de voz entrante desde móvil | AA17: minutos
H18: Ica | I18: 716931 | J18: 0.0258494591 | K18: 0.0258494591 | M18: Spare | Q18: minutes.per.hour | S18: spare | T18: spare | V18: 3G - Tráfico de voz entrante desde internacional | W18: minutos | X18: 1 | Z18: 3G - Tráfico de voz entrante desde internacional | AA18: minutos
H19: Iquitos | I19: 903417 | J19: 0.03257334498 | K19: 0.03257334498 | M19: Frequencies2 | O19: Protocolos de transmisión | S19: Tráfico de datos | T19: Mbytes | V19: 4G - Tráfico de voz on-net | W19: minutos | X19: 0 | Z19: Voice.services.list | AA19: Voice.services.list.units
H20: Lima | I20: 8452087 | J20: 0.3047460317 | K20: 0.3047460317 | O20: ATM / SDH / PDH | Q20: 60 | S20: spare | T20: spare | V20: 4G - Tráfico de voz saliente a fijo | W20: minutos | X20: 1
H21: Moquegua | I21: 162463 | J21: 0.005857719465 | K21: 0.005857719465 | O21: Ethernet | Q21: seconds.per.minute | S21: Suscriptores de solo voz (media del año) | T21: #subs | V21: 4G - Tráfico de voz saliente a móvil | W21: minutos | X21: 1 | Z21: =V19:W25 -> 4G - Tráfico de voz on-net | AA21: minutos
H22: Piura | I22: 1816061 | J22: 0.06547937604 | K22: 0.06547937604 | O22: Protocols | S22: Suscriptores de voz y datos (media del año) | T22: #subs | V22: 4G - Tráfico de voz saliente a internacional | W22: minutos | X22: 1 | Z22: 4G - Tráfico de voz saliente a fijo | AA22: minutos
H23: Pucallpa | I23: 442535 | J23: 0.0159559154 | K23: 0.0159559154 | Q23: 3600 | S23: spare | T23: spare | V23: 4G - Tráfico de voz entrante desde fijo | W23: minutos | X23: 1 | Z23: 4G - Tráfico de voz saliente a móvil | AA23: minutos
H24: Puerto Maldonado | I24: 109912 | J24: 0.003962955638 | K24: 0.003962955638 | O24: Tecnologías LMA | Q24: seconds.per.hour | S24: spare | T24: spare | V24: 4G - Tráfico de voz entrante desde móvil | W24: minutos | X24: 1 | Z24: 4G - Tráfico de voz saliente a internacional | AA24: minutos
H25: Puno | I25: 1288335 | J25: 0.04645183831 | K25: 0.04645183831 | O25: Líneas alquiladas | S25: Mobile.market.services.list | T25: Mobile.market.services.list.units | V25: 4G - Tráfico de voz entrante desde internacional | W25: minutos | X25: 1 | Z25: 4G - Tráfico de voz entrante desde fijo | AA25: minutos
H26: Tacna | I26: 289503 | J26: 0.01043823737 | K26: 0.01043823737 | O26: Microondas | Q26: Yes | V26: 2G - SMSs on-net | W26: SMS | X26: 0 | Z26: 4G - Tráfico de voz entrante desde móvil | AA26: minutos
H27: Tarapoto | I27: 740074 | J27: 0.02668389649 | K27: 0.02668389649 | O27: Fibra | Q27: No | V27: 2G - SMS salientes | W27: SMS | X27: 0 | Z27: 4G - Tráfico de voz entrante desde internacional | AA27: minutos
H28: Tingo Maria | I28: 766373 | J28: 0.02763212571 | K28: 0.02763212571 | O28: LMA.technologies | Q28: choice | V28: 2G - SMS entrantes | W28: SMS | X28: 0 | Z28: VoLTE.services.list | AA28: VoLTE.services.list.units
H29: Trujillo | I29: 1622159 | J29: 0.05848810098 | K29: 0.05848810098 | V29: 3G - SMSs on-net | W29: SMS | X29: 0
H30: Tumbes | I30: 203316 | J30: 0.00733070355 | K30: 0.00733070355 | Q30: 1000000 | V30: 3G - SMS salientes | W30: SMS | X30: 0 | Z30: =V26:W34 -> 2G - SMSs on-net | AA30: SMS
H31: spare | I31: 0 | J31: 0 | K31: 0 | O31: Tecnologías de transmisión en el backhaul y core | Q31: million | V31: 3G - SMS entrantes | W31: SMS | X31: 0 | Z31: 2G - SMS salientes | AA31: SMS
H32: spare | I32: 0 | J32: 0 | K32: 0 | O32: Leased lines | Q32: 12 | V32: 4G - SMSs on-net | W32: SMS | X32: 0 | Z32: 2G - SMS entrantes | AA32: SMS
H33: spare | I33: 0 | J33: 0 | K33: 0 | O33: Dark fibre | Q33: months | V33: 4G - SMS salientes | W33: SMS | X33: 0 | Z33: 3G - SMSs on-net | AA33: SMS
H34: spare | I34: 0 | J34: 0 | K34: 0 | O34: Backhaul.and.core.transmission.technologies | V34: 4G - SMS entrantes | W34: SMS | X34: 0 | Z34: 3G - SMS salientes | AA34: SMS
H35: spare | I35: 0 | J35: 0 | K35: 0 | V35: GPRS data Mbytes | W35: Mbytes | X35: 0 | Z35: 3G - SMS entrantes | AA35: SMS
H36: spare | I36: 0 | J36: 0 | K36: 0 | V36: R99 data Mbytes | W36: Mbytes | X36: 0 | Z36: 4G - SMSs on-net | AA36: SMS
H37: spare | I37: 0 | J37: 0 | K37: 0 | V37: HSDPA data Mbytes | W37: Mbytes | X37: 0 | Z37: 4G - SMS salientes | AA37: SMS
H38: spare | I38: 0 | J38: 0 | K38: 0 | V38: HSUPA data Mbytes | W38: Mbytes | X38: 0 | Z38: 4G - SMS entrantes | AA38: SMS
H39: spare | I39: 0 | J39: 0 | K39: 0 | V39: LTE data Mbytes | W39: Mbytes | X39: 0 | Z39: SMS.services.list | AA39: SMS.services.list.units
H40: spare | I40: 0 | J40: 0 | K40: 0 | V40: spare | W40: spare | X40: 0
H41: spare | I41: 0 | J41: 0 | K41: 0 | V41: Suscriptores de solo voz (media del año) | W41: suscriptores | X41: 0 | Z41: =V35:W40 -> GPRS data Mbytes | AA41: Mbytes
H42: spare | I42: 0 | J42: 0 | K42: 0 | V42: Suscriptores de voz y datos (media del año) | W42: suscriptores | X42: 0 | Z42: R99 data Mbytes | AA42: Mbytes
H43: spare | I43: 0 | J43: 0 | K43: 0 | V43: spare | W43: spare | X43: 0 | Z43: HSDPA data Mbytes | AA43: Mbytes
H44: spare | I44: 0 | J44: 0 | K44: 0 | V44: spare | W44: spare | X44: 0 | Z44: HSUPA data Mbytes | AA44: Mbytes
H45: spare | I45: 0 | J45: 0 | K45: 0 | V45: spare | W45: spare | X45: 0 | Z45: LTE data Mbytes | AA45: Mbytes
H46: Core.nodes | J46: Distribution.of.traffic.voice.core | K46: Distribution.of.traffic.data.core | V46: spare | W46: spare | X46: 0 | Z46: spare | AA46: spare
V47: spare | W47: spare | X47: 0 | Z47: Data.services.list | AA47: Data.services.list.units
V48: spare | W48: spare | X48: 0
V49: spare | W49: spare | X49: 0
V50: spare | W50: spare | X50: 0
V51: spare | W51: spare | X51: 0
V52: spare | W52: spare | X52: 0
V53: spare | W53: spare | X53: 0
V54: spare | W54: spare | X54: 0
V55: Network.services.list | W55: Network.services.list.units | X55: Interconnection.voice.selector

Sheet M_M -->
D1: Módulo de mercado →

Sheet Trafico
D1: Información sobre tráfico móvil
B3: Tráfico móvil entre enero de 2017 y diciembre de 2017
C5: Tipo de tráfico | E5: Fuente | F5: Unidad
G8: Mercado
B9: Voz
C10: Tráfico Total | F10: Minutos | G10: 1.100632857e+11
G11: 0
A12: Tráfico de voz on-net | C12: On-net | F12: Minutos | G12: 3.755106314e+10
G13: 0
C14: Saliente off-net | F14: Minutos | G14: 3.632826545e+10
G15: 0
A16: Tráfico de voz saliente a móvil | C16: hacia móviles | F16: Minutos | G16: 3.362992235e+10
C17: TdP | F17: Minutos | G17: 1.085777943e+10
C18: Claro | F18: Minutos | G18: 1.068418133e+10
C19: Entel | F19: Minutos | G19: 6941809947
C20: Viettel | F20: Minutos | G20: 5146151639
A22: Tráfico de voz saliente a fijo | C22: hacia fijos | F22: Minutos | G22: 2478158012
A23: Tráfico de voz saliente a internacional | C23: Internacional | F23: Minutos | G23: 220185095.1
G24: 0
C25: Entrante off-net | F25: Minutos | G25: 3.618395708e+10
G26: 0
A27: Tráfico de voz entrante desde móvil | C27: desde móviles | F27: Minutos | G27: 3.362992235e+10
C28: TdP | F28: Minutos | G28: 1.110893575e+10
C29: Claro | F29: Minutos | G29: 1.03260052e+10
C30: Entel | F30: Minutos | G30: 7511911479
C31: Viettel | F31: Minutos | G31: 4683069922
G32: 0
A33: Tráfico de voz entrante desde fijo | C33: desde fijos | F33: Minutos | G33: 1214105863
A34: Tráfico de voz entrante desde internacional | C34: Internacional | F34: Minutos | G34: 421644926
G35: 0
B36: SMS | G36: 0
A37: SMSs on-net | C37: On-net | F37: SMS | G37: 5519761608
A38: SMS salientes | C38: Saliente off-net | F38: SMS | G38: 5548454811
A39: SMS entrantes | C39: Entrante off-net | F39: SMS | G39: 5900773350
G40: 0
B41: MMS | G41: 0
C42: On-net | F42: MMS | G42: 1997596.741
C43: Saliente off-net | F43: MMS | G43: 0
C44: Entrante off-net | F44: MMS | G44: 0
G45: 0
A46: Tráfico de datos | B46: Datos | C46: Demanda Anual | F46: MB | G46: 1.080872505e+12
A47: Market.services | G47: Market.demand.total

Sheet Demand
E1: Demanda de mercado de servicio móviles en Perú
B3: Volúmenes de tráfico para los servicios de mercado del operador seleccionado
C5: Servicios de mercado | E5: Unidades | F5: Fuente | G5: Nota | I5: Mercado total | K5: Cuota de mercado del operador modelado | N5: Volúmenes del operador modelado
C6: =Mobile.market.services.list -> Tráfico de voz on-net | E6: =Mobile.market.services.list.units -> minutos | I6: =INDEX(Market.demand.total,MATCH(C6,Market.services,0),) -> 3.755106314e+10 | K6: =Market.Share.Used -> 0.3333333333 | N6: =I6:I25*K6:K25 -> 1.251702105e+10
C7: Tráfico de voz saliente a fijo | E7: minutos | I7: 2478158012 | K7: 0.3333333333 | N7: 826052670.7 | O7: Outgoing.voice.traffic.to.fixed.national
C8: Tráfico de voz saliente a móvil | E8: minutos | I8: 3.362992235e+10 | K8: 0.3333333333 | N8: 1.120997412e+10 | O8: Outgoing.voice.traffic.to.mobile.national
C9: Tráfico de voz saliente a internacional | E9: minutos | I9: 220185095.1 | K9: 0.3333333333 | N9: 73395031.69 | O9: Outgoing.voice.traffic.to.international
C10: Tráfico de voz entrante desde fijo | E10: minutos | I10: 1214105863 | K10: 0.3333333333 | N10: 404701954.3 | O10: Incoming.voice.traffic.from.fixed.national
C11: Tráfico de voz entrante desde móvil | E11: minutos | I11: 3.362992235e+10 | K11: 0.3333333333 | N11: 1.120997412e+10 | O11: Incoming.voice.traffic.from.mobile.national
C12: Tráfico de voz entrante desde internacional | E12: minutos | I12: 421644926 | K12: 0.3333333333 | N12: 140548308.7 | O12: Incoming.voice.traffic.from.international
C13: spare | E13: spare | I13: 0 | K13: 0 | N13: 0
C14: spare | E14: spare | I14: 0 | K14: 0 | N14: 0
C15: SMSs on-net | E15: SMS | I15: =INDEX(Market.demand.total,MATCH(C15,Market.services,0),) -> 5519761608 | K15: 0.3333333333 | N15: 1839920536
C16: SMS salientes | E16: SMS | I16: =INDEX(Market.demand.total,MATCH(C16,Market.services,0),) -> 5548454811 | K16: 0.3333333333 | N16: 1849484937
C17: SMS entrantes | E17: SMS | I17: =INDEX(Market.demand.total,MATCH(C17,Market.services,0),) -> 5900773350 | K17: 0.3333333333 | N17: 1966924450
C18: spare | E18: spare | I18: 0 | K18: 0 | N18: 0
C19: spare | E19: spare | I19: 0 | K19: 0 | N19: 0
C20: Tráfico de datos | E20: Mbytes | I20: =INDEX(Market.demand.total,MATCH(C20,Market.services,0),) -> 1.080872505e+12 | K20: 0.3333333333 | N20: 3.60290835e+11
C21: spare | E21: spare | I21: 0 | K21: 0 | N21: 0
C22: Suscriptores de solo voz (media del año) | E22: #subs | F22: =1-F23 -> 0.5062837901 | I22: =F22*$F$24 -> 17448118 | K22: 0.3333333333 | N22: 5816039.333 | O22: Subscribers.voice.only
C23: Suscriptores de voz y datos (media del año) | E23: #subs | F23: 0.4937162099 | I23: =F23*$F$24 -> 17015000 | K23: 0.3333333333 | N23: 5671666.667 | O23: Subscribers.voice.and.data
C24: spare | E24: spare | F24: 34463118 | G24: Número de suscriptores | I24: 0 | K24: 0 | N24: 0
C25: spare | E25: spare | I25: 0 | K25: 0 | N25: 0
I26: Mobile.market.volumes.total | N26: Mobile.market.volumes.operator.selected
B29: Transición entre servicios de mercado y servicios de red
I30: Reparto del tráfico por tecnología de red
C31: Porcentaje del tráfico de voz total en la red 2G | E31: % | I31: =CTRL.voice.migration -> 0.25
C32: Porcentaje del tráfico de voz total en la red 3G | E32: % | I32: 0.75
C33: Porcentaje del tráfico de voz total en la red 4G | E33: % | I33: 0
C35: Porcentaje del tráfico de SMS total en la red 2G | E35: % | I35: =I31:I33 -> 0.25
C36: Porcentaje del tráfico de SMS total en la red 3G | E36: % | I36: 0.75
C37: Porcentaje del tráfico de SMS total en la red 4G | E37: % | I37: 0
C39: Porcentaje del tráfico de datos total en la red 2G | E39: % | I39: =CTRL.data.migration -> 0.2
C40: Porcentaje del tráfico de datos total en la red 3G | E40: % | I40: 0.5
C41: Porcentaje del tráfico de datos total en la red 4G | E41: % | I41: 0.3
C45: Porcentaje del tráfico de datos que es GPRS | E45: % | I45: =I39 -> 0.2
C46: Porcentaje del tráfico de datos que es R99 | E46: % | G46: 0.02 | H46: Porcentaje del tráfico de datos en la red 3G que es R99 | I46: =I40*G46 -> 0.01
C47: Porcentaje del tráfico de datos que es HSDPA | E47: % | G47: 0.8 | H47: Porcentaje del tráfico HSPA en el downlink (i.e. HSDPA) | I47: =(1-SUM(I45:I46,I49))*G47 -> 0.392
C48: Porcentaje del tráfico de datos que es HSUPA | E48: % | G48: =1-G47 -> 0.2 | H48: Porcentaje del tráfico HSPA en el uplink (i.e. HSUPA) | I48: =(1-SUM(I45:I46,I49))*G48 -> 0.098
C49: Porcentaje del tráfico de datos que es LTE | E49: % | I49: =I41 -> 0.3
B53: Volumenes de tráfico de servicios de red para el operador seleccionado
I54: Volúmenes del operador modelado | N54: Volúmenes de tráfico de interconexión
C55: =Network.services.list -> 2G - Tráfico de voz on-net | E55: =Network.services.list.units -> minutos | I55: =N$6:N$12*I$31 -> 3129255262 | N55: =Services.demand*Interconnection.voice.selector -> 0
C56: 2G - Tráfico de voz saliente a fijo | E56: minutos | I56: 206513167.7 | N56: 206513167.7
C57: 2G - Tráfico de voz saliente a móvil | E57: minutos | I57: 2802493529 | N57: 2802493529
C58: 2G - Tráfico de voz saliente a internacional | E58: minutos | I58: 18348757.92 | N58: 18348757.92
C59: 2G - Tráfico de voz entrante desde fijo | E59: minutos | I59: 101175488.6 | N59: 101175488.6
C60: 2G - Tráfico de voz entrante desde móvil | E60: minutos | I60: 2802493529 | N60: 2802493529
C61: 2G - Tráfico de voz entrante desde internacional | E61: minutos | I61: 35137077.16 | N61: 35137077.16
C62: 3G - Tráfico de voz on-net | E62: minutos | I62: =N$6:N$12*I$32 -> 9387765785 | N62: 0
C63: 3G - Tráfico de voz saliente a fijo | E63: minutos | I63: 619539503 | N63: 619539503
C64: 3G - Tráfico de voz saliente a móvil | E64: minutos | I64: 8407480587 | N64: 8407480587
C65: 3G - Tráfico de voz saliente a internacional | E65: minutos | I65: 55046273.77 | N65: 55046273.77
C66: 3G - Tráfico de voz entrante desde fijo | E66: minutos | I66: 303526465.7 | N66: 303526465.7
C67: 3G - Tráfico de voz entrante desde móvil | E67: minutos | I67: 8407480587 | N67: 8407480587
C68: 3G - Tráfico de voz entrante desde internacional | E68: minutos | I68: 105411231.5 | N68: 105411231.5
C69: 4G - Tráfico de voz on-net | E69: minutos | I69: =N$6:N$12*I$33 -> 0 | N69: 0
C70: 4G - Tráfico de voz saliente a fijo | E70: minutos | I70: 0 | N70: 0
C71: 4G - Tráfico de voz saliente a móvil | E71: minutos | I71: 0 | N71: 0
C72: 4G - Tráfico de voz saliente a internacional | E72: minutos | I72: 0 | N72: 0
C73: 4G - Tráfico de voz entrante desde fijo | E73: minutos | I73: 0 | N73: 0
C74: 4G - Tráfico de voz entrante desde móvil | E74: minutos | I74: 0 | N74: 0
C75: 4G - Tráfico de voz entrante desde internacional | E75: minutos | I75: 0 | N75: 0
C76: 2G - SMSs on-net | E76: SMS | I76: =N$15:N$17*I$35 -> 459980134 | N76: 0
C77: 2G - SMS salientes | E77: SMS | I77: 462371234.2 | N77: 0
C78: 2G - SMS entrantes | E78: SMS | I78: 491731112.5 | N78: 0
C79: 3G - SMSs on-net | E79: SMS | I79: =N$15:N$17*I$36 -> 1379940402 | N79: 0
C80: 3G - SMS salientes | E80: SMS | I80: 1387113703 | N80: 0
C81: 3G - SMS entrantes | E81: SMS | I81: 1475193338 | N81: 0
C82: 4G - SMSs on-net | E82: SMS | I82: =N$15:N$17*I$37 -> 0 | N82: 0
C83: 4G - SMS salientes | E83: SMS | I83: 0 | N83: 0
C84: 4G - SMS entrantes | E84: SMS | I84: 0 | N84: 0
C85: GPRS data Mbytes | E85: Mbytes | I85: =N$20*I$45:I$49 -> 7.2058167e+10 | N85: 0
C86: R99 data Mbytes | E86: Mbytes | I86: 3602908350 | N86: 0
C87: HSDPA data Mbytes | E87: Mbytes | I87: 1.412340073e+11 | N87: 0
C88: HSUPA data Mbytes | E88: Mbytes | I88: 3.530850183e+10 | N88: 0
C89: LTE data Mbytes | E89: Mbytes | I89: 1.080872505e+11 | N89: 0
C90: spare | E90: spare | I90: 0 | N90: 0
C91: Suscriptores de solo voz (media del año) | E91: suscriptores | I91: =N$22:N$23 -> 5816039.333 | N91: 0
C92: Suscriptores de voz y datos (media del año) | E92: suscriptores | I92: 5671666.667 | N92: 0
C93: spare | E93: spare | I93: 0 | N93: 0
C94: spare | E94: spare | I94: 0 | N94: 0
C95: spare | E95: spare | I95: 0 | N95: 0
C96: spare | E96: spare | I96: 0 | N96: 0
C97: spare | E97: spare | I97: 0 | N97: 0
C98: spare | E98: spare | I98: 0 | N98: 0
C99: spare | E99: spare | I99: 0 | N99: 0
C100: spare | E100: spare | I100: 0 | N100: 0
C101: spare | E101: spare | I101: 0 | N101: 0
C102: spare | E102: spare | I102: 0 | N102: 0
C103: spare | E103: spare | I103: 0 | N103: 0
C104: spare | E104: spare | I104: 0 | N104: 0
I105: Services.demand
N106: =SUM(N55:N104) -> 2.38646462e+10
N107: Interconnection.traffic.volume
B108: Duración media de las llamadas
I109: Duración de las llamada
B110: 1 | C110: =INDEX(Mobile.market.services.list,B110,) -> Tráfico de voz on-net | E110: Minutos | I110: =CTRL.Call.durations -> 1.7
B111: 2 | C111: Tráfico de voz saliente a fijo | E111: Minutos | I111: 1.6
B112: 3 | C112: Tráfico de voz saliente a móvil | E112: Minutos | I112: 1.3
B113: 4 | C113: Tráfico de voz saliente a internacional | E113: Minutos | I113: 2.1
B114: 5 | C114: Tráfico de voz entrante desde fijo | E114: Minutos | I114: 1.6
B115: 6 | C115: Tráfico de voz entrante desde móvil | E115: Minutos | I115: 1.3
B116: 7 | C116: Tráfico de voz entrante desde internacional | E116: Minutos | I116: 2.1
I117: Call.durations

Sheet M_C_R -->
D1: Módulo de Costeo de red →

Sheet NetworkDemand
D1: Cálculos de demanda y suscriptores
F2: Checks
F3: =IF(SUM(F4:F790)<>0,"ERROR","Correcto") -> Correcto
A5: 1. Volúmenes de tráfico totales en la red
C7: Para el tráfico seleccionado
D8: Servicios de red | E8: Unidades
D9: =Network.services.list -> 2G - Tráfico de voz on-net | E9: =Network.services.list.units -> minutos | G9: =Services.demand -> 3129255262
D10: 2G - Tráfico de voz saliente a fijo | E10: minutos | G10: 206513167.7
D11: 2G - Tráfico de voz saliente a móvil | E11: minutos | G11: 2802493529
D12: 2G - Tráfico de voz saliente a internacional | E12: minutos | G12: 18348757.92
D13: 2G - Tráfico de voz entrante desde fijo | E13: minutos | G13: 101175488.6
D14: 2G - Tráfico de voz entrante desde móvil | E14: minutos | G14: 2802493529
D15: 2G - Tráfico de voz entrante desde internacional | E15: minutos | G15: 35137077.16
D16: 3G - Tráfico de voz on-net | E16: minutos | G16: 9387765785
D17: 3G - Tráfico de voz saliente a fijo | E17: minutos | G17: 619539503
D18: 3G - Tráfico de voz saliente a móvil | E18: minutos | G18: 8407480587
D19: 3G - Tráfico de voz saliente a internacional | E19: minutos | G19: 55046273.77
D20: 3G - Tráfico de voz entrante desde fijo | E20: minutos | G20: 303526465.7
D21: 3G - Tráfico de voz entrante desde móvil | E21: minutos | G21: 8407480587
D22: 3G - Tráfico de voz entrante desde internacional | E22: minutos | G22: 105411231.5
D23: 4G - Tráfico de voz on-net | E23: minutos | G23: 0
D24: 4G - Tráfico de voz saliente a fijo | E24: minutos | G24: 0
D25: 4G - Tráfico de voz saliente a móvil | E25: minutos | G25: 0
D26: 4G - Tráfico de voz saliente a internacional | E26: minutos | G26: 0
D27: 4G - Tráfico de voz entrante desde fijo | E27: minutos | G27: 0
D28: 4G - Tráfico de voz entrante desde móvil | E28: minutos | G28: 0
D29: 4G - Tráfico de voz entrante desde internacional | E29: minutos | G29: 0
D30: 2G - SMSs on-net | E30: SMS | G30: 459980134
D31: 2G - SMS salientes | E31: SMS | G31: 462371234.2
D32: 2G - SMS entrantes | E32: SMS | G32: 491731112.5
D33: 3G - SMSs on-net | E33: SMS | G33: 1379940402
D34: 3G - SMS salientes | E34: SMS | G34: 1387113703
D35: 3G - SMS entrantes | E35: SMS | G35: 1475193338
D36: 4G - SMSs on-net | E36: SMS | G36: 0
D37: 4G - SMS salientes | E37: SMS | G37: 0
D38: 4G - SMS entrantes | E38: SMS | G38: 0
D39: GPRS data Mbytes | E39: Mbytes | G39: 7.2058167e+10
D40: R99 data Mbytes | E40: Mbytes | G40: 3602908350
D41: HSDPA data Mbytes | E41: Mbytes | G41: 1.412340073e+11
D42: HSUPA data Mbytes | E42: Mbytes | G42: 3.530850183e+10
D43: LTE data Mbytes | E43: Mbytes | G43: 1.080872505e+11
D44: spare | E44: spare | G44: 0
D45: Suscriptores de solo voz (media del año) | E45: suscriptores | G45: 5816039.333
D46: Suscriptores de voz y datos (media del año) | E46: suscriptores | G46: 5671666.667
D47: spare | E47: spare | G47: 0
D48: spare | E48: spare | G48: 0
D49: spare | E49: spare | G49: 0
D50: spare | E50: spare | G50: 0
D51: spare | E51: spare | G51: 0
D52: spare | E52: spare | G52: 0
D53: spare | E53: spare | G53: 0
D54: spare | E54: spare | G54: 0
D55: spare | E55: spare | G55: 0
D56: spare | E56: spare | G56: 0
D57: spare | E57: spare | G57: 0
D58: spare | E58: spare | G58: 0
A61: 2. Cálculos de carga
B63: Perfil de carga de la red
G64: Número de días cargados por año | H64: Proporción del tráfico semanal durante esos días cargados | I64: Proporción del tráfico diario durante la hora cargada de voz | J64: Proporción del tráfico diario durante la hora cargada de datos
D65: Voz | G65: =CTRL.BH.days.per.year -> 365 | H65: =CTRL._.weekly.traffic.BH.days -> 1 | I65: =CTRL._.voice.in.voice.BH -> 0.08 | J65: =CTRL._.voice.in.data.BH -> 0.05
D66: SMS | G66: =G65 -> 365 | H66: =H65 -> 1 | I66: =I67 -> 0.06 | J66: =J67 -> 0.075
D67: Datos | G67: =G66 -> 365 | H67: =H66 -> 1 | I67: =CTRL._.data.in.voice.BH -> 0.06 | J67: =CTRL._.data.in.data.BH -> 0.075
B70: Tráfico de voz en la hora cargada
C72: Erlangs de voz en la hora cargada de voz
D73: =Voice.services.list -> 2G - Tráfico de voz on-net | E73: =Voice.services.list.units -> minutos | G73: =$G$9:$G$22/$G$65*$H$65*$I$65/minutes.per.hour -> 11431.06945
D74: 2G - Tráfico de voz saliente a fijo | E74: minutos | G74: 754.3860006
D75: 2G - Tráfico de voz saliente a móvil | E75: minutos | G75: 10237.41928
D76: 2G - Tráfico de voz saliente a internacional | E76: minutos | G76: 67.02742621
D77: 2G - Tráfico de voz entrante desde fijo | E77: minutos | G77: 369.5908259
D78: 2G - Tráfico de voz entrante desde móvil | E78: minutos | G78: 10237.41928
D79: 2G - Tráfico de voz entrante desde internacional | E79: minutos | G79: 128.3546198
D80: 3G - Tráfico de voz on-net | E80: minutos | G80: 34293.20835
D81: 3G - Tráfico de voz saliente a fijo | E81: minutos | G81: 2263.158002
D82: 3G - Tráfico de voz saliente a móvil | E82: minutos | G82: 30712.25785
D83: 3G - Tráfico de voz saliente a internacional | E83: minutos | G83: 201.0822786
D84: 3G - Tráfico de voz entrante desde fijo | E84: minutos | G84: 1108.772478
D85: 3G - Tráfico de voz entrante desde móvil | E85: minutos | G85: 30712.25785
D86: 3G - Tráfico de voz entrante desde internacional | E86: minutos | G86: 385.0638593
D88: =VoLTE.services.list -> 4G - Tráfico de voz on-net | E88: =VoLTE.services.list.units -> minutos | G88: =$G$23:$G$29/$G$65*$H$65*$I$65/minutes.per.hour -> 0
D89: 4G - Tráfico de voz saliente a fijo | E89: minutos | G89: 0
D90: 4G - Tráfico de voz saliente a móvil | E90: minutos | G90: 0
D91: 4G - Tráfico de voz saliente a internacional | E91: minutos | G91: 0
D92: 4G - Tráfico de voz entrante desde fijo | E92: minutos | G92: 0
D93: 4G - Tráfico de voz entrante desde móvil | E93: minutos | G93: 0
D94: 4G - Tráfico de voz entrante desde internacional | E94: minutos | G94: 0
C96: Erlangs de voz en la hora cargada de datos
D97: =Voice.services.list -> 2G - Tráfico de voz on-net | E97: =Voice.services.list.units -> minutos | G97: =$G$9:$G$22/$G$65*$H$65*$J$65/minutes.per.hour -> 7144.418405
D98: 2G - Tráfico de voz saliente a fijo | E98: minutos | G98: 471.4912504
D99: 2G - Tráfico de voz saliente a móvil | E99: minutos | G99: 6398.387052
D100: 2G - Tráfico de voz saliente a internacional | E100: minutos | G100: 41.89214138
D101: 2G - Tráfico de voz entrante desde fijo | E101: minutos | G101: 230.9942662
D102: 2G - Tráfico de voz entrante desde móvil | E102: minutos | G102: 6398.387052
D103: 2G - Tráfico de voz entrante desde internacional | E103: minutos | G103: 80.22163736
D104: 3G - Tráfico de voz on-net | E104: minutos | G104: 21433.25522
D105: 3G - Tráfico de voz saliente a fijo | E105: minutos | G105: 1414.473751
D106: 3G - Tráfico de voz saliente a móvil | E106: minutos | G106: 19195.16116
D107: 3G - Tráfico de voz saliente a internacional | E107: minutos | G107: 125.6764241
D108: 3G - Tráfico de voz entrante desde fijo | E108: minutos | G108: 692.9827985
D109: 3G - Tráfico de voz entrante desde móvil | E109: minutos | G109: 19195.16116
D110: 3G - Tráfico de voz entrante desde internacional | E110: minutos | G110: 240.6649121
D112: =VoLTE.services.list -> 4G - Tráfico de voz on-net | E112: =VoLTE.services.list.units -> minutos | G112: =$G$23:$G$29/$G$65*$H$65*$J$65/minutes.per.hour -> 0
D113: 4G - Tráfico de voz saliente a fijo | E113: minutos | G113: 0
D114: 4G - Tráfico de voz saliente a móvil | E114: minutos | G114: 0
D115: 4G - Tráfico de voz saliente a internacional | E115: minutos | G115: 0
D116: 4G - Tráfico de voz entrante desde fijo | E116: minutos | G116: 0
D117: 4G - Tráfico de voz entrante desde móvil | E117: minutos | G117: 0
D118: 4G - Tráfico de voz entrante desde internacional | E118: minutos | G118: 0
C120: VoLTE tasa de canal radio - AMR-WB codec estándar (kbit/s) | G120: =LTE.voice.rate -> 12.65
C122: Mbit/s de voz en la hora cargada de voz
D123: =VoLTE.services.list -> 4G - Tráfico de voz on-net | E123: =VoLTE.services.list.units -> minutos | G123: =$G$23:$G$29*(seconds.per.minute*$G$120/Kbits.per.Mbits)/$G$65*$H$65*$I$65/seconds.per.hour -> 0
D124: 4G - Tráfico de voz saliente a fijo | E124: minutos | G124: 0
D125: 4G - Tráfico de voz saliente a móvil | E125: minutos | G125: 0
D126: 4G - Tráfico de voz saliente a internacional | E126: minutos | G126: 0
D127: 4G - Tráfico de voz entrante desde fijo | E127: minutos | G127: 0
D128: 4G - Tráfico de voz entrante desde móvil | E128: minutos | G128: 0
D129: 4G - Tráfico de voz entrante desde internacional | E129: minutos | G129: 0
C131: Mbit/s de voz en la hora cargada de datos
D132: =VoLTE.services.list -> 4G - Tráfico de voz on-net | E132: =VoLTE.services.list.units -> minutos | G132: =$G$23:$G$29*(seconds.per.minute*$G$120/Kbits.per.Mbits)/$G$65*$H$65*$J$65/seconds.per.hour -> 0
D133: 4G - Tráfico de voz saliente a fijo | E133: minutos | G133: 0
D134: 4G - Tráfico de voz saliente a móvil | E134: minutos | G134: 0
D135: 4G - Tráfico de voz saliente a internacional | E135: minutos | G135: 0
D136: 4G - Tráfico de voz entrante desde fijo | E136: minutos | G136: 0
D137: 4G - Tráfico de voz entrante desde móvil | E137: minutos | G137: 0
D138: 4G - Tráfico de voz entrante desde internacional | E138: minutos | G138: 0
C142: Cálculos relativos a llamadas
G143: Intentos de llamada por llamada exitosa | H143: Tiempo de timbrado por intento de llamada | I143: Radio Erlangs por Erlang | J143: Tiempo de timbrado por minuto | K143: =(SUMPRODUCT(Ring.Time.Per.Minute,G73:G79)+SUMPRODUCT(Ring.Time.Per.Minute,G80:G86))/SUM(G73:G86) -> 0.1062208603
C144: 1 | D144: =INDEX(Mobile.market.services.list,C144,) -> Tráfico de voz on-net | G144: 1.3 | H144: =7/60 -> 0.1166666667 | I144: 2 | J144: =IF(G153=0,0,1/G153*G144*H144) -> 0.08921568627
C145: 2 | D145: Tráfico de voz saliente a fijo | G145: 1.3 | H145: 0.1166666667 | I145: 1 | J145: 0.09479166667
C146: 3 | D146: Tráfico de voz saliente a móvil | G146: 1.3 | H146: 0.1166666667 | I146: 1 | J146: 0.1166666667
C147: 4 | D147: Tráfico de voz saliente a internacional | G147: 1.3 | H147: 0.1166666667 | I147: 1 | J147: 0.07222222222
C148: 5 | D148: Tráfico de voz entrante desde fijo | G148: 1.3 | H148: 0.1166666667 | I148: 1 | J148: 0.09479166667
C149: 6 | D149: Tráfico de voz entrante desde móvil | G149: 1.3 | H149: 0.1166666667 | I149: 1 | J149: 0.1166666667
C150: 7 | D150: Tráfico de voz entrante desde internacional | G150: 1.3 | H150: 0.1166666667 | I150: 1 | J150: 0.07222222222
I151: Radio.Erlangs.per.Erlang | J151: Ring.Time.Per.Minute
C152: Duración media de las llamadas (minutos)
D153: =D144:D150 -> Tráfico de voz on-net | G153: =Call.durations -> 1.7
D154: Tráfico de voz saliente a fijo | G154: 1.6
D155: Tráfico de voz saliente a móvil | G155: 1.3
D156: Tráfico de voz saliente a internacional | G156: 2.1
D157: Tráfico de voz entrante desde fijo | G157: 1.6
D158: Tráfico de voz entrante desde móvil | G158: 1.3
D159: Tráfico de voz entrante desde internacional | G159: 2.1
C161: Erlangs radio en la hora cargada de voz, incluyendo timbrado
D162: =Voice.services.list -> 2G - Tráfico de voz on-net | G162: =IF(G73:G79=0,0,(G73:G79*(1+1/$G$153:$G$159*$G$144:$G$150*$H$144:$H$150))*Radio.Erlangs.per.Erlang) -> 24901.80031
D163: 2G - Tráfico de voz saliente a fijo | G163: 825.895507
D164: 2G - Tráfico de voz saliente a móvil | G164: 11431.78487
D165: 2G - Tráfico de voz saliente a internacional | G165: 71.86829588
D166: 2G - Tráfico de voz entrante desde fijo | G166: 404.6249562
D167: 2G - Tráfico de voz entrante desde móvil | G167: 11431.78487
D168: 2G - Tráfico de voz entrante desde internacional | G168: 137.6246757
D169: 3G - Tráfico de voz on-net | G169: =IF(G80:G86=0,0,(G80:G86*(1+1/$G$153:$G$159*$G$144:$G$150*$H$144:$H$150))*Radio.Erlangs.per.Erlang) -> 74705.40092
D170: 3G - Tráfico de voz saliente a fijo | G170: 2477.686521
D171: 3G - Tráfico de voz saliente a móvil | G171: 34295.3546
D172: 3G - Tráfico de voz saliente a internacional | G172: 215.6048876
D173: 3G - Tráfico de voz entrante desde fijo | G173: 1213.874869
D174: 3G - Tráfico de voz entrante desde móvil | G174: 34295.3546
D175: 3G - Tráfico de voz entrante desde internacional | G175: 412.874027
C177: Erlangs radio en la hora cargada de datos, incluyendo timbrado
D178: =Voice.services.list -> 2G - Tráfico de voz on-net | G178: =IF(G97:G103=0,0,(G97:G103*(1+1/$G$153:$G$159*$G$144:$G$150*$H$144:$H$150))*Radio.Erlangs.per.Erlang) -> 15563.62519
D179: 2G - Tráfico de voz saliente a fijo | G179: 516.1846918
D180: 2G - Tráfico de voz saliente a móvil | G180: 7144.865542
D181: 2G - Tráfico de voz saliente a internacional | G181: 44.91768492
D182: 2G - Tráfico de voz entrante desde fijo | G182: 252.8905976
D183: 2G - Tráfico de voz entrante desde móvil | G183: 7144.865542
D184: 2G - Tráfico de voz entrante desde internacional | G184: 86.01542228
D185: 3G - Tráfico de voz on-net | G185: =IF(G104:G110=0,0,(G104:G110*(1+1/$G$153:$G$159*$G$144:$G$150*$H$144:$H$150))*Radio.Erlangs.per.Erlang) -> 46690.87558
D186: 3G - Tráfico de voz saliente a fijo | G186: 1548.554076
D187: 3G - Tráfico de voz saliente a móvil | G187: 21434.59663
D188: 3G - Tráfico de voz saliente a internacional | G188: 134.7530548
D189: 3G - Tráfico de voz entrante desde fijo | G189: 758.6717929
D190: 3G - Tráfico de voz entrante desde móvil | G190: 21434.59663
D191: 3G - Tráfico de voz entrante desde internacional | G191: 258.0462668
C193: Erlangs radio en la hora cargada de voz (no se incluye el timbrado al no ocupar la red por ser conmutación de paquetes)
D194: =VoLTE.services.list -> 4G - Tráfico de voz on-net | E194: =VoLTE.services.list.units -> minutos | G194: =G88:G94*Radio.Erlangs.per.Erlang -> 0
D195: 4G - Tráfico de voz saliente a fijo | E195: minutos | G195: 0
D196: 4G - Tráfico de voz saliente a móvil | E196: minutos | G196: 0
D197: 4G - Tráfico de voz saliente a internacional | E197: minutos | G197: 0
D198: 4G - Tráfico de voz entrante desde fijo | E198: minutos | G198: 0
D199: 4G - Tráfico de voz entrante desde móvil | E199: minutos | G199: 0
D200: 4G - Tráfico de voz entrante desde internacional | E200: minutos | G200: 0
C202: Erlangs radio en la hora cargada de datos (no se incluye el timbrado al no ocupar la red por ser conmutación de paquetes)
D203: =VoLTE.services.list -> 4G - Tráfico de voz on-net | E203: =VoLTE.services.list.units -> minutos | G203: =G112:G118*Radio.Erlangs.per.Erlang -> 0
D204: 4G - Tráfico de voz saliente a fijo | E204: minutos | G204: 0
D205: 4G - Tráfico de voz saliente a móvil | E205: minutos | G205: 0
D206: 4G - Tráfico de voz saliente a internacional | E206: minutos | G206: 0
D207: 4G - Tráfico de voz entrante desde fijo | E207: minutos | G207: 0
D208: 4G - Tráfico de voz entrante desde móvil | E208: minutos | G208: 0
D209: 4G - Tráfico de voz entrante desde internacional | E209: minutos | G209: 0
C211: Mbit/s radio en la hora cargada de voz (no se incluye el timbrado al no ocupar la red por ser conmutación de paquetes)
D212: =VoLTE.services.list -> 4G - Tráfico de voz on-net | G212: =G123:G129*Radio.Erlangs.per.Erlang -> 0
D213: 4G - Tráfico de voz saliente a fijo | G213: 0
D214: 4G - Tráfico de voz saliente a móvil | G214: 0
D215: 4G - Tráfico de voz saliente a internacional | G215: 0
D216: 4G - Tráfico de voz entrante desde fijo | G216: 0
D217: 4G - Tráfico de voz entrante desde móvil | G217: 0
D218: 4G - Tráfico de voz entrante desde internacional | G218: 0
C220: Mbit/s radio en la hora cargada de datos (no se incluye el timbrado al no ocupar la red por ser conmutación de paquetes)
D221: =VoLTE.services.list -> 4G - Tráfico de voz on-net | G221: =G132:G138*Radio.Erlangs.per.Erlang -> 0
D222: 4G - Tráfico de voz saliente a fijo | G222: 0
D223: 4G - Tráfico de voz saliente a móvil | G223: 0
... 470 more rows

Sheet UtilisationFactors
E1: Factores de utilización
B3: Factores de utilización para para los elementos de red radio
G5: =TRANSPOSE(Geotypes) -> Muy denso | H5: Denso | I5: Poco denso | J5: Otro | K5: Microceldas | L5: spare | M5: spare | N5: spare | O5: spare | P5: spare
C6: BTS física, en TRXs | G6: =Utilisation.radio.assets -> 0.8 | H6: =$G6 -> 0.8 | I6: 0.8 | J6: 0.8 | K6: 0.8 | L6: 0.8 | M6: 0.8 | N6: 0.8 | O6: 0.8 | P6: 0.8 | Q6: Utilisation.BTS
C7: TRX, en Erlangs | G7: 0.8 | H7: 0.8 | I7: 0.8 | J7: 0.8 | K7: 0.8 | L7: 0.8 | M7: 0.8 | N7: 0.8 | O7: 0.8 | P7: 0.8 | Q7: Utilisation.TRX
C8: NodeB físico, en CE | G8: =G6 -> 0.8 | H8: 0.8 | I8: 0.8 | J8: 0.8 | K8: 0.8 | L8: 0.8 | M8: 0.8 | N8: 0.8 | O8: 0.8 | P8: 0.8 | Q8: Utilisation.NodeB
C9: CE, en R99 Erlangs o Mbit/s | G9: =G7 -> 0.8 | H9: 0.8 | I9: 0.8 | J9: 0.8 | K9: 0.8 | L9: 0.8 | M9: 0.8 | N9: 0.8 | O9: 0.8 | P9: 0.8 | Q9: Utilisation.CE
B12: Factores de utilización para otros elementos de red
C14: Network capacity | G14: Utilisation
C15: BSC, en TRXs | G15: 0.8 | H15: Utilisation.BSC
C16: RNC, en Mbit/s | G16: 0.8 | H16: Utilisation.RNC
C17: Enlaces LMA, en Mbit/s | G17: 0.8 | H17: Utilisation.LMA
C18: Transmisión hub-core, en Mbit/s | G18: 0.8 | H18: Utilisation.Hub.Core
C19: Transmisión BSC-core, en Mbit/s | G19: 0.8 | H19: Utilisation.BSC.Core
C20: Transmisión RNC-core, en Mbit/s | G20: 0.8 | H20: Utilisation.RNC.Core
C21: Transmisión core-core, en Mbit/s | G21: 0.8 | H21: Utilisation.Core.Core
C22: Switches | G22: 0.8 | H22: Utilisation.Switches | J22: Aplica a MSC, MSS, MGW, GGSN, SGSN, HLR, MME, SGW, PoI
C23: Servidores | G23: 0.8 | H23: Utilisation.Servers | J23: Aplica a IN etc
C24: SMSC | G24: 0.8 | H24: Utilisation.SMSC | J24: Para soportar picos debido a elecciones/año nuevo etc
C25: Switch port cards | G25: 0.8 | H25: Utilisation.Ports
C26: Single unit | G26: 1 | H26: Utilisation.single.unit
C27: Software | G27: 1 | H27: Utilisation.software
C28: Spare | G28: 1
C29: Spare | G29: 1

Sheet NwDesignInputs
E1: Datos de entrada para el diseño de red
F2: Checks
F3: =IF(SUM(F4:F732)<>0,"ERROR","Correcto") -> Correcto
A5: 1. DATOS DE COBERTURA
B7: Area cubierta por cada tecnología (para cada geotipo)
G8: =TRANSPOSE(Geotypes) -> Muy denso | H8: Denso | I8: Poco denso | J8: Otro | K8: Microceldas | L8: spare | M8: spare | N8: spare | O8: spare | P8: spare
C9: Cobertura GSM
D10: Proporción de area cubierta en cada geotipo | G10: =TRANSPOSE(CTRL.2G.coverage) -> 0.976 | H10: 0.697 | I10: 0.445 | J10: 0.039 | K10: 0 | L10: 0 | M10: 0 | N10: 0 | O10: 0 | P10: 0 | Q10: GSM.Area.Coverage
C12: Cobertura UMTS
D13: Proporción de area cubierta en cada geotipo | G13: =TRANSPOSE(CTRL.3G.coverage) -> 0.838 | H13: 0.501 | I13: 0.167 | J13: 0.008 | K13: 0 | L13: 0 | M13: 0 | N13: 0 | O13: 0 | P13: 0 | Q13: UMTS.Area.Coverage
C15: Cobertura LTE
D16: Proporción de area cubierta en cada geotipo | G16: =TRANSPOSE(CTRL.4G.coverage) -> 0.736 | H16: 0.331 | I16: 0.088 | J16: 0.002 | K16: 0 | L16: 0 | M16: 0 | N16: 0 | O16: 0 | P16: 0 | Q16: LTE.Area.Coverage
C18: Número de microceldas para cobertura
D19: GSM | K19: =CTRL.microcells.for.coverage -> 200
D20: UMTS | K20: 200
D21: LTE | K21: 100
K22: Microcells.for.coverage
B24: Radio de celda (cell radii) y área de celda por frecuencia
C26: Radio de celda (cell radii) por frecuencia y geotipo | G26: =TRANSPOSE(Geotypes) -> Muy denso | H26: Denso | I26: Poco denso | J26: Otro | K26: Microceldas | L26: spare | M26: spare | N26: spare | O26: spare | P26: spare | R26: Ratio
E28: =Frequencies2&" MHz" -> 850 MHz | G28: =G$29/$R$29*$R28 -> 1.37 | H28: 6.6 | I28: 12.5 | J28: 14 | K28: 1 | L28: 0 | M28: 0 | N28: 0 | O28: 0 | P28: 0 | R28: 1
E29: 900 MHz | G29: 1.37 | H29: 6.6 | I29: 12.5 | J29: 14 | K29: 1 | L29: 0 | M29: 0 | N29: 0 | O29: 0 | P29: 0 | R29: 1
E30: 1900 MHz | G30: =G$29/$R$29*$R30 -> 1.1645 | H30: 5.61 | I30: 10.625 | J30: 11.9 | K30: 0.85 | L30: 0 | M30: 0 | N30: 0 | O30: 0 | P30: 0 | R30: 0.85
E31: 1700/2100 (AWS) MHz | G31: 0.822 | H31: 3.96 | I31: 7.5 | J31: 8.4 | K31: 0.6 | L31: 0 | M31: 0 | N31: 0 | O31: 0 | P31: 0 | R31: 0.6
E32: Spare MHz | G32: 0 | H32: 0 | I32: 0 | J32: 0 | K32: 0 | L32: 0 | M32: 0 | N32: 0 | O32: 0 | P32: 0 | R32: 0
C34: Cell pi | G34: 2.6
C36: Área de celda por frecuencia (km cuadrados)
E38: =Frequencies2&" MHz" -> 850 MHz | G38: =G28:P32^2*G34 -> 4.87994 | H38: 113.256 | I38: 406.25 | J38: 509.6 | K38: 2.6 | L38: 0 | M38: 0 | N38: 0 | O38: 0 | P38: 0
E39: 900 MHz | G39: 4.87994 | H39: 113.256 | I39: 406.25 | J39: 509.6 | K39: 2.6 | L39: 0 | M39: 0 | N39: 0 | O39: 0 | P39: 0
E40: 1900 MHz | G40: 3.52575665 | H40: 81.82746 | I40: 293.515625 | J40: 368.186 | K40: 1.8785 | L40: 0 | M40: 0 | N40: 0 | O40: 0 | P40: 0
E41: 1700/2100 (AWS) MHz | G41: 1.7567784 | H41: 40.77216 | I41: 146.25 | J41: 183.456 | K41: 0.936 | L41: 0 | M41: 0 | N41: 0 | O41: 0 | P41: 0
E42: Spare MHz | G42: 0 | H42: 0 | I42: 0 | J42: 0 | K42: 0 | L42: 0 | M42: 0 | N42: 0 | O42: 0 | P42: 0
B45: Espectro usado para cobertura y área de las celdas para este espectro
C47: Frecuencia usada para desplegar cobertura | G47: =TRANSPOSE(Geotypes) -> Muy denso | H47: Denso | I47: Poco denso | J47: Otro | K47: Microceldas | L47: spare | M47: spare | N47: spare | O47: spare | P47: spare
D49: GSM | G49: =TRANSPOSE(CTRL.spectrum.coverage.GSM) -> 850 | H49: 850 | I49: 850 | J49: 850 | K49: 850 | L49: Spare | M49: Spare | N49: Spare | O49: Spare | P49: Spare
D51: UMTS | G51: =TRANSPOSE(CTRL.spectrum.coverage.UMTS) -> 850 | H51: 850 | I51: 850 | J51: 850 | K51: 850 | L51: Spare | M51: Spare | N51: Spare | O51: Spare | P51: Spare
D53: LTE | G53: =TRANSPOSE(CTRL.spectrum.coverage.LTE) -> 1700/2100 (AWS) | H53: 1700/2100 (AWS) | I53: 1700/2100 (AWS) | J53: 1700/2100 (AWS) | K53: 1700/2100 (AWS) | L53: 1700/2100 (AWS) | M53: 1700/2100 (AWS) | N53: 1700/2100 (AWS) | O53: 1700/2100 (AWS) | P53: 1700/2100 (AWS)
C55: Área de las estaciones utilizadas para desplegar cobertura (km cuadrados)
D57: GSM | G57: =INDEX(G$38:G$42,MATCH(G49,Frequencies2,0),) -> 4.87994 | H57: 113.256 | I57: 406.25 | J57: 509.6 | K57: 2.6 | L57: 0 | M57: 0 | N57: 0 | O57: 0 | P57: 0 | Q57: GSM.Area.Site
D59: UMTS | G59: =INDEX(G$38:G$42,MATCH(G51,Frequencies2,0),) -> 4.87994 | H59: 113.256 | I59: 406.25 | J59: 509.6 | K59: 2.6 | L59: 0 | M59: 0 | N59: 0 | O59: 0 | P59: 0 | Q59: UMTS.Area.Site
D61: LTE | G61: =INDEX(G$38:G$42,MATCH(G53,Frequencies2,0),) -> 1.7567784 | H61: 40.77216 | I61: 146.25 | J61: 183.456 | K61: 0.936 | L61: 0 | M61: 0 | N61: 0 | O61: 0 | P61: 0 | Q61: LTE.Area.Site
B64: Espectro usado para capacidad
C66: Frecuencias usadas para desplegar capacidad | G66: =TRANSPOSE(Geotypes) -> Muy denso | H66: Denso | I66: Poco denso | J66: Otro | K66: Microceldas | L66: spare | M66: spare | N66: spare | O66: spare | P66: spare
D68: GSM | G68: =TRANSPOSE(CTRL.spectrum.capacity.GSM) -> 1900 | H68: 1900 | I68: 1900 | J68: 1900 | K68: 1900 | L68: Spare | M68: Spare | N68: Spare | O68: Spare | P68: Spare
D70: UMTS | G70: =TRANSPOSE(CTRL.spectrum.capacity.UMTS) -> 1900 | H70: 1900 | I70: 1900 | J70: 1900 | K70: 1900 | L70: Spare | M70: Spare | N70: Spare | O70: Spare | P70: Spare
D72: LTE | E72: Primera banda de capacidad | G72: =TRANSPOSE(CTRL.spectrum.capacity.LTE.first.band) -> Spare | H72: Spare | I72: Spare | J72: Spare | K72: Spare | L72: Spare | M72: Spare | N72: Spare | O72: Spare | P72: Spare
E73: Segunda banda de capacidad | G73: =TRANSPOSE(CTRL.spectrum.capacity.LTE.second.band) -> Spare | H73: Spare | I73: Spare | J73: Spare | K73: Spare | L73: Spare | M73: Spare | N73: Spare | O73: Spare | P73: Spare
E74: Tercera banda de capacidad | G74: =TRANSPOSE(CTRL.spectrum.capacity.LTE.third.band) -> Spare | H74: Spare | I74: Spare | J74: Spare | K74: Spare | L74: Spare | M74: Spare | N74: Spare | O74: Spare | P74: Spare
E75: Cuarta banda de capacidad | G75: =TRANSPOSE(CTRL.spectrum.capacity.LTE.fourth.band) -> Spare | H75: Spare | I75: Spare | J75: Spare | K75: Spare | L75: Spare | M75: Spare | N75: Spare | O75: Spare | P75: Spare
A79: 2. DATOS DE ENTRADA DE ESPECTRO
C81: Espectro emparejado (2x MHz) | G81: 1 | H81: =1+G81 -> 2 | I81: =1+H81 -> 3 | J81: 4 | K81: 5 | L81: 6 | M81: 7 | N81: 8 | O81: 9 | P81: 10
G82: =TRANSPOSE(Geotypes) -> Muy denso | H82: Denso | I82: Poco denso | J82: Otro | K82: Microceldas | L82: spare | M82: spare | N82: spare | O82: spare | P82: spare
D83: Espectro total disponible por operador por banda de frecuencia
E85: =Frequencies2 -> 850 | G85: =TRANSPOSE(CTRL.spectrum.available.second.band) -> 12.5 | H85: 12.5 | I85: 12.5 | J85: 12.5 | K85: 12.5 | L85: 0 | M85: 0 | N85: 0 | O85: 0 | P85: 0
E86: 900 | G86: =TRANSPOSE(CTRL.spectrum.available.third.band) -> 0 | H86: 0 | I86: 0 | J86: 0 | K86: 0 | L86: 0 | M86: 0 | N86: 0 | O86: 0 | P86: 0
E87: 1900 | G87: =TRANSPOSE(CTRL.spectrum.available.fourth.band) -> 20 | H87: 20 | I87: 20 | J87: 20 | K87: 20 | L87: 0 | M87: 0 | N87: 0 | O87: 0 | P87: 0
E88: 1700/2100 (AWS) | G88: =TRANSPOSE(CTRL.spectrum.available.fifth.band) -> 12.5 | H88: 12.5 | I88: 12.5 | J88: 12.5 | K88: 12.5 | L88: 0 | M88: 0 | N88: 0 | O88: 0 | P88: 0
E89: Spare | G89: =TRANSPOSE(CTRL.spectrum.available.sixth.band) -> 0 | H89: 0 | I89: 0 | J89: 0 | K89: 0 | L89: 0 | M89: 0 | N89: 0 | O89: 0 | P89: 0
D91: Espectro usado en 2G por banda de frecuencia
E93: =Frequencies2 -> 850 | G93: =TRANSPOSE(CTRL.spectrum.second.band.used.for.2G) -> 5 | H93: 5 | I93: 5 | J93: 5 | K93: 5 | L93: 0 | M93: 0 | N93: 0 | O93: 0 | P93: 0
E94: 900 | G94: =TRANSPOSE(CTRL.spectrum.third.band.used.for.2G) -> 0 | H94: 0 | I94: 0 | J94: 0 | K94: 0 | L94: 0 | M94: 0 | N94: 0 | O94: 0 | P94: 0
E95: 1900 | G95: =TRANSPOSE(CTRL.spectrum.fourth.band.used.for.2G) -> 10 | H95: 10 | I95: 10 | J95: 10 | K95: 10 | L95: 0 | M95: 0 | N95: 0 | O95: 0 | P95: 0
E96: 1700/2100 (AWS) | G96: 0 | H96: 0 | I96: 0 | J96: 0 | K96: 0 | L96: 0 | M96: 0 | N96: 0 | O96: 0 | P96: 0
E97: Spare | G97: 0 | H97: 0 | I97: 0 | J97: 0 | K97: 0 | L97: 0 | M97: 0 | N97: 0 | O97: 0 | P97: 0
D99: Espectro usado en 3G por banda de frecuencia
E101: =Frequencies2 -> 850 | G101: =TRANSPOSE(CTRL.spectrum.second.band.used.for.3G) -> 7.5 | H101: 7.5 | I101: 7.5 | J101: 7.5 | K101: 7.5 | L101: 0 | M101: 0 | N101: 0 | O101: 0 | P101: 0
E102: 900 | G102: =TRANSPOSE(CTRL.spectrum.third.band.used.for.3G) -> 0 | H102: 0 | I102: 0 | J102: 0 | K102: 0 | L102: 0 | M102: 0 | N102: 0 | O102: 0 | P102: 0
E103: 1900 | G103: =TRANSPOSE(CTRL.spectrum.fourth.band.used.for.3G) -> 10 | H103: 10 | I103: 10 | J103: 10 | K103: 10 | L103: 0 | M103: 0 | N103: 0 | O103: 0 | P103: 0
E104: 1700/2100 (AWS) | G104: 0 | H104: 0 | I104: 0 | J104: 0 | K104: 0 | L104: 0 | M104: 0 | N104: 0 | O104: 0 | P104: 0
E105: Spare | G105: 0 | H105: 0 | I105: 0 | J105: 0 | K105: 0 | L105: 0 | M105: 0 | N105: 0 | O105: 0 | P105: 0
D107: Espectro usado en 4G por banda de frecuencia
E109: =Frequencies2 -> 850 | G109: =G85:P89-(G93:P97+G101:P105) -> 0 | H109: 0 | I109: 0 | J109: 0 | K109: 0 | L109: 0 | M109: 0 | N109: 0 | O109: 0 | P109: 0
E110: 900 | G110: 0 | H110: 0 | I110: 0 | J110: 0 | K110: 0 | L110: 0 | M110: 0 | N110: 0 | O110: 0 | P110: 0
E111: 1900 | G111: 0 | H111: 0 | I111: 0 | J111: 0 | K111: 0 | L111: 0 | M111: 0 | N111: 0 | O111: 0 | P111: 0
E112: 1700/2100 (AWS) | G112: 12.5 | H112: 12.5 | I112: 12.5 | J112: 12.5 | K112: 12.5 | L112: 0 | M112: 0 | N112: 0 | O112: 0 | P112: 0
E113: Spare | G113: 0 | H113: 0 | I113: 0 | J113: 0 | K113: 0 | L113: 0 | M113: 0 | N113: 0 | O113: 0 | P113: 0
D116: GSM - Sitios de cobertura | G116: =INDEX(G$93:P$97,MATCH(G49:P49,E$93:E$97,0),G$81:P$81) -> 5 | H116: 5 | I116: 5 | J116: 5 | K116: 5 | L116: 0 | M116: 0 | N116: 0 | O116: 0 | P116: 0 | Q116: Spectrum.GSM.Coverage
D118: GSM - Sitios de capacidad | G118: =INDEX(G$93:P$97,MATCH(G68:P68,E$93:E$97,0),G$81:P$81) -> 10 | H118: 10 | I118: 10 | J118: 10 | K118: 10 | L118: 0 | M118: 0 | N118: 0 | O118: 0 | P118: 0 | Q118: Spectrum.GSM.Capacity
D120: UMTS - Sitios de cobertura | G120: =INDEX(G$101:P$105,MATCH(G51:P51,E$101:E$105,0),G$81:P$81) -> 7.5 | H120: 7.5 | I120: 7.5 | J120: 7.5 | K120: 7.5 | L120: 0 | M120: 0 | N120: 0 | O120: 0 | P120: 0 | Q120: Spectrum.UMTS.Coverage
D122: UMTS - Sitios de capacidad | G122: =IF(ISNA(MATCH(G70:P70,E$101:E$105,0)),0,INDEX(G$101:P$105,MATCH(G70:P70,E$101:E$105,0),G$81:P$81)) -> 10 | H122: 10 | I122: 10 | J122: 10 | K122: 10 | L122: 0 | M122: 0 | N122: 0 | O122: 0 | P122: 0 | Q122: Spectrum.UMTS.Capacity
D124: LTE - Sitios de cobertura | G124: =INDEX(G$85:P$89,MATCH(G53:P53,E$85:E$89,0),G$81:P$81) -> 12.5 | H124: 12.5 | I124: 12.5 | J124: 12.5 | K124: 12.5 | L124: 0 | M124: 0 | N124: 0 | O124: 0 | P124: 0 | Q124: Spectrum.LTE.Coverage
D126: LTE - Sitios de capacidad | G126: =G127:P127+G128:P128+G129:P129+G130:P130 -> 0 | H126: 0 | I126: 0 | J126: 0 | K126: 0 | L126: 0 | M126: 0 | N126: 0 | O126: 0 | P126: 0 | Q126: Spectrum.LTE.Capacity
E127: espectro en la primera banda de capacidad | G127: =IF(ISNA(MATCH(G72:P72,E$109:E$113,0)),0,INDEX(G$109:P$113,MATCH(G72:P72,E$109:E$113,0),G$81:P$81)) -> 0 | H127: 0 | I127: 0 | J127: 0 | K127: 0 | L127: 0 | M127: 0 | N127: 0 | O127: 0 | P127: 0
E128: espectro en la segunda banda de capacidad | G128: =IF(ISNA(MATCH(G73:P73,E$109:E$113,0)),0,INDEX(G$109:P$113,MATCH(G73:P73,E$109:E$113,0),G$81:P$81)) -> 0 | H128: 0 | I128: 0 | J128: 0 | K128: 0 | L128: 0 | M128: 0 | N128: 0 | O128: 0 | P128: 0
E129: espectro en la tercera banda de capacidad | G129: =IF(ISNA(MATCH(G74:P74,E$109:E$113,0)),0,INDEX(G$109:P$113,MATCH(G74:P74,E$109:E$113,0),G$81:P$81)) -> 0 | H129: 0 | I129: 0 | J129: 0 | K129: 0 | L129: 0 | M129: 0 | N129: 0 | O129: 0 | P129: 0
E130: espectro en la cuarta banda de capacidad | G130: =IF(ISNA(MATCH(G75:P75,E$109:E$113,0)),0,INDEX(G$109:P$113,MATCH(G75:P75,E$109:E$113,0),G$81:P$81)) -> 0 | H130: 0 | I130: 0 | J130: 0 | K130: 0 | L130: 0 | M130: 0 | N130: 0 | O130: 0 | P130: 0
C132: Tamaño del canal
G133: MHz
D134: GSM | G134: 0.2 | H134: Channel.size.GSM
D135: UMTS | G135: 5 | H135: Channel.size.UMTS
D136: LTE | G136: 5 | H136: Channel.size.LTE
C138: Número de canales disponibles
G139: =TRANSPOSE(Geotypes) -> Muy denso | H139: Denso | I139: Poco denso | J139: Otro | K139: Microceldas | L139: spare | M139: spare | N139: spare | O139: spare | P139: spare
D140: GSM - Sitios de cobertura | G140: =Spectrum.GSM.Coverage/Channel.size.GSM -> 25 | H140: 25 | I140: 25 | J140: 25 | K140: 25 | L140: 0 | M140: 0 | N140: 0 | O140: 0 | P140: 0
D142: GSM - Sitios de capacidad | G142: =Spectrum.GSM.Capacity/Channel.size.GSM -> 50 | H142: 50 | I142: 50 | J142: 50 | K142: 50 | L142: 0 | M142: 0 | N142: 0 | O142: 0 | P142: 0
D144: UMTS - Sitios de cobertura | G144: =Spectrum.UMTS.Coverage/Channel.size.UMTS -> 1.5 | H144: 1.5 | I144: 1.5 | J144: 1.5 | K144: 1.5 | L144: 0 | M144: 0 | N144: 0 | O144: 0 | P144: 0
D146: UMTS - Sitios de capacidad | G146: =Spectrum.UMTS.Capacity/Channel.size.UMTS -> 2 | H146: 2 | I146: 2 | J146: 2 | K146: 2 | L146: 0 | M146: 0 | N146: 0 | O146: 0 | P146: 0
D148: LTE - Sitios de cobertura | G148: =Spectrum.LTE.Coverage/Channel.size.LTE -> 2.5 | H148: 2.5 | I148: 2.5 | J148: 2.5 | K148: 2.5 | L148: 0 | M148: 0 | N148: 0 | O148: 0 | P148: 0
D150: LTE - Sitios de capacidad | G150: =G151:P151+G152:P152+G153:P153+G154:P154 -> 0 | H150: 0 | I150: 0 | J150: 0 | K150: 0 | L150: 0 | M150: 0 | N150: 0 | O150: 0 | P150: 0
E151: canales en la primera banda de capacidad | G151: =G127:P130/Channel.size.LTE -> 0 | H151: 0 | I151: 0 | J151: 0 | K151: 0 | L151: 0 | M151: 0 | N151: 0 | O151: 0 | P151: 0
E152: canales en la segunda banda de capacidad | G152: 0 | H152: 0 | I152: 0 | J152: 0 | K152: 0 | L152: 0 | M152: 0 | N152: 0 | O152: 0 | P152: 0
E153: canales en la tercera banda de capacidad | G153: 0 | H153: 0 | I153: 0 | J153: 0 | K153: 0 | L153: 0 | M153: 0 | N153: 0 | O153: 0 | P153: 0
E154: canales en la cuarta banda de capacidad | G154: 0 | H154: 0 | I154: 0 | J154: 0 | K154: 0 | L154: 0 | M154: 0 | N154: 0 | O154: 0 | P154: 0
C157: Canales UMTS reservados para UMTS, no HSPA
G158: =TRANSPOSE(Geotypes) -> Muy denso | H158: Denso | I158: Poco denso | J158: Otro | K158: Microceldas | L158: spare | M158: spare | N158: spare | O158: spare | P158: spare
D159: en sitios de cobertura UMTS | G159: 1 | H159: 1 | I159: 1 | J159: 1 | K159: 1 | L159: 1 | M159: 1 | N159: 1 | O159: 1 | P159: 1
D161: en sitios de capacidad UMTS | G161: 0 | H161: 0 | I161: 0 | J161: 0 | K161: 0 | L161: 0 | M161: 0 | N161: 0 | O161: 0 | P161: 0
C163: Número de canales y distribución
G164: =TRANSPOSE(Geotypes) -> Muy denso | H164: Denso | I164: Poco denso | J164: Otro | K164: Microceldas | L164: spare | M164: spare | N164: spare | O164: spare | P164: spare
D165: GSM - Sitios de cobertura | G165: =G140:P140 -> 25 | H165: 25 | I165: 25 | J165: 25 | K165: 25 | L165: 0 | M165: 0 | N165: 0 | O165: 0 | P165: 0 | Q165: Channels.GSM.Coverage
D167: GSM - Sitios de capacidad | G167: =G142:P142 -> 50 | H167: 50 | I167: 50 | J167: 50 | K167: 50 | L167: 0 | M167: 0 | N167: 0 | O167: 0 | P167: 0 | Q167: Channels.GSM.Capacity
D169: UMTS - Sitios de cobertura | G169: =IF(G144:P144>0,G159:P159,0) -> 1 | H169: 1 | I169: 1 | J169: 1 | K169: 1 | L169: 0 | M169: 0 | N169: 0 | O169: 0 | P169: 0 | Q169: Channels.UMTS.Coverage
D171: UMTS - Sitios de capacidad | G171: =IF(G146:P146>0,G161:P161,0) -> 0 | H171: 0 | I171: 0 | J171: 0 | K171: 0 | L171: 0 | M171: 0 | N171: 0 | O171: 0 | P171: 0 | Q171: Channels.UMTS.Capacity
D173: HSPA - Sitios de cobertura | G173: =G144:P144-G169:P169 -> 0.5 | H173: 0.5 | I173: 0.5 | J173: 0.5 | K173: 0.5 | L173: 0 | M173: 0 | N173: 0 | O173: 0 | P173: 0 | Q173: Channels.HSPA.Coverage
D175: HSPA - Sitios de capacidad | G175: =G146:P146-G171:P171 -> 2 | H175: 2 | I175: 2 | J175: 2 | K175: 2 | L175: 0 | M175: 0 | N175: 0 | O175: 0 | P175: 0 | Q175: Channels.HSPA.Capacity
D177: LTE - Sitios de cobertura | G177: =G148:P148 -> 2.5 | H177: 2.5 | I177: 2.5 | J177: 2.5 | K177: 2.5 | L177: 0 | M177: 0 | N177: 0 | O177: 0 | P177: 0 | Q177: Channels.LTE.Coverage
D179: LTE - Sitios de capacidad | G179: =G150:P154 -> 0 | H179: 0 | I179: 0 | J179: 0 | K179: 0 | L179: 0 | M179: 0 | N179: 0 | O179: 0 | P179: 0 | Q179: Channels.LTE.Capacity
E180: canales en la primera banda de capacidad | G180: 0 | H180: 0 | I180: 0 | J180: 0 | K180: 0 | L180: 0 | M180: 0 | N180: 0 | O180: 0 | P180: 0 | Q180: Channels.LTE.Capacity.first.capacity.band
E181: canales en la segunda banda de capacidad | G181: 0 | H181: 0 | I181: 0 | J181: 0 | K181: 0 | L181: 0 | M181: 0 | N181: 0 | O181: 0 | P181: 0 | Q181: Channels.LTE.Capacity.second.capacity.band
E182: canales en la tercera banda de capacidad | G182: 0 | H182: 0 | I182: 0 | J182: 0 | K182: 0 | L182: 0 | M182: 0 | N182: 0 | O182: 0 | P182: 0 | Q182: Channels.LTE.Capacity.third.capacity.band
E183: canales en la cuarta banda de capacidad | G183: 0 | H183: 0 | I183: 0 | J183: 0 | K183: 0 | L183: 0 | M183: 0 | N183: 0 | O183: 0 | P183: 0 | Q183: Channels.LTE.Capacity.fourth.capacity.band
A187: 3. DISTRIBUCIÓN DEL TRÁFICO DE ENTRADA
C189: Distribución de la carga | G189: =TRANSPOSE(Geotypes) -> Muy denso | H189: Denso | I189: Poco denso | J189: Otro | K189: Microceldas | L189: spare | M189: spare | N189: spare | O189: spare | P189: spare
D191: Voz
E192: =Radio.technologies -> GSM | F192: =IF(OR(SUM(G192:P192)=1,SUM(G192:P192)=0),0,1) -> 0 | G192: =TRANSPOSE(CTRL.voice.distribution.2G) -> 0.7 | H192: 0.18 | I192: 0.07 | J192: 0 | K192: 0.05 | L192: 0 | M192: 0 | N192: 0 | O192: 0 | P192: 0
E193: UMTS | F193: =IF(OR(SUM(G193:P193)=1,SUM(G193:P193)=0),0,1) -> 0 | G193: =TRANSPOSE(CTRL.voice.distribution.3G) -> 0.7 | H193: 0.2 | I193: 0.05 | J193: 0 | K193: 0.05 | L193: 0 | M193: 0 | N193: 0 | O193: 0 | P193: 0
E194: HSPA | F194: =IF(OR(SUM(G194:P194)=1,SUM(G194:P194)=0),0,1) -> 0 | G194: 0 | H194: 0 | I194: 0 | J194: 0 | K194: 0 | L194: 0 | M194: 0 | N194: 0 | O194: 0 | P194: 0
E195: LTE | F195: =IF(OR(SUM(G195:P195)=1,SUM(G195:P195)=0),0,1) -> 0 | G195: =TRANSPOSE(CTRL.voice.distribution.4G) -> 0 | H195: 0 | I195: 0 | J195: 0 | K195: 0 | L195: 0 | M195: 0 | N195: 0 | O195: 0 | P195: 0
D197: Datos
E198: =Radio.technologies -> GSM | F198: =IF(OR(SUM(G198:P198)=1,SUM(G198:P198)=0),0,1) -> 0 | G198: =TRANSPOSE(CTRL.data.distribution.2G) -> 0.67 | H198: 0.2 | I198: 0.1 | J198: 0 | K198: 0.03 | L198: 0 | M198: 0 | N198: 0 | O198: 0 | P198: 0 | Q198: GSM.data.traffic.distribution
E199: UMTS | F199: =IF(OR(SUM(G199:P199)=1,SUM(G199:P199)=0),0,1) -> 0 | G199: =TRANSPOSE(CTRL.data.distribution.3G) -> 0.67 | H199: 0.2 | I199: 0.1 | J199: 0 | K199: 0.03 | L199: 0 | M199: 0 | N199: 0 | O199: 0 | P199: 0
E200: HSPA | F200: =IF(OR(SUM(G200:P200)=1,SUM(G200:P200)=0),0,1) -> 0 | G200: =TRANSPOSE(CTRL.data.distribution.3G) -> 0.67 | H200: 0.2 | I200: 0.1 | J200: 0 | K200: 0.03 | L200: 0 | M200: 0 | N200: 0 | O200: 0 | P200: 0
E201: LTE | F201: =IF(OR(SUM(G201:P201)=1,SUM(G201:P201)=0),0,1) -> 0 | G201: =TRANSPOSE(CTRL.data.distribution.4G) -> 0.8 | H201: 0.13 | I201: 0.05 | J201: 0 | K201: 0.02 | L201: 0 | M201: 0 | N201: 0 | O201: 0 | P201: 0
A205: 4. DATOS DE ENTRADA PARA GSM
B207: Tráfico de voz la red GSM por geotipo
C209: Tráfico de red de voz BHE en la hora cargada de voz | G209: =Network.voice.BHE.2G -> 49205.38348
G211: =TRANSPOSE(Geotypes) -> Muy denso | H211: Denso | I211: Poco denso | J211: Otro | K211: Microceldas | L211: spare | M211: spare | N211: spare | O211: spare | P211: spare
C212: Tráfico de red de voz BHE en la hora cargada de voz por geotipo | G212: =G209*G$192:P$192 -> 34443.76843 | H212: 8856.969026 | I212: 3444.376843 | J212: 0 | K212: 2460.269174 | L212: 0 | M212: 0 | N212: 0 | O212: 0 | P212: 0 | Q212: GSM.Network.Voice.BHE
B214: Capacidad GSM
C216: Factor de reutilización GSM | G216: =GSM.reuse.factor.used -> 9 | H216: GSM.reuse
C218: Sectorización en GSM (sectores por BTS)
G219: =TRANSPOSE(Geotypes) -> Muy denso | H219: Denso | I219: Poco denso | J219: Otro | K219: Microceldas | L219: spare | M219: spare | N219: spare | O219: spare | P219: spare
D220: Distribución de las BTS por número de sectores
D221: 1 | E221: Mono-sector | G221: 0 | H221: 0 | I221: 0 | J221: 0 | K221: 1 | L221: 0 | M221: 0 | N221: 0 | O221: 0 | P221: 0
D222: 2 | E222: Bi-sector | G222: 0 | H222: 0 | I222: 0 | J222: 0 | K222: 0 | L222: 0 | M222: 0 | N222: 0 | O222: 0 | P222: 0
D223: 3 | E223: Tri-sector | G223: =1-G221:P221-G222:P222 -> 1 | H223: 1 | I223: 1 | J223: 1 | K223: 0 | L223: 1 | M223: 1 | N223: 1 | O223: 1 | P223: 1
Q224: GSM.BTS.by.sector
D226: Sectores medios por BTS | G226: =SUMPRODUCT(G221:G223,$D221:$D223) -> 3 | H226: 3 | I226: 3 | J226: 3 | K226: 1 | L226: 3 | M226: 3 | N226: 3 | O226: 3 | P226: 3 | Q226: GSM.Sectorisation
C228: Número max de TRX por sector (límite físico)
E229: Límite por sector | G229: 8 | H229: 8 | I229: 8 | J229: 8 | K229: 8 | L229: 8 | M229: 8 | N229: 8 | O229: 8 | P229: 8
E230: Utilización efectiva | G230: =Utilisation.BTS -> 0.8 | H230: 0.8 | I230: 0.8 | J230: 0.8 | K230: 0.8 | L230: 0.8 | M230: 0.8 | N230: 0.8 | O230: 0.8 | P230: 0.8
E231: Límite efectivo | G231: =G229:P229*G230:P230 -> 6.4 | H231: 6.4 | I231: 6.4 | J231: 6.4 | K231: 6.4 | L231: 6.4 | M231: 6.4 | N231: 6.4 | O231: 6.4 | P231: 6.4 | Q231: GSM.BTS.capacity
C234: Número máximo de TRX por BTS (límite de espectro)
D236: Capa de cobertura | G236: =Channels.GSM.Coverage/GSM.reuse -> 2.777777778 | H236: 2.777777778 | I236: 2.777777778 | J236: 2.777777778 | K236: 2.777777778 | L236: 0 | M236: 0 | N236: 0 | O236: 0 | P236: 0
D238: Capa de capacidad | G238: =Channels.GSM.Capacity/GSM.reuse -> 5.555555556 | H238: 5.555555556 | I238: 5.555555556 | J238: 5.555555556 | K238: 5.555555556 | L238: 0 | M238: 0 | N238: 0 | O238: 0 | P238: 0
C240: Max TRX por sector
D242: Capa de cobertura | G242: =MIN(G231,G236) -> 2.777777778 | H242: 2.777777778 | I242: 2.777777778 | J242: 2.777777778 | K242: 2.777777778 | L242: 0 | M242: 0 | N242: 0 | O242: 0 | P242: 0 | Q242: GSM.TRX.coverage.layer
D244: Capa de capacidad | G244: =MIN(G231,G238) -> 5.555555556 | H244: 5.555555556 | I244: 5.555555556 | J244: 5.555555556 | K244: 5.555555556 | L244: 0 | M244: 0 | N244: 0 | O244: 0 | P244: 0 | Q244: GSM.TRX.capacity.layer
D246: Capas de cobertura y capacidad | G246: =MIN(G231,G236+G238) -> 6.4 | H246: 6.4 | I246: 6.4 | J246: 6.4 | K246: 6.4 | L246: 0 | M246: 0 | N246: 0 | O246: 0 | P246: 0 | Q246: GSM.TRX.coverage.and.capacity.layers
C249: Min TRX por sector
D251: Capa de cobertura | G251: =Minimum.TRX.per.sector -> 1 | H251: =G251 -> 1 | I251: =H251 -> 1 | J251: 1 | K251: 1 | L251: 1 | M251: 1 | N251: 1 | O251: 1 | P251: 1 | Q251: GSM.minimum.TRX.coverage.layer
D253: Capa de capacidad | G253: =Minimum.TRX.per.sector -> 1 | H253: =G253 -> 1 | I253: =H253 -> 1 | J253: =I253 -> 1 | K253: =J253 -> 1 | L253: =K253 -> 1 | M253: =L253 -> 1 | N253: =M253 -> 1 | O253: =N253 -> 1 | P253: =O253 -> 1 | Q253: GSM.minimum.TRX.capacity.layer
C256: Canales GSM
G257: Reserva de canales para GPRS/EDGE, por sector | H257: Canal de señalización reservado, por TRX | I257: Incluye las asignación para tráfico de SMS
G258: 18 | H258: 0.5
G259: GPRS.channel.per.sector | H259: sig.channel.per.TRX
G261: Tasa de canal de voz, kbit/s | H261: Tasa de canal GPRS, kbit/s | I261: Tasa de canal EDGE, kbit/s | J261: Ratio entre GPRS y EDGE
G262: 16 | H262: 24 | I262: 64 | J262: =I262/H262 -> 2.666666667
G263: GSM.channel.rate | H263: GPRS.channel.rate | I263: EDGE.channel.rate | J263: GPRS.EDGE.channel.ratio
C266: Probabilidad de bloqueo GSM | G266: =GSM.Blocking.Rate.Used -> 0.02 | H266: GSM.blocking.probability
A270: 5. DATOS DE ENTRADA PARA UMTS
B272: Tráfico de red UMTS R99 por geotipo
C274: Tráfico de red R99 (voz+datos) BHE en la hora cargada de voz
D275: voz y datos UMTS R99 | G275: =Network.peak.UMTS.BHE -> 209309.7866
D277: de los cuales voz | G277: =Network.peak.UMTS.voice.BHE -> 147616.1504
D278: de los cuales datos | G278: =Network.peak.UMTS.data.BHE -> 61693.63613
C280: Tráfico de red R99 (voz+datos) BHE en la hora cargada de voz por geotipo
G281: =TRANSPOSE(Geotypes) -> Muy denso | H281: Denso | I281: Poco denso | J281: Otro | K281: Microceldas | L281: spare | M281: spare | N281: spare | O281: spare | P281: spare
G282: =G277*G$193:P$193+G278*G$199:P$199 -> 144666.0415 | H282: 41861.95731 | I282: 13550.17113 | J282: 0 | K282: 9231.616605 | L282: 0 | M282: 0 | N282: 0 | O282: 0 | P282: 0 | Q282: UMTS.Network.R99.BHE
D284: de los cuales voz | G284: =G277*G$193:P$193 -> 103331.3053 | H284: 29523.23009 | I284: 7380.807522 | J284: 0 | K284: 7380.807522 | L284: 0 | M284: 0 | N284: 0 | O284: 0 | P284: 0 | Q284: UMTS.Network.R99.BHE.voice
D285: de los cuales datos | G285: =G278*G$199:P$199 -> 41334.73621 | H285: 12338.72723 | I285: 6169.363613 | J285: 0 | K285: 1850.809084 | L285: 0 | M285: 0 | N285: 0 | O285: 0 | P285: 0 | Q285: UMTS.Network.R99.BHE.data
B288: Capacidad de UMTS
C290: Sectores por Node B | G290: 3 | H290: 3 | I290: 3 | J290: 3 | K290: 1 | L290: 0 | M290: 0 | N290: 0 | O290: 0 | P290: 0 | Q290: UMTS.sectorisation
C292: Tasa de canal UMTS R99, Mbit/s | G292: 0.016 | H292: UMTS.channel.rate
C294: Sectorización UMTS
D295: UMTS R99 soft-handover | G295: 0.2 | H295: Release99.soft.handover | J295: soft-handover
D296: UMTS R99 softer-handover | G296: 0.1 | H296: Release99.softer.handover | J296: softer-handover = entre sectores en el mismo sitio
C298: Número de canales de señalización R99 por portadora | G298: 16 | H298: R99.CE.signalling | J298: Nota: a nivel de NodeB
C300: Mínimo número de canales de tráfico R99 por portadora | G300: 48 | H300: R99.CE.min | J300: Nota: a nivel de NodeB
C302: Máximo número de canales de tráfico R99 por portadora | G302: 384 | H302: R99.CE.max | J302: Nota: a nivel de NodeB
C304: Probabilidad de bloqueo en UMTS | G304: 0.02 | H304: UMTS.blocking.probability
C306: Tamaño del channel kit en elementos de canal (CE) | G306: 16 | H306: CK.size
A310: 6. DATOS DE ENTRADA DE HSPA
B312: Tráfico de red HSPA por geotipo
C314: Tráfico de red HSDPA Mbit/s en la hora cargada | G314: =Network.load.HSDPA -> 64490.4143
G316: =TRANSPOSE(Geotypes) -> Muy denso | H316: Denso | I316: Poco denso | J316: Otro | K316: Microceldas | L316: spare | M316: spare | N316: spare | O316: spare | P316: spare
C317: Tráfico de red HSDPA Mbit/s en la hora cargada por geotipo | G317: =G314*G$200:P$200 -> 43208.57758 | H317: 12898.08286 | I317: 6449.04143 | J317: 0 | K317: 1934.712429 | L317: 0 | M317: 0 | N317: 0 | O317: 0 | P317: 0 | Q317: HSDPA.Network.BHMbits
C319: Tráfico de red HSUPA Mbit/s en la hora cargada | G319: =Network.load.HSUPA -> 16122.60358
G321: =TRANSPOSE(Geotypes) -> Muy denso | H321: Denso | I321: Poco denso | J321: Otro | K321: Microceldas | L321: spare | M321: spare | N321: spare | O321: spare | P321: spare
C322: Tráfico de red HSUPA Mbit/s en la hora cargada por geotipo | G322: =G319*G$200:P$200 -> 10802.1444 | H322: 3224.520715 | I322: 1612.260358 | J322: 0 | K322: 483.6781073 | L322: 0 | M322: 0 | N322: 0 | O322: 0 | P322: 0 | Q322: HSUPA.Network.BHMbits
B325: Capacidad HSPA
... 317 more rows

Sheet NetworkDesign
D1: Diseño de red
F2: Checks
E3: ¿Algún error en esta hoja? | F3: =IF(SUM($F1030)<>0,"ERROR","Correcto") -> Correcto
E4: ¿Son necesarios sites de capacidad en la red de acceso radio? | F4: =IF(SUM($F5:$F305)<>0,"Comprobar la capacidad RAN","Correcto") -> Comprobar la capacidad RAN
A6: 1. SITES DE COBERTURA
G8: =TRANSPOSE(Geotypes) -> Muy denso | H8: Denso | I8: Poco denso | J8: Otro | K8: Microceldas | L8: spare | M8: spare | N8: spare | O8: spare | P8: spare
B9: GSM - cobertura de red radio
D10: Área cubierta por tecnología (distribución por geotipo) | G10: =GSM.Area.Coverage -> 0.976 | H10: 0.697 | I10: 0.445 | J10: 0.039 | K10: 0 | L10: 0 | M10: 0 | N10: 0 | O10: 0 | P10: 0
D12: Área por site para cobertura (km cuadrados) | G12: =GSM.Area.Site -> 4.87994 | H12: 113.256 | I12: 406.25 | J12: 509.6 | K12: 2.6 | L12: 0 | M12: 0 | N12: 0 | O12: 0 | P12: 0
D14: Sites totales para cobertura (macrosites) | G14: =IF(G10:P10=0,0,G10:P10*TRANSPOSE(Geotypes.area)/G12:P12) -> 1144.084461 | H14: 735.893019 | I14: 663.3192757 | J14: 42.52063718 | K14: 0 | L14: 0 | M14: 0 | N14: 0 | O14: 0 | P14: 0
D16: Sites totales para cobertura (macrosites y microsites) | G16: =G14:J14 -> 1144.084461 | H16: 735.893019 | I16: 663.3192757 | J16: 42.52063718 | K16: =K$40 -> 200 | L16: =L14:P14 -> 0 | M16: 0 | N16: 0 | O16: 0 | P16: 0 | Q16: GSM.coverage.sites
B19: UMTS - cobertura de red radio
D20: Área cubierta por tecnología (distribución por geotipo) | G20: =UMTS.Area.Coverage -> 0.838 | H20: 0.501 | I20: 0.167 | J20: 0.008 | K20: 0 | L20: 0 | M20: 0 | N20: 0 | O20: 0 | P20: 0
D22: Área por site para cobertura (km cuadrados) | G22: =UMTS.Area.Site -> 4.87994 | H22: 113.256 | I22: 406.25 | J22: 509.6 | K22: 2.6 | L22: 0 | M22: 0 | N22: 0 | O22: 0 | P22: 0
D24: Sites totales para cobertura (macrosites) | G24: =IF(G20:P20=0,0,G20:P20*TRANSPOSE(Geotypes.area)/G22:P22) -> 982.3184207 | H24: 528.9561012 | I24: 248.931054 | J24: 8.722181987 | K24: 0 | L24: 0 | M24: 0 | N24: 0 | O24: 0 | P24: 0
D26: Sites totales para cobertura (macrosites y microsites) | G26: =G24:J24 -> 982.3184207 | H26: 528.9561012 | I26: 248.931054 | J26: 8.722181987 | K26: =K$41 -> 200 | L26: =L24:P24 -> 0 | M26: 0 | N26: 0 | O26: 0 | P26: 0 | Q26: UMTS.coverage.sites
B29: LTE - cobertura de red radio
D30: Área cubierta por tecnología (distribución por geotipo) | G30: =LTE.Area.Coverage -> 0.736 | H30: 0.331 | I30: 0.088 | J30: 0.002 | K30: 0 | L30: 0 | M30: 0 | N30: 0 | O30: 0 | P30: 0
D32: Área por site para cobertura (km cuadrados) | G32: =LTE.Area.Site -> 1.7567784 | H32: 40.77216 | I32: 146.25 | J32: 183.456 | K32: 0.936 | L32: 0 | M32: 0 | N32: 0 | O32: 0 | P32: 0
D34: Sites totales para cobertura (macrosites) | G34: =IF(G30:P30=0,0,G30:P30*TRANSPOSE(Geotypes.area)/G32:P32) -> 2396.533935 | H34: 970.7499971 | I34: 364.370139 | J34: 6.057070824 | K34: 0 | L34: 0 | M34: 0 | N34: 0 | O34: 0 | P34: 0
D36: Sites totales para cobertura (macrosites y microsites) | G36: =G34:J34 -> 2396.533935 | H36: 970.7499971 | I36: 364.370139 | J36: 6.057070824 | K36: =K$42 -> 100 | L36: =L34:P34 -> 0 | M36: 0 | N36: 0 | O36: 0 | P36: 0 | Q36: LTE.coverage.sites
B39: Microceldas - cobertura de red radio
D40: GSM | K40: =Microcells.for.coverage -> 200
D41: UMTS | K41: 200
D42: LTE | K42: 100
A46: 2. CÁLCULO DE LA CAPACIDAD GSM
B48: Sitios GSM y cálculo de BTS | G48: =TRANSPOSE(Geotypes) -> Muy denso | H48: Denso | I48: Poco denso | J48: Otro | K48: Microceldas | L48: spare | M48: spare | N48: spare | O48: spare | P48: spare
C50: Voz BHE a ser transportada por la red | G50: =GSM.Network.Voice.BHE -> 34443.76843 | H50: 8856.969026 | I50: 3444.376843 | J50: 0 | K50: 2460.269174 | L50: 0 | M50: 0 | N50: 0 | O50: 0 | P50: 0
C53: Sitios para cobertura | G53: =GSM.coverage.sites -> 1144.084461 | H53: 735.893019 | I53: 663.3192757 | J53: 42.52063718 | K53: 200 | L53: 0 | M53: 0 | N53: 0 | O53: 0 | P53: 0
C56: Voz BHE por sitio de cobertura | G56: =IF(G50:P50=0,0,G50:P50/GSM.coverage.sites) -> 30.10596647 | H56: 12.03567475 | I56: 5.192637949 | J56: 0 | K56: 12.30134587 | L56: 0 | M56: 0 | N56: 0 | O56: 0 | P56: 0
C59: Número de TRXs requeridos por tráfico por celda de cobertura | G59: =IF(G56:P56=0,0,INDEX(Erlang.Table.TRXs,MATCH(G56:P56/Utilisation.TRX/GSM.sectorisation,Erlang.table.2G.blocking.selected,1)+1)*GSM.sectorisation) -> 15 | H59: 11.4 | I59: 9.6 | J59: 0 | K59: 5.5 | L59: 0 | M59: 0 | N59: 0 | O59: 0 | P59: 0
C62: Número de TRXs requerido por tráfico para cada geotipo | G62: =G59:P59*GSM.coverage.sites -> 17161.26692 | H62: 8389.180416 | I62: 6367.865047 | J62: 0 | K62: 1100 | L62: 0 | M62: 0 | N62: 0 | O62: 0 | P62: 0
C65: Mínimo número de TRX en sitios de cobertura | G65: =Minimum.TRX.per.sector*GSM.sectorisation*GSM.coverage.sites -> 3432.253384 | H65: 2207.679057 | I65: 1989.957827 | J65: 127.5619116 | K65: 200 | L65: 0 | M65: 0 | N65: 0 | O65: 0 | P65: 0
C68: Máximo número de TRX en sitios de cobertura | G68: =GSM.TRX.coverage.and.capacity.layers*GSM.sectorisation*GSM.coverage.sites -> 21966.42166 | H68: 14129.14596 | I68: 12735.73009 | J68: 816.3962339 | K68: 1280 | L68: 0 | M68: 0 | N68: 0 | O68: 0 | P68: 0
C71: Número de TRX en sitios de cobertura | G71: =MIN(MAX(G62,G65),G68) -> 17161.26692 | H71: =MIN(MAX(H62,H65),H68) -> 8389.180416 | I71: 6367.865047 | J71: 127.5619116 | K71: 1100 | L71: 0 | M71: 0 | N71: 0 | O71: 0 | P71: 0
C74: Número de TRX en sitios de capacidad | G74: =IF(G62:P62>G71:P71,G62:P62-G71:P71,0) -> 0 | H74: 0 | I74: 0 | J74: 0 | K74: 0 | L74: 0 | M74: 0 | N74: 0 | O74: 0 | P74: 0
C77: Máximo número de TRX por sitio de capacidad | G77: =GSM.TRX.coverage.and.capacity.layers*GSM.sectorisation*(G74:P74>0) -> 0 | H77: 0 | I77: 0 | J77: 0 | K77: 0 | L77: 0 | M77: 0 | N77: 0 | O77: 0 | P77: 0
C80: Número de sitios de capacidad | G80: =IF(G77:P77=0,0,G74:P74/G77:P77) -> 0 | H80: 0 | I80: 0 | J80: 0 | K80: 0 | L80: 0 | M80: 0 | N80: 0 | O80: 0 | P80: 0
D81: Check micro/small cells for capacity
D82: =J80 -> 0
D83: Check.GSM.microcells
C86: Número total de BTS (sitios GSM) | G86: =ROUNDUP(GSM.coverage.sites+G80:P80,0) -> 1145 | H86: 736 | I86: 664 | J86: 43 | K86: 200 | L86: 0 | M86: 0 | N86: 0 | O86: 0 | P86: 0 | Q86: Sites.Total.GSM
Q88: Total
C89: Número total de TRX | G89: =ROUNDUP(G71:P71+G74:P74,0) -> 17162 | H89: 8390 | I89: 6368 | J89: 128 | K89: 1100 | L89: 0 | M89: 0 | N89: 0 | O89: 0 | P89: 0 | Q89: =SUM(G89:P89) -> 33148
P90: TRX.Total | Q90: Required.assets.TRX
B92: Comprobación de la capacidad en GPRS / EDGE
C94: Capacidad total de la red GSM para datos, después de utilización (Mbit/s) | G94: =Sites.Total.GSM*GSM.sectorisation*GPRS.channel.per.sector*Utilisation.TRX*GPRS.channel.rate/Thousand -> 1187.136 | H94: 763.0848 | I94: 688.4352 | J94: 44.5824 | K94: 69.12 | L94: 0 | M94: 0 | N94: 0 | O94: 0 | P94: 0
C97: Tráfico de datos pico en la red GSM
D99: Peak equivalent GPRS data load | G99: =Network.peak.GSM.data.load -> 23032.29082
D101: Network GSM data peak traffic by geotype | G101: =G99*GSM.data.traffic.distribution -> 15431.63485 | H101: 4606.458165 | I101: 2303.229082 | J101: 0 | K101: 690.9687247 | L101: 0 | M101: 0 | N101: 0 | O101: 0 | P101: 0
C103: Comprobación de capacidad | G103: =IF(G101:P101>G94:P94,1,0) -> 1 | H103: 1 | I103: 1 | J103: 0 | K103: 1 | L103: 0 | M103: 0 | N103: 0 | O103: 0 | P103: 0
D105: =IF(SUM(G103:P103)>0,"CHECK GPRS CAPACITY","OK") -> CHECK GPRS CAPACITY | F105: =IF(D105="OK",0,1) -> 1
D106: Check.GPRS.capacity
A109: 3. CÁLCULO DE LA CAPACIDAD UMTS
B111: Cálculos para R99
G112: =TRANSPOSE(Geotypes) -> Muy denso | H112: Denso | I112: Poco denso | J112: Otro | K112: Microceldas | L112: spare | M112: spare | N112: spare | O112: spare | P112: spare
C114: R99 BHE llevados por la red | G114: =G115:P115+G116:P116 -> 144666.0415 | H114: 41861.95731 | I114: 13550.17113 | J114: 0 | K114: 9231.616605 | L114: 0 | M114: 0 | N114: 0 | O114: 0 | P114: 0
C115: de los cuales voz | G115: =UMTS.Network.R99.BHE.voice -> 103331.3053 | H115: 29523.23009 | I115: 7380.807522 | J115: 0 | K115: 7380.807522 | L115: 0 | M115: 0 | N115: 0 | O115: 0 | P115: 0
C116: de los cuales datos | G116: =UMTS.Network.R99.BHE.data -> 41334.73621 | H116: 12338.72723 | I116: 6169.363613 | J116: 0 | K116: 1850.809084 | L116: 0 | M116: 0 | N116: 0 | O116: 0 | P116: 0
C118: Sitios para cobertura | G118: =UMTS.coverage.sites -> 982.3184207 | H118: 528.9561012 | I118: 248.931054 | J118: 8.722181987 | K118: 200 | L118: 0 | M118: 0 | N118: 0 | O118: 0 | P118: 0
C121: R99 BHE por sitio de cobertura | G121: =G122:P122+G123:P123 -> 147.2700078 | H121: 79.14070226 | I121: 54.43343012 | J121: 0 | K121: 46.15808303 | L121: 0 | M121: 0 | N121: 0 | O121: 0 | P121: 0
C122: de los cuales voz | G122: =IF(G115:P115=0,0,G115:P115/UMTS.coverage.sites) -> 105.1912528 | H122: 55.81414038 | I122: 29.65000711 | J122: 0 | K122: 36.90403761 | L122: 0 | M122: 0 | N122: 0 | O122: 0 | P122: 0
C123: de los cuales datos | G123: =IF(G116:P116=0,0,G116:P116/UMTS.coverage.sites) -> 42.07875505 | H123: 23.32656188 | I123: 24.78342301 | J123: 0 | K123: 9.25404542 | L123: 0 | M123: 0 | N123: 0 | O123: 0 | P123: 0
C125: Número de elementos de canal (CE) R99 requeridos para llevar el tráfico por sitio de cobertura | G125: =G126:P126+G127:P127 -> 260.0787551 | H125: 147.3265619 | I125: 96.78342301 | J125: 0 | K125: 96.25404542 | L125: 0 | M125: 0 | N125: 0 | O125: 0 | P125: 0
C126: de los cuales voz | G126: =IF(G122:P122=0,0,INDEX(Erlang.Table.R99.CE,MATCH(G122:P122/Utilisation.CE,Erlang.table.R99.Carriers.3G.blocking.selected,1)+1)) -> 218 | H126: 124 | I126: 72 | J126: 0 | K126: 87 | L126: 0 | M126: 0 | N126: 0 | O126: 0 | P126: 0
C127: de los cuales datos | G127: =G123:P123 -> 42.07875505 | H127: 23.32656188 | I127: 24.78342301 | J127: 0 | K127: 9.25404542 | L127: 0 | M127: 0 | N127: 0 | O127: 0 | P127: 0
C129: Número de elementos de canal (CE) R99 requeridos por tráfico para cada geotipo | G129: =G125:P125*UMTS.coverage.sites -> 255480.1519 | H129: 77929.28377 | I129: 24092.3995 | J129: 0 | K129: 19250.80908 | L129: 0 | M129: 0 | N129: 0 | O129: 0 | P129: 0
C132: Número mínimo de elementos de canal (CE) en sitios de cobertura | G132: =R99.CE.min*UMTS.coverage.sites -> 47151.28419 | H132: 25389.89286 | I132: 11948.69059 | J132: 418.6647354 | K132: 9600 | L132: 0 | M132: 0 | N132: 0 | O132: 0 | P132: 0
C135: Número máximo de elementos de canal (CE) en sitios de cobertura | G135: =R99.CE.max*Utilisation.NodeB*(Channels.UMTS.Coverage+Channels.UMTS.Capacity)*UMTS.coverage.sites -> 301768.2188 | H135: 162495.3143 | I135: 76471.6198 | J135: 2679.454306 | K135: 61440 | L135: 0 | M135: 0 | N135: 0 | O135: 0 | P135: 0
C138: Número de elementos de canal (CE) R99 en sitios de cobertura | G138: =MIN(MAX(G129,G132),G135) -> 255480.1519 | H138: 77929.28377 | I138: 24092.3995 | J138: 418.6647354 | K138: 19250.80908 | L138: 0 | M138: 0 | N138: 0 | O138: 0 | P138: 0 | Q138: CE.coverage.sites
C141: Número de portadoras R99 por sitio de cobertura, sin aplicar sectorización | G141: =IF(UMTS.coverage.sites=0,0,ROUNDUP(G138:P138/UMTS.coverage.sites/R99.CE.max,0)) -> 1 | H141: 1 | I141: 1 | J141: 1 | K141: 1 | L141: 0 | M141: 0 | N141: 0 | O141: 0 | P141: 0 | Q141: R99.carriers.per.coverage.site
C144: Número de portadoras R99 en sitios de cobertura, sin aplicar sectorización | G144: =UMTS.coverage.sites*G141:P141 -> 982.3184207 | H144: 528.9561012 | I144: 248.931054 | J144: 8.722181987 | K144: 200 | L144: 0 | M144: 0 | N144: 0 | O144: 0 | P144: 0
C147: Número de elementos de canal R99 en sitios de capacidad | G147: =IF(G129:P129>G138:P138,G129:P129-G138:P138,0) -> 0 | H147: 0 | I147: 0 | J147: 0 | K147: 0 | L147: 0 | M147: 0 | N147: 0 | O147: 0 | P147: 0 | Q147: CE.capacity.sites
C150: Número de portadoras R99 en sitios de capacidad, sin aplicar sectorización | G150: =ROUNDUP(G147:P147/(R99.CE.max*Utilisation.NodeB),0) -> 0 | H150: 0 | I150: 0 | J150: 0 | K150: 0 | L150: 0 | M150: 0 | N150: 0 | O150: 0 | P150: 0
B153: Cálculos para HSPA
G154: =TRANSPOSE(Geotypes) -> Muy denso | H154: Denso | I154: Poco denso | J154: Otro | K154: Microceldas | L154: spare | M154: spare | N154: spare | O154: spare | P154: spare
C155: HSPA BH Mbit/s llevados por la red
C156: para HSDPA | G156: =HSDPA.Network.BHMbits -> 43208.57758 | H156: 12898.08286 | I156: 6449.04143 | J156: 0 | K156: 1934.712429 | L156: 0 | M156: 0 | N156: 0 | O156: 0 | P156: 0
C157: para HSUPA | G157: =HSUPA.Network.BHMbits -> 10802.1444 | H157: 3224.520715 | I157: 1612.260358 | J157: 0 | K157: 483.6781073 | L157: 0 | M157: 0 | N157: 0 | O157: 0 | P157: 0
C159: HSPA BH Mbit/s por sitios de cobertura, factor entre tasa pico y media y utilización de los elementos de canal considerados
C160: para HSDPA | G160: =IF(UMTS.coverage.sites=0,0,G156:P156/UMTS.coverage.sites/Utilisation.CE/HSPA.peak.to.effective) -> 137.4572665 | H160: 76.20010215 | I160: 80.95918184 | J160: 0 | K160: 30.2298817 | L160: 0 | M160: 0 | N160: 0 | O160: 0 | P160: 0
C161: para HSUPA | G161: =IF(UMTS.coverage.sites=0,0,G157:P157/UMTS.coverage.sites/Utilisation.CE/HSPA.peak.to.effective) -> 34.36431663 | H161: 19.05002554 | I161: 20.23979546 | J161: 0 | K161: 7.557470426 | L161: 0 | M161: 0 | N161: 0 | O161: 0 | P161: 0
C163: Capacidad HSPA: tasa máxima obtenible por portadora, por sector, Mbit/s
C164: para HSDPA | G164: =IF(G156:P156=0,0,HSDPA.evolution.deployed) -> 21.1 | H164: 21.1 | I164: 21.1 | J164: 0 | K164: 21.1 | L164: 0 | M164: 0 | N164: 0 | O164: 0 | P164: 0
C165: para HSUPA | G165: =IF(G157:P157=0,0,HSUPA.evolution.deployed) -> 5.76 | H165: 5.76 | I165: 5.76 | J165: 0 | K165: 5.76 | L165: 0 | M165: 0 | N165: 0 | O165: 0 | P165: 0
C167: Capacidad HSPA: tasa máxima obtenible por portadora, por sitio Mbit/s
C168: para HSDPA | G168: =G164:P165*UMTS.sectorisation -> 63.3 | H168: 63.3 | I168: 63.3 | J168: 0 | K168: 21.1 | L168: 0 | M168: 0 | N168: 0 | O168: 0 | P168: 0
C169: para HSUPA | G169: 17.28 | H169: 17.28 | I169: 17.28 | J169: 0 | K169: 5.76 | L169: 0 | M169: 0 | N169: 0 | O169: 0 | P169: 0
C171: Número de portadoras HSPA requeridas por tráfico para cada geotipo, sin aplicar sectorización | G171: =MAX(G172,G173) -> 2133.124881 | H171: =MAX(H172,H173) -> 636.7536957 | I171: 318.3768479 | J171: 0 | K171: 286.5391631 | L171: 0 | M171: 0 | N171: 0 | O171: 0 | P171: 0
C172: para HSDPA | G172: =IF(G160:P160*G168:P168=0,0,UMTS.coverage.sites*G160:P160/G168:P168) -> 2133.124881 | H172: 636.7536957 | I172: 318.3768479 | J172: 0 | K172: 286.5391631 | L172: 0 | M172: 0 | N172: 0 | O172: 0 | P172: 0
C173: para HSUPA | G173: =IF(G161:P161*G169:P169=0,0,UMTS.coverage.sites*G161:P161/G169:P169) -> 1953.512803 | H173: 583.1381502 | I173: 291.5690751 | J173: 0 | K173: 262.4121676 | L173: 0 | M173: 0 | N173: 0 | O173: 0 | P173: 0
C175: Número mínimo de portadoras HSPA en sitios de cobertura, sin aplicar sectorización
C176: para HSDPA | G176: =UMTS.coverage.sites*(G156:P156>0)*HSDPA.minimum.carriers.deployment -> 982.3184207 | H176: 528.9561012 | I176: 248.931054 | J176: 0 | K176: 200 | L176: 0 | M176: 0 | N176: 0 | O176: 0 | P176: 0
C177: para HSUPA | G177: =UMTS.coverage.sites*(G157:P157>0)*HSUPA.minimum.carriers.deployment -> 982.3184207 | H177: 528.9561012 | I177: 248.931054 | J177: 0 | K177: 200 | L177: 0 | M177: 0 | N177: 0 | O177: 0 | P177: 0
C179: Número máximo de portadoras HSPA en sitios de cobertura, sin aplicar sectorización | G179: =UMTS.coverage.sites*(Channels.HSPA.Coverage+Channels.HSPA.Capacity) -> 2455.796052 | H179: 1322.390253 | I179: 622.3276351 | J179: 21.80545497 | K179: 500 | L179: 0 | M179: 0 | N179: 0 | O179: 0 | P179: 0
C182: Número de portadoras HSPA en sitios de cobertura, sin aplicar sectorización | G182: =MAX(G183:G184) -> 2133.124881 | H182: =MAX(H183:H184) -> 636.7536957 | I182: 318.3768479 | J182: 0 | K182: 286.5391631 | L182: 0 | M182: 0 | N182: 0 | O182: 0 | P182: 0 | Q182: HSPA.carriers.on.coverage.sites
C183: para HSDPA | G183: =MIN(MAX(G172,G176),G$179) -> 2133.124881 | H183: =MIN(MAX(H172,H176),H$179) -> 636.7536957 | I183: 318.3768479 | J183: 0 | K183: 286.5391631 | L183: 0 | M183: 0 | N183: 0 | O183: 0 | P183: 0
C184: para HSUPA | G184: =MIN(MAX(G173,G177),G$179) -> 1953.512803 | H184: 583.1381502 | I184: 291.5690751 | J184: 0 | K184: 262.4121676 | L184: 0 | M184: 0 | N184: 0 | O184: 0 | P184: 0
C186: Número de portadoras HSPA en sitios de capacidad, sin aplicar sectorización | G186: =MAX(G187:G188) -> 0 | H186: =MAX(H187:H188) -> 0 | I186: =MAX(I187:I188) -> 0 | J186: =MAX(J187:J188) -> 0 | K186: =MAX(K187:K188) -> 0 | L186: =MAX(L187:L188) -> 0 | M186: =MAX(M187:M188) -> 0 | N186: =MAX(N187:N188) -> 0 | O186: =MAX(O187:O188) -> 0 | P186: =MAX(P187:P188) -> 0
C187: para HSDPA | G187: =IF(G172:P172>G183:P183,G172:P172-G183:P183,0) -> 0 | H187: 0 | I187: 0 | J187: 0 | K187: 0 | L187: 0 | M187: 0 | N187: 0 | O187: 0 | P187: 0
C188: para HSUPA | G188: =IF(G173:P173>G184:P184,G173:P173-G184:P184,0) -> 0 | H188: 0 | I188: 0 | J188: 0 | K188: 0 | L188: 0 | M188: 0 | N188: 0 | O188: 0 | P188: 0
C190: Número total de portadoras HSPA, sin aplicar sectorización | G190: =MAX(G191:G192) -> 2134 | H190: =MAX(H191:H192) -> 637 | I190: =MAX(I191:I192) -> 319 | J190: =MAX(J191:J192) -> 0 | K190: =MAX(K191:K192) -> 287 | L190: =MAX(L191:L192) -> 0 | M190: =MAX(M191:M192) -> 0 | N190: =MAX(N191:N192) -> 0 | O190: =MAX(O191:O192) -> 0 | P190: =MAX(P191:P192) -> 0
C191: para HSDPA | G191: =ROUNDUP(G183:P183+G187:P187,0) -> 2134 | H191: 637 | I191: 319 | J191: 0 | K191: 287 | L191: 0 | M191: 0 | N191: 0 | O191: 0 | P191: 0
C192: para HSUPA | G192: =ROUNDUP(G184:P184+G188:P188,0) -> 1954 | H192: 584 | I192: 292 | J192: 0 | K192: 263 | L192: 0 | M192: 0 | N192: 0 | O192: 0 | P192: 0
C194: Número de portadoras por tasa HSDPA (Mbit/s), aplicando sectorización
D195: =HSDPA.Ladder -> 1.8 | G195: =SUMPRODUCT(IF(G$164:P$164=D195,1,0),G$191:P$191,UMTS.sectorisation) -> 0 | H195: Required.assets.HSDPA.sites.1.8
D196: 3.6 | G196: =SUMPRODUCT(IF(G$164:P$164=D196,1,0),G$191:P$191,UMTS.sectorisation) -> 0 | H196: Required.assets.HSDPA.sites.3.6
D197: 7.2 | G197: =SUMPRODUCT(IF(G$164:P$164=D197,1,0),G$191:P$191,UMTS.sectorisation) -> 0 | H197: Required.assets.HSDPA.sites.7.2
D198: 10.1 | G198: =SUMPRODUCT(IF(G$164:P$164=D198,1,0),G$191:P$191,UMTS.sectorisation) -> 0 | H198: Required.assets.HSDPA.sites.10.1
D199: 14.4 | G199: =SUMPRODUCT(IF(G$164:P$164=D199,1,0),G$191:P$191,UMTS.sectorisation) -> 0 | H199: Required.assets.HSDPA.sites.14.1
D200: 21.1 | G200: =SUMPRODUCT(IF(G$164:P$164=D200,1,0),G$191:P$191,UMTS.sectorisation) -> 9557 | H200: Required.assets.HSDPA.sites.21.1
G201: Required.assets.HSDPA.all.steps
C202: Número de portadoras por tasa HSUPA (Mbit/s), aplicando sectorización
D203: =HSUPA.Ladder -> 0.73 | G203: =SUMPRODUCT(IF(G$165:P$165=$D203,1,0),G$192:P$192,UMTS.sectorisation) -> 0 | H203: Required.assets.HSUPA.sites.0.73
D204: 1.46 | G204: =SUMPRODUCT(IF(G$165:P$165=$D204,1,0),G$192:P$192,UMTS.sectorisation) -> 0 | H204: Required.assets.HSUPA.sites.1.46
D205: 2 | G205: =SUMPRODUCT(IF(G$165:P$165=$D205,1,0),G$192:P$192,UMTS.sectorisation) -> 0 | H205: Required.assets.HSUPA.sites.2
D206: 2.93 | G206: =SUMPRODUCT(IF(G$165:P$165=$D206,1,0),G$192:P$192,UMTS.sectorisation) -> 0 | H206: Required.assets.HSUPA.sites.2.93
D207: 5.76 | G207: =SUMPRODUCT(IF(G$165:P$165=$D207,1,0),G$192:P$192,UMTS.sectorisation) -> 8753 | H207: Required.assets.HSUPA.sites.5.76
D208: 11.5 | G208: =SUMPRODUCT(IF(G$165:P$165=$D208,1,0),G$192:P$192,UMTS.sectorisation) -> 0 | H208: Required.assets.HSUPA.sites.11.5
B211: Sitios de capacidad
C213: Número de portadoras R99 en sitios de capacidad, sin aplicar sectorización | G213: =G150:P150 -> 0 | H213: 0 | I213: 0 | J213: 0 | K213: 0 | L213: 0 | M213: 0 | N213: 0 | O213: 0 | P213: 0
C216: Número de portadoras HSPA en sitios de capacidad, sin aplicar sectorización | G216: =G187:P187 -> 0 | H216: 0 | I216: 0 | J216: 0 | K216: 0 | L216: 0 | M216: 0 | N216: 0 | O216: 0 | P216: 0
C219: Máximo número de portadoras por sitio de capacidad, sin aplicar sectorización
D220: Para R99 | G220: =Channels.UMTS.Coverage+Channels.UMTS.Capacity -> 1 | H220: 1 | I220: 1 | J220: 1 | K220: 1 | L220: 0 | M220: 0 | N220: 0 | O220: 0 | P220: 0
D221: Para HSPA | G221: =Channels.HSPA.Coverage+Channels.HSPA.Capacity -> 2.5 | H221: 2.5 | I221: 2.5 | J221: 2.5 | K221: 2.5 | L221: 0 | M221: 0 | N221: 0 | O221: 0 | P221: 0
C223: Número de sitios de capacidad | G223: =MAX(IF(G220=0,0,G213/G220),IF(G221=0,0,G216/G221)) -> 0 | H223: =MAX(IF(H220=0,0,H213/H220),IF(H221=0,0,H216/H221)) -> 0 | I223: 0 | J223: 0 | K223: 0 | L223: 0 | M223: 0 | N223: 0 | O223: 0 | P223: 0
D224: Comprobrar número
D225: =SUM(G223:P223) -> 0
D226: Check.UMTS.capacity.sites
D228: Comprobar la capacidad de las microceldas
D229: =J223 -> 0
D230: Check.UMTS.HSPA.microcells
Q231: Sites.Total.UMTS
C232: Número total de NodeB (sitios UMTS y HSPA) | G232: =ROUNDUP(UMTS.coverage.sites+G223:P223,0) -> 983 | H232: 529 | I232: 249 | J232: 9 | K232: 200 | L232: 0 | M232: 0 | N232: 0 | O232: 0 | P232: 0
Q234: Total
C235: Número total de portadoras 3G, aplicando sectorización | G235: =ROUNDUP(G144:P144+G150:P150+G190:P190,0)*UMTS.sectorisation -> 9351 | H235: 3498 | I235: 1704 | J235: 27 | K235: 487 | L235: 0 | M235: 0 | N235: 0 | O235: 0 | P235: 0 | Q235: =SUM(G235:P235) -> 15067
P236: Carriers.3G.total | Q236: Required.assets.3G.carriers
Q238: Total
C239: Número total de elementos de canal | G239: =ROUNDUP((CE.coverage.sites+CE.capacity.sites)/CK.size,0) -> 15968 | H239: 4871 | I239: 1506 | J239: 27 | K239: 1204 | L239: 0 | M239: 0 | N239: 0 | O239: 0 | P239: 0 | Q239: =SUM(G239:P239) -> 23576
Q240: Required.assets.CK
A243: 4. CÁLCULO DE LA CAPACIDAD LTE
B245: Cálculos para LTE
G246: =TRANSPOSE(Geotypes) -> Muy denso | H246: Denso | I246: Poco denso | J246: Otro | K246: Microceldas | L246: spare | M246: spare | N246: spare | O246: spare | P246: spare
C248: Sitios para cobertura | G248: =LTE.coverage.sites -> 2396.533935 | H248: 970.7499971 | I248: 364.370139 | J248: 6.057070824 | K248: 100 | L248: 0 | M248: 0 | N248: 0 | O248: 0 | P248: 0
C251: LTE BH Mbit/s llevados por la red | G251: =LTE.Network.BHMbits -> 31587.1417 | H251: 5132.910526 | I251: 1974.196356 | J251: 0 | K251: 789.6785425 | L251: 0 | M251: 0 | N251: 0 | O251: 0 | P251: 0
C254: LTE BH Mbit/s por sitios de cobertura, factor entre tasa pico y media y utilización de los elementos de canal considerados | G254: =IF(LTE.coverage.sites=0,0,G251:P251/LTE.coverage.sites/Utilisation.CE/LTE.peak.to.effective) -> 41.18857503 | H254: 16.52366257 | I254: 16.93158399 | J254: 0 | K254: 24.67745445 | L254: 0 | M254: 0 | N254: 0 | O254: 0 | P254: 0
C257: Capacidad LTE: tasa máxima efectiva por portadora, por sector, Mbit/s | G257: =IF(G251:P251=0,0,LTE.evolution.deployed) -> 32.4 | H257: 32.4 | I257: 32.4 | J257: 0 | K257: 32.4 | L257: 0 | M257: 0 | N257: 0 | O257: 0 | P257: 0
C260: Capacidad LTE: tasa máxima efectiva por portadora, por sitio, Mbit/s | G260: =G257:P257*LTE.sectorisation -> 97.2 | H260: 97.2 | I260: 97.2 | J260: 0 | K260: 32.4 | L260: 0 | M260: 0 | N260: 0 | O260: 0 | P260: 0
C263: Número de portadoras LTE requeridas por tráfico para cada geotipo, sin aplicar sectorización | G263: =IF(G254:P254*G260:P260=0,0,LTE.coverage.sites*G254:P254/G260:P260) -> 1015.533105 | H263: 165.0241296 | I263: 63.47081907 | J263: 0 | K263: 76.16498288 | L263: 0 | M263: 0 | N263: 0 | O263: 0 | P263: 0
C266: Número mínimo de portadoras LTE en sitios de cobertura, sin aplicar sectorización | G266: =LTE.coverage.sites*(G251:P251>0)*LTE.minimum.carriers.deployment -> 2396.533935 | H266: 970.7499971 | I266: 364.370139 | J266: 0 | K266: 100 | L266: 0 | M266: 0 | N266: 0 | O266: 0 | P266: 0
C269: Número máximo de portadoras LTE en sitios de cobertura, sin aplicar sectorización | G269: =LTE.coverage.sites*(Channels.LTE.Coverage+Channels.LTE.Capacity) -> 5991.334838 | H269: 2426.874993 | I269: 910.9253474 | J269: 15.14267706 | K269: 250 | L269: 0 | M269: 0 | N269: 0 | O269: 0 | P269: 0
C272: Número de portadoras en sitios de cobertura, sin aplicar sectorización | G272: =MIN(MAX(G263,G266),G269) -> 2396.533935 | H272: 970.7499971 | I272: 364.370139 | J272: 0 | K272: 100 | L272: 0 | M272: 0 | N272: 0 | O272: 0 | P272: 0 | Q272: LTE.carriers.on.coverage.sites
C275: Número de portadoras LTE en sitios de capacidad, sin aplicar sectorización | G275: =IF(G263:P263>G272:P272,G263:P263-G272:P272,0) -> 0 | H275: 0 | I275: 0 | J275: 0 | K275: 0 | L275: 0 | M275: 0 | N275: 0 | O275: 0 | P275: 0
Q277: Total
C278: Número total de portadoras LTE, aplicando la sectorización | G278: =ROUNDUP(G272:P272+G275:P275,0)*LTE.sectorisation -> 7191 | H278: 2913 | I278: 1095 | J278: 0 | K278: 100 | L278: 0 | M278: 0 | N278: 0 | O278: 0 | P278: 0 | Q278: =SUM(G278:P278) -> 11299
P279: Carriers.LTE.total | Q279: Required.assets.LTE.carriers
C281: Número de portadoras LTE por tasa utilizada
D282: =LTE.Ladder -> 10.8 | G282: =SUMIF(G$257:P$257,D282,G$278:P$278) -> 0 | H282: Required.assets.LTE.sites.10.8
D283: 16.2 | G283: 0 | H283: Required.assets.LTE.sites.16.2
D284: 21.6 | G284: 0 | H284: Required.assets.LTE.sites.21.6
D285: 32.4 | G285: 11299 | H285: Required.assets.LTE.sites.32.4
D286: 43.2 | G286: 0 | H286: Required.assets.LTE.sites.43.2
D287: 86.4 | G287: 0 | H287: Required.assets.LTE.sites.86.4
G288: Required.assets.LTE.all.steps
C290: Número máximo de portadoras por sitios de capacidad | G290: =Channels.LTE.Coverage+Channels.LTE.Capacity -> 2.5 | H290: 2.5 | I290: 2.5 | J290: 2.5 | K290: 2.5 | L290: 0 | M290: 0 | N290: 0 | O290: 0 | P290: 0
C293: Número de sitios de capacidad | G293: =IF(G290:P290=0,0,G275:P275/G290:P290) -> 0 | H293: 0 | I293: 0 | J293: 0 | K293: 0 | L293: 0 | M293: 0 | N293: 0 | O293: 0 | P293: 0
D294: Comprobar número
D295: =SUM(G293:P293) -> 0
D296: Check.LTE.capacity.sites
D298: Comprobar la capacidad de las microceldas
D299: =J293 -> 0
D300: Check.LTE.microcells
C302: Número total de eNodeB (sitios LTE) | G302: =ROUNDUP(LTE.coverage.sites+G293:P293,0) -> 2397 | H302: 971 | I302: 365 | J302: 7 | K302: 100 | L302: 0 | M302: 0 | N302: 0 | O302: 0 | P302: 0 | Q302: Sites.Total.LTE
A306: 5. CÁLCULOS SINGLE RAN
G308: =TRANSPOSE(Geotypes) -> Muy denso | H308: Denso | I308: Poco denso | J308: Otro | K308: Microceldas | L308: spare | M308: spare | N308: spare | O308: spare | P308: spare
C310: Número total de activos requeridos
D311: TRXs | G311: =TRX.Total -> 17162 | H311: 8390 | I311: 6368 | J311: 128 | K311: 1100 | L311: 0 | M311: 0 | N311: 0 | O311: 0 | P311: 0
D312: Portadoras 3G | G312: =Carriers.3G.total -> 9351 | H312: 3498 | I312: 1704 | J312: 27 | K312: 487 | L312: 0 | M312: 0 | N312: 0 | O312: 0 | P312: 0
D313: Portadoras LTE | G313: =Carriers.LTE.total -> 7191 | H313: 2913 | I313: 1095 | J313: 0 | K313: 100 | L313: 0 | M313: 0 | N313: 0 | O313: 0 | P313: 0
C315: Capacidad de una estación base S-RAN
D316: Por sector
E317: TRXs | G317: =Single.RAN.base.station.capacity -> 8 | H317: 8 | I317: 8 | J317: 8 | K317: 8 | L317: 8 | M317: 8 | N317: 8 | O317: 8 | P317: 8
E318: Portadoras 3G | G318: 4 | H318: 4 | I318: 4 | J318: 4 | K318: 4 | L318: 4 | M318: 4 | N318: 4 | O318: 4 | P318: 4
E319: Portadoras LTE | G319: 4 | H319: 4 | I319: 4 | J319: 4 | K319: 4 | L319: 4 | M319: 4 | N319: 4 | O319: 4 | P319: 4
D321: Por celda
E322: TRXs | G322: =G317:P317*GSM.sectorisation -> 24 | H322: 24 | I322: 24 | J322: 24 | K322: 8 | L322: 24 | M322: 24 | N322: 24 | O322: 24 | P322: 24
E323: Portadoras 3G | G323: =G318:P318*UMTS.sectorisation -> 12 | H323: 12 | I323: 12 | J323: 12 | K323: 4 | L323: 0 | M323: 0 | N323: 0 | O323: 0 | P323: 0
E324: Portadoras LTE | G324: =G319:P319*LTE.sectorisation -> 12 | H324: 12 | I324: 12 | J324: 12 | K324: 4 | L324: 0 | M324: 0 | N324: 0 | O324: 0 | P324: 0
C326: Número de sitios
D327: GSM | G327: =Sites.Total.GSM -> 1145 | H327: 736 | I327: 664 | J327: 43 | K327: 200 | L327: 0 | M327: 0 | N327: 0 | O327: 0 | P327: 0
D328: UMTS | G328: =Sites.Total.UMTS -> 983 | H328: 529 | I328: 249 | J328: 9 | K328: 200 | L328: 0 | M328: 0 | N328: 0 | O328: 0 | P328: 0
D329: LTE | G329: =Sites.Total.LTE -> 2397 | H329: 971 | I329: 365 | J329: 7 | K329: 100 | L329: 0 | M329: 0 | N329: 0 | O329: 0 | P329: 0
D330: Maximum | G330: =MAX(G327:G329) -> 2397 | H330: =MAX(H327:H329) -> 971 | I330: 664 | J330: 43 | K330: 200 | L330: 0 | M330: 0 | N330: 0 | O330: 0 | P330: 0
C332: Número de estaciones base S-RAN requeridas por sitio | G332: =MAX(G333:G335) -> 1 | H332: =MAX(H333:H335) -> 1 | I332: 1 | J332: 1 | K332: 1 | L332: 0 | M332: 0 | N332: 0 | O332: 0 | P332: 0
D333: GSM | G333: =IF(G311:P313=0,0,ROUNDUP(G311:P313/G327:P329/G322:P324,0)) -> 1 | H333: 1 | I333: 1 | J333: 1 | K333: 1 | L333: 0 | M333: 0 | N333: 0 | O333: 0 | P333: 0
D334: UMTS | G334: 1 | H334: 1 | I334: 1 | J334: 1 | K334: 1 | L334: 0 | M334: 0 | N334: 0 | O334: 0 | P334: 0
D335: LTE | G335: 1 | H335: 1 | I335: 1 | J335: 0 | K335: 1 | L335: 0 | M335: 0 | N335: 0 | O335: 0 | P335: 0
C338: Número de estaciones base S-RAN | G338: =G332:P332*G330:P330 -> 2397 | H338: 971 | I338: 664 | J338: 43 | K338: 200 | L338: 0 | M338: 0 | N338: 0 | O338: 0 | P338: 0 | Q338: Total
D339: de las cuales macro estaciones base S-RAN | G339: =G338:P338-G340:P340 -> 2397 | H339: 971 | I339: 664 | J339: 43 | K339: 0 | L339: 0 | M339: 0 | N339: 0 | O339: 0 | P339: 0 | Q339: =SUM(G339:P339) -> 4075
D340: de las cuales micro estaciones base S-RAN | G340: =G338:P338*IF(LTE.sectorisation=1,1,0) -> 0 | H340: 0 | I340: 0 | J340: 0 | K340: 200 | L340: 0 | M340: 0 | N340: 0 | O340: 0 | P340: 0 | Q340: =SUM(G340:P340) -> 200
... 758 more rows

Sheet AssetsInputs
D1: Datos de entrada de inversión y opex
A4: DATOS DE ENTRADA DEL INVERSIÓN Y OPEX DEL EQUIPAMIENTO
B6: Tendencias de costos del equipamiento
H7: Tendencia de costos real | I7: Tendencia de costos nominal | K7: Vida útil | P7: Tendencia de costos real | Q7: Tendencia de costos nominal
C8: Equipamiento BTS/NodeB/eNodeB | H8: -0.05 | I8: =(1+H8)*(1+Inflation.rate.average)-1 -> -0.02270764544 | K8: 8 | P8: 0 | Q8: =(1+P8)*(1+Inflation.rate.average)-1 -> 0.02872879428
C9: TRX, portadoras, CK, HSPA, etc. | H9: -0.05 | I9: -0.02270764544 | K9: 6 | P9: 0 | Q9: 0.02872879428
C10: Sitios | H10: 0.01 | I10: 0.03901608222 | K10: 25 | P10: 0.01 | Q10: 0.03901608222
C11: Líneas alquiladas | H11: -0.02 | I11: 0.008154218392 | K11: 5 | P11: -0.1 | Q11: -0.07414408515
C12: Microondas | H12: -0.05 | I12: -0.02270764544 | K12: 8 | P12: 0 | Q12: 0.02872879428
C13: Fibra | H13: 0.01 | I13: 0.03901608222 | K13: 20 | P13: 0 | Q13: 0.02872879428
C14: Transmisión MUX etc. equipamiento, excluyendo microondas | H14: -0.05 | I14: -0.02270764544 | K14: 8 | P14: 0 | Q14: 0.02872879428
C15: BSC/RNC switches | H15: -0.05 | I15: -0.02270764544 | K15: 8 | P15: 0 | Q15: 0.02872879428
C16: Network switches | H16: -0.05 | I16: -0.02270764544 | K16: 6 | P16: 0 | Q16: 0.02872879428
C17: Network servers | H17: -0.05 | I17: -0.02270764544 | K17: 6 | P17: 0 | Q17: 0.02872879428
C18: Network software | H18: -0.05 | I18: -0.02270764544 | K18: 6 | P18: 0 | Q18: 0.02872879428
C19: Network Management System | H19: -0.05 | I19: -0.02270764544 | K19: 8 | P19: 0 | Q19: =(1+P19)*(1+Inflation.rate.average)-1 -> 0.02872879428
C20: Puertos | H20: -0.05 | I20: -0.02270764544 | K20: 8 | P20: 0 | Q20: 0.02872879428
C21: Licencias | H21: 0 | I21: 0.02872879428 | K21: 15 | P21: =H21 -> 0 | Q21: 0.02872879428
C22: Spare | H22: 0 | I22: 0.02872879428 | K22: 1 | P22: 0 | Q22: 0.02872879428
C23: Spare | H23: 0 | I23: 0.02872879428 | K23: 1 | P23: 0 | Q23: 0.02872879428
C24: Spare | H24: 0 | I24: 0.02872879428 | K24: 1 | P24: 0 | Q24: 0.02872879428
C25: Spare | H25: 0 | I25: 0.02872879428 | K25: 1 | P25: 0 | Q25: 0.02872879428
C26: Spare | H26: 0 | I26: 0.02872879428 | K26: 1 | P26: 0 | Q26: 0.02872879428
C27: Assets.cost.trend.names | I27: Capex.cost.trends | K27: Lifetimes | Q27: Opex.cost.trends
B29: Valores por activo | H29: 2015/2016 | J29: =CTRL.year.selected -> 2015/2016
H30: Datos de entrada de inversión | N30: Datos de entrada de opex
C31: Nombre del activo | D31: Categoría de costos | E31: Factor de enrutamiento asociado | F31: Notas | H31: Precio de compra (y instalación, comisionado, integración y tests cuando se necesitan) - año de referencia | I31: Tendencia de costos | J31: Precio - año seleccionado | K31: Vida útil | N31: % de inversión | O31: Opex directo | P31: Tendencia de costos | Q31: Opex asumido
B32: 1 | C32: Asset 1 | D32: Equipamiento BTS/NodeB/eNodeB | E32: Sin enrutamiento | H32: 0 | I32: =INDEX(Capex.cost.trends, MATCH($D32, Assets.cost.trend.names, 0)) -> -0.02270764544 | J32: =H32:H231*(1+I32:I231)^(RIGHT(J$29,4)-RIGHT(H$29,4)) -> 0 | K32: =INDEX(Lifetimes, MATCH($D32, Assets.cost.trend.names, 0)) -> 8 | N32: 0 | O32: 0 | P32: =INDEX(Opex.cost.trends, MATCH(D32, Assets.cost.trend.names, 0)) -> 0.02872879428 | Q32: =(N32*J32) + (O32*(1+P32)^(RIGHT(J$29,4)-RIGHT(H$29,4))) -> 0
B33: =1+B32 -> 2 | C33: Asset 2 | D33: Equipamiento BTS/NodeB/eNodeB | E33: Sin enrutamiento | H33: 0 | I33: -0.02270764544 | J33: 0 | K33: 8 | N33: 0 | O33: 0 | P33: 0.02872879428 | Q33: 0
B34: 3 | C34: Asset 3 | D34: Equipamiento BTS/NodeB/eNodeB | E34: Sin enrutamiento | H34: 0 | I34: -0.02270764544 | J34: 0 | K34: 8 | N34: 0 | O34: 0 | P34: 0.02872879428 | Q34: 0
B35: 4 | C35: TRX | D35: TRX, portadoras, CK, HSPA, etc. | E35: Minutos radio equivalentes GSM | H35: 1400 | I35: -0.02270764544 | J35: 1400 | K35: 6 | N35: 0.1 | O35: 0 | P35: 0.02872879428 | Q35: 140
B36: 5 | C36: Asset 4 | D36: Equipamiento BTS/NodeB/eNodeB | E36: Sin enrutamiento | H36: 0 | I36: -0.02270764544 | J36: 0 | K36: 8 | N36: 0 | O36: 0 | P36: 0.02872879428 | Q36: 0
B37: 6 | C37: Asset 5 | D37: Equipamiento BTS/NodeB/eNodeB | E37: Sin enrutamiento | H37: 0 | I37: -0.02270764544 | J37: 0 | K37: 8 | N37: 0 | O37: 0 | P37: 0.02872879428 | Q37: 0
B38: 7 | C38: Portadora 3G | D38: TRX, portadoras, CK, HSPA, etc. | E38: Minutos radio equivalentes UMTS R99 | H38: 4500 | I38: -0.02270764544 | J38: 4500 | K38: 6 | N38: 0.1 | O38: 0 | P38: 0.02872879428 | Q38: 450
B39: 8 | C39: Channel kit | D39: TRX, portadoras, CK, HSPA, etc. | E39: Minutos radio equivalentes UMTS R99 | H39: 580 | I39: -0.02270764544 | J39: 580 | K39: 6 | N39: 0.06 | O39: 0 | P39: 0.02872879428 | Q39: 34.8
B40: 9 | C40: ="HSDPA salto a: "&HSDPA.Ladder -> HSDPA salto a: 1.8 | D40: TRX, portadoras, CK, HSPA, etc. | E40: Tráfico radio HSDPA | H40: 550 | I40: -0.02270764544 | J40: 550 | K40: 6 | N40: 0.21 | O40: 0 | P40: 0.02872879428 | Q40: 115.5
B41: 10 | C41: HSDPA salto a: 3.6 | D41: TRX, portadoras, CK, HSPA, etc. | E41: Tráfico radio HSDPA | H41: 550 | I41: -0.02270764544 | J41: 550 | K41: 6 | N41: =N40 -> 0.21 | O41: 0 | P41: 0.02872879428 | Q41: 115.5
B42: 11 | C42: HSDPA salto a: 7.2 | D42: TRX, portadoras, CK, HSPA, etc. | E42: Tráfico radio HSDPA | H42: 725 | I42: -0.02270764544 | J42: 725 | K42: 6 | N42: =N41 -> 0.21 | O42: 0 | P42: 0.02872879428 | Q42: =(N42*J42) + (O42*(1+P42)^(RIGHT(J$29,4)-RIGHT(H$29,4))) -> 152.25
B43: 12 | C43: HSDPA salto a: 10.1 | D43: TRX, portadoras, CK, HSPA, etc. | E43: Tráfico radio HSDPA | H43: 1060 | I43: -0.02270764544 | J43: 1060 | K43: 6 | N43: 0.21 | O43: 0 | P43: 0.02872879428 | Q43: 222.6
B44: 13 | C44: HSDPA salto a: 14.4 | D44: TRX, portadoras, CK, HSPA, etc. | E44: Tráfico radio HSDPA | H44: 1500 | I44: -0.02270764544 | J44: 1500 | K44: 6 | N44: 0.21 | O44: 0 | P44: 0.02872879428 | Q44: 315
B45: 14 | C45: HSDPA salto a: 21.1 | D45: TRX, portadoras, CK, HSPA, etc. | E45: Tráfico radio HSDPA | H45: 1700 | I45: -0.02270764544 | J45: 1700 | K45: 6 | N45: 0.21 | O45: 0 | P45: 0.02872879428 | Q45: 357
B46: 15 | C46: ="HSUPA salto a: "&HSUPA.Ladder -> HSUPA salto a: 0.73 | D46: TRX, portadoras, CK, HSPA, etc. | E46: Tráfico radio HSUPA | H46: 190 | I46: -0.02270764544 | J46: 190 | K46: 6 | N46: 0.13 | O46: 0 | P46: 0.02872879428 | Q46: 24.7
B47: 16 | C47: HSUPA salto a: 1.46 | D47: TRX, portadoras, CK, HSPA, etc. | E47: Tráfico radio HSUPA | H47: 20 | I47: -0.02270764544 | J47: 20 | K47: 6 | N47: =N46 -> 0.13 | O47: 0 | P47: 0.02872879428 | Q47: 2.6
B48: 17 | C48: HSUPA salto a: 2 | D48: TRX, portadoras, CK, HSPA, etc. | E48: Tráfico radio HSUPA | H48: 20 | I48: -0.02270764544 | J48: 20 | K48: 6 | N48: =N47 -> 0.13 | O48: 0 | P48: 0.02872879428 | Q48: 2.6
B49: 18 | C49: HSUPA salto a: 2.93 | D49: TRX, portadoras, CK, HSPA, etc. | E49: Tráfico radio HSUPA | H49: 20 | I49: -0.02270764544 | J49: 20 | K49: 6 | N49: =N48 -> 0.13 | O49: 0 | P49: 0.02872879428 | Q49: 2.6
B50: 19 | C50: HSUPA salto a: 5.76 | D50: TRX, portadoras, CK, HSPA, etc. | E50: Tráfico radio HSUPA | H50: 20 | I50: -0.02270764544 | J50: 20 | K50: 6 | N50: 0.13 | O50: 0 | P50: 0.02872879428 | Q50: 2.6
B51: 20 | C51: HSUPA salto a: 11.5 | D51: TRX, portadoras, CK, HSPA, etc. | E51: Tráfico radio HSUPA | H51: 30 | I51: -0.02270764544 | J51: 30 | K51: 6 | N51: 0.13 | O51: 0 | P51: 0.02872879428 | Q51: 3.9
B52: 21 | C52: Asset 21 | D52: Equipamiento BTS/NodeB/eNodeB | E52: Sin enrutamiento | H52: 0 | I52: -0.02270764544 | J52: 0 | K52: 8 | N52: 0 | O52: 0 | P52: 0.02872879428 | Q52: 0
B53: 22 | C53: Asset 22 | D53: Equipamiento BTS/NodeB/eNodeB | E53: Sin enrutamiento | H53: 0 | I53: -0.02270764544 | J53: 0 | K53: 8 | N53: 0 | O53: 0 | P53: 0.02872879428 | Q53: 0
B54: 23 | C54: Portadora LTE | D54: TRX, portadoras, CK, HSPA, etc. | E54: Tráfico radio LTE | H54: 2800 | I54: -0.02270764544 | J54: 2800 | K54: 6 | N54: 0.2 | O54: 0 | P54: 0.02872879428 | Q54: 560
B55: 24 | C55: ="LTE salto a: "&LTE.Ladder -> LTE salto a: 10.8 | D55: TRX, portadoras, CK, HSPA, etc. | E55: Tráfico radio LTE | H55: 1930 | I55: -0.02270764544 | J55: 1930 | K55: 6 | N55: 0.16 | O55: 0 | P55: 0.02872879428 | Q55: 308.8
B56: 25 | C56: LTE salto a: 16.2 | D56: TRX, portadoras, CK, HSPA, etc. | E56: Tráfico radio LTE | H56: 1550 | I56: -0.02270764544 | J56: 1550 | K56: 6 | N56: =N55 -> 0.16 | O56: 0 | P56: 0.02872879428 | Q56: 248
B57: 26 | C57: LTE salto a: 21.6 | D57: TRX, portadoras, CK, HSPA, etc. | E57: Tráfico radio LTE | H57: 1600 | I57: -0.02270764544 | J57: 1600 | K57: 6 | N57: =N56 -> 0.16 | O57: 0 | P57: 0.02872879428 | Q57: 256
B58: 27 | C58: LTE salto a: 32.4 | D58: TRX, portadoras, CK, HSPA, etc. | E58: Tráfico radio LTE | H58: 1600 | I58: -0.02270764544 | J58: 1600 | K58: 6 | N58: =N57 -> 0.16 | O58: 0 | P58: 0.02872879428 | Q58: 256
B59: 28 | C59: LTE salto a: 43.2 | D59: TRX, portadoras, CK, HSPA, etc. | E59: Tráfico radio LTE | H59: 1900 | I59: -0.02270764544 | J59: 1900 | K59: 6 | N59: 0.16 | O59: 0 | P59: 0.02872879428 | Q59: 304
B60: 29 | C60: LTE salto a: 86.4 | D60: TRX, portadoras, CK, HSPA, etc. | E60: Tráfico radio LTE | H60: 1700 | I60: -0.02270764544 | J60: 1700 | K60: 6 | N60: 0.16 | O60: 0 | P60: 0.02872879428 | Q60: 272
B61: 30 | C61: Estación base Single RAN - macro | D61: Equipamiento BTS/NodeB/eNodeB | E61: Minutos radio equivalentes | H61: 90000 | I61: -0.02270764544 | J61: 90000 | K61: =INDEX(Lifetimes, MATCH($D61, Assets.cost.trend.names, 0)) -> 8 | N61: 0.15 | O61: 0 | P61: 0.02872879428 | Q61: 13500
B62: 31 | C62: Estación base Single RAN - micro | D62: Equipamiento BTS/NodeB/eNodeB | E62: Minutos radio equivalentes | H62: 40000 | I62: -0.02270764544 | J62: 40000 | K62: 8 | N62: =N61 -> 0.15 | O62: 0 | P62: 0.02872879428 | Q62: 6000
B63: 32 | C63: BBU tarjeta 3G en estación base Single RAN | D63: TRX, portadoras, CK, HSPA, etc. | E63: Minutos radio equivalentes UMTS+HSPA | H63: 3400 | I63: -0.02270764544 | J63: 3400 | K63: 6 | N63: 0.1 | O63: 0 | P63: 0.02872879428 | Q63: 340
B64: 33 | C64: BBU tarjeta 4G en estación base Single RAN | D64: TRX, portadoras, CK, HSPA, etc. | E64: Tráfico radio LTE | H64: 4700 | I64: -0.02270764544 | J64: 4700 | K64: 6 | N64: =N63 -> 0.1 | O64: 0 | P64: =INDEX(Opex.cost.trends, MATCH(D64, Assets.cost.trend.names, 0)) -> 0.02872879428 | Q64: 470
B65: =1+B64 -> 34 | C65: Sitios propios - macro | D65: Sitios | E65: Minutos radio equivalentes | H65: 104000 | I65: =INDEX(Capex.cost.trends, MATCH($D65, Assets.cost.trend.names, 0)) -> 0.03901608222 | J65: 104000 | K65: =INDEX(Lifetimes, MATCH($D65, Assets.cost.trend.names, 0)) -> 25 | N65: 0.1 | O65: 0 | P65: 0.03901608222 | Q65: 10400
B66: 35 | C66: Sitios propios - micro | D66: Sitios | E66: Minutos radio equivalentes | H66: 33600 | I66: 0.03901608222 | J66: 33600 | K66: 25 | N66: =N65 -> 0.1 | O66: 0 | P66: 0.03901608222 | Q66: 3360
B67: 36 | C67: Sitios de terceros - macro | D67: Sitios | E67: Minutos radio equivalentes | H67: 50000 | I67: 0.03901608222 | J67: 50000 | K67: 25 | N67: 0 | O67: 10000 | P67: 0.03901608222 | Q67: 10000
B68: 37 | C68: Sitios de terceros - micro | D68: Sitios | E68: Minutos radio equivalentes | H68: 18000 | I68: 0.03901608222 | J68: 18000 | K68: 25 | N68: 0 | O68: 5000 | P68: 0.03901608222 | Q68: 5000
B69: 38 | C69: ="LMA: líneas alquiladas TDM: "&LMA.ladder.ATM -> LMA: líneas alquiladas TDM: 2.048 | D69: Líneas alquiladas | E69: LMA PCM Mbytes de tráfico | H69: 200 | I69: 0.008154218392 | J69: 200 | K69: 5 | N69: 0 | O69: 1800 | P69: -0.07414408515 | Q69: 1800
B70: 39 | C70: LMA: líneas alquiladas TDM: 8.45 | D70: Líneas alquiladas | E70: LMA PCM Mbytes de tráfico | H70: 800 | I70: 0.008154218392 | J70: 800 | K70: 5 | N70: 0 | O70: 4800 | P70: -0.07414408515 | Q70: 4800
B71: 40 | C71: LMA: líneas alquiladas TDM: 34.37 | D71: Líneas alquiladas | E71: LMA PCM Mbytes de tráfico | H71: 2200 | I71: 0.008154218392 | J71: 2200 | K71: 5 | N71: 0 | O71: 13200 | P71: -0.07414408515 | Q71: 13200
B72: 41 | C72: ="LMA: líneas alquiladas Ethernet: "&LMA.ladder.Ethernet -> LMA: líneas alquiladas Ethernet: 10 | D72: Líneas alquiladas | E72: LMA IP Mbytes de tráfico | H72: 2000 | I72: 0.008154218392 | J72: 2000 | K72: 5 | N72: 0 | O72: 4200 | P72: -0.07414408515 | Q72: 4200
B73: 42 | C73: LMA: líneas alquiladas Ethernet: 30 | D73: Líneas alquiladas | E73: LMA IP Mbytes de tráfico | H73: 2000 | I73: 0.008154218392 | J73: 2000 | K73: 5 | N73: 0 | O73: 9600 | P73: -0.07414408515 | Q73: 9600
B74: 43 | C74: LMA: líneas alquiladas Ethernet: 100 | D74: Líneas alquiladas | E74: LMA IP Mbytes de tráfico | H74: 4000 | I74: 0.008154218392 | J74: 4000 | K74: 5 | N74: 0 | O74: 22800 | P74: -0.07414408515 | Q74: 22800
B75: 44 | C75: ="LMA: enlace microondas TDM: "&LMA.ladder.ATM -> LMA: enlace microondas TDM: 2.048 | D75: Microondas | E75: LMA PCM Mbytes de tráfico | H75: 6300 | I75: -0.02270764544 | J75: 6300 | K75: 8 | N75: 0.1 | O75: 0 | P75: 0.02872879428 | Q75: 630
B76: 45 | C76: LMA: enlace microondas TDM: 8.45 | D76: Microondas | E76: LMA PCM Mbytes de tráfico | H76: 7400 | I76: -0.02270764544 | J76: 7400 | K76: 8 | N76: 0.1 | O76: 0 | P76: 0.02872879428 | Q76: 740
B77: 46 | C77: LMA: enlace microondas TDM: 34.37 | D77: Microondas | E77: LMA PCM Mbytes de tráfico | H77: 10600 | I77: -0.02270764544 | J77: 10600 | K77: 8 | N77: 0.1 | O77: 0 | P77: 0.02872879428 | Q77: 1060
B78: 47 | C78: ="LMA: enlace microondas Ethernet: "&LMA.ladder.Ethernet -> LMA: enlace microondas Ethernet: 10 | D78: Microondas | E78: LMA IP Mbytes de tráfico | H78: 5400 | I78: -0.02270764544 | J78: 5400 | K78: 8 | N78: 0.1 | O78: 0 | P78: 0.02872879428 | Q78: 540
B79: 48 | C79: LMA: enlace microondas Ethernet: 30 | D79: Microondas | E79: LMA IP Mbytes de tráfico | H79: 8700 | I79: -0.02270764544 | J79: 8700 | K79: 8 | N79: 0.1 | O79: 0 | P79: 0.02872879428 | Q79: 870
B80: 49 | C80: LMA: enlace microondas Ethernet: 100 | D80: Microondas | E80: LMA IP Mbytes de tráfico | H80: 14000 | I80: -0.02270764544 | J80: 14000 | K80: 8 | N80: 0.1 | O80: 0 | P80: 0.02872879428 | Q80: 1400
B81: 50 | C81: LMA: enlace de fibra propia | D81: Fibra | E81: LMA IP Mbytes de tráfico | H81: 10600 | I81: 0.03901608222 | J81: 10600 | K81: 20 | N81: 0.05 | O81: 0 | P81: 0.02872879428 | Q81: 530
B82: 51 | C82: ="Hub to core: línea alquilada TDM: "&Backhaul.ATM.Ladder -> Hub to core: línea alquilada TDM: 8.45 | D82: Líneas alquiladas | E82: LMA PCM Mbytes de tráfico | H82: =H70 -> 800 | I82: 0.008154218392 | J82: 800 | K82: 5 | N82: 0 | O82: =O70 -> 4800 | P82: -0.07414408515 | Q82: 4800
B83: 52 | C83: Hub to core: línea alquilada TDM: 34.37 | D83: Líneas alquiladas | E83: LMA PCM Mbytes de tráfico | H83: =H71 -> 2200 | I83: 0.008154218392 | J83: 2200 | K83: 5 | N83: 0 | O83: =O71 -> 13200 | P83: -0.07414408515 | Q83: 13200
B84: 53 | C84: Hub to core: línea alquilada TDM: 155.52 | D84: Líneas alquiladas | E84: LMA PCM Mbytes de tráfico | H84: 7100 | I84: 0.008154218392 | J84: 7100 | K84: 5 | N84: 0 | O84: 42000 | P84: -0.07414408515 | Q84: 42000
B85: 54 | C85: ="Hub to core: línea alquilada Ethernet: "&Backhaul.Ethernet.Ladder -> Hub to core: línea alquilada Ethernet: 10 | D85: Líneas alquiladas | E85: LMA IP Mbytes de tráfico | H85: =H72 -> 2000 | I85: 0.008154218392 | J85: 2000 | K85: 5 | N85: 0 | O85: =O72 -> 4200 | P85: -0.07414408515 | Q85: 4200
B86: 55 | C86: Hub to core: línea alquilada Ethernet: 100 | D86: Líneas alquiladas | E86: LMA IP Mbytes de tráfico | H86: =H74 -> 4000 | I86: 0.008154218392 | J86: 4000 | K86: 5 | N86: 0 | O86: =O74 -> 22800 | P86: -0.07414408515 | Q86: 22800
B87: 56 | C87: Hub to core: línea alquilada Ethernet: 1024 | D87: Líneas alquiladas | E87: LMA IP Mbytes de tráfico | H87: 4000 | I87: 0.008154218392 | J87: 4000 | K87: 5 | N87: 0 | O87: 120000 | P87: -0.07414408515 | Q87: 120000
B88: 57 | C88: ="Hub to Core puntos de acceso a anillos: "&Hub.Core.Link.ATM.Ladder -> Hub to Core puntos de acceso a anillos: 155.52 | D88: Transmisión MUX etc. equipamiento, excluyendo microondas | E88: LMA PCM Mbytes de tráfico | H88: 9800 | I88: -0.02270764544 | J88: 9800 | K88: 8 | N88: 0.22 | O88: 0 | P88: 0.02872879428 | Q88: 2156
B89: 58 | C89: Hub to Core puntos de acceso a anillos: 622.08 | D89: Transmisión MUX etc. equipamiento, excluyendo microondas | E89: LMA PCM Mbytes de tráfico | H89: 12300 | I89: -0.02270764544 | J89: 12300 | K89: 8 | N89: =N88 -> 0.22 | O89: 0 | P89: 0.02872879428 | Q89: 2706
B90: 59 | C90: Hub to Core puntos de acceso a anillos: 2488.32 | D90: Transmisión MUX etc. equipamiento, excluyendo microondas | E90: LMA PCM Mbytes de tráfico | H90: 16300 | I90: -0.02270764544 | J90: 16300 | K90: 8 | N90: =N89 -> 0.22 | O90: 0 | P90: 0.02872879428 | Q90: 3586
B91: 60 | C91: ="Hub to Core punto de acceso a anillos: "&Hub.Core.Link.Ethernet.Ladder -> Hub to Core punto de acceso a anillos: 1024 | D91: Transmisión MUX etc. equipamiento, excluyendo microondas | E91: LMA IP Mbytes de tráfico | H91: 10200 | I91: -0.02270764544 | J91: 10200 | K91: 8 | N91: 0.22 | O91: 0 | P91: 0.02872879428 | Q91: 2244
B92: 61 | C92: Hub to Core punto de acceso a anillos: 2048 | D92: Transmisión MUX etc. equipamiento, excluyendo microondas | E92: LMA IP Mbytes de tráfico | H92: 11400 | I92: -0.02270764544 | J92: 11400 | K92: 8 | N92: 0.22 | O92: 0 | P92: 0.02872879428 | Q92: 2508
B93: 62 | C93: Hub to Core punto de acceso a anillos: 10240 | D93: Transmisión MUX etc. equipamiento, excluyendo microondas | E93: LMA IP Mbytes de tráfico | H93: 12200 | I93: -0.02270764544 | J93: 12200 | K93: 8 | N93: 0.22 | O93: 0 | P93: 0.02872879428 | Q93: 2684
B94: 63 | C94: Hub to Core - longitud de los anillos de fibra | D94: Fibra | E94: LMA IP Mbytes de tráfico | H94: 11000 | I94: 0.03901608222 | J94: 11000 | K94: 20 | N94: 0.05 | O94: 0 | P94: 0.02872879428 | Q94: 550
B95: 64 | C95: Sitios BSC remotos | D95: Sitios | E95: Minutos radio equivalentes GSM | H95: 200000 | I95: 0.03901608222 | J95: 200000 | K95: 25 | N95: 0.07 | O95: 0 | P95: 0.03901608222 | Q95: 14000
B96: 65 | C96: Sitios RNC remotos | D96: Sitios | E96: Minutos radio equivalentes UMTS+HSPA | H96: 200000 | I96: 0.03901608222 | J96: 200000 | K96: 25 | N96: =N95 -> 0.07 | O96: 0 | P96: =INDEX(Opex.cost.trends, MATCH(D96, Assets.cost.trend.names, 0)) -> 0.03901608222 | Q96: 14000
B97: =1+B96 -> 66 | C97: ="BSC: "&BSC.Ladder -> BSC: 2100 | D97: BSC/RNC switches | E97: Minutos radio equivalentes GSM | H97: 250000 | I97: =INDEX(Capex.cost.trends, MATCH($D97, Assets.cost.trend.names, 0)) -> -0.02270764544 | J97: 250000 | K97: 8 | N97: 0.28 | O97: 0 | P97: 0.02872879428 | Q97: =(N97*J97) + (O97*(1+P97)^(RIGHT(J$29,4)-RIGHT(H$29,4))) -> 70000
B98: 67 | C98: BSC: 4200 | D98: BSC/RNC switches | E98: Minutos radio equivalentes GSM | H98: 350000 | I98: -0.02270764544 | J98: 350000 | K98: =INDEX(Lifetimes, MATCH($D98, Assets.cost.trend.names, 0)) -> 8 | N98: =N97 -> 0.28 | O98: 0 | P98: 0.02872879428 | Q98: 98000
B99: 68 | C99: BSC: 8000 | D99: BSC/RNC switches | E99: Minutos radio equivalentes GSM | H99: 500000 | I99: -0.02270764544 | J99: 500000 | K99: 8 | N99: =N98 -> 0.28 | O99: 0 | P99: 0.02872879428 | Q99: 140000
B100: 69 | C100: ="RNC: "&RNC.Ladder -> RNC: 1600 | D100: BSC/RNC switches | E100: Minutos radio equivalentes UMTS+HSPA | H100: 700000 | I100: -0.02270764544 | J100: 700000 | K100: 8 | N100: 0.34 | O100: 0 | P100: 0.02872879428 | Q100: 238000
B101: 70 | C101: RNC: 2600 | D101: BSC/RNC switches | E101: Minutos radio equivalentes UMTS+HSPA | H101: 1000000 | I101: -0.02270764544 | J101: 1000000 | K101: 8 | N101: =N100 -> 0.34 | O101: 0 | P101: 0.02872879428 | Q101: 340000
B102: 71 | C102: RNC: 5000 | D102: BSC/RNC switches | E102: Minutos radio equivalentes UMTS+HSPA | H102: 1500000 | I102: -0.02270764544 | J102: 1500000 | K102: 8 | N102: =N101 -> 0.34 | O102: 0 | P102: 0.02872879428 | Q102: 510000
B103: 72 | C103: ="BSC a Core punto de acceso: Voz: "&BSC.Core.ATM.Ladder -> BSC a Core punto de acceso: Voz: 8.45 | D103: Transmisión MUX etc. equipamiento, excluyendo microondas | E103: GSM solo voz radio y SMS | H103: 4250 | I103: -0.02270764544 | J103: 4250 | K103: 8 | N103: =N$88 -> 0.22 | O103: 0 | P103: 0.02872879428 | Q103: 935
B104: 73 | C104: BSC a Core punto de acceso: Voz: 34.37 | D104: Transmisión MUX etc. equipamiento, excluyendo microondas | E104: GSM solo voz radio y SMS | H104: 8500 | I104: -0.02270764544 | J104: 8500 | K104: 8 | N104: =N$88 -> 0.22 | O104: 0 | P104: 0.02872879428 | Q104: 1870
B105: 74 | C105: BSC a Core punto de acceso: Voz: 155.52 | D105: Transmisión MUX etc. equipamiento, excluyendo microondas | E105: GSM solo voz radio y SMS | H105: 10200 | I105: -0.02270764544 | J105: 10200 | K105: 8 | N105: 0.22 | O105: 0 | P105: 0.02872879428 | Q105: 2244
B106: 75 | C106: ="BSC a Core punto de acceso: Voz: "&BSC.Core.Ethernet.Ladder -> BSC a Core punto de acceso: Voz: 30 | D106: Transmisión MUX etc. equipamiento, excluyendo microondas | E106: GSM solo voz radio y SMS | H106: 5000 | I106: -0.02270764544 | J106: 5000 | K106: 8 | N106: 0.22 | O106: 0 | P106: 0.02872879428 | Q106: 1100
B107: 76 | C107: BSC a Core punto de acceso: Voz: 100 | D107: Transmisión MUX etc. equipamiento, excluyendo microondas | E107: GSM solo voz radio y SMS | H107: 7500 | I107: -0.02270764544 | J107: 7500 | K107: 8 | N107: 0.22 | O107: 0 | P107: 0.02872879428 | Q107: 1650
B108: 77 | C108: BSC a Core punto de acceso: Voz: 1024 | D108: Transmisión MUX etc. equipamiento, excluyendo microondas | E108: GSM solo voz radio y SMS | H108: 9000 | I108: -0.02270764544 | J108: 9000 | K108: 8 | N108: 0.22 | O108: 0 | P108: 0.02872879428 | Q108: 1980
B109: 78 | C109: ="BSC a Core punto de acceso: Datos: "&BSC.Core.ATM.Ladder -> BSC a Core punto de acceso: Datos: 8.45 | D109: Transmisión MUX etc. equipamiento, excluyendo microondas | E109: GSM tráfico de datos solo | H109: 4250 | I109: -0.02270764544 | J109: 4250 | K109: 8 | N109: 0.22 | O109: 0 | P109: 0.02872879428 | Q109: 935
B110: 79 | C110: BSC a Core punto de acceso: Datos: 34.37 | D110: Transmisión MUX etc. equipamiento, excluyendo microondas | E110: GSM tráfico de datos solo | H110: 8500 | I110: -0.02270764544 | J110: 8500 | K110: 8 | N110: 0.22 | O110: 0 | P110: 0.02872879428 | Q110: 1870
B111: 80 | C111: BSC a Core punto de acceso: Datos: 155.52 | D111: Transmisión MUX etc. equipamiento, excluyendo microondas | E111: GSM tráfico de datos solo | H111: 10200 | I111: -0.02270764544 | J111: 10200 | K111: 8 | N111: 0.22 | O111: 0 | P111: 0.02872879428 | Q111: 2244
B112: 81 | C112: ="BSC a Core punto de acceso: Datos: "&BSC.Core.Ethernet.Ladder -> BSC a Core punto de acceso: Datos: 30 | D112: Transmisión MUX etc. equipamiento, excluyendo microondas | E112: GSM tráfico de datos solo | H112: 5000 | I112: -0.02270764544 | J112: 5000 | K112: 8 | N112: 0.22 | O112: 0 | P112: 0.02872879428 | Q112: 1100
B113: 82 | C113: BSC a Core punto de acceso: Datos: 100 | D113: Transmisión MUX etc. equipamiento, excluyendo microondas | E113: GSM tráfico de datos solo | H113: 7500 | I113: -0.02270764544 | J113: 7500 | K113: 8 | N113: 0.22 | O113: 0 | P113: 0.02872879428 | Q113: 1650
B114: 83 | C114: BSC a Core punto de acceso: Datos: 1024 | D114: Transmisión MUX etc. equipamiento, excluyendo microondas | E114: GSM tráfico de datos solo | H114: 9000 | I114: -0.02270764544 | J114: 9000 | K114: 8 | N114: 0.22 | O114: 0 | P114: 0.02872879428 | Q114: 1980
B115: 84 | C115: ="RNC a Core punto de acceso: Voz: "&RNC.Core.ATM.Ladder -> RNC a Core punto de acceso: Voz: 34.4 | D115: Transmisión MUX etc. equipamiento, excluyendo microondas | E115: UMTS solo voz radio y SMS | H115: 8500 | I115: -0.02270764544 | J115: 8500 | K115: 8 | N115: 0.22 | O115: 0 | P115: 0.02872879428 | Q115: 1870
B116: 85 | C116: RNC a Core punto de acceso: Voz: 155.52 | D116: Transmisión MUX etc. equipamiento, excluyendo microondas | E116: UMTS solo voz radio y SMS | H116: 10200 | I116: -0.02270764544 | J116: 10200 | K116: 8 | N116: 0.22 | O116: 0 | P116: 0.02872879428 | Q116: 2244
B117: 86 | C117: RNC a Core punto de acceso: Voz: 622.08 | D117: Transmisión MUX etc. equipamiento, excluyendo microondas | E117: UMTS solo voz radio y SMS | H117: 11300 | I117: -0.02270764544 | J117: 11300 | K117: 8 | N117: 0.22 | O117: 0 | P117: 0.02872879428 | Q117: 2486
B118: 87 | C118: ="RNC a Core punto de acceso: Voz "&RNC.Core.Ethernet.Ladder -> RNC a Core punto de acceso: Voz 100 | D118: Transmisión MUX etc. equipamiento, excluyendo microondas | E118: UMTS solo voz radio y SMS | H118: 8500 | I118: -0.02270764544 | J118: 8500 | K118: 8 | N118: 0.22 | O118: 0 | P118: 0.02872879428 | Q118: 1870
B119: 88 | C119: RNC a Core punto de acceso: Voz 1024 | D119: Transmisión MUX etc. equipamiento, excluyendo microondas | E119: UMTS solo voz radio y SMS | H119: 10750 | I119: -0.02270764544 | J119: 10750 | K119: 8 | N119: 0.22 | O119: 0 | P119: 0.02872879428 | Q119: 2365
B120: 89 | C120: RNC a Core punto de acceso: Voz 2488 | D120: Transmisión MUX etc. equipamiento, excluyendo microondas | E120: UMTS solo voz radio y SMS | H120: 11300 | I120: -0.02270764544 | J120: 11300 | K120: 8 | N120: 0.22 | O120: 0 | P120: 0.02872879428 | Q120: 2486
B121: 90 | C121: ="RNC a Core punto de acceso: Datos: "&RNC.Core.ATM.Ladder -> RNC a Core punto de acceso: Datos: 34.4 | D121: Transmisión MUX etc. equipamiento, excluyendo microondas | E121: UMTS+HSPA solo tráfico de datos | H121: 8500 | I121: -0.02270764544 | J121: 8500 | K121: 8 | N121: 0.22 | O121: 0 | P121: 0.02872879428 | Q121: 1870
B122: 91 | C122: RNC a Core punto de acceso: Datos: 155.52 | D122: Transmisión MUX etc. equipamiento, excluyendo microondas | E122: UMTS+HSPA solo tráfico de datos | H122: 10200 | I122: -0.02270764544 | J122: 10200 | K122: 8 | N122: 0.22 | O122: 0 | P122: 0.02872879428 | Q122: 2244
B123: 92 | C123: RNC a Core punto de acceso: Datos: 622.08 | D123: Transmisión MUX etc. equipamiento, excluyendo microondas | E123: UMTS+HSPA solo tráfico de datos | H123: 11300 | I123: -0.02270764544 | J123: 11300 | K123: 8 | N123: 0.22 | O123: 0 | P123: 0.02872879428 | Q123: 2486
B124: 93 | C124: ="RNC a Core punto de acceso: Datos: "&RNC.Core.Ethernet.Ladder -> RNC a Core punto de acceso: Datos: 100 | D124: Transmisión MUX etc. equipamiento, excluyendo microondas | E124: UMTS+HSPA solo tráfico de datos | H124: 8500 | I124: -0.02270764544 | J124: 8500 | K124: 8 | N124: 0.22 | O124: 0 | P124: 0.02872879428 | Q124: 1870
B125: 94 | C125: RNC a Core punto de acceso: Datos: 1024 | D125: Transmisión MUX etc. equipamiento, excluyendo microondas | E125: UMTS+HSPA solo tráfico de datos | H125: 10750 | I125: -0.02270764544 | J125: 10750 | K125: 8 | N125: 0.22 | O125: 0 | P125: 0.02872879428 | Q125: 2365
B126: 95 | C126: RNC a Core punto de acceso: Datos: 2488 | D126: Transmisión MUX etc. equipamiento, excluyendo microondas | E126: UMTS+HSPA solo tráfico de datos | H126: 11300 | I126: -0.02270764544 | J126: 11300 | K126: 8 | N126: 0 | O126: 0 | P126: 0.02872879428 | Q126: 0
B127: 96 | C127: ="BSC a Core líneas alquiladas: Voz: "&BSC.Core.ATM.Ladder -> BSC a Core líneas alquiladas: Voz: 8.45 | D127: Líneas alquiladas | E127: GSM solo voz radio y SMS | H127: =H82 -> 800 | I127: 0.008154218392 | J127: 800 | K127: 5 | N127: 0 | O127: =O82 -> 4800 | P127: -0.07414408515 | Q127: 4800
B128: 97 | C128: BSC a Core líneas alquiladas: Voz: 34.37 | D128: Líneas alquiladas | E128: GSM solo voz radio y SMS | H128: =H83 -> 2200 | I128: 0.008154218392 | J128: 2200 | K128: 5 | N128: 0 | O128: =O83 -> 13200 | P128: =INDEX(Opex.cost.trends, MATCH(D128, Assets.cost.trend.names, 0)) -> -0.07414408515 | Q128: 13200
B129: =1+B128 -> 98 | C129: BSC a Core líneas alquiladas: Voz: 155.52 | D129: Líneas alquiladas | E129: GSM solo voz radio y SMS | H129: 7100 | I129: =INDEX(Capex.cost.trends, MATCH($D129, Assets.cost.trend.names, 0)) -> 0.008154218392 | J129: 7100 | K129: =INDEX(Lifetimes, MATCH($D129, Assets.cost.trend.names, 0)) -> 5 | N129: 0 | O129: =O84 -> 42000 | P129: -0.07414408515 | Q129: 42000
B130: 99 | C130: ="BSC a Core líneas alquiladas: Voz: "&BSC.Core.Ethernet.Ladder -> BSC a Core líneas alquiladas: Voz: 30 | D130: Líneas alquiladas | E130: GSM solo voz radio y SMS | H130: 2000 | I130: 0.008154218392 | J130: 2000 | K130: 5 | N130: 0 | O130: =O73 -> 9600 | P130: -0.07414408515 | Q130: 9600
B131: 100 | C131: BSC a Core líneas alquiladas: Voz: 100 | D131: Líneas alquiladas | E131: GSM solo voz radio y SMS | H131: 4000 | I131: 0.008154218392 | J131: 4000 | K131: 5 | N131: 0 | O131: =O74 -> 22800 | P131: -0.07414408515 | Q131: 22800
B132: 101 | C132: BSC a Core líneas alquiladas: Voz: 1024 | D132: Líneas alquiladas | E132: GSM solo voz radio y SMS | H132: 4000 | I132: 0.008154218392 | J132: 4000 | K132: 5 | N132: 0 | O132: =O87 -> 120000 | P132: -0.07414408515 | Q132: 120000
B133: 102 | C133: ="BSC a Core líneas alquiladas: Datos: "&BSC.Core.ATM.Ladder -> BSC a Core líneas alquiladas: Datos: 8.45 | D133: Líneas alquiladas | E133: GSM tráfico de datos solo | H133: =H127 -> 800 | I133: 0.008154218392 | J133: 800 | K133: 5 | N133: 0 | O133: =O82 -> 4800 | P133: -0.07414408515 | Q133: 4800
B134: 103 | C134: BSC a Core líneas alquiladas: Datos: 34.37 | D134: Líneas alquiladas | E134: GSM tráfico de datos solo | H134: =H128 -> 2200 | I134: 0.008154218392 | J134: 2200 | K134: 5 | N134: 0 | O134: =O83 -> 13200 | P134: -0.07414408515 | Q134: 13200
B135: 104 | C135: BSC a Core líneas alquiladas: Datos: 155.52 | D135: Líneas alquiladas | E135: GSM tráfico de datos solo | H135: 7100 | I135: 0.008154218392 | J135: 7100 | K135: 5 | N135: 0 | O135: =O84 -> 42000 | P135: -0.07414408515 | Q135: 42000
B136: 105 | C136: ="BSC a Core líneas alquiladas: Datos: "&BSC.Core.Ethernet.Ladder -> BSC a Core líneas alquiladas: Datos: 30 | D136: Líneas alquiladas | E136: GSM tráfico de datos solo | H136: 2000 | I136: 0.008154218392 | J136: 2000 | K136: 5 | N136: 0 | O136: =O73 -> 9600 | P136: -0.07414408515 | Q136: 9600
B137: 106 | C137: BSC a Core líneas alquiladas: Datos: 100 | D137: Líneas alquiladas | E137: GSM tráfico de datos solo | H137: 4000 | I137: 0.008154218392 | J137: 4000 | K137: 5 | N137: 0 | O137: =O74 -> 22800 | P137: -0.07414408515 | Q137: 22800
B138: 107 | C138: BSC a Core líneas alquiladas: Datos: 1024 | D138: Líneas alquiladas | E138: GSM tráfico de datos solo | H138: 4000 | I138: 0.008154218392 | J138: 4000 | K138: 5 | N138: 0 | O138: =O87 -> 120000 | P138: -0.07414408515 | Q138: 120000
B139: 108 | C139: ="RNC a Core líneas alquiladas: Voz: "&RNC.Core.ATM.Ladder -> RNC a Core líneas alquiladas: Voz: 34.4 | D139: Líneas alquiladas | E139: UMTS solo voz radio y SMS | H139: =H128 -> 2200 | I139: 0.008154218392 | J139: 2200 | K139: 5 | N139: 0 | O139: =O83 -> 13200 | P139: -0.07414408515 | Q139: 13200
B140: 109 | C140: RNC a Core líneas alquiladas: Voz: 155.52 | D140: Líneas alquiladas | E140: UMTS solo voz radio y SMS | H140: =H129 -> 7100 | I140: 0.008154218392 | J140: 7100 | K140: 5 | N140: 0 | O140: =O84 -> 42000 | P140: -0.07414408515 | Q140: 42000
B141: 110 | C141: RNC a Core líneas alquiladas: Voz: 622.08 | D141: Líneas alquiladas | E141: UMTS solo voz radio y SMS | H141: 23000 | I141: 0.008154218392 | J141: 23000 | K141: 5 | N141: 0 | O141: 120000 | P141: -0.07414408515 | Q141: 120000
B142: 111 | C142: ="RNC a Core líneas alquiladas: Voz: "&RNC.Core.Ethernet.Ladder -> RNC a Core líneas alquiladas: Voz: 100 | D142: Líneas alquiladas | E142: UMTS solo voz radio y SMS | H142: =H131 -> 4000 | I142: 0.008154218392 | J142: 4000 | K142: 5 | N142: 0 | O142: =O74 -> 22800 | P142: -0.07414408515 | Q142: 22800
B143: 112 | C143: RNC a Core líneas alquiladas: Voz: 1024 | D143: Líneas alquiladas | E143: UMTS solo voz radio y SMS | H143: =H132 -> 4000 | I143: 0.008154218392 | J143: 4000 | K143: 5 | N143: 0 | O143: =O87 -> 120000 | P143: -0.07414408515 | Q143: 120000
B144: 113 | C144: RNC a Core líneas alquiladas: Voz: 2488 | D144: Líneas alquiladas | E144: UMTS solo voz radio y SMS | H144: 4000 | I144: 0.008154218392 | J144: 4000 | K144: 5 | N144: 0 | O144: 204000 | P144: -0.07414408515 | Q144: 204000
B145: 114 | C145: ="RNC a Core líneas alquiladas: Datos: "&RNC.Core.ATM.Ladder -> RNC a Core líneas alquiladas: Datos: 34.4 | D145: Líneas alquiladas | E145: UMTS+HSPA solo tráfico de datos | H145: =H139 -> 2200 | I145: 0.008154218392 | J145: 2200 | K145: 5 | N145: 0 | O145: =O71 -> 13200 | P145: -0.07414408515 | Q145: 13200
B146: 115 | C146: RNC a Core líneas alquiladas: Datos: 155.52 | D146: Líneas alquiladas | E146: UMTS+HSPA solo tráfico de datos | H146: =H140 -> 7100 | I146: 0.008154218392 | J146: 7100 | K146: 5 | N146: 0 | O146: =O84 -> 42000 | P146: -0.07414408515 | Q146: 42000
B147: 116 | C147: RNC a Core líneas alquiladas: Datos: 622.08 | D147: Líneas alquiladas | E147: UMTS+HSPA solo tráfico de datos | H147: 23000 | I147: 0.008154218392 | J147: 23000 | K147: 5 | N147: 0 | O147: =O141 -> 120000 | P147: -0.07414408515 | Q147: 120000
B148: 117 | C148: ="RNC a Core líneas alquiladas: Datos: "&RNC.Core.Ethernet.Ladder -> RNC a Core líneas alquiladas: Datos: 100 | D148: Líneas alquiladas | E148: UMTS+HSPA solo tráfico de datos | H148: 4000 | I148: 0.008154218392 | J148: 4000 | K148: 5 | N148: 0 | O148: =O74 -> 22800 | P148: -0.07414408515 | Q148: 22800
B149: 118 | C149: RNC a Core líneas alquiladas: Datos: 1024 | D149: Líneas alquiladas | E149: UMTS+HSPA solo tráfico de datos | H149: 4000 | I149: 0.008154218392 | J149: 4000 | K149: 5 | N149: 0 | O149: =O87 -> 120000 | P149: -0.07414408515 | Q149: 120000
B150: 119 | C150: RNC a Core líneas alquiladas: Datos: 2488 | D150: Líneas alquiladas | E150: UMTS+HSPA solo tráfico de datos | H150: 4000 | I150: 0.008154218392 | J150: 4000 | K150: 5 | N150: 0 | O150: =O144 -> 204000 | P150: -0.07414408515 | Q150: 204000
B151: 120 | C151: ="Core a core: líneas alquiladas, TDM: "&Core.Core.ATM.Ladder -> Core a core: líneas alquiladas, TDM: 155 | D151: Líneas alquiladas | E151: Core-core PCM Mbytes voz más datos | H151: =H146 -> 7100 | I151: 0.008154218392 | J151: 7100 | K151: 5 | N151: 0 | O151: =O84 -> 42000 | P151: -0.07414408515 | Q151: 42000
B152: 121 | C152: Core a core: líneas alquiladas, TDM: 622 | D152: Líneas alquiladas | E152: Core-core PCM Mbytes voz más datos | H152: =H147 -> 23000 | I152: 0.008154218392 | J152: 23000 | K152: 5 | N152: 0 | O152: =O141 -> 120000 | P152: -0.07414408515 | Q152: 120000
B153: 122 | C153: Core a core: líneas alquiladas, TDM: 2488 | D153: Líneas alquiladas | E153: Core-core PCM Mbytes voz más datos | H153: 57000 | I153: 0.008154218392 | J153: 57000 | K153: 5 | N153: 0 | O153: 300000 | P153: -0.07414408515 | Q153: 300000
B154: 123 | C154: ="Core a core: líneas alquiladas, Ethernet: "&Core.Core.Ethernet.Ladder -> Core a core: líneas alquiladas, Ethernet: 1000 | D154: Líneas alquiladas | E154: Core-core IP Mbytes voz más datos | H154: =H149 -> 4000 | I154: 0.008154218392 | J154: 4000 | K154: 5 | N154: 0 | O154: =O87 -> 120000 | P154: -0.07414408515 | Q154: 120000
B155: 124 | C155: Core a core: líneas alquiladas, Ethernet: 2500 | D155: Líneas alquiladas | E155: Core-core IP Mbytes voz más datos | H155: =H150 -> 4000 | I155: 0.008154218392 | J155: 4000 | K155: 5 | N155: 0 | O155: =O144 -> 204000 | P155: -0.07414408515 | Q155: 204000
B156: 125 | C156: Core a core: líneas alquiladas, Ethernet: 10000 | D156: Líneas alquiladas | E156: Core-core IP Mbytes voz más datos | H156: 4000 | I156: 0.008154218392 | J156: 4000 | K156: 5 | N156: 0 | O156: 408000 | P156: -0.07414408515 | Q156: 408000
B157: 126 | C157: ="Anillo core, puntos de acceso (ADM/multiplexadores): "&Core.Core.ATM.Ladder -> Anillo core, puntos de acceso (ADM/multiplexadores): 155 | D157: Transmisión MUX etc. equipamiento, excluyendo microondas | E157: Core-core PCM Mbytes voz más datos | H157: 10200 | I157: -0.02270764544 | J157: 10200 | K157: 8 | N157: =N$88 -> 0.22 | O157: 0 | P157: 0.02872879428 | Q157: 2244
B158: 127 | C158: Anillo core, puntos de acceso (ADM/multiplexadores): 622 | D158: Transmisión MUX etc. equipamiento, excluyendo microondas | E158: Core-core PCM Mbytes voz más datos | H158: 15250 | I158: -0.02270764544 | J158: 15250 | K158: 8 | N158: 0.22 | O158: 0 | P158: 0.02872879428 | Q158: 3355
B159: 128 | C159: Anillo core, puntos de acceso (ADM/multiplexadores): 2488 | D159: Transmisión MUX etc. equipamiento, excluyendo microondas | E159: Core-core PCM Mbytes voz más datos | H159: 22900 | I159: -0.02270764544 | J159: 22900 | K159: 8 | N159: 0.22 | O159: 0 | P159: 0.02872879428 | Q159: 5038
B160: 129 | C160: Anillo core, puntos de acceso (ADM/multiplexadores): 9952 | D160: Transmisión MUX etc. equipamiento, excluyendo microondas | E160: Core-core PCM Mbytes voz más datos | H160: 34400 | I160: -0.02270764544 | J160: 34400 | K160: =INDEX(Lifetimes, MATCH($D160, Assets.cost.trend.names, 0)) -> 8 | N160: 0.22 | O160: 0 | P160: =INDEX(Opex.cost.trends, MATCH(D160, Assets.cost.trend.names, 0)) -> 0.02872879428 | Q160: 7568
B161: =1+B160 -> 130 | C161: ="Anillo core, puntos de acceso (ADM/multiplexadores): "&Core.Core.Ethernet.Ladder -> Anillo core, puntos de acceso (ADM/multiplexadores): 1000 | D161: Transmisión MUX etc. equipamiento, excluyendo microondas | E161: Core-core IP Mbytes voz más datos | H161: 9000 | I161: =INDEX(Capex.cost.trends, MATCH($D161, Assets.cost.trend.names, 0)) -> -0.02270764544 | J161: 9000 | K161: 8 | N161: 0.22 | O161: 0 | P161: 0.02872879428 | Q161: =(N161*J161) + (O161*(1+P161)^(RIGHT(J$29,4)-RIGHT(H$29,4))) -> 1980
B162: 131 | C162: Anillo core, puntos de acceso (ADM/multiplexadores): 2500 | D162: Transmisión MUX etc. equipamiento, excluyendo microondas | E162: Core-core IP Mbytes voz más datos | H162: 18000 | I162: -0.02270764544 | J162: 18000 | K162: 8 | N162: 0.22 | O162: 0 | P162: 0.02872879428 | Q162: 3960
B163: 132 | C163: Anillo core, puntos de acceso (ADM/multiplexadores): 10000 | D163: Transmisión MUX etc. equipamiento, excluyendo microondas | E163: Core-core IP Mbytes voz más datos | H163: 27000 | I163: -0.02270764544 | J163: 27000 | K163: 8 | N163: 0.22 | O163: 0 | P163: 0.02872879428 | Q163: 5940
B164: 133 | C164: Anillo core, puntos de acceso (ADM/multiplexadores): 40000 | D164: Transmisión MUX etc. equipamiento, excluyendo microondas | E164: Core-core IP Mbytes voz más datos | H164: 54000 | I164: -0.02270764544 | J164: 54000 | K164: 8 | N164: 0.22 | O164: 0 | P164: 0.02872879428 | Q164: 11880
B165: 134 | C165: Fibra en la red core (km) | D165: Fibra | E165: Voz y datos Core-core | H165: 12200 | I165: 0.03901608222 | J165: 12200 | K165: 20 | N165: 0.01 | O165: 0 | P165: 0.02872879428 | Q165: 122
B166: 135 | C166: Salto MW core a core | D166: Microondas | E166: Voz y datos Core-core | H166: 100000 | I166: -0.02270764544 | J166: 100000 | K166: 8 | N166: 0.1 | O166: 0 | P166: 0.02872879428 | Q166: 10000
B167: 136 | C167: Main switching/core sites | D167: Sitios | E167: Suscriptores | H167: 544000 | I167: 0.03901608222 | J167: 544000 | K167: 25 | N167: 0.24 | O167: 0 | P167: 0.03901608222 | Q167: 130560
B168: 137 | C168: =Servers.List -> Asset spare | D168: Spare | E168: Spare | H168: 0 | I168: 0.02872879428 | J168: 0 | K168: 1 | N168: 0 | O168: 0 | P168: 0.02872879428 | Q168: 0
B169: 138 | C169: MSS | D169: Network switches | E169: Procesado 2G+3G | H169: 1146000 | I169: -0.02270764544 | J169: 1146000 | K169: 6 | N169: 0.23 | O169: 0 | P169: 0.02872879428 | Q169: 263580
B170: 139 | C170: MGW | D170: Network switches | E170: GSM+UMTS voz radio solo minutos | H170: 534600 | I170: -0.02270764544 | J170: 534600 | K170: 6 | N170: =N$169 -> 0.23 | O170: 0 | P170: 0.02872879428 | Q170: 122958
B171: 140 | C171: SGSN | D171: Network servers | E171: GSM, UMTS y HSPA Mbytes | H171: 777300 | I171: -0.02270764544 | J171: 777300 | K171: 6 | N171: 0.33 | O171: 0 | P171: 0.02872879428 | Q171: 256509
B172: 141 | C172: GGSN | D172: Network servers | E172: GSM, UMTS y HSPA Mbytes | H172: 1101400 | I172: -0.02270764544 | J172: 1101400 | K172: 6 | N172: =N$171 -> 0.33 | O172: 0 | P172: 0.02872879428 | Q172: 363462
B173: 142 | C173: LTE MME | D173: Network switches | E173: Tráfico radio LTE | H173: 2539000 | I173: -0.02270764544 | J173: 2539000 | K173: 6 | N173: =N$169 -> 0.23 | O173: 0 | P173: 0.02872879428 | Q173: 583970
B174: 143 | C174: LTE SGW | D174: Network switches | E174: Tráfico radio LTE | H174: 3368000 | I174: -0.02270764544 | J174: 3368000 | K174: 6 | N174: 0.23 | O174: 0 | P174: 0.02872879428 | Q174: 774640
B175: 144 | C175: HLR | D175: Network switches | E175: Suscriptores | H175: 1504000 | I175: -0.02270764544 | J175: 1504000 | K175: 6 | N175: 0.23 | O175: 0 | P175: 0.02872879428 | Q175: 345920
B176: 145 | C176: AUC | D176: Network switches | E176: Suscriptores | H176: 144600 | I176: -0.02270764544 | J176: 144600 | K176: 6 | N176: 0.23 | O176: 0 | P176: 0.02872879428 | Q176: 33258
B177: 146 | C177: EIR | D177: Network switches | E177: Suscriptores | H177: 546300 | I177: -0.02270764544 | J177: 546300 | K177: 6 | N177: 0.23 | O177: 0 | P177: 0.02872879428 | Q177: 125649
B178: 147 | C178: IN (SCP+SMP) | D178: Network servers | E178: Eventos de originación y terminación de llamadas y SMS | H178: 1356000 | I178: -0.02270764544 | J178: 1356000 | K178: 6 | N178: =N$171 -> 0.33 | O178: 0 | P178: 0.02872879428 | Q178: 447480
B179: 148 | C179: Asset spare | D179: Spare | E179: Spare | H179: 0 | I179: 0.02872879428 | J179: 0 | K179: 1 | N179: 0.33 | O179: 0 | P179: 0.02872879428 | Q179: 0
B180: 149 | C180: Asset spare | D180: Spare | E180: Spare | H180: 0 | I180: 0.02872879428 | J180: 0 | K180: 1 | N180: 0.33 | O180: 0 | P180: 0.02872879428 | Q180: 0
B181: 150 | C181: SMSC | D181: Network servers | E181: SMS originado | H181: 837900 | I181: -0.02270764544 | J181: 837900 | K181: 6 | N181: 0.33 | O181: 0 | P181: 0.02872879428 | Q181: 276507
B182: 151 | C182: MMSC | D182: Network servers | E182: SMS originado | H182: 808000 | I182: -0.02270764544 | J182: 808000 | K182: 6 | N182: 0.33 | O182: 0 | P182: 0.02872879428 | Q182: 266640
B183: 152 | C183: Asset spare | D183: Spare | E183: Spare | H183: 0 | I183: 0.02872879428 | J183: 0 | K183: 1 | N183: 0 | O183: 0 | P183: 0.02872879428 | Q183: 0
B184: 153 | C184: MSC/MGW STM1 ports for voice traffic | D184: Puertos | E184: Minutos de voz | H184: 10500 | I184: -0.02270764544 | J184: 10500 | K184: 8 | N184: 0.23 | O184: 0 | P184: 0.02872879428 | Q184: 2415
B185: 154 | C185: PoI STM1 Gateway | D185: Network switches | E185: Tráfico de interconexión | H185: 25200 | I185: -0.02270764544 | J185: 25200 | K185: 6 | N185: =N$169 -> 0.23 | O185: 0 | P185: 0.02872879428 | Q185: 5796
B186: 155 | C186: I-SBC | D186: Network servers | E186: Tráfico de interconexión | H186: 94900 | I186: -0.02270764544 | J186: 94900 | K186: 6 | N186: =N$171 -> 0.33 | O186: 0 | P186: 0.02872879428 | Q186: 31317
B187: 156 | C187: Asset spare | D187: Spare | E187: Spare | H187: 0 | I187: 0.02872879428 | J187: 0 | K187: 1 | N187: 0 | O187: 0 | P187: 0.02872879428 | Q187: 0
B188: 157 | C188: MSS software | D188: Network software | E188: Procesado 2G+3G | H188: 343000 | I188: -0.02270764544 | J188: 343000 | K188: 6 | N188: 0.35 | O188: 0 | P188: 0.02872879428 | Q188: 120050
B189: 158 | C189: SGSN software | D189: Network software | E189: GSM, UMTS y HSPA Mbytes | H189: 2090 | I189: -0.02270764544 | J189: 2090 | K189: 6 | N189: =N$188 -> 0.35 | O189: 0 | P189: 0.02872879428 | Q189: 731.5
B190: 159 | C190: GGSN software | D190: Network software | E190: GSM, UMTS y HSPA Mbytes | H190: 3200 | I190: -0.02270764544 | J190: 3200 | K190: 6 | N190: =N$188 -> 0.35 | O190: 0 | P190: 0.02872879428 | Q190: 1120
B191: 160 | C191: MME software | D191: Network software | E191: Tráfico radio LTE | H191: 591500 | I191: -0.02270764544 | J191: 591500 | K191: 6 | N191: 0.35 | O191: 0 | P191: 0.02872879428 | Q191: 207025
B192: 161 | C192: SGW software | D192: Network software | E192: Tráfico radio LTE | H192: 1480 | I192: -0.02270764544 | J192: 1480 | K192: 6 | N192: 0.35 | O192: 0 | P192: =INDEX(Opex.cost.trends, MATCH(D192, Assets.cost.trend.names, 0)) -> 0.02872879428 | Q192: 518
B193: =1+B192 -> 162 | C193: HLR software | D193: Network software | E193: Suscriptores | H193: 1100 | I193: =INDEX(Capex.cost.trends, MATCH($D193, Assets.cost.trend.names, 0)) -> -0.02270764544 | J193: 1100 | K193: =INDEX(Lifetimes, MATCH($D193, Assets.cost.trend.names, 0)) -> 6 | N193: 0.35 | O193: 0 | P193: 0.02872879428 | Q193: 385
B194: 163 | C194: Call server – hardware | D194: Network servers | E194: Tráfico de voz LTE (VoLTE) | H194: 2650000 | I194: -0.02270764544 | J194: 2650000 | K194: 6 | N194: =N$171 -> 0.33 | O194: 0 | P194: 0.02872879428 | Q194: 874500
B195: 164 | C195: Call server – software | D195: Network software | E195: Tráfico de voz LTE (VoLTE) | H195: 3175 | I195: -0.02270764544 | J195: 3175 | K195: 6 | N195: =N$188 -> 0.35 | O195: 0 | P195: 0.02872879428 | Q195: 1111.25
B196: 165 | C196: Telephony Application Server (TAS) | D196: Network servers | E196: Tráfico de voz LTE (VoLTE) | H196: 63258 | I196: -0.02270764544 | J196: 63258 | K196: 6 | N196: =N$171 -> 0.33 | O196: 0 | P196: 0.02872879428 | Q196: 20875.14
B197: 166 | C197: Session border controller (SBC) – hardware | D197: Network servers | E197: Tráfico de voz LTE (VoLTE) | H197: 637400 | I197: -0.02270764544 | J197: 637400 | K197: 6 | N197: 0.33 | O197: 0 | P197: 0.02872879428 | Q197: 210342
B198: 167 | C198: Session border controller (SBC) – software | D198: Network software | E198: Tráfico de voz LTE (VoLTE) | H198: 2590400 | I198: -0.02270764544 | J198: 2590400 | K198: 6 | N198: =N$188 -> 0.35 | O198: 0 | P198: 0.02872879428 | Q198: 906640
B199: 168 | C199: PCC | D199: Network servers | E199: Tráfico de voz LTE (VoLTE) | H199: 20000 | I199: -0.02270764544 | J199: 20000 | K199: 6 | N199: =N$171 -> 0.33 | O199: 0 | P199: 0.02872879428 | Q199: 6600
B200: 169 | C200: MGCF | D200: Network servers | E200: Tráfico de voz LTE (VoLTE) | H200: 20000 | I200: -0.02270764544 | J200: 20000 | K200: 6 | N200: 0.33 | O200: 0 | P200: 0.02872879428 | Q200: 6600
B201: 170 | C201: Puertos BSC - sitios E1 | D201: Puertos | E201: Minutos radio equivalentes GSM | H201: 42 | I201: -0.02270764544 | J201: 42 | K201: 8 | N201: 0.37 | O201: 0 | P201: 0.02872879428 | Q201: 15.54
B202: 171 | C202: Puertos BSC - sitios 10M | D202: Puertos | E202: Minutos radio equivalentes GSM | H202: 21 | I202: -0.02270764544 | J202: 21 | K202: 8 | N202: =N201 -> 0.37 | O202: 0 | P202: 0.02872879428 | Q202: 7.77
B203: 172 | C203: Puertos RNC - sitios E1 para voz | D203: Puertos | E203: Minutos radio equivalentes UMTS R99 | H203: 46 | I203: -0.02270764544 | J203: 46 | K203: 8 | N203: =N202 -> 0.37 | O203: 0 | P203: 0.02872879428 | Q203: 17.02
B204: 173 | C204: Puertos RNC - sitios 10M para voz | D204: Puertos | E204: Minutos radio equivalentes UMTS R99 | H204: 23 | I204: -0.02270764544 | J204: 23 | K204: 8 | N204: 0.37 | O204: 0 | P204: 0.02872879428 | Q204: 8.51
... 35 more rows

Sheet TotalNetwork
D1: Elementos de red totales y costos
B3: Costos totales
G4: Inversión | K4: Opex | N4: Total
C5: Nombre del activo | E5: Red desplegada | G5: Precios unitarios (nominal) | H5: Total (nominal) | I5: Capex (nominal) | K5: Opex unitario (nominal) | L5: Total (nominal) | N5: Costos anualizados (nominal)
E6: A | G6: B | H6: C | I6: D | K6: E | L6: F | N6: G
B7: 1 | C7: =Assets.list -> Asset 1 | E7: 0 | G7: =Unit.investment.cost -> 0 | H7: =E7*G7 -> 0 | I7: =Depreciation -> 0 | K7: =Unit.operating.cost -> 0 | L7: =E7*K7*(1+Working.capital.allowance) -> 0 | N7: =I7+L7 -> 0
B8: =1+B7 -> 2 | C8: Asset 2 | E8: 0 | G8: 0 | H8: 0 | I8: 0 | K8: 0 | L8: 0 | N8: 0
B9: 3 | C9: Asset 3 | E9: 0 | G9: 0 | H9: 0 | I9: 0 | K9: 0 | L9: 0 | N9: 0
B10: 4 | C10: TRX | E10: =Required.assets.TRX -> 33148 | G10: 1400 | H10: 46407200 | I10: 10909600.21 | K10: 140 | L10: 4681952.479 | N10: 15591552.69
B11: 5 | C11: Asset 4 | E11: 0 | G11: 0 | H11: 0 | I11: 0 | K11: 0 | L11: 0 | N11: 0
B12: 6 | C12: Asset 5 | E12: 0 | G12: 0 | H12: 0 | I12: 0 | K12: 0 | L12: 0 | N12: 0
B13: 7 | C13: Portadora 3G | E13: =Required.assets.3G.carriers -> 15067 | G13: 4500 | H13: 67801500 | I13: 15939062.45 | K13: 450 | L13: 6840391.168 | N13: 22779453.62
B14: 8 | C14: Channel kit | E14: =Required.assets.CK -> 23576 | G14: 580 | H14: 13674080 | I14: 3214560.372 | K14: 34.8 | L14: 827734.3959 | N14: 4042294.768
B15: 9 | C15: HSDPA salto a: 1.8 | E15: =Required.assets.HSDPA.sites.1.8+Required.assets.HSDPA.sites.3.6+Required.assets.HSDPA.sites.7.2+Required.assets.HSDPA.sites.10.1+Required.assets.HSDPA.sites.14.1+Required.assets.HSDPA.sites.21.1 -> 9557 | G15: 550 | H15: 5256350 | I15: 1235684.917 | K15: 115.5 | L15: 1113640.985 | N15: 2349325.902
B16: 10 | C16: HSDPA salto a: 3.6 | E16: =Required.assets.HSDPA.sites.3.6+Required.assets.HSDPA.sites.7.2+Required.assets.HSDPA.sites.10.1+Required.assets.HSDPA.sites.14.1+Required.assets.HSDPA.sites.21.1 -> 9557 | G16: 550 | H16: 5256350 | I16: 1235684.917 | K16: 115.5 | L16: 1113640.985 | N16: 2349325.902
B17: 11 | C17: HSDPA salto a: 7.2 | E17: =Required.assets.HSDPA.sites.7.2+Required.assets.HSDPA.sites.10.1+Required.assets.HSDPA.sites.14.1+Required.assets.HSDPA.sites.21.1 -> 9557 | G17: 725 | H17: 6928825 | I17: 1628857.391 | K17: 152.25 | L17: 1467981.298 | N17: 3096838.689
B18: 12 | C18: HSDPA salto a: 10.1 | E18: =Required.assets.HSDPA.sites.10.1+Required.assets.HSDPA.sites.14.1+Required.assets.HSDPA.sites.21.1 -> 9557 | G18: 1060 | H18: 10130420 | I18: 2381501.84 | K18: 222.6 | L18: 2146289.898 | N18: 4527791.739
B19: 13 | C19: HSDPA salto a: 14.4 | E19: =Required.assets.HSDPA.sites.14.1+Required.assets.HSDPA.sites.21.1 -> 9557 | G19: 1500 | H19: 14335500 | I19: 3370049.774 | K19: 315 | L19: 3037202.686 | N19: 6407252.46
B20: 14 | C20: HSDPA salto a: 21.1 | E20: =Required.assets.HSDPA.sites.21.1 -> 9557 | G20: 1700 | H20: 16246900 | I20: 3819389.744 | K20: 357 | L20: 3442163.045 | N20: 7261552.789
B21: 15 | C21: HSUPA salto a: 0.73 | E21: =Required.assets.HSUPA.sites.0.73+Required.assets.HSUPA.sites.1.46+Required.assets.HSUPA.sites.2+Required.assets.HSUPA.sites.2.93+Required.assets.HSUPA.sites.5.76+Required.assets.HSUPA.sites.11.5 -> 8753 | G21: 190 | H21: 1663070 | I21: 390961.5066 | K21: 24.7 | L21: 218120.0142 | N21: 609081.5208
B22: 16 | C22: HSUPA salto a: 1.46 | E22: =Required.assets.HSUPA.sites.1.46+Required.assets.HSUPA.sites.2+Required.assets.HSUPA.sites.2.93+Required.assets.HSUPA.sites.5.76+Required.assets.HSUPA.sites.11.5 -> 8753 | G22: 20 | H22: 175060 | I22: 41153.8428 | K22: 2.6 | L22: 22960.00149 | N22: 64113.84429
B23: 17 | C23: HSUPA salto a: 2 | E23: =Required.assets.HSUPA.sites.2+Required.assets.HSUPA.sites.2.93+Required.assets.HSUPA.sites.5.76+Required.assets.HSUPA.sites.11.5 -> 8753 | G23: 20 | H23: 175060 | I23: 41153.8428 | K23: 2.6 | L23: 22960.00149 | N23: 64113.84429
B24: 18 | C24: HSUPA salto a: 2.93 | E24: =Required.assets.HSUPA.sites.2.93+Required.assets.HSUPA.sites.5.76+Required.assets.HSUPA.sites.11.5 -> 8753 | G24: 20 | H24: 175060 | I24: 41153.8428 | K24: 2.6 | L24: 22960.00149 | N24: 64113.84429
B25: 19 | C25: HSUPA salto a: 5.76 | E25: =Required.assets.HSUPA.sites.5.76+Required.assets.HSUPA.sites.11.5 -> 8753 | G25: 20 | H25: 175060 | I25: 41153.8428 | K25: 2.6 | L25: 22960.00149 | N25: 64113.84429
B26: 20 | C26: HSUPA salto a: 11.5 | E26: =Required.assets.HSUPA.sites.11.5 -> 0 | G26: 30 | H26: 0 | I26: 0 | K26: 3.9 | L26: 0 | N26: 0
B27: 21 | C27: Asset 21 | E27: 0 | G27: 0 | H27: 0 | I27: 0 | K27: 0 | L27: 0 | N27: 0
B28: 22 | C28: Asset 22 | E28: 0 | G28: 0 | H28: 0 | I28: 0 | K28: 0 | L28: 0 | N28: 0
B29: 23 | C29: Portadora LTE | E29: =Required.assets.LTE.carriers -> 11299 | G29: 2800 | H29: 31637200 | I29: 7437406.349 | K29: 560 | L29: 6383658.871 | N29: 13821065.22
B30: 24 | C30: LTE salto a: 10.8 | E30: =Required.assets.LTE.sites.10.8+Required.assets.LTE.sites.16.2+Required.assets.LTE.sites.21.6+Required.assets.LTE.sites.32.4+Required.assets.LTE.sites.43.2+Required.assets.LTE.sites.86.4 -> 11299 | G30: 1930 | H30: 21807070 | I30: 5126497.947 | K30: 308.8 | L30: 3520131.892 | N30: 8646629.839
B31: 25 | C31: LTE salto a: 16.2 | E31: =Required.assets.LTE.sites.16.2+Required.assets.LTE.sites.21.6+Required.assets.LTE.sites.32.4+Required.assets.LTE.sites.43.2+Required.assets.LTE.sites.86.4 -> 11299 | G31: 1550 | H31: 17513450 | I31: 4117135.657 | K31: 248 | L31: 2827048.929 | N31: 6944184.586
B32: 26 | C32: LTE salto a: 21.6 | E32: =Required.assets.LTE.sites.21.6+Required.assets.LTE.sites.32.4+Required.assets.LTE.sites.43.2+Required.assets.LTE.sites.86.4 -> 11299 | G32: 1600 | H32: 18078400 | I32: 4249946.485 | K32: 256 | L32: 2918244.055 | N32: 7168190.54
B33: 27 | C33: LTE salto a: 32.4 | E33: =Required.assets.LTE.sites.32.4+Required.assets.LTE.sites.43.2+Required.assets.LTE.sites.86.4 -> 11299 | G33: 1600 | H33: 18078400 | I33: 4249946.485 | K33: 256 | L33: 2918244.055 | N33: 7168190.54
B34: 28 | C34: LTE salto a: 43.2 | E34: =Required.assets.LTE.sites.43.2+Required.assets.LTE.sites.86.4 -> 0 | G34: 1900 | H34: 0 | I34: 0 | K34: 304 | L34: 0 | N34: 0
B35: 29 | C35: LTE salto a: 86.4 | E35: =Required.assets.LTE.sites.86.4 -> 0 | G35: 1700 | H35: 0 | I35: 0 | K35: 272 | L35: 0 | N35: 0
B36: 30 | C36: Estación base Single RAN - macro | E36: =Required.assets.single.RAN.base.station -> 4075 | G36: 90000 | H36: 366750000 | I36: 70785051.61 | K36: 13500 | L36: 55501282.29 | N36: 126286333.9
B37: 31 | C37: Estación base Single RAN - micro | E37: 200 | G37: 40000 | H37: 8000000 | I37: 1544050.206 | K37: 6000 | L37: 1210661.918 | N37: 2754712.123
B38: 32 | C38: BBU tarjeta 3G en estación base Single RAN | E38: =Required.assets.3G.BBU.cards.for.single.RAN -> 10993 | G38: 3400 | H38: 37376200 | I38: 8786554.662 | K38: 340 | L38: 3770828.498 | N38: 12557383.16
B39: 33 | C39: BBU tarjeta 4G en estación base Single RAN | E39: =Required.assets.4G.BBU.cards.for.single.RAN -> 11299 | G39: 4700 | H39: =E39*G39 -> 53105300 | I39: 12484217.8 | K39: 470 | L39: =E39*K39*(1+Working.capital.allowance) -> 5357713.695 | N39: =I39+L39 -> 17841931.49
B40: =1+B39 -> 34 | C40: Sitios propios - macro | E40: =Required.assets.own.sites -> 3347 | G40: 104000 | H40: 348088000 | I40: 40759858.83 | K40: 10400 | L40: 35118073.8 | N40: 75877932.63
B41: 35 | C41: Sitios propios - micro | E41: 198 | G41: 33600 | H41: 6652800 | I41: 779019.0664 | K41: 3360 | L41: 671190.9672 | N41: 1450210.034
B42: 36 | C42: Sitios de terceros - macro | E42: =Required.assets.third.party.sites -> 728 | G42: 50000 | H42: 36400000 | I42: 4262309.707 | K42: 10000 | L42: 7344682.301 | N42: 11606992.01
B43: 37 | C43: Sitios de terceros - micro | E43: 2 | G43: 18000 | H43: 36000 | I43: 4215.471139 | K43: 5000 | L43: 10088.84932 | N43: 14304.32045
B44: 38 | C44: LMA: líneas alquiladas TDM: 2.048 | E44: =Required.assets.LMA.leased.lines -> 0.2907 | G44: 200 | H44: 58.14 | I44: 15.65584099 | K44: 1800 | L44: 527.9091293 | N44: 543.5649702
B45: 39 | C45: LMA: líneas alquiladas TDM: 8.45 | E45: 2.55645 | G45: 800 | H45: 2045.16 | I45: 550.7172301 | K45: 4800 | L45: 12379.98664 | N45: 12930.70387
B46: 40 | C46: LMA: líneas alquiladas TDM: 34.37 | E46: 0 | G46: 2200 | H46: 0 | I46: 0 | K46: 13200 | L46: 0 | N46: 0
B47: 41 | C47: LMA: líneas alquiladas Ethernet: 10 | E47: 0.07695 | G47: 2000 | H47: 153.9 | I47: 41.44193203 | K47: 4200 | L47: 326.061521 | N47: 367.503453
B48: 42 | C48: LMA: líneas alquiladas Ethernet: 30 | E48: 1.9 | G48: 2000 | H48: 3800 | I48: 1023.257581 | K48: 9600 | L48: 18402.06115 | N48: 19425.31873
B49: 43 | C49: LMA: líneas alquiladas Ethernet: 100 | E49: 24.586 | G49: 4000 | H49: 98344 | I49: 26481.9062 | K49: 22800 | L49: 565541.3443 | N49: 592023.2505
B50: 44 | C50: LMA: enlace microondas TDM: 2.048 | E50: =Required.assets.LMA.microwave.links -> 18.4518 | G50: 6300 | H50: 116246.34 | I50: 22436.27315 | K50: 630 | L50: 11727.91808 | N50: 34164.19122
B51: 45 | C51: LMA: enlace microondas TDM: 8.45 | E51: 162.2673 | G51: 7400 | H51: 1200778.02 | I51: 231757.6936 | K51: 740 | L51: 121144.685 | N51: 352902.3786
B52: 46 | C52: LMA: enlace microondas TDM: 34.37 | E52: 0 | G52: 10600 | H52: 0 | I52: 0 | K52: 1060 | L52: 0 | N52: 0
B53: 47 | C53: LMA: enlace microondas Ethernet: 10 | E53: 4.8843 | G53: 5400 | H53: 26375.22 | I53: 5090.582983 | K53: 540 | L53: 2660.956202 | N53: 7751.539185
B54: 48 | C54: LMA: enlace microondas Ethernet: 30 | E54: 120.6 | G54: 8700 | H54: 1049220 | I54: 202506.0446 | K54: 870 | L54: 105854.2248 | N54: 308360.2694
B55: 49 | C55: LMA: enlace microondas Ethernet: 100 | E55: 1560.564 | G55: 14000 | H55: 21847896 | I55: 4216781.039 | K55: 1400 | L55: 2204201.306 | N55: 6420982.345
B56: 50 | C56: LMA: enlace de fibra propia | E56: =Required.assets.LMA.fibre.links -> 1490.90625 | G56: 10600 | H56: 15803606.25 | I56: 1959943.021 | K56: 530 | L56: 797201.0105 | N56: 2757144.031
B57: 51 | C57: Hub to core: línea alquilada TDM: 8.45 | E57: =Required.assets.hub.core.leased.lines -> 0 | G57: 800 | H57: 0 | I57: 0 | K57: 4800 | L57: 0 | N57: 0
B58: 52 | C58: Hub to core: línea alquilada TDM: 34.37 | E58: 0 | G58: 2200 | H58: 0 | I58: 0 | K58: 13200 | L58: 0 | N58: 0
B59: 53 | C59: Hub to core: línea alquilada TDM: 155.52 | E59: 0 | G59: 7100 | H59: 0 | I59: 0 | K59: 42000 | L59: 0 | N59: 0
B60: 54 | C60: Hub to core: línea alquilada Ethernet: 10 | E60: 0 | G60: 2000 | H60: 0 | I60: 0 | K60: 4200 | L60: 0 | N60: 0
B61: 55 | C61: Hub to core: línea alquilada Ethernet: 100 | E61: 0 | G61: 4000 | H61: 0 | I61: 0 | K61: 22800 | L61: 0 | N61: 0
B62: 56 | C62: Hub to core: línea alquilada Ethernet: 1024 | E62: 647 | G62: 4000 | H62: 2588000 | I62: 696892.2683 | K62: 120000 | L62: 78329826.08 | N62: 79026718.35
B63: 57 | C63: Hub to Core puntos de acceso a anillos: 155.52 | E63: =Required.assets.hub.core.ring.access.points -> 0 | G63: 9800 | H63: 0 | I63: 0 | K63: 2156 | L63: 0 | N63: 0
B64: 58 | C64: Hub to Core puntos de acceso a anillos: 622.08 | E64: 0 | G64: 12300 | H64: 0 | I64: 0 | K64: 2706 | L64: 0 | N64: 0
B65: 59 | C65: Hub to Core puntos de acceso a anillos: 2488.32 | E65: 0 | G65: 16300 | H65: 0 | I65: 0 | K65: 3586 | L65: 0 | N65: 0
B66: 60 | C66: Hub to Core punto de acceso a anillos: 1024 | E66: 0 | G66: 10200 | H66: 0 | I66: 0 | K66: 2244 | L66: 0 | N66: 0
B67: 61 | C67: Hub to Core punto de acceso a anillos: 2048 | E67: 0 | G67: 11400 | H67: 0 | I67: 0 | K67: 2508 | L67: 0 | N67: 0
B68: 62 | C68: Hub to Core punto de acceso a anillos: 10240 | E68: 0 | G68: 12200 | H68: 0 | I68: 0 | K68: 2684 | L68: 0 | N68: 0
B69: 63 | C69: Hub to Core - longitud de los anillos de fibra | E69: =Required.assets.hub.core.ring.fibre.length -> 0 | G69: 11000 | H69: 0 | I69: 0 | K69: 550 | L69: 0 | N69: 0
B70: 64 | C70: Sitios BSC remotos | E70: =Required.assets.BSC.site -> 0 | G70: 200000 | H70: 0 | I70: 0 | K70: 14000 | L70: 0 | N70: 0
B71: 65 | C71: Sitios RNC remotos | E71: =Required.assets.RNC.site -> 0 | G71: 200000 | H71: =E71*G71 -> 0 | I71: 0 | K71: 14000 | L71: =E71*K71*(1+Working.capital.allowance) -> 0 | N71: =I71+L71 -> 0
B72: =1+B71 -> 66 | C72: BSC: 2100 | E72: =Required.assets.BSC -> 0 | G72: 250000 | H72: 0 | I72: 0 | K72: 70000 | L72: 0 | N72: 0
B73: 67 | C73: BSC: 4200 | E73: 12 | G73: 350000 | H73: 4200000 | I73: 810626.3579 | K73: 98000 | L73: 1186448.679 | N73: 1997075.037
B74: 68 | C74: BSC: 8000 | E74: 0 | G74: 500000 | H74: 0 | I74: 0 | K74: 140000 | L74: 0 | N74: 0
B75: 69 | C75: RNC: 1600 | E75: =Required.assets.RNC -> 0 | G75: 700000 | H75: 0 | I75: 0 | K75: 238000 | L75: 0 | N75: 0
B76: 70 | C76: RNC: 2600 | E76: 82 | G76: 1000000 | H76: 82000000 | I76: 15826514.61 | K76: 340000 | L76: 28127711.89 | N76: 43954226.5
B77: 71 | C77: RNC: 5000 | E77: 0 | G77: 1500000 | H77: 0 | I77: 0 | K77: 510000 | L77: 0 | N77: 0
B78: 72 | C78: BSC a Core punto de acceso: Voz: 8.45 | E78: =Required.assets.BSC.Core.Fibre.Voice.Links -> 0 | G78: 4250 | H78: 0 | I78: 0 | K78: 935 | L78: 0 | N78: 0
B79: 73 | C79: BSC a Core punto de acceso: Voz: 34.37 | E79: 0 | G79: 8500 | H79: 0 | I79: 0 | K79: 1870 | L79: 0 | N79: 0
B80: 74 | C80: BSC a Core punto de acceso: Voz: 155.52 | E80: 0 | G80: 10200 | H80: 0 | I80: 0 | K80: 2244 | L80: 0 | N80: 0
B81: 75 | C81: BSC a Core punto de acceso: Voz: 30 | E81: 0 | G81: 5000 | H81: 0 | I81: 0 | K81: 1100 | L81: 0 | N81: 0
B82: 76 | C82: BSC a Core punto de acceso: Voz: 100 | E82: 0 | G82: 7500 | H82: 0 | I82: 0 | K82: 1650 | L82: 0 | N82: 0
B83: 77 | C83: BSC a Core punto de acceso: Voz: 1024 | E83: 0 | G83: 9000 | H83: 0 | I83: 0 | K83: 1980 | L83: 0 | N83: 0
B84: 78 | C84: BSC a Core punto de acceso: Datos: 8.45 | E84: =Required.assets.BSC.Core.Fibre.Data.Links -> 0 | G84: 4250 | H84: 0 | I84: 0 | K84: 935 | L84: 0 | N84: 0
B85: 79 | C85: BSC a Core punto de acceso: Datos: 34.37 | E85: 0 | G85: 8500 | H85: 0 | I85: 0 | K85: 1870 | L85: 0 | N85: 0
B86: 80 | C86: BSC a Core punto de acceso: Datos: 155.52 | E86: 0 | G86: 10200 | H86: 0 | I86: 0 | K86: 2244 | L86: 0 | N86: 0
B87: 81 | C87: BSC a Core punto de acceso: Datos: 30 | E87: 0 | G87: 5000 | H87: 0 | I87: 0 | K87: 1100 | L87: 0 | N87: 0
B88: 82 | C88: BSC a Core punto de acceso: Datos: 100 | E88: 0 | G88: 7500 | H88: 0 | I88: 0 | K88: 1650 | L88: 0 | N88: 0
B89: 83 | C89: BSC a Core punto de acceso: Datos: 1024 | E89: 0 | G89: 9000 | H89: 0 | I89: 0 | K89: 1980 | L89: 0 | N89: 0
B90: 84 | C90: RNC a Core punto de acceso: Voz: 34.4 | E90: =Required.assets.RNC.Core.Fibre.Voice.Links -> 0 | G90: 8500 | H90: 0 | I90: 0 | K90: 1870 | L90: 0 | N90: 0
B91: 85 | C91: RNC a Core punto de acceso: Voz: 155.52 | E91: 0 | G91: 10200 | H91: 0 | I91: 0 | K91: 2244 | L91: 0 | N91: 0
B92: 86 | C92: RNC a Core punto de acceso: Voz: 622.08 | E92: 0 | G92: 11300 | H92: 0 | I92: 0 | K92: 2486 | L92: 0 | N92: 0
B93: 87 | C93: RNC a Core punto de acceso: Voz 100 | E93: 0 | G93: 8500 | H93: 0 | I93: 0 | K93: 1870 | L93: 0 | N93: 0
B94: 88 | C94: RNC a Core punto de acceso: Voz 1024 | E94: 0 | G94: 10750 | H94: 0 | I94: 0 | K94: 2365 | L94: 0 | N94: 0
B95: 89 | C95: RNC a Core punto de acceso: Voz 2488 | E95: 0 | G95: 11300 | H95: 0 | I95: 0 | K95: 2486 | L95: 0 | N95: 0
B96: 90 | C96: RNC a Core punto de acceso: Datos: 34.4 | E96: =Required.assets.RNC.Core.Fibre.Data.Links -> 0 | G96: 8500 | H96: 0 | I96: 0 | K96: 1870 | L96: 0 | N96: 0
B97: 91 | C97: RNC a Core punto de acceso: Datos: 155.52 | E97: 0 | G97: 10200 | H97: 0 | I97: 0 | K97: 2244 | L97: 0 | N97: 0
B98: 92 | C98: RNC a Core punto de acceso: Datos: 622.08 | E98: 0 | G98: 11300 | H98: 0 | I98: 0 | K98: 2486 | L98: 0 | N98: 0
B99: 93 | C99: RNC a Core punto de acceso: Datos: 100 | E99: 0 | G99: 8500 | H99: 0 | I99: 0 | K99: 1870 | L99: 0 | N99: 0
B100: 94 | C100: RNC a Core punto de acceso: Datos: 1024 | E100: 0 | G100: 10750 | H100: 0 | I100: 0 | K100: 2365 | L100: 0 | N100: 0
B101: 95 | C101: RNC a Core punto de acceso: Datos: 2488 | E101: 0 | G101: 11300 | H101: 0 | I101: 0 | K101: 0 | L101: 0 | N101: 0
B102: 96 | C102: BSC a Core líneas alquiladas: Voz: 8.45 | E102: =Required.assets.BSC.Core.LL.Voice.Links -> 0 | G102: 800 | H102: 0 | I102: 0 | K102: 4800 | L102: 0 | N102: 0
B103: 97 | C103: BSC a Core líneas alquiladas: Voz: 34.37 | E103: 0 | G103: 2200 | H103: =E103*G103 -> 0 | I103: 0 | K103: 13200 | L103: =E103*K103*(1+Working.capital.allowance) -> 0 | N103: =I103+L103 -> 0
B104: =1+B103 -> 98 | C104: BSC a Core líneas alquiladas: Voz: 155.52 | E104: 0 | G104: 7100 | H104: 0 | I104: 0 | K104: 42000 | L104: 0 | N104: 0
B105: 99 | C105: BSC a Core líneas alquiladas: Voz: 30 | E105: 0 | G105: 2000 | H105: 0 | I105: 0 | K105: 9600 | L105: 0 | N105: 0
B106: 100 | C106: BSC a Core líneas alquiladas: Voz: 100 | E106: 0 | G106: 4000 | H106: 0 | I106: 0 | K106: 22800 | L106: 0 | N106: 0
B107: 101 | C107: BSC a Core líneas alquiladas: Voz: 1024 | E107: 0 | G107: 4000 | H107: 0 | I107: 0 | K107: 120000 | L107: 0 | N107: 0
B108: 102 | C108: BSC a Core líneas alquiladas: Datos: 8.45 | E108: =Required.assets.BSC.Core.LL.Data.Links -> 0 | G108: 800 | H108: 0 | I108: 0 | K108: 4800 | L108: 0 | N108: 0
B109: 103 | C109: BSC a Core líneas alquiladas: Datos: 34.37 | E109: 0 | G109: 2200 | H109: 0 | I109: 0 | K109: 13200 | L109: 0 | N109: 0
B110: 104 | C110: BSC a Core líneas alquiladas: Datos: 155.52 | E110: 0 | G110: 7100 | H110: 0 | I110: 0 | K110: 42000 | L110: 0 | N110: 0
B111: 105 | C111: BSC a Core líneas alquiladas: Datos: 30 | E111: 0 | G111: 2000 | H111: 0 | I111: 0 | K111: 9600 | L111: 0 | N111: 0
B112: 106 | C112: BSC a Core líneas alquiladas: Datos: 100 | E112: 0 | G112: 4000 | H112: 0 | I112: 0 | K112: 22800 | L112: 0 | N112: 0
B113: 107 | C113: BSC a Core líneas alquiladas: Datos: 1024 | E113: 0 | G113: 4000 | H113: 0 | I113: 0 | K113: 120000 | L113: 0 | N113: 0
B114: 108 | C114: RNC a Core líneas alquiladas: Voz: 34.4 | E114: =Required.assets.RNC.Core.LL.Voice.Links -> 0 | G114: 2200 | H114: 0 | I114: 0 | K114: 13200 | L114: 0 | N114: 0
B115: 109 | C115: RNC a Core líneas alquiladas: Voz: 155.52 | E115: 0 | G115: 7100 | H115: 0 | I115: 0 | K115: 42000 | L115: 0 | N115: 0
B116: 110 | C116: RNC a Core líneas alquiladas: Voz: 622.08 | E116: 0 | G116: 23000 | H116: 0 | I116: 0 | K116: 120000 | L116: 0 | N116: 0
B117: 111 | C117: RNC a Core líneas alquiladas: Voz: 100 | E117: 0 | G117: 4000 | H117: 0 | I117: 0 | K117: 22800 | L117: 0 | N117: 0
B118: 112 | C118: RNC a Core líneas alquiladas: Voz: 1024 | E118: 0 | G118: 4000 | H118: 0 | I118: 0 | K118: 120000 | L118: 0 | N118: 0
B119: 113 | C119: RNC a Core líneas alquiladas: Voz: 2488 | E119: 0 | G119: 4000 | H119: 0 | I119: 0 | K119: 204000 | L119: 0 | N119: 0
B120: 114 | C120: RNC a Core líneas alquiladas: Datos: 34.4 | E120: =Required.assets.RNC.Core.LL.Data.Links -> 0 | G120: 2200 | H120: 0 | I120: 0 | K120: 13200 | L120: 0 | N120: 0
B121: 115 | C121: RNC a Core líneas alquiladas: Datos: 155.52 | E121: 0 | G121: 7100 | H121: 0 | I121: 0 | K121: 42000 | L121: 0 | N121: 0
B122: 116 | C122: RNC a Core líneas alquiladas: Datos: 622.08 | E122: 0 | G122: 23000 | H122: 0 | I122: 0 | K122: 120000 | L122: 0 | N122: 0
B123: 117 | C123: RNC a Core líneas alquiladas: Datos: 100 | E123: 0 | G123: 4000 | H123: 0 | I123: 0 | K123: 22800 | L123: 0 | N123: 0
B124: 118 | C124: RNC a Core líneas alquiladas: Datos: 1024 | E124: 0 | G124: 4000 | H124: 0 | I124: 0 | K124: 120000 | L124: 0 | N124: 0
B125: 119 | C125: RNC a Core líneas alquiladas: Datos: 2488 | E125: 0 | G125: 4000 | H125: 0 | I125: 0 | K125: 204000 | L125: 0 | N125: 0
B126: 120 | C126: Core a core: líneas alquiladas, TDM: 155 | E126: =Required.assets.core.leased.lines -> 0 | G126: 7100 | H126: 0 | I126: 0 | K126: 42000 | L126: 0 | N126: 0
B127: 121 | C127: Core a core: líneas alquiladas, TDM: 622 | E127: 0 | G127: 23000 | H127: 0 | I127: 0 | K127: 120000 | L127: 0 | N127: 0
B128: 122 | C128: Core a core: líneas alquiladas, TDM: 2488 | E128: 0 | G128: 57000 | H128: 0 | I128: 0 | K128: 300000 | L128: 0 | N128: 0
B129: 123 | C129: Core a core: líneas alquiladas, Ethernet: 1000 | E129: 0 | G129: 4000 | H129: 0 | I129: 0 | K129: 120000 | L129: 0 | N129: 0
B130: 124 | C130: Core a core: líneas alquiladas, Ethernet: 2500 | E130: 0 | G130: 4000 | H130: 0 | I130: 0 | K130: 204000 | L130: 0 | N130: 0
B131: 125 | C131: Core a core: líneas alquiladas, Ethernet: 10000 | E131: 0 | G131: 4000 | H131: 0 | I131: 0 | K131: 408000 | L131: 0 | N131: 0
B132: 126 | C132: Anillo core, puntos de acceso (ADM/multiplexadores): 155 | E132: =Required.assets.Core.Nodes.By.Speed -> 0 | G132: 10200 | H132: 0 | I132: 0 | K132: 2244 | L132: 0 | N132: 0
B133: 127 | C133: Anillo core, puntos de acceso (ADM/multiplexadores): 622 | E133: 0 | G133: 15250 | H133: 0 | I133: 0 | K133: 3355 | L133: 0 | N133: 0
B134: 128 | C134: Anillo core, puntos de acceso (ADM/multiplexadores): 2488 | E134: 0 | G134: 22900 | H134: 0 | I134: 0 | K134: 5038 | L134: 0 | N134: 0
B135: 129 | C135: Anillo core, puntos de acceso (ADM/multiplexadores): 9952 | E135: 0 | G135: 34400 | H135: =E135*G135 -> 0 | I135: 0 | K135: 7568 | L135: =E135*K135*(1+Working.capital.allowance) -> 0 | N135: =I135+L135 -> 0
B136: =1+B135 -> 130 | C136: Anillo core, puntos de acceso (ADM/multiplexadores): 1000 | E136: 0 | G136: 9000 | H136: 0 | I136: 0 | K136: 1980 | L136: 0 | N136: 0
B137: 131 | C137: Anillo core, puntos de acceso (ADM/multiplexadores): 2500 | E137: 0 | G137: 18000 | H137: 0 | I137: 0 | K137: 3960 | L137: 0 | N137: 0
B138: 132 | C138: Anillo core, puntos de acceso (ADM/multiplexadores): 10000 | E138: 0 | G138: 27000 | H138: 0 | I138: 0 | K138: 5940 | L138: 0 | N138: 0
B139: 133 | C139: Anillo core, puntos de acceso (ADM/multiplexadores): 40000 | E139: 4 | G139: 54000 | H139: 216000 | I139: 41689.35555 | K139: 11880 | L139: 47942.21195 | N139: 89631.5675
B140: 134 | C140: Fibra en la red core (km) | E140: =Required.assets.core.core.ring.fibre.length -> 9876 | G140: 12200 | H140: 120487200 | I140: 14942668.34 | K140: 122 | L140: 1215577.205 | N140: 16158245.54
B141: 135 | C141: Salto MW core a core | E141: =Required.assets.core.core.MW.hops -> 8 | G141: 100000 | H141: 800000 | I141: 154405.0206 | K141: 10000 | L141: 80710.79452 | N141: 235115.8151
B142: 136 | C142: Main switching/core sites | E142: =Required.assets.main.switching.sites -> 4 | G142: 544000 | H142: 2176000 | I142: 254801.8111 | K142: 130560 | L142: 526880.0666 | N142: 781681.8777
B143: 137 | C143: Asset spare | E143: =Required.assets.servers -> 0 | G143: 0 | H143: 0 | I143: 0 | K143: 0 | L143: 0 | N143: 0
B144: 138 | C144: MSS | E144: 7 | G144: 1146000 | H144: 8022000 | I144: 1885845.578 | K144: 263580 | L144: 1861453.232 | N144: 3747298.81
B145: 139 | C145: MGW | E145: 14 | G145: 534600 | H145: 7484400 | I145: 1759464.304 | K145: 122958 | L145: 1736706.628 | N145: 3496170.932
B146: 140 | C146: SGSN | E146: 3 | G146: 777300 | H146: 2331900 | I146: 548192.8826 | K146: 256509 | L146: 776364.1947 | N146: 1324557.077
B147: 141 | C147: GGSN | E147: 2 | G147: 1101400 | H147: 2202800 | I147: 517843.5103 | K147: 363462 | L147: 733382.67 | N147: 1251226.18
B148: 142 | C148: LTE MME | E148: 2 | G148: 2539000 | H148: 5078000 | I148: 1193757.647 | K148: 583970 | L148: 1178317.067 | N148: 2372074.714
B149: 143 | C149: LTE SGW | E149: 3 | G149: 3368000 | H149: 10104000 | I149: 2375290.915 | K149: 774640 | L149: 2344567.87 | N149: 4719858.785
B150: 144 | C150: HLR | E150: 4 | G150: 1504000 | H150: 6016000 | I150: 1414266.642 | K150: 345920 | L150: 1395973.902 | N150: 2810240.544
B151: 145 | C151: AUC | E151: 9 | G151: 144600 | H151: 1301400 | I151: 305938.5983 | K151: 33258 | L151: 301981.4555 | N151: 607920.0538
B152: 146 | C152: EIR | E152: 4 | G152: 546300 | H152: 2185200 | I152: 513706.0281 | K152: 125649 | L152: 507061.531 | N152: 1020767.559
B153: 147 | C153: IN (SCP+SMP) | E153: 3 | G153: 1356000 | H153: 4068000 | I153: 956322.5894 | K153: 447480 | L153: 1354367.487 | N153: 2310690.077
B154: 148 | C154: Asset spare | E154: 0 | G154: 0 | H154: 0 | I154: 0 | K154: 0 | L154: 0 | N154: 0
B155: 149 | C155: Asset spare | E155: 0 | G155: 0 | H155: 0 | I155: 0 | K155: 0 | L155: 0 | N155: 0
B156: 150 | C156: SMSC | E156: 4 | G156: 837900 | H156: 3351600 | I156: 787908.2573 | K156: 276507 | L156: 1115854.983 | N156: 1903763.24
B157: 151 | C157: MMSC | E157: 1 | G157: 808000 | H157: 808000 | I157: 189948.0463 | K157: 266640 | L157: 269009.0781 | N157: 458957.1244
B158: 152 | C158: Asset spare | E158: 0 | G158: 0 | H158: 0 | I158: 0 | K158: 0 | L158: 0 | N158: 0
B159: 153 | C159: MSC/MGW STM1 ports for voice traffic | E159: 152 | G159: 10500 | H159: 1596000 | I159: 308038.016 | K159: 2415 | L159: 370341.4807 | N159: 678379.4967
B160: 154 | C160: PoI STM1 Gateway | E160: 51 | G160: 25200 | H160: 1285200 | I160: 302130.234 | K160: 5796 | L160: 298222.3502 | N160: 600352.5842
B161: 155 | C161: I-SBC | E161: 0 | G161: 94900 | H161: 0 | I161: 0 | K161: 31317 | L161: 0 | N161: 0
B162: 156 | C162: Asset spare | E162: 0 | G162: 0 | H162: 0 | I162: 0 | K162: 0 | L162: 0 | N162: 0
B163: 157 | C163: MSS software | E163: 6 | G163: 343000 | H163: 2058000 | I163: 483803.3159 | K163: 120050 | L163: 726699.8162 | N163: 1210503.132
B164: 158 | C164: SGSN software | E164: 2 | G164: 2090 | H164: 4180 | I164: 982.6520216 | K164: 731.5 | L164: 1475.998655 | N164: 2458.650676
B165: 159 | C165: GGSN software | E165: 2 | G165: 3200 | H165: 6400 | I165: 1504.53898 | K165: 1120 | L165: 2259.902247 | N165: 3764.441227
B166: 160 | C166: MME software | E166: 2 | G166: 591500 | H166: 1183000 | I166: 278104.6272 | K166: 207025 | L166: 417728.8059 | N166: 695833.4331
B167: 161 | C167: SGW software | E167: 2 | G167: 1480 | H167: =E167*G167 -> 2960 | I167: 695.8492784 | K167: 518 | L167: =E167*K167*(1+Working.capital.allowance) -> 1045.204789 | N167: =I167+L167 -> 1741.054067
B168: =1+B167 -> 162 | C168: HLR software | E168: 3 | G168: 1100 | H168: 3300 | I168: 775.7779118 | K168: 385 | L168: 1165.262096 | N168: 1941.040008
B169: 163 | C169: Call server – hardware | E169: 0 | G169: 2650000 | H169: 0 | I169: 0 | K169: 874500 | L169: 0 | N169: 0
B170: 164 | C170: Call server – software | E170: 0 | G170: 3175 | H170: 0 | I170: 0 | K170: 1111.25 | L170: 0 | N170: 0
B171: 165 | C171: Telephony Application Server (TAS) | E171: 0 | G171: 63258 | H171: 0 | I171: 0 | K171: 20875.14 | L171: 0 | N171: 0
B172: 166 | C172: Session border controller (SBC) – hardware | E172: 0 | G172: 637400 | H172: 0 | I172: 0 | K172: 210342 | L172: 0 | N172: 0
B173: 167 | C173: Session border controller (SBC) – software | E173: 0 | G173: 2590400 | H173: 0 | I173: 0 | K173: 906640 | L173: 0 | N173: 0
B174: 168 | C174: PCC | E174: 0 | G174: 20000 | H174: 0 | I174: 0 | K174: 6600 | L174: 0 | N174: 0
B175: 169 | C175: MGCF | E175: 0 | G175: 20000 | H175: 0 | I175: 0 | K175: 6600 | L175: 0 | N175: 0
B176: 170 | C176: Puertos BSC - sitios E1 | E176: =Required.assets.Ports.BSC.E1 -> 6666.25 | G176: 42 | H176: 279982.5 | I176: 54038.37958 | K176: 15.54 | L176: 104513.9464 | N176: 158552.326
B177: 171 | C177: Puertos BSC - sitios 10M | E177: =Required.assets.Ports.BSC.10M -> 0 | G177: 21 | H177: 0 | I177: 0 | K177: 7.77 | L177: 0 | N177: 0
B178: 172 | C178: Puertos RNC - sitios E1 para voz | E178: =Required.assets.Ports.RNC.voice.E1 -> 0 | G178: 46 | H178: 0 | I178: 0 | K178: 17.02 | L178: 0 | N178: 0
B179: 173 | C179: Puertos RNC - sitios 10M para voz | E179: =Required.assets.Ports.RNC.voice.10M -> 2462.5 | G179: 23 | H179: 56637.5 | I179: 10931.39294 | K179: 8.51 | L179: 21142.06651 | N179: =I179+L179 -> 32073.45945
B180: 174 | C180: Puertos RNC - sitios E1 para datos | E180: =Required.assets.Ports.RNC.data.E1 -> 0 | G180: 46 | H180: 0 | I180: 0 | K180: 17.02 | L180: 0 | N180: 0
B181: 175 | C181: Puertos RNC - sitios 10M para datos | E181: =Required.assets.Ports.RNC.data.10M -> 13302.5 | G181: 23 | H181: 305957.5 | I181: 59051.7176 | K181: 8.51 | L181: 114210.0872 | N181: 173261.8048
B182: 176 | C182: Puertos BSC a Core: Voz: 8.45 | E182: =Required.assets.BSC.ports.remote.voice+Required.assets.BSC.ports.colocated.voice -> 0 | G182: 633 | H182: 0 | I182: 0 | K182: 234.21 | L182: 0 | N182: 0
B183: 177 | C183: Puertos BSC a Core: Voz: 34.37 | E183: 0 | G183: 2535 | H183: 0 | I183: 0 | K183: 937.95 | L183: 0 | N183: 0
B184: 178 | C184: Puertos BSC a Core: Voz: 155.52 | E184: 30 | G184: 7600 | H184: 228000 | I184: 44005.43086 | K184: 2812 | L184: 85109.53282 | N184: 129114.9637
B185: 179 | C185: Puertos BSC a Core: Voz: 30 | E185: 0 | G185: 640 | H185: 0 | I185: 0 | K185: 236.8 | L185: 0 | N185: 0
B186: 180 | C186: Puertos BSC a Core: Voz: 100 | E186: 0 | G186: 1280 | H186: 0 | I186: 0 | K186: 473.6 | L186: 0 | N186: 0
B187: 181 | C187: Puertos BSC a Core: Voz: 1024 | E187: 0 | G187: 3841 | H187: 0 | I187: 0 | K187: 1421.17 | L187: 0 | N187: 0
B188: 182 | C188: Puertos BSC a Core: Datos: 8.45 | E188: =Required.assets.BSC.ports.remote.data+Required.assets.BSC.ports.colocated.data -> 0 | G188: 634 | H188: 0 | I188: 0 | K188: 234.58 | L188: 0 | N188: 0
B189: 183 | C189: Puertos BSC a Core: Datos: 34.37 | E189: 0 | G189: 2535 | H189: 0 | I189: 0 | K189: 937.95 | L189: 0 | N189: 0
B190: 184 | C190: Puertos BSC a Core: Datos: 155.52 | E190: 0 | G190: 7606 | H190: 0 | I190: 0 | K190: 2814.22 | L190: 0 | N190: 0
B191: 185 | C191: Puertos BSC a Core: Datos: 30 | E191: 0 | G191: 640 | H191: 0 | I191: 0 | K191: 236.8 | L191: 0 | N191: 0
B192: 186 | C192: Puertos BSC a Core: Datos: 100 | E192: 0 | G192: 1280 | H192: 0 | I192: 0 | K192: 473.6 | L192: 0 | N192: 0
B193: 187 | C193: Puertos BSC a Core: Datos: 1024 | E193: 0 | G193: 3841 | H193: 0 | I193: 0 | K193: 1421.17 | L193: 0 | N193: 0
B194: 188 | C194: Puertos RNC a Core: Voz: 34.4 | E194: =Required.assets.RNC.ports.remote.voice+Required.assets.RNC.ports.colocated.voice -> 0 | G194: 330 | H194: 0 | I194: 0 | K194: 122.1 | L194: 0 | N194: 0
B195: 189 | C195: Puertos RNC a Core: Voz: 155.52 | E195: 0 | G195: 558 | H195: 0 | I195: 0 | K195: 206.46 | L195: 0 | N195: 0
B196: 190 | C196: Puertos RNC a Core: Voz: 622.08 | E196: 0 | G196: 1860 | H196: 0 | I196: 0 | K196: 688.2 | L196: 0 | N196: 0
B197: 191 | C197: Puertos RNC a Core: Voz: 100 | E197: 205 | G197: 46 | H197: 9430 | I197: 1820.04918 | K197: 17.02 | L197: 3520.100415 | N197: 5340.149594
B198: 192 | C198: Puertos RNC a Core: Voz: 1024 | E198: 0 | G198: 232 | H198: 0 | I198: 0 | K198: 85.84 | L198: 0 | N198: 0
B199: 193 | C199: Puertos RNC a Core: Voz: 2488 | E199: 0 | G199: 465 | H199: =E199*G199 -> 0 | I199: 0 | K199: 172.05 | L199: =E199*K199*(1+Working.capital.allowance) -> 0 | N199: =I199+L199 -> 0
B200: =1+B199 -> 194 | C200: Puertos RNC a Core: Datos: 34.4 | E200: =Required.assets.RNC.ports.remote.data+Required.assets.RNC.ports.colocated.data -> 0 | G200: 465 | H200: 0 | I200: 0 | K200: 172.05 | L200: 0 | N200: 0
B201: 195 | C201: Puertos RNC a Core: Datos: 155.52 | E201: 0 | G201: 558 | H201: 0 | I201: 0 | K201: 206.46 | L201: 0 | N201: 0
... 7 more rows

Sheet Annualization
D1: Metodologías de anualidad
A4: DEPRECIACIÓN DE LOS ELEMENTOS DE RED
E6: Anualidad seleccionada | K6: Lineal | O6: Anualidad | Q6: Anualidad inclinada
E7: Anualidad (nominal) | F7: Método seleccionado | G7: Índice del método seleccionado | I7: Vida útil del activo | K7: Depreciación (nominal) | L7: Carga de capital (nominal) | M7: Costo total anualizado (nominal) | O7: Costo total anualizado (nominal) | Q7: Inclinación | R7: Denominador inclinado | S7: Costo total anualizado (nominal)
C9: =Assets.list -> Asset 1 | E9: =CHOOSE(G9, M9, O9, S9,#REF!) -> 0 | F9: =CTRL.depreciation.selected -> Anualidad simple | G9: =MATCH(F9,Depreciation.methodologies,0) -> 2 | I9: =Asset.lifetimes -> 8 | K9: =IF(Asset.lifetimes=0, 0,Network.capex.by.element/Asset.lifetimes) -> 0 | L9: =CTRL.NBV.assumption*CTRL.WACC*Network.capex.by.element -> 0 | M9: =K9:K208+L9:L208 -> 0 | O9: =IF(((1/(1+CTRL.WACC))^Asset.lifetimes)=1,0,Network.capex.by.element*(CTRL.WACC/(1-((1/(1+CTRL.WACC))^Asset.lifetimes)))) -> 0 | Q9: =Capex.cost.trend.by.asset -> -0.02270764544 | R9: =1-(((1+Q9:Q208)/(1+CTRL.WACC))^Asset.lifetimes) -> 0.6339298046 | S9: =IF(R9:R208=0, 0,Network.capex.by.element*(CTRL.WACC-Q9:Q208)/R9:R208) -> 0
C10: Asset 2 | E10: =CHOOSE(G10, M10, O10, S10,#REF!) -> 0 | F10: Anualidad simple | G10: 2 | I10: 8 | K10: 0 | L10: 0 | M10: 0 | O10: 0 | Q10: -0.02270764544 | R10: 0.6339298046 | S10: 0
C11: Asset 3 | E11: =CHOOSE(G11, M11, O11, S11,#REF!) -> 0 | F11: Anualidad simple | G11: 2 | I11: 8 | K11: 0 | L11: 0 | M11: 0 | O11: 0 | Q11: -0.02270764544 | R11: 0.6339298046 | S11: 0
C12: TRX | E12: =CHOOSE(G12, M12, O12, S12,#REF!) -> 10909600.21 | F12: Anualidad simple | G12: 2 | I12: 6 | K12: 7734533.333 | L12: 2508309.16 | M12: 10242842.49 | O12: 10909600.21 | Q12: -0.02270764544 | R12: 0.5293768587 | S12: 11467098.46
C13: Asset 4 | E13: =CHOOSE(G13, M13, O13, S13,#REF!) -> 0 | F13: Anualidad simple | G13: 2 | I13: 8 | K13: 0 | L13: 0 | M13: 0 | O13: 0 | Q13: -0.02270764544 | R13: 0.6339298046 | S13: 0
C14: Asset 5 | E14: =CHOOSE(G14, M14, O14, S14,#REF!) -> 0 | F14: Anualidad simple | G14: 2 | I14: 8 | K14: 0 | L14: 0 | M14: 0 | O14: 0 | Q14: -0.02270764544 | R14: 0.6339298046 | S14: 0
C15: Portadora 3G | E15: =CHOOSE(G15, M15, O15, S15,#REF!) -> 15939062.45 | F15: Anualidad simple | G15: 2 | I15: 6 | K15: 11300250 | L15: 3664671.075 | M15: 14964921.07 | O15: 15939062.45 | Q15: -0.02270764544 | R15: 0.5293768587 | S15: 16753574.37
C16: Channel kit | E16: =CHOOSE(G16, M16, O16, S16,#REF!) -> 3214560.372 | F16: Anualidad simple | G16: 2 | I16: 6 | K16: 2279013.333 | L16: 739084.024 | M16: 3018097.357 | O16: 3214560.372 | Q16: -0.02270764544 | R16: 0.5293768587 | S16: 3378829.616
C17: HSDPA salto a: 1.8 | E17: =CHOOSE(G17, M17, O17, S17,#REF!) -> 1235684.917 | F17: Anualidad simple | G17: 2 | I17: 6 | K17: 876058.3333 | L17: 284105.7175 | M17: 1160164.051 | O17: 1235684.917 | Q17: -0.02270764544 | R17: 0.5293768587 | S17: 1298830.419
C18: HSDPA salto a: 3.6 | E18: =CHOOSE(G18, M18, O18, S18,#REF!) -> 1235684.917 | F18: Anualidad simple | G18: 2 | I18: 6 | K18: 876058.3333 | L18: 284105.7175 | M18: 1160164.051 | O18: 1235684.917 | Q18: -0.02270764544 | R18: 0.5293768587 | S18: 1298830.419
C19: HSDPA salto a: 7.2 | E19: =CHOOSE(G19, M19, O19, S19,#REF!) -> 1628857.391 | F19: Anualidad simple | G19: 2 | I19: 6 | K19: 1154804.167 | L19: 374502.9913 | M19: 1529307.158 | O19: 1628857.391 | Q19: -0.02270764544 | R19: 0.5293768587 | S19: 1712094.643
C20: HSDPA salto a: 10.1 | E20: =CHOOSE(G20, M20, O20, S20,#REF!) -> 2381501.84 | F20: Anualidad simple | G20: 2 | I20: 6 | K20: 1688403.333 | L20: 547549.201 | M20: 2235952.534 | O20: 2381501.84 | Q20: -0.02270764544 | R20: 0.5293768587 | S20: 2503200.443
C21: HSDPA salto a: 14.4 | E21: =CHOOSE(G21, M21, O21, S21,#REF!) -> 3370049.774 | F21: Anualidad simple | G21: 2 | I21: 6 | K21: 2389250 | L21: 774833.775 | M21: 3164083.775 | O21: 3370049.774 | Q21: -0.02270764544 | R21: 0.5293768587 | S21: 3542264.778
C22: HSDPA salto a: 21.1 | E22: =CHOOSE(G22, M22, O22, S22,#REF!) -> 3819389.744 | F22: Anualidad simple | G22: 2 | I22: 6 | K22: 2707816.667 | L22: 878144.945 | M22: 3585961.612 | O22: 3819389.744 | Q22: -0.02270764544 | R22: 0.5293768587 | S22: 4014566.749
C23: HSUPA salto a: 0.73 | E23: =CHOOSE(G23, M23, O23, S23,#REF!) -> 390961.5066 | F23: Anualidad simple | G23: 2 | I23: 6 | K23: 277178.3333 | L23: 89888.9335 | M23: 367067.2668 | O23: 390961.5066 | Q23: -0.02270764544 | R23: 0.5293768587 | S23: 410940.2731
C24: HSUPA salto a: 1.46 | E24: =CHOOSE(G24, M24, O24, S24,#REF!) -> 41153.8428 | F24: Anualidad simple | G24: 2 | I24: 6 | K24: 29176.66667 | L24: 9461.993 | M24: 38638.65967 | O24: 41153.8428 | Q24: -0.02270764544 | R24: 0.5293768587 | S24: 43256.87085
C25: HSUPA salto a: 2 | E25: =CHOOSE(G25, M25, O25, S25,#REF!) -> 41153.8428 | F25: Anualidad simple | G25: 2 | I25: 6 | K25: 29176.66667 | L25: 9461.993 | M25: 38638.65967 | O25: 41153.8428 | Q25: -0.02270764544 | R25: 0.5293768587 | S25: 43256.87085
C26: HSUPA salto a: 2.93 | E26: =CHOOSE(G26, M26, O26, S26,#REF!) -> 41153.8428 | F26: Anualidad simple | G26: 2 | I26: 6 | K26: 29176.66667 | L26: 9461.993 | M26: 38638.65967 | O26: 41153.8428 | Q26: -0.02270764544 | R26: 0.5293768587 | S26: 43256.87085
C27: HSUPA salto a: 5.76 | E27: =CHOOSE(G27, M27, O27, S27,#REF!) -> 41153.8428 | F27: Anualidad simple | G27: 2 | I27: 6 | K27: 29176.66667 | L27: 9461.993 | M27: 38638.65967 | O27: 41153.8428 | Q27: -0.02270764544 | R27: 0.5293768587 | S27: 43256.87085
C28: HSUPA salto a: 11.5 | E28: =CHOOSE(G28, M28, O28, S28,#REF!) -> 0 | F28: Anualidad simple | G28: 2 | I28: 6 | K28: 0 | L28: 0 | M28: 0 | O28: 0 | Q28: -0.02270764544 | R28: 0.5293768587 | S28: 0
C29: Asset 21 | E29: =CHOOSE(G29, M29, O29, S29,#REF!) -> 0 | F29: Anualidad simple | G29: 2 | I29: 8 | K29: 0 | L29: 0 | M29: 0 | O29: 0 | Q29: -0.02270764544 | R29: 0.6339298046 | S29: 0
C30: Asset 22 | E30: =CHOOSE(G30, M30, O30, S30,#REF!) -> 0 | F30: Anualidad simple | G30: 2 | I30: 8 | K30: 0 | L30: 0 | M30: 0 | O30: 0 | Q30: -0.02270764544 | R30: 0.6339298046 | S30: 0
C31: Portadora LTE | E31: =CHOOSE(G31, M31, O31, S31,#REF!) -> 7437406.349 | F31: Anualidad simple | G31: 2 | I31: 6 | K31: 5272866.667 | L31: 1709990.66 | M31: 6982857.327 | O31: 7437406.349 | Q31: -0.02270764544 | R31: 0.5293768587 | S31: 7817469.865
C32: LTE salto a: 10.8 | E32: =CHOOSE(G32, M32, O32, S32,#REF!) -> 5126497.947 | F32: Anualidad simple | G32: 2 | I32: 6 | K32: 3634511.667 | L32: 1178672.133 | M32: 4813183.8 | O32: 5126497.947 | Q32: -0.02270764544 | R32: 0.5293768587 | S32: 5388470.3
C33: LTE salto a: 16.2 | E33: =CHOOSE(G33, M33, O33, S33,#REF!) -> 4117135.657 | F33: Anualidad simple | G33: 2 | I33: 6 | K33: 2918908.333 | L33: 946601.9725 | M33: 3865510.306 | O33: 4117135.657 | Q33: -0.02270764544 | R33: 0.5293768587 | S33: 4327527.961
C34: LTE salto a: 21.6 | E34: =CHOOSE(G34, M34, O34, S34,#REF!) -> 4249946.485 | F34: Anualidad simple | G34: 2 | I34: 6 | K34: 3013066.667 | L34: 977137.52 | M34: 3990204.187 | O34: 4249946.485 | Q34: -0.02270764544 | R34: 0.5293768587 | S34: 4467125.637
C35: LTE salto a: 32.4 | E35: =CHOOSE(G35, M35, O35, S35,#REF!) -> 4249946.485 | F35: Anualidad simple | G35: 2 | I35: 6 | K35: 3013066.667 | L35: 977137.52 | M35: 3990204.187 | O35: 4249946.485 | Q35: -0.02270764544 | R35: 0.5293768587 | S35: 4467125.637
C36: LTE salto a: 43.2 | E36: =CHOOSE(G36, M36, O36, S36,#REF!) -> 0 | F36: Anualidad simple | G36: 2 | I36: 6 | K36: 0 | L36: 0 | M36: 0 | O36: 0 | Q36: -0.02270764544 | R36: 0.5293768587 | S36: 0
C37: LTE salto a: 86.4 | E37: =CHOOSE(G37, M37, O37, S37,#REF!) -> 0 | F37: Anualidad simple | G37: 2 | I37: 6 | K37: 0 | L37: 0 | M37: 0 | O37: 0 | Q37: -0.02270764544 | R37: 0.5293768587 | S37: 0
C38: Estación base Single RAN - macro | E38: =CHOOSE(G38, M38, O38, S38,#REF!) -> 70785051.61 | F38: Anualidad simple | G38: 2 | I38: 8 | K38: 45843750 | L38: 19822837.5 | M38: 65666587.5 | O38: 70785051.61 | Q38: -0.02270764544 | R38: 0.6339298046 | S38: 75676681.58
C39: Estación base Single RAN - micro | E39: =CHOOSE(G39, M39, O39, S39,#REF!) -> 1544050.206 | F39: Anualidad simple | G39: 2 | I39: 8 | K39: 1000000 | L39: 432400 | M39: 1432400 | O39: 1544050.206 | Q39: -0.02270764544 | R39: 0.6339298046 | S39: 1650752.427
C40: BBU tarjeta 3G en estación base Single RAN | E40: =CHOOSE(G40, M40, O40, S40,#REF!) -> 8786554.662 | F40: Anualidad simple | G40: 2 | I40: 6 | K40: 6229366.667 | L40: 2020183.61 | M40: 8249550.277 | O40: 8786554.662 | Q40: -0.02270764544 | R40: 0.5293768587 | S40: 9235561.844
C41: BBU tarjeta 4G en estación base Single RAN | E41: =CHOOSE(G41, M41, O41, S41,#REF!) -> 12484217.8 | F41: =CTRL.depreciation.selected -> Anualidad simple | G41: =MATCH(F41,Depreciation.methodologies,0) -> 2 | I41: 6 | K41: 8850883.333 | L41: 2870341.465 | M41: 11721224.8 | O41: 12484217.8 | Q41: -0.02270764544 | R41: 0.5293768587 | S41: 13122181.56
C42: Sitios propios - macro | E42: =CHOOSE(G42, M42, O42, S42,#REF!) -> 40759858.83 | F42: Anualidad simple | G42: 2 | I42: 25 | K42: 13923520 | L42: 18814156.4 | M42: 32737676.4 | O42: 40759858.83 | Q42: 0.03901608222 | R42: 0.7999756481 | S42: 30060018.49
C43: Sitios propios - micro | E43: =CHOOSE(G43, M43, O43, S43,#REF!) -> 779019.0664 | F43: Anualidad simple | G43: 2 | I43: 25 | K43: 266112 | L43: 359583.84 | M43: 625695.84 | O43: 779019.0664 | Q43: 0.03901608222 | R43: 0.7999756481 | S43: 574519.3486
C44: Sitios de terceros - macro | E44: =CHOOSE(G44, M44, O44, S44,#REF!) -> 4262309.707 | F44: Anualidad simple | G44: 2 | I44: 25 | K44: 1456000 | L44: 1967420 | M44: 3423420 | O44: 4262309.707 | Q44: 0.03901608222 | R44: 0.7999756481 | S44: 3143413.944
C45: Sitios de terceros - micro | E45: =CHOOSE(G45, M45, O45, S45,#REF!) -> 4215.471139 | F45: Anualidad simple | G45: 2 | I45: 25 | K45: 1440 | L45: 1945.8 | M45: 3385.8 | O45: 4215.471139 | Q45: 0.03901608222 | R45: 0.7999756481 | S45: 3108.870934
C46: LMA: líneas alquiladas TDM: 2.048 | E46: =CHOOSE(G46, M46, O46, S46,#REF!) -> 15.65584099 | F46: Anualidad simple | G46: 2 | I46: 5 | K46: 11.628 | L46: 3.142467 | M46: 14.770467 | O46: 15.65584099 | Q46: 0.008154218392 | R46: 0.3766383449 | S46: 15.42818946
C47: LMA: líneas alquiladas TDM: 8.45 | E47: =CHOOSE(G47, M47, O47, S47,#REF!) -> 550.7172301 | F47: Anualidad simple | G47: 2 | I47: 5 | K47: 409.032 | L47: 110.540898 | M47: 519.572898 | O47: 550.7172301 | Q47: 0.008154218392 | R47: 0.3766383449 | S47: 542.7092527
C48: LMA: líneas alquiladas TDM: 34.37 | E48: =CHOOSE(G48, M48, O48, S48,#REF!) -> 0 | F48: Anualidad simple | G48: 2 | I48: 5 | K48: 0 | L48: 0 | M48: 0 | O48: 0 | Q48: 0.008154218392 | R48: 0.3766383449 | S48: 0
C49: LMA: líneas alquiladas Ethernet: 10 | E49: =CHOOSE(G49, M49, O49, S49,#REF!) -> 41.44193203 | F49: Anualidad simple | G49: 2 | I49: 5 | K49: 30.78 | L49: 8.318295 | M49: 39.098295 | O49: 41.44193203 | Q49: 0.008154218392 | R49: 0.3766383449 | S49: 40.83932504
C50: LMA: líneas alquiladas Ethernet: 30 | E50: =CHOOSE(G50, M50, O50, S50,#REF!) -> 1023.257581 | F50: Anualidad simple | G50: 2 | I50: 5 | K50: 760 | L50: 205.39 | M50: 965.39 | O50: 1023.257581 | Q50: 0.008154218392 | R50: 0.3766383449 | S50: 1008.378396
C51: LMA: líneas alquiladas Ethernet: 100 | E51: =CHOOSE(G51, M51, O51, S51,#REF!) -> 26481.9062 | F51: Anualidad simple | G51: 2 | I51: 5 | K51: 19668.8 | L51: 5315.4932 | M51: 24984.2932 | O51: 26481.9062 | Q51: 0.008154218392 | R51: 0.3766383449 | S51: 26096.83289
C52: LMA: enlace microondas TDM: 2.048 | E52: =CHOOSE(G52, M52, O52, S52,#REF!) -> 22436.27315 | F52: Anualidad simple | G52: 2 | I52: 8 | K52: 14530.7925 | L52: 6283.114677 | M52: 20813.90718 | O52: 22436.27315 | Q52: -0.02270764544 | R52: 0.6339298046 | S52: 23986.74099
C53: LMA: enlace microondas TDM: 8.45 | E53: =CHOOSE(G53, M53, O53, S53,#REF!) -> 231757.6936 | F53: Anualidad simple | G53: 2 | I53: 8 | K53: 150097.2525 | L53: 64902.05198 | M53: 214999.3045 | O53: 231757.6936 | Q53: -0.02270764544 | R53: 0.6339298046 | S53: 247773.4039
C54: LMA: enlace microondas TDM: 34.37 | E54: =CHOOSE(G54, M54, O54, S54,#REF!) -> 0 | F54: Anualidad simple | G54: 2 | I54: 8 | K54: 0 | L54: 0 | M54: 0 | O54: 0 | Q54: -0.02270764544 | R54: 0.6339298046 | S54: 0
C55: LMA: enlace microondas Ethernet: 10 | E55: =CHOOSE(G55, M55, O55, S55,#REF!) -> 5090.582983 | F55: Anualidad simple | G55: 2 | I55: 8 | K55: 3296.9025 | L55: 1425.580641 | M55: 4722.483141 | O55: 5090.582983 | Q55: -0.02270764544 | R55: 0.6339298046 | S55: 5442.369804
C56: LMA: enlace microondas Ethernet: 30 | E56: =CHOOSE(G56, M56, O56, S56,#REF!) -> 202506.0446 | F56: Anualidad simple | G56: 2 | I56: 8 | K56: 131152.5 | L56: 56710.341 | M56: 187862.841 | O56: 202506.0446 | Q56: -0.02270764544 | R56: 0.6339298046 | S56: 216500.3077
C57: LMA: enlace microondas Ethernet: 100 | E57: =CHOOSE(G57, M57, O57, S57,#REF!) -> 4216781.039 | F57: Anualidad simple | G57: 2 | I57: 8 | K57: 2730987 | L57: 1180878.779 | M57: 3911865.779 | O57: 4216781.039 | Q57: -0.02270764544 | R57: 0.6339298046 | S57: 4508183.419
C58: LMA: enlace de fibra propia | E58: =CHOOSE(G58, M58, O58, S58,#REF!) -> 1959943.021 | F58: Anualidad simple | G58: 2 | I58: 20 | K58: 790180.3125 | L58: 854184.9178 | M58: 1644365.23 | O58: 1959943.021 | Q58: 0.03901608222 | R58: 0.7240271888 | S58: 1507919.94
C59: Hub to core: línea alquilada TDM: 8.45 | E59: =CHOOSE(G59, M59, O59, S59,#REF!) -> 0 | F59: Anualidad simple | G59: 2 | I59: 5 | K59: 0 | L59: 0 | M59: 0 | O59: 0 | Q59: 0.008154218392 | R59: 0.3766383449 | S59: 0
C60: Hub to core: línea alquilada TDM: 34.37 | E60: =CHOOSE(G60, M60, O60, S60,#REF!) -> 0 | F60: Anualidad simple | G60: 2 | I60: 5 | K60: 0 | L60: 0 | M60: 0 | O60: 0 | Q60: 0.008154218392 | R60: 0.3766383449 | S60: 0
C61: Hub to core: línea alquilada TDM: 155.52 | E61: =CHOOSE(G61, M61, O61, S61,#REF!) -> 0 | F61: Anualidad simple | G61: 2 | I61: 5 | K61: 0 | L61: 0 | M61: 0 | O61: 0 | Q61: 0.008154218392 | R61: 0.3766383449 | S61: 0
C62: Hub to core: línea alquilada Ethernet: 10 | E62: =CHOOSE(G62, M62, O62, S62,#REF!) -> 0 | F62: Anualidad simple | G62: 2 | I62: 5 | K62: 0 | L62: 0 | M62: 0 | O62: 0 | Q62: 0.008154218392 | R62: 0.3766383449 | S62: 0
C63: Hub to core: línea alquilada Ethernet: 100 | E63: =CHOOSE(G63, M63, O63, S63,#REF!) -> 0 | F63: Anualidad simple | G63: 2 | I63: 5 | K63: 0 | L63: 0 | M63: 0 | O63: 0 | Q63: 0.008154218392 | R63: 0.3766383449 | S63: 0
C64: Hub to core: línea alquilada Ethernet: 1024 | E64: =CHOOSE(G64, M64, O64, S64,#REF!) -> 696892.2683 | F64: Anualidad simple | G64: 2 | I64: 5 | K64: 517600 | L64: 139881.4 | M64: 657481.4 | O64: 696892.2683 | Q64: 0.008154218392 | R64: 0.3766383449 | S64: 686758.7602
C65: Hub to Core puntos de acceso a anillos: 155.52 | E65: =CHOOSE(G65, M65, O65, S65,#REF!) -> 0 | F65: Anualidad simple | G65: 2 | I65: 8 | K65: 0 | L65: 0 | M65: 0 | O65: 0 | Q65: -0.02270764544 | R65: 0.6339298046 | S65: 0
C66: Hub to Core puntos de acceso a anillos: 622.08 | E66: =CHOOSE(G66, M66, O66, S66,#REF!) -> 0 | F66: Anualidad simple | G66: 2 | I66: 8 | K66: 0 | L66: 0 | M66: 0 | O66: 0 | Q66: -0.02270764544 | R66: 0.6339298046 | S66: 0
C67: Hub to Core puntos de acceso a anillos: 2488.32 | E67: =CHOOSE(G67, M67, O67, S67,#REF!) -> 0 | F67: Anualidad simple | G67: 2 | I67: 8 | K67: 0 | L67: 0 | M67: 0 | O67: 0 | Q67: -0.02270764544 | R67: 0.6339298046 | S67: 0
C68: Hub to Core punto de acceso a anillos: 1024 | E68: =CHOOSE(G68, M68, O68, S68,#REF!) -> 0 | F68: Anualidad simple | G68: 2 | I68: 8 | K68: 0 | L68: 0 | M68: 0 | O68: 0 | Q68: -0.02270764544 | R68: 0.6339298046 | S68: 0
C69: Hub to Core punto de acceso a anillos: 2048 | E69: =CHOOSE(G69, M69, O69, S69,#REF!) -> 0 | F69: Anualidad simple | G69: 2 | I69: 8 | K69: 0 | L69: 0 | M69: 0 | O69: 0 | Q69: -0.02270764544 | R69: 0.6339298046 | S69: 0
C70: Hub to Core punto de acceso a anillos: 10240 | E70: =CHOOSE(G70, M70, O70, S70,#REF!) -> 0 | F70: Anualidad simple | G70: 2 | I70: 8 | K70: 0 | L70: 0 | M70: 0 | O70: 0 | Q70: -0.02270764544 | R70: 0.6339298046 | S70: 0
C71: Hub to Core - longitud de los anillos de fibra | E71: =CHOOSE(G71, M71, O71, S71,#REF!) -> 0 | F71: Anualidad simple | G71: 2 | I71: 20 | K71: 0 | L71: 0 | M71: 0 | O71: 0 | Q71: 0.03901608222 | R71: 0.7240271888 | S71: 0
C72: Sitios BSC remotos | E72: =CHOOSE(G72, M72, O72, S72,#REF!) -> 0 | F72: Anualidad simple | G72: 2 | I72: 25 | K72: 0 | L72: 0 | M72: 0 | O72: 0 | Q72: 0.03901608222 | R72: 0.7999756481 | S72: 0
C73: Sitios RNC remotos | E73: =CHOOSE(G73, M73, O73, S73,#REF!) -> 0 | F73: =CTRL.depreciation.selected -> Anualidad simple | G73: =MATCH(F73,Depreciation.methodologies,0) -> 2 | I73: 25 | K73: 0 | L73: 0 | M73: 0 | O73: 0 | Q73: 0.03901608222 | R73: 0.7999756481 | S73: 0
C74: BSC: 2100 | E74: =CHOOSE(G74, M74, O74, S74,#REF!) -> 0 | F74: Anualidad simple | G74: 2 | I74: 8 | K74: 0 | L74: 0 | M74: 0 | O74: 0 | Q74: -0.02270764544 | R74: 0.6339298046 | S74: 0
C75: BSC: 4200 | E75: =CHOOSE(G75, M75, O75, S75,#REF!) -> 810626.3579 | F75: Anualidad simple | G75: 2 | I75: 8 | K75: 525000 | L75: 227010 | M75: 752010 | O75: 810626.3579 | Q75: -0.02270764544 | R75: 0.6339298046 | S75: 866645.0242
C76: BSC: 8000 | E76: =CHOOSE(G76, M76, O76, S76,#REF!) -> 0 | F76: Anualidad simple | G76: 2 | I76: 8 | K76: 0 | L76: 0 | M76: 0 | O76: 0 | Q76: -0.02270764544 | R76: 0.6339298046 | S76: 0
C77: RNC: 1600 | E77: =CHOOSE(G77, M77, O77, S77,#REF!) -> 0 | F77: Anualidad simple | G77: 2 | I77: 8 | K77: 0 | L77: 0 | M77: 0 | O77: 0 | Q77: -0.02270764544 | R77: 0.6339298046 | S77: 0
C78: RNC: 2600 | E78: =CHOOSE(G78, M78, O78, S78,#REF!) -> 15826514.61 | F78: Anualidad simple | G78: 2 | I78: 8 | K78: 10250000 | L78: 4432100 | M78: 14682100 | O78: 15826514.61 | Q78: -0.02270764544 | R78: 0.6339298046 | S78: 16920212.38
C79: RNC: 5000 | E79: =CHOOSE(G79, M79, O79, S79,#REF!) -> 0 | F79: Anualidad simple | G79: 2 | I79: 8 | K79: 0 | L79: 0 | M79: 0 | O79: 0 | Q79: -0.02270764544 | R79: 0.6339298046 | S79: 0
C80: BSC a Core punto de acceso: Voz: 8.45 | E80: =CHOOSE(G80, M80, O80, S80,#REF!) -> 0 | F80: Anualidad simple | G80: 2 | I80: 8 | K80: 0 | L80: 0 | M80: 0 | O80: 0 | Q80: -0.02270764544 | R80: 0.6339298046 | S80: 0
C81: BSC a Core punto de acceso: Voz: 34.37 | E81: =CHOOSE(G81, M81, O81, S81,#REF!) -> 0 | F81: Anualidad simple | G81: 2 | I81: 8 | K81: 0 | L81: 0 | M81: 0 | O81: 0 | Q81: -0.02270764544 | R81: 0.6339298046 | S81: 0
C82: BSC a Core punto de acceso: Voz: 155.52 | E82: =CHOOSE(G82, M82, O82, S82,#REF!) -> 0 | F82: Anualidad simple | G82: 2 | I82: 8 | K82: 0 | L82: 0 | M82: 0 | O82: 0 | Q82: -0.02270764544 | R82: 0.6339298046 | S82: 0
C83: BSC a Core punto de acceso: Voz: 30 | E83: =CHOOSE(G83, M83, O83, S83,#REF!) -> 0 | F83: Anualidad simple | G83: 2 | I83: 8 | K83: 0 | L83: 0 | M83: 0 | O83: 0 | Q83: -0.02270764544 | R83: 0.6339298046 | S83: 0
C84: BSC a Core punto de acceso: Voz: 100 | E84: =CHOOSE(G84, M84, O84, S84,#REF!) -> 0 | F84: Anualidad simple | G84: 2 | I84: 8 | K84: 0 | L84: 0 | M84: 0 | O84: 0 | Q84: -0.02270764544 | R84: 0.6339298046 | S84: 0
C85: BSC a Core punto de acceso: Voz: 1024 | E85: =CHOOSE(G85, M85, O85, S85,#REF!) -> 0 | F85: Anualidad simple | G85: 2 | I85: 8 | K85: 0 | L85: 0 | M85: 0 | O85: 0 | Q85: -0.02270764544 | R85: 0.6339298046 | S85: 0
C86: BSC a Core punto de acceso: Datos: 8.45 | E86: =CHOOSE(G86, M86, O86, S86,#REF!) -> 0 | F86: Anualidad simple | G86: 2 | I86: 8 | K86: 0 | L86: 0 | M86: 0 | O86: 0 | Q86: -0.02270764544 | R86: 0.6339298046 | S86: 0
C87: BSC a Core punto de acceso: Datos: 34.37 | E87: =CHOOSE(G87, M87, O87, S87,#REF!) -> 0 | F87: Anualidad simple | G87: 2 | I87: 8 | K87: 0 | L87: 0 | M87: 0 | O87: 0 | Q87: -0.02270764544 | R87: 0.6339298046 | S87: 0
C88: BSC a Core punto de acceso: Datos: 155.52 | E88: =CHOOSE(G88, M88, O88, S88,#REF!) -> 0 | F88: Anualidad simple | G88: 2 | I88: 8 | K88: 0 | L88: 0 | M88: 0 | O88: 0 | Q88: -0.02270764544 | R88: 0.6339298046 | S88: 0
C89: BSC a Core punto de acceso: Datos: 30 | E89: =CHOOSE(G89, M89, O89, S89,#REF!) -> 0 | F89: Anualidad simple | G89: 2 | I89: 8 | K89: 0 | L89: 0 | M89: 0 | O89: 0 | Q89: -0.02270764544 | R89: 0.6339298046 | S89: 0
C90: BSC a Core punto de acceso: Datos: 100 | E90: =CHOOSE(G90, M90, O90, S90,#REF!) -> 0 | F90: Anualidad simple | G90: 2 | I90: 8 | K90: 0 | L90: 0 | M90: 0 | O90: 0 | Q90: -0.02270764544 | R90: 0.6339298046 | S90: 0
C91: BSC a Core punto de acceso: Datos: 1024 | E91: =CHOOSE(G91, M91, O91, S91,#REF!) -> 0 | F91: Anualidad simple | G91: 2 | I91: 8 | K91: 0 | L91: 0 | M91: 0 | O91: 0 | Q91: -0.02270764544 | R91: 0.6339298046 | S91: 0
C92: RNC a Core punto de acceso: Voz: 34.4 | E92: =CHOOSE(G92, M92, O92, S92,#REF!) -> 0 | F92: Anualidad simple | G92: 2 | I92: 8 | K92: 0 | L92: 0 | M92: 0 | O92: 0 | Q92: -0.02270764544 | R92: 0.6339298046 | S92: 0
C93: RNC a Core punto de acceso: Voz: 155.52 | E93: =CHOOSE(G93, M93, O93, S93,#REF!) -> 0 | F93: Anualidad simple | G93: 2 | I93: 8 | K93: 0 | L93: 0 | M93: 0 | O93: 0 | Q93: -0.02270764544 | R93: 0.6339298046 | S93: 0
C94: RNC a Core punto de acceso: Voz: 622.08 | E94: =CHOOSE(G94, M94, O94, S94,#REF!) -> 0 | F94: Anualidad simple | G94: 2 | I94: 8 | K94: 0 | L94: 0 | M94: 0 | O94: 0 | Q94: -0.02270764544 | R94: 0.6339298046 | S94: 0
C95: RNC a Core punto de acceso: Voz 100 | E95: =CHOOSE(G95, M95, O95, S95,#REF!) -> 0 | F95: Anualidad simple | G95: 2 | I95: 8 | K95: 0 | L95: 0 | M95: 0 | O95: 0 | Q95: -0.02270764544 | R95: 0.6339298046 | S95: 0
C96: RNC a Core punto de acceso: Voz 1024 | E96: =CHOOSE(G96, M96, O96, S96,#REF!) -> 0 | F96: Anualidad simple | G96: 2 | I96: 8 | K96: 0 | L96: 0 | M96: 0 | O96: 0 | Q96: -0.02270764544 | R96: 0.6339298046 | S96: 0
C97: RNC a Core punto de acceso: Voz 2488 | E97: =CHOOSE(G97, M97, O97, S97,#REF!) -> 0 | F97: Anualidad simple | G97: 2 | I97: 8 | K97: 0 | L97: 0 | M97: 0 | O97: 0 | Q97: -0.02270764544 | R97: 0.6339298046 | S97: 0
C98: RNC a Core punto de acceso: Datos: 34.4 | E98: =CHOOSE(G98, M98, O98, S98,#REF!) -> 0 | F98: Anualidad simple | G98: 2 | I98: 8 | K98: 0 | L98: 0 | M98: 0 | O98: 0 | Q98: -0.02270764544 | R98: 0.6339298046 | S98: 0
C99: RNC a Core punto de acceso: Datos: 155.52 | E99: =CHOOSE(G99, M99, O99, S99,#REF!) -> 0 | F99: Anualidad simple | G99: 2 | I99: 8 | K99: 0 | L99: 0 | M99: 0 | O99: 0 | Q99: -0.02270764544 | R99: 0.6339298046 | S99: 0
C100: RNC a Core punto de acceso: Datos: 622.08 | E100: =CHOOSE(G100, M100, O100, S100,#REF!) -> 0 | F100: Anualidad simple | G100: 2 | I100: 8 | K100: 0 | L100: 0 | M100: 0 | O100: 0 | Q100: -0.02270764544 | R100: 0.6339298046 | S100: 0
C101: RNC a Core punto de acceso: Datos: 100 | E101: =CHOOSE(G101, M101, O101, S101,#REF!) -> 0 | F101: Anualidad simple | G101: 2 | I101: 8 | K101: 0 | L101: 0 | M101: 0 | O101: 0 | Q101: -0.02270764544 | R101: 0.6339298046 | S101: 0
C102: RNC a Core punto de acceso: Datos: 1024 | E102: =CHOOSE(G102, M102, O102, S102,#REF!) -> 0 | F102: Anualidad simple | G102: 2 | I102: 8 | K102: 0 | L102: 0 | M102: 0 | O102: 0 | Q102: -0.02270764544 | R102: 0.6339298046 | S102: 0
C103: RNC a Core punto de acceso: Datos: 2488 | E103: =CHOOSE(G103, M103, O103, S103,#REF!) -> 0 | F103: Anualidad simple | G103: 2 | I103: 8 | K103: 0 | L103: 0 | M103: 0 | O103: 0 | Q103: -0.02270764544 | R103: 0.6339298046 | S103: 0
C104: BSC a Core líneas alquiladas: Voz: 8.45 | E104: =CHOOSE(G104, M104, O104, S104,#REF!) -> 0 | F104: Anualidad simple | G104: 2 | I104: 5 | K104: 0 | L104: 0 | M104: 0 | O104: 0 | Q104: 0.008154218392 | R104: 0.3766383449 | S104: 0
C105: BSC a Core líneas alquiladas: Voz: 34.37 | E105: =CHOOSE(G105, M105, O105, S105,#REF!) -> 0 | F105: =CTRL.depreciation.selected -> Anualidad simple | G105: =MATCH(F105,Depreciation.methodologies,0) -> 2 | I105: 5 | K105: 0 | L105: 0 | M105: 0 | O105: 0 | Q105: 0.008154218392 | R105: 0.3766383449 | S105: 0
C106: BSC a Core líneas alquiladas: Voz: 155.52 | E106: =CHOOSE(G106, M106, O106, S106,#REF!) -> 0 | F106: Anualidad simple | G106: 2 | I106: 5 | K106: 0 | L106: 0 | M106: 0 | O106: 0 | Q106: 0.008154218392 | R106: 0.3766383449 | S106: 0
C107: BSC a Core líneas alquiladas: Voz: 30 | E107: =CHOOSE(G107, M107, O107, S107,#REF!) -> 0 | F107: Anualidad simple | G107: 2 | I107: 5 | K107: 0 | L107: 0 | M107: 0 | O107: 0 | Q107: 0.008154218392 | R107: 0.3766383449 | S107: 0
C108: BSC a Core líneas alquiladas: Voz: 100 | E108: =CHOOSE(G108, M108, O108, S108,#REF!) -> 0 | F108: Anualidad simple | G108: 2 | I108: 5 | K108: 0 | L108: 0 | M108: 0 | O108: 0 | Q108: 0.008154218392 | R108: 0.3766383449 | S108: 0
C109: BSC a Core líneas alquiladas: Voz: 1024 | E109: =CHOOSE(G109, M109, O109, S109,#REF!) -> 0 | F109: Anualidad simple | G109: 2 | I109: 5 | K109: 0 | L109: 0 | M109: 0 | O109: 0 | Q109: 0.008154218392 | R109: 0.3766383449 | S109: 0
C110: BSC a Core líneas alquiladas: Datos: 8.45 | E110: =CHOOSE(G110, M110, O110, S110,#REF!) -> 0 | F110: Anualidad simple | G110: 2 | I110: 5 | K110: 0 | L110: 0 | M110: 0 | O110: 0 | Q110: 0.008154218392 | R110: 0.3766383449 | S110: 0
C111: BSC a Core líneas alquiladas: Datos: 34.37 | E111: =CHOOSE(G111, M111, O111, S111,#REF!) -> 0 | F111: Anualidad simple | G111: 2 | I111: 5 | K111: 0 | L111: 0 | M111: 0 | O111: 0 | Q111: 0.008154218392 | R111: 0.3766383449 | S111: 0
C112: BSC a Core líneas alquiladas: Datos: 155.52 | E112: =CHOOSE(G112, M112, O112, S112,#REF!) -> 0 | F112: Anualidad simple | G112: 2 | I112: 5 | K112: 0 | L112: 0 | M112: 0 | O112: 0 | Q112: 0.008154218392 | R112: 0.3766383449 | S112: 0
C113: BSC a Core líneas alquiladas: Datos: 30 | E113: =CHOOSE(G113, M113, O113, S113,#REF!) -> 0 | F113: Anualidad simple | G113: 2 | I113: 5 | K113: 0 | L113: 0 | M113: 0 | O113: 0 | Q113: 0.008154218392 | R113: 0.3766383449 | S113: 0
C114: BSC a Core líneas alquiladas: Datos: 100 | E114: =CHOOSE(G114, M114, O114, S114,#REF!) -> 0 | F114: Anualidad simple | G114: 2 | I114: 5 | K114: 0 | L114: 0 | M114: 0 | O114: 0 | Q114: 0.008154218392 | R114: 0.3766383449 | S114: 0
C115: BSC a Core líneas alquiladas: Datos: 1024 | E115: =CHOOSE(G115, M115, O115, S115,#REF!) -> 0 | F115: Anualidad simple | G115: 2 | I115: 5 | K115: 0 | L115: 0 | M115: 0 | O115: 0 | Q115: 0.008154218392 | R115: 0.3766383449 | S115: 0
C116: RNC a Core líneas alquiladas: Voz: 34.4 | E116: =CHOOSE(G116, M116, O116, S116,#REF!) -> 0 | F116: Anualidad simple | G116: 2 | I116: 5 | K116: 0 | L116: 0 | M116: 0 | O116: 0 | Q116: 0.008154218392 | R116: 0.3766383449 | S116: 0
C117: RNC a Core líneas alquiladas: Voz: 155.52 | E117: =CHOOSE(G117, M117, O117, S117,#REF!) -> 0 | F117: Anualidad simple | G117: 2 | I117: 5 | K117: 0 | L117: 0 | M117: 0 | O117: 0 | Q117: 0.008154218392 | R117: 0.3766383449 | S117: 0
C118: RNC a Core líneas alquiladas: Voz: 622.08 | E118: =CHOOSE(G118, M118, O118, S118,#REF!) -> 0 | F118: Anualidad simple | G118: 2 | I118: 5 | K118: 0 | L118: 0 | M118: 0 | O118: 0 | Q118: 0.008154218392 | R118: 0.3766383449 | S118: 0
C119: RNC a Core líneas alquiladas: Voz: 100 | E119: =CHOOSE(G119, M119, O119, S119,#REF!) -> 0 | F119: Anualidad simple | G119: 2 | I119: 5 | K119: 0 | L119: 0 | M119: 0 | O119: 0 | Q119: 0.008154218392 | R119: 0.3766383449 | S119: 0
C120: RNC a Core líneas alquiladas: Voz: 1024 | E120: =CHOOSE(G120, M120, O120, S120,#REF!) -> 0 | F120: Anualidad simple | G120: 2 | I120: 5 | K120: 0 | L120: 0 | M120: 0 | O120: 0 | Q120: 0.008154218392 | R120: 0.3766383449 | S120: 0
C121: RNC a Core líneas alquiladas: Voz: 2488 | E121: =CHOOSE(G121, M121, O121, S121,#REF!) -> 0 | F121: Anualidad simple | G121: 2 | I121: 5 | K121: 0 | L121: 0 | M121: 0 | O121: 0 | Q121: 0.008154218392 | R121: 0.3766383449 | S121: 0
C122: RNC a Core líneas alquiladas: Datos: 34.4 | E122: =CHOOSE(G122, M122, O122, S122,#REF!) -> 0 | F122: Anualidad simple | G122: 2 | I122: 5 | K122: 0 | L122: 0 | M122: 0 | O122: 0 | Q122: 0.008154218392 | R122: 0.3766383449 | S122: 0
C123: RNC a Core líneas alquiladas: Datos: 155.52 | E123: =CHOOSE(G123, M123, O123, S123,#REF!) -> 0 | F123: Anualidad simple | G123: 2 | I123: 5 | K123: 0 | L123: 0 | M123: 0 | O123: 0 | Q123: 0.008154218392 | R123: 0.3766383449 | S123: 0
C124: RNC a Core líneas alquiladas: Datos: 622.08 | E124: =CHOOSE(G124, M124, O124, S124,#REF!) -> 0 | F124: Anualidad simple | G124: 2 | I124: 5 | K124: 0 | L124: 0 | M124: 0 | O124: 0 | Q124: 0.008154218392 | R124: 0.3766383449 | S124: 0
C125: RNC a Core líneas alquiladas: Datos: 100 | E125: =CHOOSE(G125, M125, O125, S125,#REF!) -> 0 | F125: Anualidad simple | G125: 2 | I125: 5 | K125: 0 | L125: 0 | M125: 0 | O125: 0 | Q125: 0.008154218392 | R125: 0.3766383449 | S125: 0
C126: RNC a Core líneas alquiladas: Datos: 1024 | E126: =CHOOSE(G126, M126, O126, S126,#REF!) -> 0 | F126: Anualidad simple | G126: 2 | I126: 5 | K126: 0 | L126: 0 | M126: 0 | O126: 0 | Q126: 0.008154218392 | R126: 0.3766383449 | S126: 0
C127: RNC a Core líneas alquiladas: Datos: 2488 | E127: =CHOOSE(G127, M127, O127, S127,#REF!) -> 0 | F127: Anualidad simple | G127: 2 | I127: 5 | K127: 0 | L127: 0 | M127: 0 | O127: 0 | Q127: 0.008154218392 | R127: 0.3766383449 | S127: 0
C128: Core a core: líneas alquiladas, TDM: 155 | E128: =CHOOSE(G128, M128, O128, S128,#REF!) -> 0 | F128: Anualidad simple | G128: 2 | I128: 5 | K128: 0 | L128: 0 | M128: 0 | O128: 0 | Q128: 0.008154218392 | R128: 0.3766383449 | S128: 0
C129: Core a core: líneas alquiladas, TDM: 622 | E129: =CHOOSE(G129, M129, O129, S129,#REF!) -> 0 | F129: Anualidad simple | G129: 2 | I129: 5 | K129: 0 | L129: 0 | M129: 0 | O129: 0 | Q129: 0.008154218392 | R129: 0.3766383449 | S129: 0
C130: Core a core: líneas alquiladas, TDM: 2488 | E130: =CHOOSE(G130, M130, O130, S130,#REF!) -> 0 | F130: Anualidad simple | G130: 2 | I130: 5 | K130: 0 | L130: 0 | M130: 0 | O130: 0 | Q130: 0.008154218392 | R130: 0.3766383449 | S130: 0
C131: Core a core: líneas alquiladas, Ethernet: 1000 | E131: =CHOOSE(G131, M131, O131, S131,#REF!) -> 0 | F131: Anualidad simple | G131: 2 | I131: 5 | K131: 0 | L131: 0 | M131: 0 | O131: 0 | Q131: 0.008154218392 | R131: 0.3766383449 | S131: 0
C132: Core a core: líneas alquiladas, Ethernet: 2500 | E132: =CHOOSE(G132, M132, O132, S132,#REF!) -> 0 | F132: Anualidad simple | G132: 2 | I132: 5 | K132: 0 | L132: 0 | M132: 0 | O132: 0 | Q132: 0.008154218392 | R132: 0.3766383449 | S132: 0
C133: Core a core: líneas alquiladas, Ethernet: 10000 | E133: =CHOOSE(G133, M133, O133, S133,#REF!) -> 0 | F133: Anualidad simple | G133: 2 | I133: 5 | K133: 0 | L133: 0 | M133: 0 | O133: 0 | Q133: 0.008154218392 | R133: 0.3766383449 | S133: 0
C134: Anillo core, puntos de acceso (ADM/multiplexadores): 155 | E134: =CHOOSE(G134, M134, O134, S134,#REF!) -> 0 | F134: Anualidad simple | G134: 2 | I134: 8 | K134: 0 | L134: 0 | M134: 0 | O134: 0 | Q134: -0.02270764544 | R134: 0.6339298046 | S134: 0
C135: Anillo core, puntos de acceso (ADM/multiplexadores): 622 | E135: =CHOOSE(G135, M135, O135, S135,#REF!) -> 0 | F135: Anualidad simple | G135: 2 | I135: 8 | K135: 0 | L135: 0 | M135: 0 | O135: 0 | Q135: -0.02270764544 | R135: 0.6339298046 | S135: 0
C136: Anillo core, puntos de acceso (ADM/multiplexadores): 2488 | E136: =CHOOSE(G136, M136, O136, S136,#REF!) -> 0 | F136: Anualidad simple | G136: 2 | I136: 8 | K136: 0 | L136: 0 | M136: 0 | O136: 0 | Q136: -0.02270764544 | R136: 0.6339298046 | S136: 0
C137: Anillo core, puntos de acceso (ADM/multiplexadores): 9952 | E137: =CHOOSE(G137, M137, O137, S137,#REF!) -> 0 | F137: =CTRL.depreciation.selected -> Anualidad simple | G137: =MATCH(F137,Depreciation.methodologies,0) -> 2 | I137: 8 | K137: 0 | L137: 0 | M137: 0 | O137: 0 | Q137: -0.02270764544 | R137: 0.6339298046 | S137: 0
C138: Anillo core, puntos de acceso (ADM/multiplexadores): 1000 | E138: =CHOOSE(G138, M138, O138, S138,#REF!) -> 0 | F138: Anualidad simple | G138: 2 | I138: 8 | K138: 0 | L138: 0 | M138: 0 | O138: 0 | Q138: -0.02270764544 | R138: 0.6339298046 | S138: 0
C139: Anillo core, puntos de acceso (ADM/multiplexadores): 2500 | E139: =CHOOSE(G139, M139, O139, S139,#REF!) -> 0 | F139: Anualidad simple | G139: 2 | I139: 8 | K139: 0 | L139: 0 | M139: 0 | O139: 0 | Q139: -0.02270764544 | R139: 0.6339298046 | S139: 0
C140: Anillo core, puntos de acceso (ADM/multiplexadores): 10000 | E140: =CHOOSE(G140, M140, O140, S140,#REF!) -> 0 | F140: Anualidad simple | G140: 2 | I140: 8 | K140: 0 | L140: 0 | M140: 0 | O140: 0 | Q140: -0.02270764544 | R140: 0.6339298046 | S140: 0
C141: Anillo core, puntos de acceso (ADM/multiplexadores): 40000 | E141: =CHOOSE(G141, M141, O141, S141,#REF!) -> 41689.35555 | F141: Anualidad simple | G141: 2 | I141: 8 | K141: 27000 | L141: 11674.8 | M141: 38674.8 | O141: 41689.35555 | Q141: -0.02270764544 | R141: 0.6339298046 | S141: 44570.31553
C142: Fibra en la red core (km) | E142: =CHOOSE(G142, M142, O142, S142,#REF!) -> 14942668.34 | F142: Anualidad simple | G142: 2 | I142: 20 | K142: 6024360 | L142: 6512333.16 | M142: 12536693.16 | O142: 14942668.34 | Q142: 0.03901608222 | R142: 0.7240271888 | S142: 11496429.9
C143: Salto MW core a core | E143: =CHOOSE(G143, M143, O143, S143,#REF!) -> 154405.0206 | F143: Anualidad simple | G143: 2 | I143: 8 | K143: 100000 | L143: 43240 | M143: 143240 | O143: 154405.0206 | Q143: -0.02270764544 | R143: 0.6339298046 | S143: 165075.2427
C144: Main switching/core sites | E144: =CHOOSE(G144, M144, O144, S144,#REF!) -> 254801.8111 | F144: Anualidad simple | G144: 2 | I144: 25 | K144: 87040 | L144: 117612.8 | M144: 204652.8 | O144: 254801.8111 | Q144: 0.03901608222 | R144: 0.7999756481 | S144: 187913.9764
C145: Asset spare | E145: =CHOOSE(G145, M145, O145, S145,#REF!) -> 0 | F145: Anualidad simple | G145: 2 | I145: 1 | K145: 0 | L145: 0 | M145: 0 | O145: 0 | Q145: 0.02872879428 | R145: 0.07162819757 | S145: 0
C146: MSS | E146: =CHOOSE(G146, M146, O146, S146,#REF!) -> 1885845.578 | F146: Anualidad simple | G146: 2 | I146: 6 | K146: 1337000 | L146: 433589.1 | M146: 1770589.1 | O146: 1885845.578 | Q146: -0.02270764544 | R146: 0.5293768587 | S146: 1982215.343
C147: MGW | E147: =CHOOSE(G147, M147, O147, S147,#REF!) -> 1759464.304 | F147: Anualidad simple | G147: 2 | I147: 6 | K147: 1247400 | L147: 404531.82 | M147: 1651931.82 | O147: 1759464.304 | Q147: -0.02270764544 | R147: 0.5293768587 | S147: 1849375.781
C148: SGSN | E148: =CHOOSE(G148, M148, O148, S148,#REF!) -> 548192.8826 | F148: Anualidad simple | G148: 2 | I148: 6 | K148: 388650 | L148: 126039.195 | M148: 514689.195 | O148: 548192.8826 | Q148: -0.02270764544 | R148: 0.5293768587 | S148: 576206.4272
C149: GGSN | E149: =CHOOSE(G149, M149, O149, S149,#REF!) -> 517843.5103 | F149: Anualidad simple | G149: 2 | I149: 6 | K149: 367133.3333 | L149: 119061.34 | M149: 486194.6733 | O149: 517843.5103 | Q149: -0.02270764544 | R149: 0.5293768587 | S149: 544306.1528
C150: LTE MME | E150: =CHOOSE(G150, M150, O150, S150,#REF!) -> 1193757.647 | F150: Anualidad simple | G150: 2 | I150: 6 | K150: 846333.3333 | L150: 274465.9 | M150: 1120799.233 | O150: 1193757.647 | Q150: -0.02270764544 | R150: 0.5293768587 | S150: 1254760.597
C151: LTE SGW | E151: =CHOOSE(G151, M151, O151, S151,#REF!) -> 2375290.915 | F151: Anualidad simple | G151: 2 | I151: 6 | K151: 1684000 | L151: 546121.2 | M151: 2230121.2 | O151: 2375290.915 | Q151: -0.02270764544 | R151: 0.5293768587 | S151: 2496672.13
C152: HLR | E152: =CHOOSE(G152, M152, O152, S152,#REF!) -> 1414266.642 | F152: Anualidad simple | G152: 2 | I152: 6 | K152: 1002666.667 | L152: 325164.8 | M152: 1327831.467 | O152: 1414266.642 | Q152: -0.02270764544 | R152: 0.5293768587 | S152: 1486537.959
C153: AUC | E153: =CHOOSE(G153, M153, O153, S153,#REF!) -> 305938.5983 | F153: Anualidad simple | G153: 2 | I153: 6 | K153: 216900 | L153: 70340.67 | M153: 287240.67 | O153: 305938.5983 | Q153: -0.02270764544 | R153: 0.5293768587 | S153: 321572.5564
C154: EIR | E154: =CHOOSE(G154, M154, O154, S154,#REF!) -> 513706.0281 | F154: Anualidad simple | G154: 2 | I154: 6 | K154: 364200 | L154: 118110.06 | M154: 482310.06 | O154: 513706.0281 | Q154: -0.02270764544 | R154: 0.5293768587 | S154: 539957.2386
C155: IN (SCP+SMP) | E155: =CHOOSE(G155, M155, O155, S155,#REF!) -> 956322.5894 | F155: Anualidad simple | G155: 2 | I155: 6 | K155: 678000 | L155: 219875.4 | M155: 897875.4 | O155: 956322.5894 | Q155: -0.02270764544 | R155: 0.5293768587 | S155: 1005192.223
C156: Asset spare | E156: =CHOOSE(G156, M156, O156, S156,#REF!) -> 0 | F156: Anualidad simple | G156: 2 | I156: 1 | K156: 0 | L156: 0 | M156: 0 | O156: 0 | Q156: 0.02872879428 | R156: 0.07162819757 | S156: 0
C157: Asset spare | E157: =CHOOSE(G157, M157, O157, S157,#REF!) -> 0 | F157: Anualidad simple | G157: 2 | I157: 1 | K157: 0 | L157: 0 | M157: 0 | O157: 0 | Q157: 0.02872879428 | R157: 0.07162819757 | S157: 0
C158: SMSC | E158: =CHOOSE(G158, M158, O158, S158,#REF!) -> 787908.2573 | F158: Anualidad simple | G158: 2 | I158: 6 | K158: 558600 | L158: 181153.98 | M158: 739753.98 | O158: 787908.2573 | Q158: -0.02270764544 | R158: 0.5293768587 | S158: 828171.646
C159: MMSC | E159: =CHOOSE(G159, M159, O159, S159,#REF!) -> 189948.0463 | F159: Anualidad simple | G159: 2 | I159: 6 | K159: 134666.6667 | L159: 43672.4 | M159: 178339.0667 | O159: 189948.0463 | Q159: -0.02270764544 | R159: 0.5293768587 | S159: 199654.6992
C160: Asset spare | E160: =CHOOSE(G160, M160, O160, S160,#REF!) -> 0 | F160: Anualidad simple | G160: 2 | I160: 1 | K160: 0 | L160: 0 | M160: 0 | O160: 0 | Q160: 0.02872879428 | R160: 0.07162819757 | S160: 0
C161: MSC/MGW STM1 ports for voice traffic | E161: =CHOOSE(G161, M161, O161, S161,#REF!) -> 308038.016 | F161: Anualidad simple | G161: 2 | I161: 8 | K161: 199500 | L161: 86263.8 | M161: 285763.8 | O161: 308038.016 | Q161: -0.02270764544 | R161: 0.6339298046 | S161: 329325.1092
C162: PoI STM1 Gateway | E162: =CHOOSE(G162, M162, O162, S162,#REF!) -> 302130.234 | F162: Anualidad simple | G162: 2 | I162: 6 | K162: 214200 | L162: 69465.06 | M162: 283665.06 | O162: 302130.234 | Q162: -0.02270764544 | R162: 0.5293768587 | S162: 317569.5786
C163: I-SBC | E163: =CHOOSE(G163, M163, O163, S163,#REF!) -> 0 | F163: Anualidad simple | G163: 2 | I163: 6 | K163: 0 | L163: 0 | M163: 0 | O163: 0 | Q163: -0.02270764544 | R163: 0.5293768587 | S163: 0
C164: Asset spare | E164: =CHOOSE(G164, M164, O164, S164,#REF!) -> 0 | F164: Anualidad simple | G164: 2 | I164: 1 | K164: 0 | L164: 0 | M164: 0 | O164: 0 | Q164: 0.02872879428 | R164: 0.07162819757 | S164: 0
C165: MSS software | E165: =CHOOSE(G165, M165, O165, S165,#REF!) -> 483803.3159 | F165: Anualidad simple | G165: 2 | I165: 6 | K165: 343000 | L165: 111234.9 | M165: 454234.9 | O165: 483803.3159 | Q165: -0.02270764544 | R165: 0.5293768587 | S165: 508526.4493
C166: SGSN software | E166: =CHOOSE(G166, M166, O166, S166,#REF!) -> 982.6520216 | F166: Anualidad simple | G166: 2 | I166: 6 | K166: 696.6666667 | L166: 225.929 | M166: 922.5956667 | O166: 982.6520216 | Q166: -0.02270764544 | R166: 0.5293768587 | S166: 1032.867132
C167: GGSN software | E167: =CHOOSE(G167, M167, O167, S167,#REF!) -> 1504.53898 | F167: Anualidad simple | G167: 2 | I167: 6 | K167: 1066.666667 | L167: 345.92 | M167: 1412.586667 | O167: 1504.53898 | Q167: -0.02270764544 | R167: 0.5293768587 | S167: 1581.42336
C168: MME software | E168: =CHOOSE(G168, M168, O168, S168,#REF!) -> 278104.6272 | F168: Anualidad simple | G168: 2 | I168: 6 | K168: 197166.6667 | L168: 63941.15 | M168: 261107.8167 | O168: 278104.6272 | Q168: -0.02270764544 | R168: 0.5293768587 | S168: 292316.2243
C169: SGW software | E169: =CHOOSE(G169, M169, O169, S169,#REF!) -> 695.8492784 | F169: =CTRL.depreciation.selected -> Anualidad simple | G169: =MATCH(F169,Depreciation.methodologies,0) -> 2 | I169: 6 | K169: 493.3333333 | L169: 159.988 | M169: 653.3213333 | O169: 695.8492784 | Q169: -0.02270764544 | R169: 0.5293768587 | S169: 731.4083042
C170: HLR software | E170: =CHOOSE(G170, M170, O170, S170,#REF!) -> 775.7779118 | F170: Anualidad simple | G170: 2 | I170: 6 | K170: 550 | L170: 178.365 | M170: 728.365 | O170: 775.7779118 | Q170: -0.02270764544 | R170: 0.5293768587 | S170: 815.4214202
C171: Call server – hardware | E171: =CHOOSE(G171, M171, O171, S171,#REF!) -> 0 | F171: Anualidad simple | G171: 2 | I171: 6 | K171: 0 | L171: 0 | M171: 0 | O171: 0 | Q171: -0.02270764544 | R171: 0.5293768587 | S171: 0
C172: Call server – software | E172: =CHOOSE(G172, M172, O172, S172,#REF!) -> 0 | F172: Anualidad simple | G172: 2 | I172: 6 | K172: 0 | L172: 0 | M172: 0 | O172: 0 | Q172: -0.02270764544 | R172: 0.5293768587 | S172: 0
C173: Telephony Application Server (TAS) | E173: =CHOOSE(G173, M173, O173, S173,#REF!) -> 0 | F173: Anualidad simple | G173: 2 | I173: 6 | K173: 0 | L173: 0 | M173: 0 | O173: 0 | Q173: -0.02270764544 | R173: 0.5293768587 | S173: 0
C174: Session border controller (SBC) – hardware | E174: =CHOOSE(G174, M174, O174, S174,#REF!) -> 0 | F174: Anualidad simple | G174: 2 | I174: 6 | K174: 0 | L174: 0 | M174: 0 | O174: 0 | Q174: -0.02270764544 | R174: 0.5293768587 | S174: 0
C175: Session border controller (SBC) – software | E175: =CHOOSE(G175, M175, O175, S175,#REF!) -> 0 | F175: Anualidad simple | G175: 2 | I175: 6 | K175: 0 | L175: 0 | M175: 0 | O175: 0 | Q175: -0.02270764544 | R175: 0.5293768587 | S175: 0
C176: PCC | E176: =CHOOSE(G176, M176, O176, S176,#REF!) -> 0 | F176: Anualidad simple | G176: 2 | I176: 6 | K176: 0 | L176: 0 | M176: 0 | O176: 0 | Q176: -0.02270764544 | R176: 0.5293768587 | S176: 0
C177: MGCF | E177: =CHOOSE(G177, M177, O177, S177,#REF!) -> 0 | F177: Anualidad simple | G177: 2 | I177: 6 | K177: 0 | L177: 0 | M177: 0 | O177: 0 | Q177: -0.02270764544 | R177: 0.5293768587 | S177: 0
C178: Puertos BSC - sitios E1 | E178: =CHOOSE(G178, M178, O178, S178,#REF!) -> 54038.37958 | F178: Anualidad simple | G178: 2 | I178: 8 | K178: 34997.8125 | L178: 15133.05413 | M178: 50130.86663 | O178: 54038.37958 | Q178: -0.02270764544 | R178: 0.6339298046 | S178: 57772.72393
C179: Puertos BSC - sitios 10M | E179: =CHOOSE(G179, M179, O179, S179,#REF!) -> 0 | F179: Anualidad simple | G179: 2 | I179: 8 | K179: 0 | L179: 0 | M179: 0 | O179: 0 | Q179: -0.02270764544 | R179: 0.6339298046 | S179: 0
C180: Puertos RNC - sitios E1 para voz | E180: =CHOOSE(G180, M180, O180, S180,#REF!) -> 0 | F180: Anualidad simple | G180: 2 | I180: 8 | K180: 0 | L180: 0 | M180: 0 | O180: 0 | Q180: -0.02270764544 | R180: 0.6339298046 | S180: 0
C181: Puertos RNC - sitios 10M para voz | E181: =CHOOSE(G181, M181, O181, S181,#REF!) -> 10931.39294 | F181: Anualidad simple | G181: 2 | I181: 8 | K181: 7079.6875 | L181: 3061.256875 | M181: 10140.94437 | O181: 10931.39294 | Q181: -0.02270764544 | R181: 0.6339298046 | S181: 11686.81132
C182: Puertos RNC - sitios E1 para datos | E182: =CHOOSE(G182, M182, O182, S182,#REF!) -> 0 | F182: Anualidad simple | G182: 2 | I182: 8 | K182: 0 | L182: 0 | M182: 0 | O182: 0 | Q182: -0.02270764544 | R182: 0.6339298046 | S182: 0
C183: Puertos RNC - sitios 10M para datos | E183: =CHOOSE(G183, M183, O183, S183,#REF!) -> 59051.7176 | F183: Anualidad simple | G183: 2 | I183: 8 | K183: 38244.6875 | L183: 16537.00288 | M183: 54781.69038 | O183: 59051.7176 | Q183: -0.02270764544 | R183: 0.6339298046 | S183: 63132.51071
C184: Puertos BSC a Core: Voz: 8.45 | E184: =CHOOSE(G184, M184, O184, S184,#REF!) -> 0 | F184: Anualidad simple | G184: 2 | I184: 8 | K184: 0 | L184: 0 | M184: 0 | O184: 0 | Q184: -0.02270764544 | R184: 0.6339298046 | S184: 0
C185: Puertos BSC a Core: Voz: 34.37 | E185: =CHOOSE(G185, M185, O185, S185,#REF!) -> 0 | F185: Anualidad simple | G185: 2 | I185: 8 | K185: 0 | L185: 0 | M185: 0 | O185: 0 | Q185: -0.02270764544 | R185: 0.6339298046 | S185: 0
C186: Puertos BSC a Core: Voz: 155.52 | E186: =CHOOSE(G186, M186, O186, S186,#REF!) -> 44005.43086 | F186: Anualidad simple | G186: 2 | I186: 8 | K186: 28500 | L186: 12323.4 | M186: 40823.4 | O186: 44005.43086 | Q186: -0.02270764544 | R186: 0.6339298046 | S186: 47046.44417
C187: Puertos BSC a Core: Voz: 30 | E187: =CHOOSE(G187, M187, O187, S187,#REF!) -> 0 | F187: Anualidad simple | G187: 2 | I187: 8 | K187: 0 | L187: 0 | M187: 0 | O187: 0 | Q187: -0.02270764544 | R187: 0.6339298046 | S187: 0
C188: Puertos BSC a Core: Voz: 100 | E188: =CHOOSE(G188, M188, O188, S188,#REF!) -> 0 | F188: Anualidad simple | G188: 2 | I188: 8 | K188: 0 | L188: 0 | M188: 0 | O188: 0 | Q188: -0.02270764544 | R188: 0.6339298046 | S188: 0
C189: Puertos BSC a Core: Voz: 1024 | E189: =CHOOSE(G189, M189, O189, S189,#REF!) -> 0 | F189: Anualidad simple | G189: 2 | I189: 8 | K189: 0 | L189: 0 | M189: 0 | O189: 0 | Q189: -0.02270764544 | R189: 0.6339298046 | S189: 0
C190: Puertos BSC a Core: Datos: 8.45 | E190: =CHOOSE(G190, M190, O190, S190,#REF!) -> 0 | F190: Anualidad simple | G190: 2 | I190: 8 | K190: 0 | L190: 0 | M190: 0 | O190: 0 | Q190: -0.02270764544 | R190: 0.6339298046 | S190: 0
C191: Puertos BSC a Core: Datos: 34.37 | E191: =CHOOSE(G191, M191, O191, S191,#REF!) -> 0 | F191: Anualidad simple | G191: 2 | I191: 8 | K191: 0 | L191: 0 | M191: 0 | O191: 0 | Q191: -0.02270764544 | R191: 0.6339298046 | S191: 0
C192: Puertos BSC a Core: Datos: 155.52 | E192: =CHOOSE(G192, M192, O192, S192,#REF!) -> 0 | F192: Anualidad simple | G192: 2 | I192: 8 | K192: 0 | L192: 0 | M192: 0 | O192: 0 | Q192: -0.02270764544 | R192: 0.6339298046 | S192: 0
C193: Puertos BSC a Core: Datos: 30 | E193: =CHOOSE(G193, M193, O193, S193,#REF!) -> 0 | F193: Anualidad simple | G193: 2 | I193: 8 | K193: 0 | L193: 0 | M193: 0 | O193: 0 | Q193: -0.02270764544 | R193: 0.6339298046 | S193: 0
C194: Puertos BSC a Core: Datos: 100 | E194: =CHOOSE(G194, M194, O194, S194,#REF!) -> 0 | F194: Anualidad simple | G194: 2 | I194: 8 | K194: 0 | L194: 0 | M194: 0 | O194: 0 | Q194: -0.02270764544 | R194: 0.6339298046 | S194: 0
C195: Puertos BSC a Core: Datos: 1024 | E195: =CHOOSE(G195, M195, O195, S195,#REF!) -> 0 | F195: Anualidad simple | G195: 2 | I195: 8 | K195: 0 | L195: 0 | M195: 0 | O195: 0 | Q195: -0.02270764544 | R195: 0.6339298046 | S195: 0
C196: Puertos RNC a Core: Voz: 34.4 | E196: =CHOOSE(G196, M196, O196, S196,#REF!) -> 0 | F196: Anualidad simple | G196: 2 | I196: 8 | K196: 0 | L196: 0 | M196: 0 | O196: 0 | Q196: -0.02270764544 | R196: 0.6339298046 | S196: 0
C197: Puertos RNC a Core: Voz: 155.52 | E197: =CHOOSE(G197, M197, O197, S197,#REF!) -> 0 | F197: Anualidad simple | G197: 2 | I197: 8 | K197: 0 | L197: 0 | M197: 0 | O197: 0 | Q197: -0.02270764544 | R197: 0.6339298046 | S197: 0
C198: Puertos RNC a Core: Voz: 622.08 | E198: =CHOOSE(G198, M198, O198, S198,#REF!) -> 0 | F198: Anualidad simple | G198: 2 | I198: 8 | K198: 0 | L198: 0 | M198: 0 | O198: 0 | Q198: -0.02270764544 | R198: 0.6339298046 | S198: 0
C199: Puertos RNC a Core: Voz: 100 | E199: =CHOOSE(G199, M199, O199, S199,#REF!) -> 1820.04918 | F199: Anualidad simple | G199: 2 | I199: 8 | K199: 1178.75 | L199: 509.6915 | M199: 1688.4415 | O199: 1820.04918 | Q199: -0.02270764544 | R199: 0.6339298046 | S199: 1945.824423
C200: Puertos RNC a Core: Voz: 1024 | E200: =CHOOSE(G200, M200, O200, S200,#REF!) -> 0 | F200: Anualidad simple | G200: 2 | I200: 8 | K200: 0 | L200: 0 | M200: 0 | O200: 0 | Q200: -0.02270764544 | R200: 0.6339298046 | S200: 0
C201: Puertos RNC a Core: Voz: 2488 | E201: =CHOOSE(G201, M201, O201, S201,#REF!) -> 0 | F201: =CTRL.depreciation.selected -> Anualidad simple | G201: =MATCH(F201,Depreciation.methodologies,0) -> 2 | I201: 8 | K201: 0 | L201: 0 | M201: 0 | O201: 0 | Q201: -0.02270764544 | R201: 0.6339298046 | S201: 0
C202: Puertos RNC a Core: Datos: 34.4 | E202: =CHOOSE(G202, M202, O202, S202,#REF!) -> 0 | F202: Anualidad simple | G202: 2 | I202: 8 | K202: 0 | L202: 0 | M202: 0 | O202: 0 | Q202: -0.02270764544 | R202: 0.6339298046 | S202: 0
C203: Puertos RNC a Core: Datos: 155.52 | E203: =CHOOSE(G203, M203, O203, S203,#REF!) -> 0 | F203: Anualidad simple | G203: 2 | I203: 8 | K203: 0 | L203: 0 | M203: 0 | O203: 0 | Q203: -0.02270764544 | R203: 0.6339298046 | S203: 0
C204: Puertos RNC a Core: Datos: 622.08 | E204: =CHOOSE(G204, M204, O204, S204,#REF!) -> 0 | F204: Anualidad simple | G204: 2 | I204: 8 | K204: 0 | L204: 0 | M204: 0 | O204: 0 | Q204: -0.02270764544 | R204: 0.6339298046 | S204: 0
... 5 more rows

Sheet ErlangTables
E1: Tabla Erlang
B4: Tabla Erlang
D6: Tráfico ofrecido en Erlangs
C7: Número de canales | D7: Probabilidad de bloqueo
D9: 0.001 | E9: 0.01 | F9: 0.02 | G9: 0.03 | H9: 0.05 | I9: Erlang.Table.Header
C10: 0 | D10: 0 | E10: 0 | F10: 0 | G10: 0 | H10: 0
C11: 0.1 | D11: 0.0001 | E11: 0.00101 | F11: 0.00204 | G11: 0.00309 | H11: 0.00526
C12: 0.2 | D12: 0.0002 | E12: 0.00202 | F12: 0.00408 | G12: 0.00618 | H12: 0.01052
C13: 0.3 | D13: 0.0003 | E13: 0.00303 | F13: 0.00612 | G13: 0.00927 | H13: 0.01578
C14: 0.4 | D14: 0.0004 | E14: 0.00404 | F14: 0.00816 | G14: 0.01236 | H14: 0.02104
C15: 0.5 | D15: 0.0005 | E15: 0.00505 | F15: 0.0102 | G15: 0.01545 | H15: 0.0263
C16: 0.6 | D16: 0.0006 | E16: 0.00606 | F16: 0.01224 | G16: 0.01854 | H16: 0.03156
C17: 0.7 | D17: 0.0007 | E17: 0.00707 | F17: 0.01428 | G17: 0.02163 | H17: 0.03682
C18: 0.8 | D18: 0.0008 | E18: 0.00808 | F18: 0.01632 | G18: 0.02472 | H18: 0.04208
C19: 0.9 | D19: 0.0009 | E19: 0.00909 | F19: 0.01836 | G19: 0.02781 | H19: 0.04734
C20: 1 | D20: 0.001 | E20: 0.0101 | F20: 0.0204 | G20: 0.0309 | H20: 0.0526
C21: 1.1 | D21: 0.00548 | E21: 0.02435 | F21: 0.04071 | G21: 0.05597 | H21: 0.08547
C22: 1.2 | D22: 0.00996 | E22: 0.0386 | F22: 0.06102 | G22: 0.08104 | H22: 0.11834
C23: 1.3 | D23: 0.01444 | E23: 0.05285 | F23: 0.08133 | G23: 0.10611 | H23: 0.15121
C24: 1.4 | D24: 0.01892 | E24: 0.0671 | F24: 0.10164 | G24: 0.13118 | H24: 0.18408
C25: 1.5 | D25: 0.0234 | E25: 0.08135 | F25: 0.12195 | G25: 0.15625 | H25: 0.21695
C26: 1.6 | D26: 0.02788 | E26: 0.0956 | F26: 0.14226 | G26: 0.18132 | H26: 0.24982
C27: 1.7 | D27: 0.03236 | E27: 0.10985 | F27: 0.16257 | G27: 0.20639 | H27: 0.28269
C28: 1.8 | D28: 0.03684 | E28: 0.1241 | F28: 0.18288 | G28: 0.23146 | H28: 0.31556
C29: 1.9 | D29: 0.04132 | E29: 0.13835 | F29: 0.20319 | G29: 0.25653 | H29: 0.34843
C30: 2 | D30: 0.0458 | E30: 0.1526 | F30: 0.2235 | G30: 0.2816 | H30: 0.3813
C31: 2.1 | D31: 0.0606 | E31: 0.18289 | F31: 0.26137 | G31: 0.32495 | H31: 0.43311
C32: 2.2 | D32: 0.0754 | E32: 0.21318 | F32: 0.29924 | G32: 0.3683 | H32: 0.48492
C33: 2.3 | D33: 0.0902 | E33: 0.24347 | F33: 0.33711 | G33: 0.41165 | H33: 0.53673
C34: 2.4 | D34: 0.105 | E34: 0.27376 | F34: 0.37498 | G34: 0.455 | H34: 0.58854
C35: 2.5 | D35: 0.1198 | E35: 0.30405 | F35: 0.41285 | G35: 0.49835 | H35: 0.64035
C36: 2.6 | D36: 0.1346 | E36: 0.33434 | F36: 0.45072 | G36: 0.5417 | H36: 0.69216
C37: 2.7 | D37: 0.1494 | E37: 0.36463 | F37: 0.48859 | G37: 0.58505 | H37: 0.74397
C38: 2.8 | D38: 0.1642 | E38: 0.39492 | F38: 0.52646 | G38: 0.6284 | H38: 0.79578
C39: 2.9 | D39: 0.179 | E39: 0.42521 | F39: 0.56433 | G39: 0.67175 | H39: 0.84759
C40: 3 | D40: 0.1938 | E40: 0.4555 | F40: 0.6022 | G40: 0.7151 | H40: 0.8994
C41: 3.1 | D41: 0.21835 | E41: 0.49689 | F41: 0.65121 | G41: 0.76948 | H41: 0.96192
C42: 3.2 | D42: 0.2429 | E42: 0.53828 | F42: 0.70022 | G42: 0.82386 | H42: 1.02444
C43: 3.3 | D43: 0.26745 | E43: 0.57967 | F43: 0.74923 | G43: 0.87824 | H43: 1.08696
C44: 3.4 | D44: 0.292 | E44: 0.62106 | F44: 0.79824 | G44: 0.93262 | H44: 1.14948
C45: 3.5 | D45: 0.31655 | E45: 0.66245 | F45: 0.84725 | G45: 0.987 | H45: 1.212
C46: 3.6 | D46: 0.3411 | E46: 0.70384 | F46: 0.89626 | G46: 1.04138 | H46: 1.27452
C47: 3.7 | D47: 0.36565 | E47: 0.74523 | F47: 0.94527 | G47: 1.09576 | H47: 1.33704
C48: 3.8 | D48: 0.3902 | E48: 0.78662 | F48: 0.99428 | G48: 1.15014 | H48: 1.39956
C49: 3.9 | D49: 0.41475 | E49: 0.82801 | F49: 1.04329 | G49: 1.20452 | H49: 1.46208
C50: 4 | D50: 0.4393 | E50: 0.8694 | F50: 1.0923 | G50: 1.2589 | H50: 1.5246
C51: 4.1 | D51: 0.47158 | E51: 0.91854 | F51: 1.14878 | G51: 1.32053 | H51: 1.59399
C52: 4.2 | D52: 0.50386 | E52: 0.96768 | F52: 1.20526 | G52: 1.38216 | H52: 1.66338
C53: 4.3 | D53: 0.53614 | E53: 1.01682 | F53: 1.26174 | G53: 1.44379 | H53: 1.73277
C54: 4.4 | D54: 0.56842 | E54: 1.06596 | F54: 1.31822 | G54: 1.50542 | H54: 1.80216
C55: 4.5 | D55: 0.6007 | E55: 1.1151 | F55: 1.3747 | G55: 1.56705 | H55: 1.87155
C56: 4.6 | D56: 0.63298 | E56: 1.16424 | F56: 1.43118 | G56: 1.62868 | H56: 1.94094
C57: 4.7 | D57: 0.66526 | E57: 1.21338 | F57: 1.48766 | G57: 1.69031 | H57: 2.01033
C58: 4.8 | D58: 0.69754 | E58: 1.26252 | F58: 1.54414 | G58: 1.75194 | H58: 2.07972
C59: 4.9 | D59: 0.72982 | E59: 1.31166 | F59: 1.60062 | G59: 1.81357 | H59: 2.14911
C60: 5 | D60: 0.7621 | E60: 1.3608 | F60: 1.6571 | G60: 1.8752 | H60: 2.2185
C61: 5.1 | D61: 0.80048 | E61: 1.41562 | F61: 1.71898 | G61: 1.94199 | H61: 2.29268
C62: 5.2 | D62: 0.83886 | E62: 1.47044 | F62: 1.78086 | G62: 2.00878 | H62: 2.36686
C63: 5.3 | D63: 0.87724 | E63: 1.52526 | F63: 1.84274 | G63: 2.07557 | H63: 2.44104
C64: 5.4 | D64: 0.91562 | E64: 1.58008 | F64: 1.90462 | G64: 2.14236 | H64: 2.51522
C65: 5.5 | D65: 0.954 | E65: 1.6349 | F65: 1.9665 | G65: 2.20915 | H65: 2.5894
C66: 5.6 | D66: 0.99238 | E66: 1.68972 | F66: 2.02838 | G66: 2.27594 | H66: 2.66358
C67: 5.7 | D67: 1.03076 | E67: 1.74454 | F67: 2.09026 | G67: 2.34273 | H67: 2.73776
C68: 5.8 | D68: 1.06914 | E68: 1.79936 | F68: 2.15214 | G68: 2.40952 | H68: 2.81194
C69: 5.9 | D69: 1.10752 | E69: 1.85418 | F69: 2.21402 | G69: 2.47631 | H69: 2.88612
C70: 6 | D70: 1.1459 | E70: 1.909 | F70: 2.2759 | G70: 2.5431 | H70: 2.9603
C71: 6.1 | D71: 1.18917 | E71: 1.96819 | F71: 2.34185 | G71: 2.61376 | H71: 3.03805
C72: 6.2 | D72: 1.23244 | E72: 2.02738 | F72: 2.4078 | G72: 2.68442 | H72: 3.1158
C73: 6.3 | D73: 1.27571 | E73: 2.08657 | F73: 2.47375 | G73: 2.75508 | H73: 3.19355
C74: 6.4 | D74: 1.31898 | E74: 2.14576 | F74: 2.5397 | G74: 2.82574 | H74: 3.2713
C75: 6.5 | D75: 1.36225 | E75: 2.20495 | F75: 2.60565 | G75: 2.8964 | H75: 3.34905
C76: 6.6 | D76: 1.40552 | E76: 2.26414 | F76: 2.6716 | G76: 2.96706 | H76: 3.4268
C77: 6.7 | D77: 1.44879 | E77: 2.32333 | F77: 2.73755 | G77: 3.03772 | H77: 3.50455
C78: 6.8 | D78: 1.49206 | E78: 2.38252 | F78: 2.8035 | G78: 3.10838 | H78: 3.5823
C79: 6.9 | D79: 1.53533 | E79: 2.44171 | F79: 2.86945 | G79: 3.17904 | H79: 3.66005
C80: 7 | D80: 1.5786 | E80: 2.5009 | F80: 2.9354 | G80: 3.2497 | H80: 3.7378
C81: 7.1 | D81: 1.62587 | E81: 2.56357 | F81: 3.00457 | G81: 3.32338 | H81: 3.81832
C82: 7.2 | D82: 1.67314 | E82: 2.62624 | F82: 3.07374 | G82: 3.39706 | H82: 3.89884
C83: 7.3 | D83: 1.72041 | E83: 2.68891 | F83: 3.14291 | G83: 3.47074 | H83: 3.97936
C84: 7.4 | D84: 1.76768 | E84: 2.75158 | F84: 3.21208 | G84: 3.54442 | H84: 4.05988
C85: 7.5 | D85: 1.81495 | E85: 2.81425 | F85: 3.28125 | G85: 3.6181 | H85: 4.1404
C86: 7.6 | D86: 1.86222 | E86: 2.87692 | F86: 3.35042 | G86: 3.69178 | H86: 4.22092
C87: 7.7 | D87: 1.90949 | E87: 2.93959 | F87: 3.41959 | G87: 3.76546 | H87: 4.30144
C88: 7.8 | D88: 1.95676 | E88: 3.00226 | F88: 3.48876 | G88: 3.83914 | H88: 4.38196
C89: 7.9 | D89: 2.00403 | E89: 3.06493 | F89: 3.55793 | G89: 3.91282 | H89: 4.46248
C90: 8 | D90: 2.0513 | E90: 3.1276 | F90: 3.6271 | G90: 3.9865 | H90: 4.543
C91: 8.1 | D91: 2.10192 | E91: 3.19309 | F91: 3.69886 | G91: 4.06264 | H91: 4.62572
C92: 8.2 | D92: 2.15254 | E92: 3.25858 | F92: 3.77062 | G92: 4.13878 | H92: 4.70844
C93: 8.3 | D93: 2.20316 | E93: 3.32407 | F93: 3.84238 | G93: 4.21492 | H93: 4.79116
C94: 8.4 | D94: 2.25378 | E94: 3.38956 | F94: 3.91414 | G94: 4.29106 | H94: 4.87388
C95: 8.5 | D95: 2.3044 | E95: 3.45505 | F95: 3.9859 | G95: 4.3672 | H95: 4.9566
C96: 8.6 | D96: 2.35502 | E96: 3.52054 | F96: 4.05766 | G96: 4.44334 | H96: 5.03932
C97: 8.7 | D97: 2.40564 | E97: 3.58603 | F97: 4.12942 | G97: 4.51948 | H97: 5.12204
C98: 8.8 | D98: 2.45626 | E98: 3.65152 | F98: 4.20118 | G98: 4.59562 | H98: 5.20476
C99: 8.9 | D99: 2.50688 | E99: 3.71701 | F99: 4.27294 | G99: 4.67176 | H99: 5.28748
C100: 9 | D100: 2.5575 | E100: 3.7825 | F100: 4.3447 | G100: 4.7479 | H100: 5.3702
C101: 9.1 | D101: 2.61095 | E101: 3.85037 | F101: 4.41863 | G101: 4.82605 | H101: 5.45475
C102: 9.2 | D102: 2.6644 | E102: 3.91824 | F102: 4.49256 | G102: 4.9042 | H102: 5.5393
C103: 9.3 | D103: 2.71785 | E103: 3.98611 | F103: 4.56649 | G103: 4.98235 | H103: 5.62385
C104: 9.4 | D104: 2.7713 | E104: 4.05398 | F104: 4.64042 | G104: 5.0605 | H104: 5.7084
C105: 9.5 | D105: 2.82475 | E105: 4.12185 | F105: 4.71435 | G105: 5.13865 | H105: 5.79295
C106: 9.6 | D106: 2.8782 | E106: 4.18972 | F106: 4.78828 | G106: 5.2168 | H106: 5.8775
C107: 9.7 | D107: 2.93165 | E107: 4.25759 | F107: 4.86221 | G107: 5.29495 | H107: 5.96205
C108: 9.8 | D108: 2.9851 | E108: 4.32546 | F108: 4.93614 | G108: 5.3731 | H108: 6.0466
C109: 9.9 | D109: 3.03855 | E109: 4.39333 | F109: 5.01007 | G109: 5.45125 | H109: 6.13115
C110: 10 | D110: 3.092 | E110: 4.4612 | F110: 5.084 | G110: 5.5294 | H110: 6.2157
C111: 10.1 | D111: 3.14791 | E111: 4.53107 | F111: 5.15975 | G111: 5.60926 | H111: 6.30177
C112: 10.2 | D112: 3.20382 | E112: 4.60094 | F112: 5.2355 | G112: 5.68912 | H112: 6.38784
C113: 10.3 | D113: 3.25973 | E113: 4.67081 | F113: 5.31125 | G113: 5.76898 | H113: 6.47391
C114: 10.4 | D114: 3.31564 | E114: 4.74068 | F114: 5.387 | G114: 5.84884 | H114: 6.55998
C115: 10.5 | D115: 3.37155 | E115: 4.81055 | F115: 5.46275 | G115: 5.9287 | H115: 6.64605
C116: 10.6 | D116: 3.42746 | E116: 4.88042 | F116: 5.5385 | G116: 6.00856 | H116: 6.73212
C117: 10.7 | D117: 3.48337 | E117: 4.95029 | F117: 5.61425 | G117: 6.08842 | H117: 6.81819
C118: 10.8 | D118: 3.53928 | E118: 5.02016 | F118: 5.69 | G118: 6.16828 | H118: 6.90426
C119: 10.9 | D119: 3.59519 | E119: 5.09003 | F119: 5.76575 | G119: 6.24814 | H119: 6.99033
C120: 11 | D120: 3.6511 | E120: 5.1599 | F120: 5.8415 | G120: 6.328 | H120: 7.0764
C121: 11.1 | D121: 3.70913 | E121: 5.23151 | F121: 5.91882 | G121: 6.4093 | H121: 7.16377
C122: 11.2 | D122: 3.76716 | E122: 5.30312 | F122: 5.99614 | G122: 6.4906 | H122: 7.25114
C123: 11.3 | D123: 3.82519 | E123: 5.37473 | F123: 6.07346 | G123: 6.5719 | H123: 7.33851
C124: 11.4 | D124: 3.88322 | E124: 5.44634 | F124: 6.15078 | G124: 6.6532 | H124: 7.42588
C125: 11.5 | D125: 3.94125 | E125: 5.51795 | F125: 6.2281 | G125: 6.7345 | H125: 7.51325
C126: 11.6 | D126: 3.99928 | E126: 5.58956 | F126: 6.30542 | G126: 6.8158 | H126: 7.60062
C127: 11.7 | D127: 4.05731 | E127: 5.66117 | F127: 6.38274 | G127: 6.8971 | H127: 7.68799
C128: 11.8 | D128: 4.11534 | E128: 5.73278 | F128: 6.46006 | G128: 6.9784 | H128: 7.77536
C129: 11.9 | D129: 4.17337 | E129: 5.80439 | F129: 6.53738 | G129: 7.0597 | H129: 7.86273
C130: 12 | D130: 4.2314 | E130: 5.876 | F130: 6.6147 | G130: 7.141 | H130: 7.9501
C131: 12.1 | D131: 4.29131 | E131: 5.94912 | F131: 6.69338 | G131: 7.22357 | H131: 8.03858
C132: 12.2 | D132: 4.35122 | E132: 6.02224 | F132: 6.77206 | G132: 7.30614 | H132: 8.12706
C133: 12.3 | D133: 4.41113 | E133: 6.09536 | F133: 6.85074 | G133: 7.38871 | H133: 8.21554
C134: 12.4 | D134: 4.47104 | E134: 6.16848 | F134: 6.92942 | G134: 7.47128 | H134: 8.30402
C135: 12.5 | D135: 4.53095 | E135: 6.2416 | F135: 7.0081 | G135: 7.55385 | H135: 8.3925
C136: 12.6 | D136: 4.59086 | E136: 6.31472 | F136: 7.08678 | G136: 7.63642 | H136: 8.48098
C137: 12.7 | D137: 4.65077 | E137: 6.38784 | F137: 7.16546 | G137: 7.71899 | H137: 8.56946
C138: 12.8 | D138: 4.71068 | E138: 6.46096 | F138: 7.24414 | G138: 7.80156 | H138: 8.65794
C139: 12.9 | D139: 4.77059 | E139: 6.53408 | F139: 7.32282 | G139: 7.88413 | H139: 8.74642
C140: 13 | D140: 4.8305 | E140: 6.6072 | F140: 7.4015 | G140: 7.9667 | H140: 8.8349
C141: 13.1 | D141: 4.89209 | E141: 6.68165 | F141: 7.48138 | G141: 8.05038 | H141: 8.92436
C142: 13.2 | D142: 4.95368 | E142: 6.7561 | F142: 7.56126 | G142: 8.13406 | H142: 9.01382
C143: 13.3 | D143: 5.01527 | E143: 6.83055 | F143: 7.64114 | G143: 8.21774 | H143: 9.10328
C144: 13.4 | D144: 5.07686 | E144: 6.905 | F144: 7.72102 | G144: 8.30142 | H144: 9.19274
C145: 13.5 | D145: 5.13845 | E145: 6.97945 | F145: 7.8009 | G145: 8.3851 | H145: 9.2822
C146: 13.6 | D146: 5.20004 | E146: 7.0539 | F146: 7.88078 | G146: 8.46878 | H146: 9.37166
C147: 13.7 | D147: 5.26163 | E147: 7.12835 | F147: 7.96066 | G147: 8.55246 | H147: 9.46112
C148: 13.8 | D148: 5.32322 | E148: 7.2028 | F148: 8.04054 | G148: 8.63614 | H148: 9.55058
C149: 13.9 | D149: 5.38481 | E149: 7.27725 | F149: 8.12042 | G149: 8.71982 | H149: 9.64004
C150: 14 | D150: 5.4464 | E150: 7.3517 | F150: 8.2003 | G150: 8.8035 | H150: 9.7295
C151: 14.1 | D151: 5.50948 | E151: 7.42733 | F151: 8.28123 | G151: 8.88815 | H151: 9.81982
C152: 14.2 | D152: 5.57256 | E152: 7.50296 | F152: 8.36216 | G152: 8.9728 | H152: 9.91014
C153: 14.3 | D153: 5.63564 | E153: 7.57859 | F153: 8.44309 | G153: 9.05745 | H153: 10.00046
C154: 14.4 | D154: 5.69872 | E154: 7.65422 | F154: 8.52402 | G154: 9.1421 | H154: 10.09078
C155: 14.5 | D155: 5.7618 | E155: 7.72985 | F155: 8.60495 | G155: 9.22675 | H155: 10.1811
C156: 14.6 | D156: 5.82488 | E156: 7.80548 | F156: 8.68588 | G156: 9.3114 | H156: 10.27142
C157: 14.7 | D157: 5.88796 | E157: 7.88111 | F157: 8.76681 | G157: 9.39605 | H157: 10.36174
C158: 14.8 | D158: 5.95104 | E158: 7.95674 | F158: 8.84774 | G158: 9.4807 | H158: 10.45206
C159: 14.9 | D159: 6.01412 | E159: 8.03237 | F159: 8.92867 | G159: 9.56535 | H159: 10.54238
C160: 15 | D160: 6.0772 | E160: 8.108 | F160: 9.0096 | G160: 9.65 | H160: 10.6327
C161: 15.1 | D161: 6.14163 | E161: 8.1847 | F161: 9.09148 | G161: 9.73552 | H161: 10.72379
C162: 15.2 | D162: 6.20606 | E162: 8.2614 | F162: 9.17336 | G162: 9.82104 | H162: 10.81488
C163: 15.3 | D163: 6.27049 | E163: 8.3381 | F163: 9.25524 | G163: 9.90656 | H163: 10.90597
C164: 15.4 | D164: 6.33492 | E164: 8.4148 | F164: 9.33712 | G164: 9.99208 | H164: 10.99706
C165: 15.5 | D165: 6.39935 | E165: 8.4915 | F165: 9.419 | G165: 10.0776 | H165: 11.08815
C166: 15.6 | D166: 6.46378 | E166: 8.5682 | F166: 9.50088 | G166: 10.16312 | H166: 11.17924
C167: 15.7 | D167: 6.52821 | E167: 8.6449 | F167: 9.58276 | G167: 10.24864 | H167: 11.27033
C168: 15.8 | D168: 6.59264 | E168: 8.7216 | F168: 9.66464 | G168: 10.33416 | H168: 11.36142
C169: 15.9 | D169: 6.65707 | E169: 8.7983 | F169: 9.74652 | G169: 10.41968 | H169: 11.45251
C170: 16 | D170: 6.7215 | E170: 8.875 | F170: 9.8284 | G170: 10.5052 | H170: 11.5436
C171: 16.1 | D171: 6.78716 | E171: 8.95266 | F171: 9.91114 | G171: 10.59151 | H171: 11.63537
C172: 16.2 | D172: 6.85282 | E172: 9.03032 | F172: 9.99388 | G172: 10.67782 | H172: 11.72714
C173: 16.3 | D173: 6.91848 | E173: 9.10798 | F173: 10.07662 | G173: 10.76413 | H173: 11.81891
C174: 16.4 | D174: 6.98414 | E174: 9.18564 | F174: 10.15936 | G174: 10.85044 | H174: 11.91068
C175: 16.5 | D175: 7.0498 | E175: 9.2633 | F175: 10.2421 | G175: 10.93675 | H175: 12.00245
C176: 16.6 | D176: 7.11546 | E176: 9.34096 | F176: 10.32484 | G176: 11.02306 | H176: 12.09422
C177: 16.7 | D177: 7.18112 | E177: 9.41862 | F177: 10.40758 | G177: 11.10937 | H177: 12.18599
C178: 16.8 | D178: 7.24678 | E178: 9.49628 | F178: 10.49032 | G178: 11.19568 | H178: 12.27776
C179: 16.9 | D179: 7.31244 | E179: 9.57394 | F179: 10.57306 | G179: 11.28199 | H179: 12.36953
C180: 17 | D180: 7.3781 | E180: 9.6516 | F180: 10.6558 | G180: 11.3683 | H180: 12.4613
C181: 17.1 | D181: 7.44488 | E181: 9.73013 | F181: 10.73931 | G181: 11.45531 | H181: 12.55369
C182: 17.2 | D182: 7.51166 | E182: 9.80866 | F182: 10.82282 | G182: 11.54232 | H182: 12.64608
C183: 17.3 | D183: 7.57844 | E183: 9.88719 | F183: 10.90633 | G183: 11.62933 | H183: 12.73847
C184: 17.4 | D184: 7.64522 | E184: 9.96572 | F184: 10.98984 | G184: 11.71634 | H184: 12.83086
C185: 17.5 | D185: 7.712 | E185: 10.04425 | F185: 11.07335 | G185: 11.80335 | H185: 12.92325
C186: 17.6 | D186: 7.77878 | E186: 10.12278 | F186: 11.15686 | G186: 11.89036 | H186: 13.01564
C187: 17.7 | D187: 7.84556 | E187: 10.20131 | F187: 11.24037 | G187: 11.97737 | H187: 13.10803
C188: 17.8 | D188: 7.91234 | E188: 10.27984 | F188: 11.32388 | G188: 12.06438 | H188: 13.20042
C189: 17.9 | D189: 7.97912 | E189: 10.35837 | F189: 11.40739 | G189: 12.15139 | H189: 13.29281
C190: 18 | D190: 8.0459 | E190: 10.4369 | F190: 11.4909 | G190: 12.2384 | H190: 13.3852
C191: 18.1 | D191: 8.1137 | E191: 10.51622 | F191: 11.57511 | G191: 12.32606 | H191: 13.47815
C192: 18.2 | D192: 8.1815 | E192: 10.59554 | F192: 11.65932 | G192: 12.41372 | H192: 13.5711
C193: 18.3 | D193: 8.2493 | E193: 10.67486 | F193: 11.74353 | G193: 12.50138 | H193: 13.66405
C194: 18.4 | D194: 8.3171 | E194: 10.75418 | F194: 11.82774 | G194: 12.58904 | H194: 13.757
C195: 18.5 | D195: 8.3849 | E195: 10.8335 | F195: 11.91195 | G195: 12.6767 | H195: 13.84995
C196: 18.6 | D196: 8.4527 | E196: 10.91282 | F196: 11.99616 | G196: 12.76436 | H196: 13.9429
C197: 18.7 | D197: 8.5205 | E197: 10.99214 | F197: 12.08037 | G197: 12.85202 | H197: 14.03585
C198: 18.8 | D198: 8.5883 | E198: 11.07146 | F198: 12.16458 | G198: 12.93968 | H198: 14.1288
C199: 18.9 | D199: 8.6561 | E199: 11.15078 | F199: 12.24879 | G199: 13.02734 | H199: 14.22175
C200: 19 | D200: 8.7239 | E200: 11.2301 | F200: 12.333 | G200: 13.115 | H200: 14.3147
C201: 19.1 | D201: 8.79266 | E201: 11.31015 | F201: 12.41785 | G201: 13.20324 | H201: 14.40816
C202: 19.2 | D202: 8.86142 | E202: 11.3902 | F202: 12.5027 | G202: 13.29148 | H202: 14.50162
C203: 19.3 | D203: 8.93018 | E203: 11.47025 | F203: 12.58755 | G203: 13.37972 | H203: 14.59508
C204: 19.4 | D204: 8.99894 | E204: 11.5503 | F204: 12.6724 | G204: 13.46796 | H204: 14.68854
... 7507 more rows

Sheet M_C_S -->
D1: Módulo de Costeo de los servicios →

Sheet RouteingFactors
D1: Factores de enrutamiento
E2: Checks
E3: =IF(SUM(E4:E321)<>0,"ERROR","Correcto") -> Correcto
A4: 1. Fuente de los cálculos
B6: Factores de conversión para la interfaz aire
C8: Conversión de SMS a minutos | F8: GSM | G8: UMTS | H8: LTE
C9: Número de bytes por SMS | F9: 60 | G9: =$F9 -> 60 | H9: =$F9 -> 60
C10: tasa de canal de voz para SMS (SDCCH; bit/s) | F10: =767*Bits.per.byte -> 6136 | G10: 16000
C11: seg/min | F11: 60
C12: bits/byte | F12: 8
C13: Factor de conversión de SMS por minuto de voz | F13: =F10*seconds.per.minute/Bits.per.byte/F9 -> 767 | G13: =G10*seconds.per.minute/Bits.per.byte/G9 -> 2000 | H13: =$M$23*1000^2/H9 -> 70626.39509
C14: min/SMS | F14: =1/F13 -> 0.001303780965 | G14: =1/G13 -> 0.0005 | H14: =IF(H13=0,0,1/H13) -> 1.415901235e-05
F15: Minute.per.SMS.2G | G15: Minute.per.SMS.3G | H15: Minute.per.SMS.LTE
C17: Conversión de datos (MB) a minutos | F17: GPRS | H17: R99 | J17: HSDPA | M17: LTE
C18: Proporción de tráfico en el downlink | F18: =NetworkDemand!$G$258 -> 0.7 | H18: =NetworkDemand!$G$259 -> 0.75 | J18: =NetworkDemand!$G$260 -> 1 | M18: =NetworkDemand!$G$262 -> 0.8
C19: Overheads IP adicionales | F19: 0.12 | H19: 0.12 | J19: 0.12 | M19: 0.12
C20: Tasa de canal de datos (Mbit/s) | F20: =GPRS.channel.rate/Kbits.per.Mbits -> 0.0234375 | G20: CS4 | H20: =UMTS.channel.rate -> 0.016 | J20: =$K$27 -> 0.3296875 | M20: =$N$27 -> 0.50625
C21: 1 Mbyte de datos de usuario GPRS = Mbits de demanda IP en el downlink | F21: =1*(1+F19)*F18*Bits.per.byte -> 6.272 | H21: =1*(1+H19)*H18*Bits.per.byte -> 6.72 | J21: =1*(1+J19)*J18*Bits.per.byte -> 8.96 | M21: =1*(1+M19)*M18*Bits.per.byte -> 7.168
C22: Un minuto de canal puede llevar Mbits de datos IP | F22: =1*F20*seconds.per.minute -> 1.40625 | H22: =1*H20*seconds.per.minute -> 0.96 | J22: =1*J20*seconds.per.minute -> 19.78125 | M22: =1*M20*seconds.per.minute -> 30.375
C23: Factor de conversión de MB a minuto | F23: =F22/F21 -> 0.2242107781 | H23: =H22/H21 -> 0.1428571429 | J23: =J22/J21 -> 2.207728795 | M23: =M22/M21 -> 4.237583705
F24: MB.per.minute.GPRS | H24: MB.per.minute.R99 | J24: MB.per.minute.HSDPA | M24: MB.per.minute.LTE
J26: Máxima tasa HSPA en la red | K26: Tasa efectiva por canal HSPA | M26: Tasa máxima LTE en la red | N26: Tasa efectiva de un canal LTE
J27: =MAX(IF(Required.assets.HSDPA.all.steps=0,0,HSDPA.Ladder)) -> 21.1 | K27: =INDEX(K30:K36,MATCH(J27,J30:J36)) -> 0.3296875 | M27: =MAX(IF(Required.assets.LTE.all.steps=0,0,LTE.Ladder)) -> 32.4 | N27: =INDEX(N30:N36,MATCH(M27,M30:M36)) -> 0.50625
K29: Tasa por CE, Mbit/s | N29: Tasa por CE, Mbit/s
J30: 0 | K30: 0 | M30: 0 | N30: 0
J31: =HSDPA.Ladder -> 1.8 | K31: =1.8/32 -> 0.05625 | M31: =LTE.Ladder -> 10.8 | N31: =10.8/64 -> 0.16875
J32: 3.6 | K32: =3.6/32 -> 0.1125 | M32: 16.2 | N32: =16.2/64 -> 0.253125
J33: 7.2 | K33: =7.2/64 -> 0.1125 | M33: 21.6 | N33: =21.6/64 -> 0.3375
J34: 10.1 | K34: =10.1/64 -> 0.1578125 | M34: 32.4 | N34: =32.4/64 -> 0.50625
J35: 14.4 | K35: =14.4/64 -> 0.225 | M35: 43.2 | N35: =43.2/64 -> 0.675
J36: 21.1 | K36: =21.1/64 -> 0.3296875 | M36: 86.4 | N36: =86.4/32 -> 2.7
F38: =TRANSPOSE(Network.services.list) -> 2G - Tráfico de voz on-net | G38: 2G - Tráfico de voz saliente a fijo | H38: 2G - Tráfico de voz saliente a móvil | I38: 2G - Tráfico de voz saliente a internacional | J38: 2G - Tráfico de voz entrante desde fijo | K38: 2G - Tráfico de voz entrante desde móvil | L38: 2G - Tráfico de voz entrante desde internacional | M38: 3G - Tráfico de voz on-net | N38: 3G - Tráfico de voz saliente a fijo | O38: 3G - Tráfico de voz saliente a móvil | P38: 3G - Tráfico de voz saliente a internacional | Q38: 3G - Tráfico de voz entrante desde fijo | R38: 3G - Tráfico de voz entrante desde móvil | S38: 3G - Tráfico de voz entrante desde internacional | T38: 4G - Tráfico de voz on-net | U38: 4G - Tráfico de voz saliente a fijo | V38: 4G - Tráfico de voz saliente a móvil | W38: 4G - Tráfico de voz saliente a internacional | X38: 4G - Tráfico de voz entrante desde fijo | Y38: 4G - Tráfico de voz entrante desde móvil | Z38: 4G - Tráfico de voz entrante desde internacional | AA38: 2G - SMSs on-net | AB38: 2G - SMS salientes | AC38: 2G - SMS entrantes | AD38: 3G - SMSs on-net | AE38: 3G - SMS salientes | AF38: 3G - SMS entrantes | AG38: 4G - SMSs on-net | AH38: 4G - SMS salientes | AI38: 4G - SMS entrantes | AJ38: GPRS data Mbytes | AK38: R99 data Mbytes | AL38: HSDPA data Mbytes | AM38: HSUPA data Mbytes | AN38: LTE data Mbytes | AO38: spare | AP38: Suscriptores de solo voz (media del año) | AQ38: Suscriptores de voz y datos (media del año) | AR38: spare | AS38: spare | AT38: spare | AU38: spare | AV38: spare | AW38: spare | AX38: spare | AY38: spare | AZ38: spare | BA38: spare | BB38: spare | BC38: spare
C39: Factores de carga radio | F39: =TRANSPOSE(Radio.Erlangs.per.Erlang) -> 2 | G39: 1 | H39: 1 | I39: 1 | J39: 1 | K39: 1 | L39: 1 | M39: =TRANSPOSE(Radio.Erlangs.per.Erlang) -> 2 | N39: 1 | O39: 1 | P39: 1 | Q39: 1 | R39: 1 | S39: 1 | T39: =TRANSPOSE(Radio.Erlangs.per.Erlang) -> 2 | U39: 1 | V39: 1 | W39: 1 | X39: 1 | Y39: 1 | Z39: 1 | AA39: =$F39 -> 2 | AB39: =$H39 -> 1 | AC39: =$K39 -> 1 | AD39: =$M39 -> 2 | AE39: =$O39 -> 1 | AF39: =$R39 -> 1 | AG39: =$T39 -> 2 | AH39: =$V39 -> 1 | AI39: =$Y39 -> 1
C40: Timbrado por minuto | F40: =TRANSPOSE(Ring.Time.Per.Minute) -> 0.08921568627 | G40: 0.09479166667 | H40: 0.1166666667 | I40: 0.07222222222 | J40: 0.09479166667 | K40: 0.1166666667 | L40: 0.07222222222 | M40: =TRANSPOSE(Ring.Time.Per.Minute) -> 0.08921568627 | N40: 0.09479166667 | O40: 0.1166666667 | P40: 0.07222222222 | Q40: 0.09479166667 | R40: 0.1166666667 | S40: 0.07222222222
C41: Erlangs de tráfico por soft-handover | M41: =Release99.soft.handover -> 0.2 | N41: 0.2 | O41: 0.2 | P41: 0.2 | Q41: 0.2 | R41: 0.2 | S41: 0.2 | AK41: =Release99.soft.handover -> 0.2
C42: Tráfico por softer-handover | M42: =Release99.softer.handover -> 0.1 | N42: 0.1 | O42: 0.1 | P42: 0.1 | Q42: 0.1 | R42: 0.1 | S42: 0.1 | AK42: =Release99.softer.handover -> 0.1
C44: Factor de conversión de Mbytes a minutos
C45: SMS | AA45: =Minute.per.SMS.2G -> 0.001303780965 | AB45: =Minute.per.SMS.2G -> 0.001303780965 | AC45: =Minute.per.SMS.2G -> 0.001303780965 | AD45: =Minute.per.SMS.3G -> 0.0005 | AE45: =Minute.per.SMS.3G -> 0.0005 | AF45: =Minute.per.SMS.3G -> 0.0005 | AG45: =Minute.per.SMS.LTE -> 1.415901235e-05 | AH45: =Minute.per.SMS.LTE -> 1.415901235e-05 | AI45: =Minute.per.SMS.LTE -> 1.415901235e-05
C46: GPRS | AJ46: =1/$F$23 -> 4.460088889
C47: R99 data | AK47: =1/$H$23 -> 7
C48: HSDPA | AL48: =IF($J$23=0,0,1/$J$23) -> 0.4529541864
C49: HSUPA | AM49: 0
C50: LTE | AN50: =IF($M$23=0,0,1/$M$23) -> 0.2359835391
B52: Factores de conversión para enlaces de transmisión
F53: Tasa | H53: AMR - WB | J53: Mbytes por minuto
C54: Tasa de canal de voz PCM en el backhaul | E54: Backhaul.rate.ATM | F54: 38.8 | G54: kbit/s | J54: =F54/Kbits.per.Mbits*minutes.per.hour/Bits.per.byte -> 0.2841796875
C55: Tasa de canal de voz IP en el backhaul | E55: Backhaul.rate.Ethernet | F55: 38.8 | G55: kbit/s | J55: =F55/Kbits.per.Mbits*minutes.per.hour/Bits.per.byte -> 0.2841796875
C56: Tasa de canal de voz PCM en el core | E56: Core.rate.ATM | F56: 38.8 | G56: kbit/s | J56: =F56/Kbits.per.Mbits*minutes.per.hour/Bits.per.byte -> 0.2841796875
C57: Tasa de canal de voz IP en el core | E57: Core.rate.Ethernet | F57: 38.8 | G57: kbit/s | J57: =F57/Kbits.per.Mbits*minutes.per.hour/Bits.per.byte -> 0.2841796875
C59: Proporción del tráfico transportado en la red core-core | F59: =TRANSPOSE(Proportion.Core.to.Core.Voice) -> 0.25 | G59: 0.15 | H59: 0.15 | I59: 0.15 | J59: 0.15 | K59: 0.15 | L59: 0.15 | M59: 0.25 | N59: 0.15 | O59: 0.15 | P59: 0.15 | Q59: 0.15 | R59: 0.15 | S59: 0.15 | T59: 0.25 | U59: 0.15 | V59: 0.15 | W59: 0.15 | X59: 0.15 | Y59: 0.15 | Z59: 0.15 | AA59: =$F59 -> 0.25 | AB59: =$H59 -> 0.15 | AC59: =$K59 -> 0.15 | AD59: =$M59 -> 0.25 | AE59: =$O59 -> 0.15 | AF59: =$R59 -> 0.15 | AG59: =$T59 -> 0.25 | AH59: =$V59 -> 0.15 | AI59: =$Y59 -> 0.15 | AJ59: =Proportion.Core.to.Core.Data -> 0.15 | AK59: 0.15 | AL59: 0.15 | AM59: 0.15 | AN59: 0.15
F62: =TRANSPOSE(Network.services.list) -> 2G - Tráfico de voz on-net | G62: 2G - Tráfico de voz saliente a fijo | H62: 2G - Tráfico de voz saliente a móvil | I62: 2G - Tráfico de voz saliente a internacional | J62: 2G - Tráfico de voz entrante desde fijo | K62: 2G - Tráfico de voz entrante desde móvil | L62: 2G - Tráfico de voz entrante desde internacional | M62: 3G - Tráfico de voz on-net | N62: 3G - Tráfico de voz saliente a fijo | O62: 3G - Tráfico de voz saliente a móvil | P62: 3G - Tráfico de voz saliente a internacional | Q62: 3G - Tráfico de voz entrante desde fijo | R62: 3G - Tráfico de voz entrante desde móvil | S62: 3G - Tráfico de voz entrante desde internacional | T62: 4G - Tráfico de voz on-net | U62: 4G - Tráfico de voz saliente a fijo | V62: 4G - Tráfico de voz saliente a móvil | W62: 4G - Tráfico de voz saliente a internacional | X62: 4G - Tráfico de voz entrante desde fijo | Y62: 4G - Tráfico de voz entrante desde móvil | Z62: 4G - Tráfico de voz entrante desde internacional | AA62: 2G - SMSs on-net | AB62: 2G - SMS salientes | AC62: 2G - SMS entrantes | AD62: 3G - SMSs on-net | AE62: 3G - SMS salientes | AF62: 3G - SMS entrantes | AG62: 4G - SMSs on-net | AH62: 4G - SMS salientes | AI62: 4G - SMS entrantes | AJ62: GPRS data Mbytes | AK62: R99 data Mbytes | AL62: HSDPA data Mbytes | AM62: HSUPA data Mbytes | AN62: LTE data Mbytes | AO62: spare | AP62: Suscriptores de solo voz (media del año) | AQ62: Suscriptores de voz y datos (media del año) | AR62: spare | AS62: spare | AT62: spare | AU62: spare | AV62: spare | AW62: spare | AX62: spare | AY62: spare | AZ62: spare | BA62: spare | BB62: spare | BC62: spare
C63: LMA PCM Mbytes | F63: =F$39*(1+F$40)*$J54 -> 0.6190659467 | G63: =G$39*(1+G$40)*$J54 -> 0.3111175537 | H63: 0.3173339844 | I63: 0.304703776 | J63: 0.3111175537 | K63: 0.3173339844 | L63: 0.304703776 | M63: =M$39*(1+M$40)*(1+M$41)*$J54 -> 0.742879136 | N63: =N$39*(1+N$40)*(1+N$41)*$J54 -> 0.3733410645 | O63: 0.3808007812 | P63: 0.3656445313 | Q63: 0.3733410645 | R63: 0.3808007812 | S63: 0.3656445313 | T63: =T$39*$J54 -> 0.568359375 | U63: =U$39*$J54 -> 0.2841796875 | V63: 0.2841796875 | W63: 0.2841796875 | X63: 0.2841796875 | Y63: 0.2841796875 | Z63: 0.2841796875 | AA63: =AA$39*AA$45*$J54 -> 0.0007410161343 | AB63: =AB$39*AB$45*$J54 -> 0.0003705080671 | AC63: 0.0003705080671 | AD63: 0.0002841796875 | AE63: 0.0001420898437 | AF63: 0.0001420898437 | AG63: 8.047407407e-06 | AH63: 4.023703704e-06 | AI63: 4.023703704e-06 | AJ63: =$F$18 -> 0.7 | AK63: =$H$18 -> 0.75 | AL63: =$J$18 -> 1 | AM63: 0 | AN63: =$M$18 -> 0.8
C64: LMA IP Mbytes | F64: =F$39*(1+F$40)*$J55 -> 0.6190659467 | G64: 0.3111175537 | H64: 0.3173339844 | I64: 0.304703776 | J64: 0.3111175537 | K64: 0.3173339844 | L64: 0.304703776 | M64: =M$39*(1+M$40)*(1+M$41)*$J55 -> 0.742879136 | N64: 0.3733410645 | O64: 0.3808007812 | P64: 0.3656445313 | Q64: 0.3733410645 | R64: 0.3808007812 | S64: 0.3656445313 | T64: =T$39*$J55 -> 0.568359375 | U64: 0.2841796875 | V64: 0.2841796875 | W64: 0.2841796875 | X64: 0.2841796875 | Y64: 0.2841796875 | Z64: 0.2841796875 | AA64: =AA$39*AA$45*$J55 -> 0.0007410161343 | AB64: 0.0003705080671 | AC64: 0.0003705080671 | AD64: 0.0002841796875 | AE64: 0.0001420898437 | AF64: 0.0001420898437 | AG64: 8.047407407e-06 | AH64: 4.023703704e-06 | AI64: 4.023703704e-06 | AJ64: =$F$18 -> 0.7 | AK64: =$H$18 -> 0.75 | AL64: =$J$18 -> 1 | AM64: 0 | AN64: =$M$18 -> 0.8
C65: Core PCM Mbytes | F65: 0.6190659467 | G65: 0.3111175537 | H65: 0.3173339844 | I65: 0.304703776 | J65: 0.3111175537 | K65: 0.3173339844 | L65: 0.304703776 | M65: =M$39*(1+M$40)*(1+M$41)*$J56 -> 0.742879136 | N65: 0.3733410645 | O65: 0.3808007812 | P65: 0.3656445313 | Q65: 0.3733410645 | R65: 0.3808007812 | S65: 0.3656445313 | T65: =T$39*$J56 -> 0.568359375 | U65: 0.2841796875 | V65: 0.2841796875 | W65: 0.2841796875 | X65: 0.2841796875 | Y65: 0.2841796875 | Z65: 0.2841796875 | AA65: =AA$39*AA$45*$J56 -> 0.0007410161343 | AB65: 0.0003705080671 | AC65: 0.0003705080671 | AD65: 0.0002841796875 | AE65: 0.0001420898437 | AF65: 0.0001420898437 | AG65: 8.047407407e-06 | AH65: 4.023703704e-06 | AI65: 4.023703704e-06 | AJ65: 0.7 | AK65: 0.75 | AL65: 1 | AM65: 0 | AN65: 0.8
C66: Core IP Mbytes | F66: 0.6190659467 | G66: 0.3111175537 | H66: 0.3173339844 | I66: 0.304703776 | J66: 0.3111175537 | K66: 0.3173339844 | L66: 0.304703776 | M66: =M$39*(1+M$40)*(1+M$41)*$J57 -> 0.742879136 | N66: 0.3733410645 | O66: 0.3808007812 | P66: 0.3656445313 | Q66: 0.3733410645 | R66: 0.3808007812 | S66: 0.3656445313 | T66: =T$39*$J57 -> 0.568359375 | U66: 0.2841796875 | V66: 0.2841796875 | W66: 0.2841796875 | X66: 0.2841796875 | Y66: 0.2841796875 | Z66: 0.2841796875 | AA66: =AA$39*AA$45*$J57 -> 0.0007410161343 | AB66: 0.0003705080671 | AC66: 0.0003705080671 | AD66: 0.0002841796875 | AE66: 0.0001420898437 | AF66: 0.0001420898437 | AG66: 8.047407407e-06 | AH66: 4.023703704e-06 | AI66: 4.023703704e-06 | AJ66: 0.7 | AK66: 0.75 | AL66: 1 | AM66: 0 | AN66: 0.8
C68: Core-Core - solo voz | F68: =F59:AI59 -> 0.25 | G68: 0.15 | H68: 0.15 | I68: 0.15 | J68: 0.15 | K68: 0.15 | L68: 0.15 | M68: 0.25 | N68: 0.15 | O68: 0.15 | P68: 0.15 | Q68: 0.15 | R68: 0.15 | S68: 0.15 | T68: 0.25 | U68: 0.15 | V68: 0.15 | W68: 0.15 | X68: 0.15 | Y68: 0.15 | Z68: 0.15 | AA68: 0.25 | AB68: 0.15 | AC68: 0.15 | AD68: 0.25 | AE68: 0.15 | AF68: 0.15 | AG68: 0.25 | AH68: 0.15 | AI68: 0.15
C69: Core-Core - solo datos | AJ69: =AJ59:AN59 -> 0.15 | AK69: 0.15 | AL69: 0.15 | AM69: 0.15 | AN69: 0.15
C71: Core-core PCM Mbytes de voz más datos | F71: =F65:AI66*F68:AI68 -> 0.1547664867 | G71: 0.04666763306 | H71: 0.04760009766 | I71: 0.04570556641 | J71: 0.04666763306 | K71: 0.04760009766 | L71: 0.04570556641 | M71: 0.185719784 | N71: 0.05600115967 | O71: 0.05712011719 | P71: 0.05484667969 | Q71: 0.05600115967 | R71: 0.05712011719 | S71: 0.05484667969 | T71: 0.1420898438 | U71: 0.04262695312 | V71: 0.04262695312 | W71: 0.04262695312 | X71: 0.04262695312 | Y71: 0.04262695312 | Z71: 0.04262695312 | AA71: 0.0001852540336 | AB71: 5.557621007e-05 | AC71: 5.557621007e-05 | AD71: 7.104492187e-05 | AE71: 2.131347656e-05 | AF71: 2.131347656e-05 | AG71: 2.011851852e-06 | AH71: 6.035555556e-07 | AI71: 6.035555556e-07 | AJ71: =AJ65:AN66*AJ69:AN69 -> 0.105 | AK71: 0.1125 | AL71: 0.15 | AM71: 0 | AN71: 0.12
C72: Core-core IP Mbytes de voz más datos | F72: 0.1547664867 | G72: 0.04666763306 | H72: 0.04760009766 | I72: 0.04570556641 | J72: 0.04666763306 | K72: 0.04760009766 | L72: 0.04570556641 | M72: 0.185719784 | N72: 0.05600115967 | O72: 0.05712011719 | P72: 0.05484667969 | Q72: 0.05600115967 | R72: 0.05712011719 | S72: 0.05484667969 | T72: 0.1420898438 | U72: 0.04262695312 | V72: 0.04262695312 | W72: 0.04262695312 | X72: 0.04262695312 | Y72: 0.04262695312 | Z72: 0.04262695312 | AA72: 0.0001852540336 | AB72: 5.557621007e-05 | AC72: 5.557621007e-05 | AD72: 7.104492187e-05 | AE72: 2.131347656e-05 | AF72: 2.131347656e-05 | AG72: 2.011851852e-06 | AH72: 6.035555556e-07 | AI72: 6.035555556e-07 | AJ72: 0.105 | AK72: 0.1125 | AL72: 0.15 | AM72: 0 | AN72: 0.12
A76: 2. TABLA GENÉRICA DE FACTORES DE ENRUTAMIENTO
F79: 1 | G79: =F79+1 -> 2 | H79: =G79+1 -> 3 | I79: 4 | J79: 5 | K79: 6 | L79: 7 | M79: 8 | N79: 9 | O79: 10 | P79: 11 | Q79: 12 | R79: 13 | S79: 14 | T79: 15 | U79: 16 | V79: 17 | W79: 18 | X79: 19 | Y79: 20 | Z79: 21 | AA79: 22 | AB79: 23 | AC79: 24 | AD79: 25 | AE79: 26 | AF79: 27 | AG79: 28 | AH79: 29 | AI79: 30 | AJ79: 31 | AK79: 32 | AL79: 33 | AM79: 34 | AN79: 35 | AO79: 36 | AP79: 37 | AQ79: 38 | AR79: 39 | AS79: 40 | AT79: 41 | AU79: 42 | AV79: 43 | AW79: 44 | AX79: =AW79+1 -> 45 | AY79: =AX79+1 -> 46 | AZ79: =AY79+1 -> 47 | BA79: =AZ79+1 -> 48 | BB79: =BA79+1 -> 49 | BC79: =BB79+1 -> 50
C80: Opciones | F80: =TRANSPOSE(Network.services.list) -> 2G - Tráfico de voz on-net | G80: 2G - Tráfico de voz saliente a fijo | H80: 2G - Tráfico de voz saliente a móvil | I80: 2G - Tráfico de voz saliente a internacional | J80: 2G - Tráfico de voz entrante desde fijo | K80: 2G - Tráfico de voz entrante desde móvil | L80: 2G - Tráfico de voz entrante desde internacional | M80: 3G - Tráfico de voz on-net | N80: 3G - Tráfico de voz saliente a fijo | O80: 3G - Tráfico de voz saliente a móvil | P80: 3G - Tráfico de voz saliente a internacional | Q80: 3G - Tráfico de voz entrante desde fijo | R80: 3G - Tráfico de voz entrante desde móvil | S80: 3G - Tráfico de voz entrante desde internacional | T80: 4G - Tráfico de voz on-net | U80: 4G - Tráfico de voz saliente a fijo | V80: 4G - Tráfico de voz saliente a móvil | W80: 4G - Tráfico de voz saliente a internacional | X80: 4G - Tráfico de voz entrante desde fijo | Y80: 4G - Tráfico de voz entrante desde móvil | Z80: 4G - Tráfico de voz entrante desde internacional | AA80: 2G - SMSs on-net | AB80: 2G - SMS salientes | AC80: 2G - SMS entrantes | AD80: 3G - SMSs on-net | AE80: 3G - SMS salientes | AF80: 3G - SMS entrantes | AG80: 4G - SMSs on-net | AH80: 4G - SMS salientes | AI80: 4G - SMS entrantes | AJ80: GPRS data Mbytes | AK80: R99 data Mbytes | AL80: HSDPA data Mbytes | AM80: HSUPA data Mbytes | AN80: LTE data Mbytes | AO80: spare | AP80: Suscriptores de solo voz (media del año) | AQ80: Suscriptores de voz y datos (media del año) | AR80: spare | AS80: spare | AT80: spare | AU80: spare | AV80: spare | AW80: spare | AX80: spare | AY80: spare | AZ80: spare | BA80: spare | BB80: spare | BC80: spare
C81: Minutos radio equivalentes | F81: =F39*(1+F40) -> 2.178431373 | G81: 1.094791667 | H81: 1.116666667 | I81: 1.072222222 | J81: 1.094791667 | K81: 1.116666667 | L81: 1.072222222 | M81: =M39*(1+M40)*(1+M41+M42) -> 2.831960784 | N81: 1.423229167 | O81: 1.451666667 | P81: 1.393888889 | Q81: 1.423229167 | R81: 1.451666667 | S81: 1.393888889 | T81: =T39 -> 2 | U81: =U39 -> 1 | V81: 1 | W81: 1 | X81: 1 | Y81: 1 | Z81: 1 | AA81: =AA39*AA45 -> 0.00260756193 | AB81: =AB39*AB45 -> 0.001303780965 | AC81: 0.001303780965 | AD81: 0.001 | AE81: 0.0005 | AF81: 0.0005 | AG81: 2.831802469e-05 | AH81: 1.415901235e-05 | AI81: 1.415901235e-05 | AJ81: =AJ46 -> 4.460088889 | AK81: =AK47*(1+AK42+AK41) -> 9.1 | AL81: =AL48 -> 0.4529541864 | AM81: =AM49 -> 0 | AN81: =AN50 -> 0.2359835391
C82: Minutos radio equivalentes GSM | F82: =F$81 -> 2.178431373 | G82: 1.094791667 | H82: 1.116666667 | I82: 1.072222222 | J82: 1.094791667 | K82: 1.116666667 | L82: 1.072222222 | AJ82: =AJ$81 -> 4.460088889
C83: Minutos radio equivalentes UMTS+HSPA | M83: =M$81 -> 2.831960784 | N83: 1.423229167 | O83: 1.451666667 | P83: 1.393888889 | Q83: 1.423229167 | R83: 1.451666667 | S83: 1.393888889 | AD83: =AD$81 -> 0.001 | AE83: 0.0005 | AF83: 0.0005 | AK83: =AK$81 -> 9.1 | AL83: =AL$81 -> 0.4529541864 | AM83: =AM$81 -> 0
C84: Minutos radio equivalentes UMTS R99 | M84: 2.831960784 | N84: 1.423229167 | O84: 1.451666667 | P84: 1.393888889 | Q84: 1.423229167 | R84: 1.451666667 | S84: 1.393888889 | AD84: 0.001 | AE84: 0.0005 | AF84: 0.0005 | AK84: =AK$81 -> 9.1
C85: Tráfico radio HSDPA | AF85: 1 | AL85: 1
C86: Tráfico radio HSUPA | AG86: 1 | AM86: 1
C87: GSM, UMTS y HSPA Mbytes | AD87: 1 | AE87: 1 | AF87: 1 | AG87: 1 | AJ87: 1 | AK87: 1 | AL87: 1 | AM87: 1
C88: Tráfico radio LTE | T88: =T$81 -> 2 | U88: 1 | V88: 1 | W88: 1 | X88: 1 | Y88: 1 | Z88: 1 | AG88: =AG$81 -> 2.831802469e-05 | AH88: 1.415901235e-05 | AI88: 1.415901235e-05 | AN88: =AN$81 -> 0.2359835391
C89: Tráfico de datos LTE | AG89: 2.831802469e-05 | AH89: 1.415901235e-05 | AI89: 1.415901235e-05 | AN89: 0.2359835391
C90: Tráfico de voz LTE (VoLTE) | T90: =T$81 -> 2 | U90: 1 | V90: 1 | W90: 1 | X90: 1 | Y90: 1 | Z90: 1
C91: GSM solo voz radio y SMS | F91: =F$81 -> 2.178431373 | G91: 1.094791667 | H91: 1.116666667 | I91: 1.072222222 | J91: 1.094791667 | K91: 1.116666667 | L91: 1.072222222 | AA91: =AA$81 -> 0.00260756193 | AB91: 0.001303780965 | AC91: 0.001303780965
C92: UMTS solo voz radio y SMS | M92: =M$81 -> 2.831960784 | N92: 1.423229167 | O92: 1.451666667 | P92: 1.393888889 | Q92: 1.423229167 | R92: 1.451666667 | S92: 1.393888889 | AD92: =AD$81 -> 0.001 | AE92: 0.0005 | AF92: 0.0005
C93: GSM tráfico de datos solo | AJ93: 1
C94: UMTS+HSPA solo tráfico de datos | AK94: 1 | AL94: 1 | AM94: 1
C95: GSM+UMTS voz radio solo minutos | F95: =F$81 -> 2.178431373 | G95: 1.094791667 | H95: 1.116666667 | I95: 1.072222222 | J95: 1.094791667 | K95: 1.116666667 | L95: 1.072222222 | M95: 2.831960784 | N95: 1.423229167 | O95: 1.451666667 | P95: 1.393888889 | Q95: 1.423229167 | R95: 1.451666667 | S95: 1.393888889
C96: LMA PCM Mbytes de tráfico | F96: =F63 -> 0.6190659467 | G96: =G63 -> 0.3111175537 | H96: 0.3173339844 | I96: 0.304703776 | J96: 0.3111175537 | K96: 0.3173339844 | L96: 0.304703776 | M96: 0.742879136 | N96: 0.3733410645 | O96: 0.3808007812 | P96: 0.3656445313 | Q96: 0.3733410645 | R96: 0.3808007812 | S96: 0.3656445313 | T96: 0.568359375 | U96: 0.2841796875 | V96: 0.2841796875 | W96: 0.2841796875 | X96: 0.2841796875 | Y96: 0.2841796875 | Z96: 0.2841796875 | AA96: 0.0007410161343 | AB96: 0.0003705080671 | AC96: 0.0003705080671 | AD96: 0.0002841796875 | AE96: 0.0001420898437 | AF96: 0.0001420898437 | AG96: 8.047407407e-06 | AH96: 4.023703704e-06 | AI96: 4.023703704e-06 | AJ96: 0.7 | AK96: 0.75 | AL96: 1 | AM96: 0 | AN96: 0.8
C97: LMA IP Mbytes de tráfico | F97: =F64 -> 0.6190659467 | G97: 0.3111175537 | H97: 0.3173339844 | I97: 0.304703776 | J97: 0.3111175537 | K97: 0.3173339844 | L97: 0.304703776 | M97: 0.742879136 | N97: 0.3733410645 | O97: 0.3808007812 | P97: 0.3656445313 | Q97: 0.3733410645 | R97: 0.3808007812 | S97: 0.3656445313 | T97: 0.568359375 | U97: 0.2841796875 | V97: 0.2841796875 | W97: 0.2841796875 | X97: 0.2841796875 | Y97: 0.2841796875 | Z97: 0.2841796875 | AA97: 0.0007410161343 | AB97: 0.0003705080671 | AC97: 0.0003705080671 | AD97: 0.0002841796875 | AE97: 0.0001420898437 | AF97: 0.0001420898437 | AG97: 8.047407407e-06 | AH97: 4.023703704e-06 | AI97: 4.023703704e-06 | AJ97: 0.7 | AK97: 0.75 | AL97: 1 | AM97: 0 | AN97: 0.8
C98: Core-core PCM Mbytes voz más datos | F98: =F71 -> 0.1547664867 | G98: =G71 -> 0.04666763306 | H98: 0.04760009766 | I98: 0.04570556641 | J98: 0.04666763306 | K98: 0.04760009766 | L98: 0.04570556641 | M98: 0.185719784 | N98: 0.05600115967 | O98: 0.05712011719 | P98: 0.05484667969 | Q98: 0.05600115967 | R98: 0.05712011719 | S98: 0.05484667969 | T98: 0.1420898438 | U98: 0.04262695312 | V98: 0.04262695312 | W98: 0.04262695312 | X98: 0.04262695312 | Y98: 0.04262695312 | Z98: 0.04262695312 | AA98: 0.0001852540336 | AB98: 5.557621007e-05 | AC98: 5.557621007e-05 | AD98: 7.104492187e-05 | AE98: 2.131347656e-05 | AF98: 2.131347656e-05 | AG98: 2.011851852e-06 | AH98: 6.035555556e-07 | AI98: 6.035555556e-07 | AJ98: 0.105 | AK98: 0.1125 | AL98: 0.15 | AM98: 0 | AN98: 0.12
C99: Core-core IP Mbytes voz más datos | F99: =F72 -> 0.1547664867 | G99: 0.04666763306 | H99: 0.04760009766 | I99: 0.04570556641 | J99: 0.04666763306 | K99: 0.04760009766 | L99: 0.04570556641 | M99: 0.185719784 | N99: 0.05600115967 | O99: 0.05712011719 | P99: 0.05484667969 | Q99: 0.05600115967 | R99: 0.05712011719 | S99: 0.05484667969 | T99: 0.1420898438 | U99: 0.04262695312 | V99: 0.04262695312 | W99: 0.04262695312 | X99: 0.04262695312 | Y99: 0.04262695312 | Z99: 0.04262695312 | AA99: 0.0001852540336 | AB99: 5.557621007e-05 | AC99: 5.557621007e-05 | AD99: 7.104492187e-05 | AE99: 2.131347656e-05 | AF99: 2.131347656e-05 | AG99: 2.011851852e-06 | AH99: 6.035555556e-07 | AI99: 6.035555556e-07 | AJ99: 0.105 | AK99: 0.1125 | AL99: 0.15 | AM99: 0 | AN99: 0.12
C100: Voz y datos Core-core | F100: =AVERAGE(F98:F99) -> 0.1547664867 | G100: =AVERAGE(G98:G99) -> 0.04666763306 | H100: 0.04760009766 | I100: 0.04570556641 | J100: 0.04666763306 | K100: 0.04760009766 | L100: 0.04570556641 | M100: 0.185719784 | N100: 0.05600115967 | O100: 0.05712011719 | P100: 0.05484667969 | Q100: 0.05600115967 | R100: 0.05712011719 | S100: 0.05484667969 | T100: 0.1420898438 | U100: 0.04262695312 | V100: 0.04262695312 | W100: 0.04262695312 | X100: 0.04262695312 | Y100: 0.04262695312 | Z100: 0.04262695312 | AA100: 0.0001852540336 | AB100: 5.557621007e-05 | AC100: 5.557621007e-05 | AD100: 7.104492187e-05 | AE100: 2.131347656e-05 | AF100: 2.131347656e-05 | AG100: 2.011851852e-06 | AH100: 6.035555556e-07 | AI100: 6.035555556e-07 | AJ100: 0.105 | AK100: 0.1125 | AL100: 0.15 | AM100: =AVERAGE(AM98:AM99) -> 0 | AN100: =AVERAGE(AN98:AN99) -> 0.12
C101: Voz solo Core-Core | F101: =F68 -> 0.25 | G101: =G68 -> 0.15 | H101: 0.15 | I101: 0.15 | J101: 0.15 | K101: 0.15 | L101: 0.15 | M101: 0.25 | N101: 0.15 | O101: 0.15 | P101: 0.15 | Q101: 0.15 | R101: 0.15 | S101: 0.15 | T101: 0.25 | U101: 0.15 | V101: 0.15 | W101: 0.15 | X101: 0.15 | Y101: 0.15 | Z101: 0.15 | AA101: 0.25 | AB101: 0.15 | AC101: 0.15 | AD101: 0.25 | AE101: 0.15 | AF101: 0.15 | AG101: 0.25 | AH101: 0.15 | AI101: 0.15 | AJ101: 0 | AK101: 0 | AL101: 0 | AM101: 0 | AN101: 0
C102: Datos solo Core-Core | F102: =F69 -> 0 | G102: 0 | H102: 0 | I102: 0 | J102: 0 | K102: 0 | L102: 0 | M102: 0 | N102: 0 | O102: 0 | P102: 0 | Q102: 0 | R102: 0 | S102: 0 | T102: 0 | U102: 0 | V102: 0 | W102: 0 | X102: 0 | Y102: 0 | Z102: 0 | AA102: 0 | AB102: 0 | AC102: 0 | AD102: 0 | AE102: 0 | AF102: 0 | AG102: 0 | AH102: 0 | AI102: 0 | AJ102: 0.15 | AK102: 0.15 | AL102: 0.15 | AM102: 0.15 | AN102: 0.15
C103: Tráfico de interconexión | G103: 1 | H103: 1 | I103: 1 | J103: 1 | K103: 1 | L103: 1 | N103: 1 | O103: 1 | P103: 1 | Q103: 1 | R103: 1 | S103: 1 | U103: 1 | V103: 1 | W103: 1 | X103: 1 | Y103: 1 | Z103: 1
C104: Suscriptores | D104: RF.subscribers | AP104: 1 | AQ104: 1
C105: Eventos de originación y terminación de llamadas y SMS | F105: =F39 -> 2 | G105: =G39 -> 1 | H105: 1 | I105: 1 | J105: 1 | K105: 1 | L105: 1 | M105: 2 | N105: 1 | O105: 1 | P105: 1 | Q105: 1 | R105: 1 | S105: 1 | T105: 2 | U105: 1 | V105: 1 | W105: 1 | X105: 1 | Y105: 1 | Z105: 1
C106: Eventos de originación de llamadas y SMS | F106: 1 | G106: 1 | H106: 1 | I106: 1 | M106: 1 | N106: 1 | O106: 1 | P106: 1 | T106: 1 | U106: 1 | V106: 1 | W106: 1 | AA106: 1 | AB106: 1 | AD106: 1 | AE106: 1 | AG106: 1 | AH106: 1
C107: SMS originado | AA107: 1 | AB107: 1 | AD107: 1 | AE107: 1 | AG107: 1 | AH107: 1
C108: Minutos mayoristas | G108: 1 | H108: 1 | I108: 1 | J108: 1 | K108: 1 | L108: 1 | N108: 1 | O108: 1 | P108: 1 | Q108: 1 | R108: 1 | S108: 1 | U108: 1 | V108: 1 | W108: 1 | X108: 1 | Y108: 1 | Z108: 1
C109: Procesado 2G MSC | F109: 7 | G109: 2 | H109: 2 | I109: 2 | J109: 5 | K109: 5 | L109: 5 | AA109: 1 | AB109: 1 | AC109: 1
C110: Procesado 2G+3G | F110: 7 | G110: 2 | H110: 2 | I110: 2 | J110: 5 | K110: 5 | L110: 5 | M110: 7 | N110: 2 | O110: 2 | P110: 2 | Q110: 5 | R110: 5 | S110: 5 | AA110: 1 | AB110: 1 | AC110: 1 | AD110: 1 | AE110: 1 | AF110: 1
C111: Spare
C112: Minutos de voz | F112: 1 | G112: 1 | H112: 1 | I112: 1 | J112: 1 | K112: 1 | L112: 1 | M112: 1 | N112: 1 | O112: 1 | P112: 1 | Q112: 1 | R112: 1 | S112: 1 | T112: 1 | U112: 1 | V112: 1 | W112: 1 | X112: 1 | Y112: 1 | Z112: 1
C113: Spare
C114: Spare
C115: Sin enrutamiento | F115: 0 | G115: 0 | H115: 0 | I115: 0 | J115: 0 | K115: 0 | L115: 0 | M115: 0 | N115: 0 | O115: 0 | P115: 0 | Q115: 0 | R115: 0 | S115: 0 | T115: 0 | U115: 0 | V115: 0 | W115: 0 | X115: 0 | Y115: 0 | Z115: 0 | AA115: 0 | AB115: 0 | AC115: 0 | AD115: 0 | AE115: 0 | AF115: 0 | AG115: 0 | AH115: 0 | AI115: 0 | AJ115: 0 | AK115: 0 | AL115: 0 | AM115: 0 | AN115: 0 | AO115: 0 | AP115: 0 | AQ115: 0 | AR115: 0 | AS115: 0 | AT115: 0 | AU115: 0 | AV115: 0 | AW115: 0 | AX115: 0 | AY115: 0 | AZ115: 0 | BA115: 0 | BB115: 0 | BC115: 0
C116: RF.Option.List | BD116: RF.Option.Table
A119: 3. TABLA COMPLETA DE FACTORES DE ENRUTAMIENTO
C121: Elemento de red | D121: Opción seleccionada | F121: =TRANSPOSE(Network.services.list) -> 2G - Tráfico de voz on-net | G121: 2G - Tráfico de voz saliente a fijo | H121: 2G - Tráfico de voz saliente a móvil | I121: 2G - Tráfico de voz saliente a internacional | J121: 2G - Tráfico de voz entrante desde fijo | K121: 2G - Tráfico de voz entrante desde móvil | L121: 2G - Tráfico de voz entrante desde internacional | M121: 3G - Tráfico de voz on-net | N121: 3G - Tráfico de voz saliente a fijo | O121: 3G - Tráfico de voz saliente a móvil | P121: 3G - Tráfico de voz saliente a internacional | Q121: 3G - Tráfico de voz entrante desde fijo | R121: 3G - Tráfico de voz entrante desde móvil | S121: 3G - Tráfico de voz entrante desde internacional | T121: 4G - Tráfico de voz on-net | U121: 4G - Tráfico de voz saliente a fijo | V121: 4G - Tráfico de voz saliente a móvil | W121: 4G - Tráfico de voz saliente a internacional | X121: 4G - Tráfico de voz entrante desde fijo | Y121: 4G - Tráfico de voz entrante desde móvil | Z121: 4G - Tráfico de voz entrante desde internacional | AA121: 2G - SMSs on-net | AB121: 2G - SMS salientes | AC121: 2G - SMS entrantes | AD121: 3G - SMSs on-net | AE121: 3G - SMS salientes | AF121: 3G - SMS entrantes | AG121: 4G - SMSs on-net | AH121: 4G - SMS salientes | AI121: 4G - SMS entrantes | AJ121: GPRS data Mbytes | AK121: R99 data Mbytes | AL121: HSDPA data Mbytes | AM121: HSUPA data Mbytes | AN121: LTE data Mbytes | AO121: spare | AP121: Suscriptores de solo voz (media del año) | AQ121: Suscriptores de voz y datos (media del año) | AR121: spare | AS121: spare | AT121: spare | AU121: spare | AV121: spare | AW121: spare | AX121: spare | AY121: spare | AZ121: spare | BA121: spare | BB121: spare | BC121: spare
